Workbook

Sheet One Tribe Summary
C4: Marketing Assumptions | H4: Maintenance & Repairs | M4: Item | N4: Item Price | O4: # of Items | P4: Monthly Cost | R4: Assumptions | V4: Item | W4: Item Cost | X4: Monthly Cost Per Facility | Z4: Item | AA4: Item Cost | AB4: # of People | AC4: # of Items | AD4: Monthly Cost Per Facility | AG4: Item | AH4: Cost | AI4: Cost Per Facility per month | AL4: Item | AM4: Cost | AN4: # Per Facility | AO4: Cost Per Facility | AR4: HR Per Block Cost Total
C5: Item | D5: Cost | E5: Cost Per Facility per month | H5: Item | I5: Cost | J5: Cost Per Facility per month | M5: Print Materials | N5: 10 | O5: 200 | P5: =N5*O5 -> 2000 | R5: Position | S5: Salary | T5: Per Facility | V5: Rent | W5: 5000 | X5: =W5 -> 5000 | Z5: Phone Credit | AA5: 100 | AB5: 7 | AC5: 1 | AD5: =AC5*AB5*AA5 -> 700 | AG5: Project Leader Fuel | AH5: 398.7692308 | AI5: 398.7692308 | AL5: Inverter | AM5: 12500 | AN5: 1 | AO5: =AN5*AM5 -> 12500 | AR5: BPO Recruitment | AS5: 2937.5
C6: Block Level Mktg | D6: 16113 | E6: 16113 | H6: Bike Maintenance | I6: 100 | J6: 700 | M6: Stationaries | N6: 10 | O6: 200 | P6: =N6*O6 -> 2000 | R6: Core Team | S6: 25000 | T6: =S6 -> 25000 | V6: Electricity | W6: 1000 | X6: =W6 -> 1000 | Z6: Data Credit | AA6: 450 | AB6: 7 | AC6: 1 | AD6: =AC6*AB6*AA6 -> 3150 | AG6: Village Visonary Fuel | AH6: 265.8461538 | AI6: 1595.076923 | AL6: Battery | AM6: 12500 | AN6: 1 | AO6: =AN6*AM6 -> 12500 | AR6: BPO Field Assignment | AS6: 8760.75
B7: Excluded | C7: Overhead Mktg | D7: 7200 | E7: 7200 | H7: Facility Maintence | I7: 1000 | J7: =I7 -> 1000 | M7: Gas | N7: 80 | O7: 4 | P7: =O7*N7 -> 320 | R7: Project Leader | S7: 17500 | T7: =S7 -> 17500 | Z7: Internet | AA7: 1200 | AB7: 1 | AD7: =AA7 -> 1200 | AG7: Field Visits* | AH7: 1250 | AI7: 1250 | AL7: Filter | AM7: 14000 | AN7: 1 | AO7: 14000 | AR7: BPO Training | AS7: 4180
D8: Total: | E8: =E6 -> 16113 | M8: Milk | N8: 40 | O8: 3 | P8: =O8*N8 -> 120 | R8: Media Analyst | S8: 8000 | T8: =S8 -> 8000 | W8: Total: | X8: =SUM(X5:X7) -> 6000 | AC8: Total: | AD8: =SUM(AD5:AD7) -> 5050 | AG8: Training Travel* | AH8: 2951.666667 | AI8: 2951.666667 | AL8: Mats | AM8: 650 | AN8: 4 | AO8: 2600 | AR8: VV Recruitment | AS8: 14740
I9: Total: | J9: =SUM(J6:J7) -> 1700 | M9: Toiletries | N9: 10 | O9: 10 | P9: =O9*N9 -> 100 | R9: Village Visionary | S9: =7750 -> 7750 | T9: =S9*Assumptions!G3 -> 46500 | AG9: Tribe Trips | AH9: 22925 | AI9: 11462.5 | AL9: Plastic Chairs | AM9: 300 | AN9: 10 | AO9: 3000 | AR9: VV Field Assignment | AS9: 33750
O10: Total: | P10: =SUM(P5:P9) -> 4540 | S10: Total: | T10: =T7+T9 -> 64000 | AL10: Office table | AM10: 4000 | AN10: 2 | AO10: 8000 | AS10: 64368.25
AG11: Conference Travel* | AH11: 9825 | AI11: 4912.5 | AL11: Fans | AM11: 2000 | AN11: 3 | AO11: 6000
AL12: Pillows | AM12: 150 | AN12: 7 | AO12: 1050
AG13: Total: | AI13: =SUM(AI5:AI9) -> 17658.01282 | AL13: Blanket | AM13: 1000 | AN13: 4 | AO13: 4000
AL14: Phone | AM14: 6000 | AN14: 7 | AO14: 42000
AL15: Motorcycle | AM15: 30000 | AN15: 7 | AO15: 210000 | AP15: =AO15/Assumptions!B$11 -> 3500
C16: Month | D16: 1 | E16: =D16+1 -> 2 | F16: =E16+1 -> 3 | G16: 4 | H16: 5 | I16: 6 | J16: 7 | K16: 8 | L16: 9 | M16: 10 | N16: 11 | O16: 12 | P16: 13 | Q16: 14 | R16: 15 | S16: 16 | T16: 17 | U16: 18 | V16: 19 | W16: 20 | X16: 21 | Y16: 22 | Z16: 23 | AA16: 24 | AL16: Computer | AM16: 20000 | AN16: 3 | AO16: =AN16*AM16 -> 60000 | AP16: =AO16/Assumptions!B$11 -> 1000
AN17: Total: | AO17: =SUM(AO5:AO16) -> 375650
C21: Expense
C22: Program Operating Expense | AC22: Program Operating Expense | AE22: 1 Year | AG22: Year 2
C23: Marketing | D23: =$E8 -> 16113 | E23: =$E8 -> 16113 | F23: 16113 | G23: 16113 | H23: 16113 | I23: 16113 | J23: 16113 | K23: 16113 | L23: 16113 | M23: 16113 | N23: 16113 | O23: 16113 | P23: 16113 | Q23: 16113 | R23: 16113 | S23: 16113 | T23: 16113 | U23: 16113 | V23: 16113 | W23: 16113 | X23: 16113 | Y23: 16113 | Z23: 16113 | AA23: 16113 | AC23: Marketing | AE23: =SUM(D23:O23) -> 193356 | AF23: =AE23/$AE$41 -> 0.1061957749 | AG23: =SUM(P23:AA23) -> 193356 | AH23: =AG23/$AG$41 -> 0.1400387464
C24: Depreciation | AC24: Depreciation | AE24: 0 | AF24: =AE24/$AE$41 -> 0 | AG24: 0 | AH24: =AG24/$AG$41 -> 0
C25: Maintenance and Repairs | D25: =$J9 -> 1700 | E25: =$J9 -> 1700 | F25: 1700 | G25: 1700 | H25: 1700 | I25: 1700 | J25: 1700 | K25: 1700 | L25: 1700 | M25: 1700 | N25: 1700 | O25: 1700 | P25: 1700 | Q25: 1700 | R25: 1700 | S25: 1700 | T25: 1700 | U25: 1700 | V25: 1700 | W25: 1700 | X25: 1700 | Y25: 1700 | Z25: 1700 | AA25: 1700 | AC25: Maintenance and Repairs | AE25: 20400 | AF25: =AE25/$AE$41 -> 0.01120417162 | AG25: 20400 | AH25: =AG25/$AG$41 -> 0.01477477
C26: Facility Supplies | D26: =$P10 -> 4540 | E26: =$P10 -> 4540 | F26: 4540 | G26: 4540 | H26: 4540 | I26: 4540 | J26: 4540 | K26: 4540 | L26: 4540 | M26: 4540 | N26: 4540 | O26: 4540 | P26: 4540 | Q26: 4540 | R26: 4540 | S26: 4540 | T26: 4540 | U26: 4540 | V26: 4540 | W26: 4540 | X26: 4540 | Y26: 4540 | Z26: 4540 | AA26: 4540 | AC26: Facility Supplies | AE26: 54480 | AF26: =AE26/$AE$41 -> 0.02992172891 | AG26: 54480 | AH26: =AG26/$AG$41 -> 0.03945732693
C27: Salaries | D27: =$T10 -> 64000 | E27: =$T10 -> 64000 | F27: 64000 | G27: 64000 | H27: 64000 | I27: 64000 | J27: 64000 | K27: 64000 | L27: 64000 | M27: 64000 | N27: 64000 | O27: 64000 | P27: 64000 | Q27: 64000 | R27: 64000 | S27: 64000 | T27: 64000 | U27: 64000 | V27: 64000 | W27: 64000 | X27: 64000 | Y27: 64000 | Z27: 64000 | AA27: 64000 | AC27: Salaries | AE27: 768000 | AF27: =AE27/$AE$41 -> 0.421804108 | AG27: =SUM(P27:AA27) -> 768000 | AH27: =AG27/$AG$41 -> 0.5562266352
C28: HR | D28: =AS10 -> 64368.25 | AC28: HR | AE28: 64368.25 | AF28: =AE28/$AE$41 -> 0.03535259411 | AG28: =SUM(P28:AA28) -> 0 | AH28: =AG28/$AG$41 -> 0
C29: Rent | D29: =$X8 -> 6000 | E29: =$X8 -> 6000 | F29: =$X8 -> 6000 | G29: =$X8 -> 6000 | H29: =$X8 -> 6000 | I29: =$X8 -> 6000 | J29: =$X8 -> 6000 | K29: =$X8 -> 6000 | L29: =$X8 -> 6000 | M29: =$X8 -> 6000 | N29: =$X8 -> 6000 | O29: =$X8 -> 6000 | P29: =$X8 -> 6000 | Q29: =$X8 -> 6000 | R29: =$X8 -> 6000 | S29: =$X8 -> 6000 | T29: =$X8 -> 6000 | U29: =$X8 -> 6000 | V29: =$X8 -> 6000 | W29: =$X8 -> 6000 | X29: =$X8 -> 6000 | Y29: =$X8 -> 6000 | Z29: =$X8 -> 6000 | AA29: =$X8 -> 6000 | AC29: Rent | AE29: 72000 | AF29: =AE29/$AE$41 -> 0.03954413513 | AG29: 72000 | AH29: =AG29/$AG$41 -> 0.05214624705
C30: Telephone and Internet | D30: =$AD8 -> 5050 | E30: =$AD8 -> 5050 | F30: =$AD8 -> 5050 | G30: =$AD8 -> 5050 | H30: =$AD8 -> 5050 | I30: =$AD8 -> 5050 | J30: =$AD8 -> 5050 | K30: =$AD8 -> 5050 | L30: =$AD8 -> 5050 | M30: =$AD8 -> 5050 | N30: =$AD8 -> 5050 | O30: =$AD8 -> 5050 | P30: =$AD8 -> 5050 | Q30: =$AD8 -> 5050 | R30: =$AD8 -> 5050 | S30: =$AD8 -> 5050 | T30: =$AD8 -> 5050 | U30: =$AD8 -> 5050 | V30: =$AD8 -> 5050 | W30: =$AD8 -> 5050 | X30: =$AD8 -> 5050 | Y30: =$AD8 -> 5050 | Z30: =$AD8 -> 5050 | AA30: =$AD8 -> 5050 | AC30: Telephone and Internet | AE30: 60600 | AF30: =AE30/$AE$41 -> 0.0332829804 | AG30: 60600 | AH30: =AG30/$AG$41 -> 0.04388975793
C31: Travel | D31: =$AI13 -> 17658.01282 | E31: =$AI13 -> 17658.01282 | F31: =$AI13 -> 17658.01282 | G31: =$AI13 -> 17658.01282 | H31: =$AI13 -> 17658.01282 | I31: =$AI13 -> 17658.01282 | J31: =$AI13 -> 17658.01282 | K31: =$AI13 -> 17658.01282 | L31: =$AI13 -> 17658.01282 | M31: =$AI13 -> 17658.01282 | N31: =$AI13 -> 17658.01282 | O31: =$AI13 -> 17658.01282 | P31: =$AI13 -> 17658.01282 | Q31: =$AI13 -> 17658.01282 | R31: =$AI13 -> 17658.01282 | S31: =$AI13 -> 17658.01282 | T31: =$AI13 -> 17658.01282 | U31: =$AI13 -> 17658.01282 | V31: =$AI13 -> 17658.01282 | W31: =$AI13 -> 17658.01282 | X31: =$AI13 -> 17658.01282 | Y31: =$AI13 -> 17658.01282 | Z31: =$AI13 -> 17658.01282 | AA31: =$AI13 -> 17658.01282 | AC31: Travel | AE31: 211896.1538 | AF31: =AE31/$AE$41 -> 0.1163784742 | AG31: 211896.1538 | AH31: =AG31/$AG$41 -> 0.1534665165
C32: Professional Services | F32: ='Professional Services'!J49 -> 0 | G32: ='Professional Services'!K49 -> 0 | H32: ='Professional Services'!L49 -> 0 | I32: ='Professional Services'!M49 -> 0 | J32: ='Professional Services'!N49 -> 0 | K32: ='Professional Services'!O49 -> 0 | L32: ='Professional Services'!P49 -> 0 | M32: ='Professional Services'!Q49 -> 0 | N32: ='Professional Services'!R49 -> 0 | O32: ='Professional Services'!S49 -> 0 | P32: ='Professional Services'!T49 -> 0 | Q32: ='Professional Services'!U49 -> 0 | R32: ='Professional Services'!V49 -> 0 | S32: ='Professional Services'!W49 -> 0 | T32: ='Professional Services'!X49 -> 0 | U32: ='Professional Services'!Y49 -> 0 | V32: ='Professional Services'!Z49 -> 0 | W32: ='Professional Services'!AA49 -> 0 | X32: ='Professional Services'!AB49 -> 0 | Y32: ='Professional Services'!AC49 -> 0 | Z32: ='Professional Services'!AD49 -> 0 | AA32: ='Professional Services'!AE49 -> 0 | AC32: Professional Services | AE32: 0 | AF32: =AE32/$AE$41 -> 0 | AG32: 0
C33: Other | AC33: Other | AE33: 0 | AF33: =AE33/$AE$41 -> 0 | AG33: 0
C34: Total Operating Expenses | D34: =SUM(D23:D33) -> 179429.2628 | E34: =SUM(E23:E33) -> 115061.0128 | F34: =SUM(F23:F33) -> 115061.0128 | G34: =SUM(G23:G33) -> 115061.0128 | H34: =SUM(H23:H33) -> 115061.0128 | I34: =SUM(I23:I33) -> 115061.0128 | J34: =SUM(J23:J33) -> 115061.0128 | K34: =SUM(K23:K33) -> 115061.0128 | L34: =SUM(L23:L33) -> 115061.0128 | M34: =SUM(M23:M33) -> 115061.0128 | N34: =SUM(N23:N33) -> 115061.0128 | O34: =SUM(O23:O33) -> 115061.0128 | P34: =SUM(P23:P33) -> 115061.0128 | Q34: =SUM(Q23:Q33) -> 115061.0128 | R34: =SUM(R23:R33) -> 115061.0128 | S34: =SUM(S23:S33) -> 115061.0128 | T34: =SUM(T23:T33) -> 115061.0128 | U34: =SUM(U23:U33) -> 115061.0128 | V34: =SUM(V23:V33) -> 115061.0128 | W34: =SUM(W23:W33) -> 115061.0128 | X34: =SUM(X23:X33) -> 115061.0128 | Y34: =SUM(Y23:Y33) -> 115061.0128 | Z34: =SUM(Z23:Z33) -> 115061.0128 | AA34: =SUM(AA23:AA33) -> 115061.0128 | AC34: Total Operating Expenses | AE34: =SUM(D34:O34) -> 1445100.404 | AF34: =AE34/$AE$41 -> 0.7936839672 | AG34: 1380732.154 | AH34: =AG34/$AG$41 -> 1
AE35: 0 | AF35: =AE35/$AE$41 -> 0
C36: Non-Operating Expenses | AC36: Non-Operating Expenses | AE36: =SUM(D36:O36) -> 0 | AF36: =AE36/$AE$41 -> 0
C37: Furniture/Equipment | D37: =AO17 -> 375650 | AC37: Furniture/Equipment | AE37: 375650 | AF37: =AE37/$AE$41 -> 0.2063160328 | AG37: =SUM(P37:AA37) -> 0 | AH37: =AG37/$AG$41 -> 0
C38: Other | AC38: Other | AE38: 0 | AF38: =AE38/$AE$41 -> 0
C39: Total Non-Recurring Expense | D39: =SUM(D37:D38) -> 375650 | E39: =SUM(E37:E38) -> 0 | F39: 0 | G39: 0 | H39: 0 | I39: 0 | J39: 0 | K39: 0 | L39: 0 | M39: 0 | N39: 0 | O39: 0 | P39: 0 | Q39: 0 | R39: 0 | S39: 0 | T39: 0 | U39: 0 | V39: 0 | W39: 0 | X39: 0 | Y39: 0 | Z39: 0 | AA39: 0 | AC39: Total Non-Recurring Expense | AE39: 375650 | AF39: =AE39/$AE$41 -> 0.2063160328 | AG39: =SUM(P39:AA39) -> 0 | AH39: =AG39/$AG$41 -> 0
AE40: 0 | AF40: =AE40/$AE$41 -> 0
C41: Total Expenses (Rupees) | D41: =SUM(D39+D34) -> 555079.2628 | E41: =SUM(E39+E34) -> 115061.0128 | F41: =SUM(F39+F34) -> 115061.0128 | G41: 115061.0128 | H41: 115061.0128 | I41: 115061.0128 | J41: 115061.0128 | K41: 115061.0128 | L41: 115061.0128 | M41: 115061.0128 | N41: 115061.0128 | O41: 115061.0128 | P41: 115061.0128 | Q41: 115061.0128 | R41: 115061.0128 | S41: 115061.0128 | T41: 115061.0128 | U41: 115061.0128 | V41: 115061.0128 | W41: 115061.0128 | X41: 115061.0128 | Y41: 115061.0128 | Z41: 115061.0128 | AA41: 115061.0128 | AC41: Total Expenses (Rupees) | AE41: 1820750.404 | AF41: =AE41/$AE$41 -> 1 | AG41: =SUM(P41:AA41) -> 1380732.154 | AH41: =AG41/$AG$41 -> 1
C42: Dollars | D42: =D41/Assumptions!$B11 -> 9251.321047 | E42: =E41/Assumptions!$B11 -> 1917.683547 | F42: =F41/Assumptions!$B11 -> 1917.683547 | G42: =G41/Assumptions!$B11 -> 1917.683547 | H42: =H41/Assumptions!$B11 -> 1917.683547 | I42: =I41/Assumptions!$B11 -> 1917.683547 | J42: =J41/Assumptions!$B11 -> 1917.683547 | K42: =K41/Assumptions!$B11 -> 1917.683547 | L42: =L41/Assumptions!$B11 -> 1917.683547 | M42: =M41/Assumptions!$B11 -> 1917.683547 | N42: =N41/Assumptions!$B11 -> 1917.683547 | O42: =O41/Assumptions!$B11 -> 1917.683547 | P42: =P41/Assumptions!$B11 -> 1917.683547 | Q42: =Q41/Assumptions!$B11 -> 1917.683547 | R42: =R41/Assumptions!$B11 -> 1917.683547 | S42: =S41/Assumptions!$B11 -> 1917.683547 | T42: =T41/Assumptions!$B11 -> 1917.683547 | U42: =U41/Assumptions!$B11 -> 1917.683547 | V42: =V41/Assumptions!$B11 -> 1917.683547 | W42: =W41/Assumptions!$B11 -> 1917.683547 | X42: =X41/Assumptions!$B11 -> 1917.683547 | Y42: =Y41/Assumptions!$B11 -> 1917.683547 | Z42: =Z41/Assumptions!$B11 -> 1917.683547 | AA42: =AA41/Assumptions!$B11 -> 1917.683547 | AC42: Dollars | AE42: =AE41/Assumptions!B11 -> 30345.84006 | AG42: =AG41/Assumptions!B11 -> 23012.20256
O43: =SUM(D42:O42) -> 30345.84006
AE46: Total | AF46: =AE42+AG42 -> 53358.04263
AF47: =AF46/6 -> 8893.007105 | AG47: Per Villisionary

Sheet Assumptions
B3: Facility Start Dates | C3: # | F3: # of VV per Tribe | G3: 6
B4: 2015-01-01 | C4: 4 | F4: Population per Panch | G4: 10000
B5: 2015-08-01 | C5: 8
B6: 2016-08-01 | C6: 10
B10: Exchange Rate
B11: 60

Sheet Summary Breakout
D8: 1 | E8: 2 | F8: 3 | G8: 4 | H8: 5 | I8: 6 | J8: 7 | K8: 8 | L8: 9 | M8: 10 | N8: 11 | O8: 12 | P8: 13 | Q8: 14 | R8: 15 | S8: 16 | T8: 17 | U8: 18 | V8: 19 | W8: 20 | X8: 21 | Y8: 22 | Z8: 23 | AA8: 24 | AB8: 25 | AC8: 26 | AD8: 27 | AE8: 28 | AF8: 29 | AH8: Total
C9: Income | D9: 2014-09-01 | E9: 2014-10-01 | F9: 2014-11-01 | G9: 2014-12-01 | H9: 2015-01-01 | I9: 2015-02-01 | J9: 2015-03-01 | K9: 2015-04-01 | L9: 2015-05-01 | M9: 2015-06-01 | N9: 2015-07-01 | O9: 2015-08-01 | P9: 2015-09-01 | Q9: 2015-10-01 | R9: 2015-11-01 | S9: 2015-12-01 | T9: 2016-01-01 | U9: 2016-02-01 | V9: 2016-03-01 | W9: 2016-04-01 | X9: 2016-05-01 | Y9: 2016-06-01 | Z9: 2016-07-01 | AA9: 2016-08-01 | AB9: 2016-09-01 | AC9: 2016-10-01 | AD9: 2016-11-01 | AE9: 2016-12-01 | AF9: 2017-01-01
C14: Expense
C15: Operating Expense | AH15: 2014 | AJ15: 2015 | AL15: 2016
C16: Marketing | D16: =Marketing!H59 -> 0 | E16: =Marketing!I59 -> 0 | F16: =Marketing!J59 -> 0 | G16: =Marketing!K59 -> 0 | H16: =Marketing!L59 -> 71650 | I16: =Marketing!M59 -> 71650 | J16: =Marketing!N59 -> 71650 | K16: =Marketing!O59 -> 71650 | L16: =Marketing!P59 -> 71650 | M16: =Marketing!Q59 -> 71650 | N16: =Marketing!R59 -> 71650 | O16: =Marketing!S59 -> 200550 | P16: =Marketing!T59 -> 200550 | Q16: =Marketing!U59 -> 200550 | R16: =Marketing!V59 -> 200550 | S16: =Marketing!W59 -> 200550 | T16: =Marketing!X59 -> 200550 | U16: =Marketing!Y59 -> 200550 | V16: =Marketing!Z59 -> 200550 | W16: =Marketing!AA59 -> 200550 | X16: =Marketing!AB59 -> 200550 | Y16: =Marketing!AC59 -> 200550 | Z16: =Marketing!AD59 -> 200550 | AA16: =Marketing!AE59 -> 361675 | AB16: =Marketing!AF59 -> 361675 | AC16: =Marketing!AG59 -> 361675 | AD16: =Marketing!AH59 -> 361675 | AE16: =Marketing!AI59 -> 290025 | AF16: =Marketing!AJ59 -> 290025 | AH16: =SUM(D16:G16) -> 0 | AI16: =AH16/AH$34 -> 0 | AJ16: =SUM(H16:S16) -> 1504300 | AK16: =AJ16/AJ$34 -> 0.09236860718 | AL16: =SUM(T16:AF16) -> 3430600 | AM16: =AL16/AL$34 -> 0.1188069436
C17: Depreciation | AH17: =SUM(D17:G17) -> 0 | AI17: =AH17/AH$34 -> 0 | AJ17: =SUM(H17:S17) -> 0 | AK17: =AJ17/AJ$34 -> 0 | AL17: 0 | AM17: =AL17/AL$34 -> 0
C18: Maintenance and Repairs | D18: ='Maintenence & Repairs'!H59 -> 0 | E18: ='Maintenence & Repairs'!I59 -> 0 | F18: ='Maintenence & Repairs'!J59 -> 0 | G18: ='Maintenence & Repairs'!K59 -> 0 | H18: ='Maintenence & Repairs'!L59 -> 6800 | I18: ='Maintenence & Repairs'!M59 -> 6800 | J18: ='Maintenence & Repairs'!N59 -> 6800 | K18: ='Maintenence & Repairs'!O59 -> 6800 | L18: ='Maintenence & Repairs'!P59 -> 6800 | M18: ='Maintenence & Repairs'!Q59 -> 6800 | N18: ='Maintenence & Repairs'!R59 -> 6800 | O18: ='Maintenence & Repairs'!S59 -> 20400 | P18: ='Maintenence & Repairs'!T59 -> 20400 | Q18: ='Maintenence & Repairs'!U59 -> 20400 | R18: ='Maintenence & Repairs'!V59 -> 20400 | S18: ='Maintenence & Repairs'!W59 -> 20400 | T18: ='Maintenence & Repairs'!X59 -> 20400 | U18: ='Maintenence & Repairs'!Y59 -> 20400 | V18: ='Maintenence & Repairs'!Z59 -> 20400 | W18: ='Maintenence & Repairs'!AA59 -> 20400 | X18: ='Maintenence & Repairs'!AB59 -> 20400 | Y18: ='Maintenence & Repairs'!AC59 -> 20400 | Z18: ='Maintenence & Repairs'!AD59 -> 20400 | AA18: ='Maintenence & Repairs'!AE59 -> 37400 | AB18: ='Maintenence & Repairs'!AF59 -> 37400 | AC18: ='Maintenence & Repairs'!AG59 -> 37400 | AD18: ='Maintenence & Repairs'!AH59 -> 30600 | AE18: ='Maintenence & Repairs'!AI59 -> 30600 | AF18: ='Maintenence & Repairs'!AJ59 -> 30600 | AH18: 0 | AI18: =AH18/AH$34 -> 0 | AJ18: 149600 | AK18: =AJ18/AJ$34 -> 0.009185896187 | AL18: 346800 | AM18: =AL18/AL$34 -> 0.0120102163
C19: Facility Supplies | D19: ='Office Supplies'!H49 -> 0 | E19: ='Office Supplies'!I49 -> 0 | F19: ='Office Supplies'!J49 -> 0 | G19: ='Office Supplies'!K49 -> 0 | H19: ='Office Supplies'!L49 -> 18160 | I19: ='Office Supplies'!M49 -> 18160 | J19: ='Office Supplies'!N49 -> 18160 | K19: ='Office Supplies'!O49 -> 18160 | L19: ='Office Supplies'!P49 -> 18160 | M19: ='Office Supplies'!Q49 -> 18160 | N19: ='Office Supplies'!R49 -> 18160 | O19: ='Office Supplies'!S49 -> 54480 | P19: ='Office Supplies'!T49 -> 54480 | Q19: ='Office Supplies'!U49 -> 54480 | R19: ='Office Supplies'!V49 -> 54480 | S19: ='Office Supplies'!W49 -> 54480 | T19: ='Office Supplies'!X49 -> 54480 | U19: ='Office Supplies'!Y49 -> 54480 | V19: ='Office Supplies'!Z49 -> 54480 | W19: ='Office Supplies'!AA49 -> 54480 | X19: ='Office Supplies'!AB49 -> 54480 | Y19: ='Office Supplies'!AC49 -> 54480 | Z19: ='Office Supplies'!AD49 -> 54480 | AA19: ='Office Supplies'!AE49 -> 99880 | AB19: ='Office Supplies'!AF49 -> 99880 | AC19: ='Office Supplies'!AG49 -> 99880 | AD19: ='Office Supplies'!AH49 -> 99880 | AE19: ='Office Supplies'!AI49 -> 81720 | AF19: ='Office Supplies'!AJ49 -> 81720 | AH19: 0 | AI19: =AH19/AH$34 -> 0 | AJ19: 399520 | AK19: =AJ19/AJ$34 -> 0.02453174629 | AL19: 944320 | AM19: =AL19/AL$34 -> 0.03270325104
C20: Salaries | D20: =Salaries!H49 -> 0 | E20: =Salaries!I49 -> 0 | F20: =Salaries!J49 -> 0 | G20: =Salaries!K49 -> 184000 | H20: =Salaries!L49 -> 184000 | I20: =Salaries!M49 -> 370000 | J20: =Salaries!N49 -> 370000 | K20: =Salaries!O49 -> 370000 | L20: =Salaries!P49 -> 370000 | M20: =Salaries!Q49 -> 506000 | N20: =Salaries!R49 -> 506000 | O20: =Salaries!S49 -> 878000 | P20: =Salaries!T49 -> 878000 | Q20: =Salaries!U49 -> 878000 | R20: =Salaries!V49 -> 878000 | S20: =Salaries!W49 -> 878000 | T20: =Salaries!X49 -> 878000 | U20: =Salaries!Y49 -> 878000 | V20: =Salaries!Z49 -> 878000 | W20: =Salaries!AA49 -> 878000 | X20: =Salaries!AB49 -> 878000 | Y20: =Salaries!AC49 -> 1048000 | Z20: =Salaries!AD49 -> 1048000 | AA20: =Salaries!AE49 -> 1513000 | AB20: =Salaries!AF49 -> 1513000 | AC20: =Salaries!AG49 -> 1513000 | AD20: =Salaries!AH49 -> 1513000 | AE20: =Salaries!AI49 -> 1513000 | AF20: =Salaries!AJ49 -> 1513000 | AH20: 184000 | AI20: =AH20/AH$34 -> 0.3536740778 | AJ20: 7066000 | AK20: =AJ20/AJ$34 -> 0.4338739469 | AL20: 15564000 | AM20: =AL20/AL$34 -> 0.5390052092
C21: HR | D21: =Recruitment!H59 -> 0 | E21: =Recruitment!I59 -> 0 | F21: =Recruitment!J59 -> 0 | G21: =Recruitment!K59 -> 78253 | H21: =Recruitment!L59 -> 135000 | I21: =Recruitment!M59 -> 0 | J21: =Recruitment!N59 -> 0 | K21: =Recruitment!O59 -> 0 | L21: =Recruitment!P59 -> 0 | M21: =Recruitment!Q59 -> 0 | N21: =Recruitment!R59 -> 0 | O21: =Recruitment!S59 -> 455986 | P21: =Recruitment!T59 -> 0 | Q21: =Recruitment!U59 -> 0 | R21: =Recruitment!V59 -> 0 | S21: =Recruitment!W59 -> 0 | T21: =Recruitment!X59 -> 0 | U21: =Recruitment!Y59 -> 0 | V21: =Recruitment!Z59 -> 0 | W21: =Recruitment!AA59 -> 0 | X21: =Recruitment!AB59 -> 0 | Y21: =Recruitment!AC59 -> 0 | Z21: =Recruitment!AD59 -> 0 | AA21: =Recruitment!AE59 -> 546792.5 | AB21: =Recruitment!AF59 -> 0 | AC21: =Recruitment!AG59 -> 0 | AD21: =Recruitment!AH59 -> 0 | AE21: =Recruitment!AI59 -> 0 | AF21: =Recruitment!AJ59 -> 0 | AH21: 78253 | AI21: =AH21/AH$34 -> 0.1504133566 | AJ21: =SUM(H21:S21) -> 590986 | AK21: =AJ21/AJ$34 -> 0.03628834254 | AL21: =SUM(T21:AF21) -> 546792.5 | AM21: =AL21/AL$34 -> 0.01893626355
C22: Rent | D22: =Rent!H49 -> 0 | E22: =Rent!I49 -> 0 | F22: =Rent!J49 -> 0 | G22: =Rent!K49 -> 0 | H22: =Rent!L49 -> 24000 | I22: =Rent!M49 -> 24000 | J22: =Rent!N49 -> 24000 | K22: =Rent!O49 -> 24000 | L22: =Rent!P49 -> 24000 | M22: =Rent!Q49 -> 24000 | N22: =Rent!R49 -> 24000 | O22: =Rent!S49 -> 72000 | P22: =Rent!T49 -> 72000 | Q22: =Rent!U49 -> 72000 | R22: =Rent!V49 -> 72000 | S22: =Rent!W49 -> 72000 | T22: =Rent!X49 -> 72000 | U22: =Rent!Y49 -> 72000 | V22: =Rent!Z49 -> 72000 | W22: =Rent!AA49 -> 72000 | X22: =Rent!AB49 -> 72000 | Y22: =Rent!AC49 -> 72000 | Z22: =Rent!AD49 -> 72000 | AA22: =Rent!AE49 -> 132000 | AB22: =Rent!AF49 -> 132000 | AC22: =Rent!AG49 -> 132000 | AD22: =Rent!AH49 -> 132000 | AE22: =Rent!AI49 -> 108000 | AF22: =Rent!AJ49 -> 108000 | AH22: 0 | AI22: =AH22/AH$34 -> 0 | AJ22: 528000 | AK22: =AJ22/AJ$34 -> 0.03242081007 | AL22: 1248000 | AM22: =AL22/AL$34 -> 0.04322015555
C23: Telephone and Internet | D23: ='Telephone & Internet'!H49 -> 0 | E23: ='Telephone & Internet'!I49 -> 0 | F23: ='Telephone & Internet'!J49 -> 0 | G23: ='Telephone & Internet'!K49 -> 0 | H23: ='Telephone & Internet'!L49 -> 20200 | I23: ='Telephone & Internet'!M49 -> 20200 | J23: ='Telephone & Internet'!N49 -> 20200 | K23: ='Telephone & Internet'!O49 -> 20200 | L23: ='Telephone & Internet'!P49 -> 20200 | M23: ='Telephone & Internet'!Q49 -> 20200 | N23: ='Telephone & Internet'!R49 -> 20200 | O23: ='Telephone & Internet'!S49 -> 60600 | P23: ='Telephone & Internet'!T49 -> 60600 | Q23: ='Telephone & Internet'!U49 -> 60600 | R23: ='Telephone & Internet'!V49 -> 60600 | S23: ='Telephone & Internet'!W49 -> 60600 | T23: ='Telephone & Internet'!X49 -> 60600 | U23: ='Telephone & Internet'!Y49 -> 60600 | V23: ='Telephone & Internet'!Z49 -> 60600 | W23: ='Telephone & Internet'!AA49 -> 60600 | X23: ='Telephone & Internet'!AB49 -> 60600 | Y23: ='Telephone & Internet'!AC49 -> 60600 | Z23: ='Telephone & Internet'!AD49 -> 60600 | AA23: ='Telephone & Internet'!AE49 -> 111100 | AB23: ='Telephone & Internet'!AF49 -> 111100 | AC23: ='Telephone & Internet'!AG49 -> 111100 | AD23: ='Telephone & Internet'!AH49 -> 111100 | AE23: ='Telephone & Internet'!AI49 -> 90900 | AF23: ='Telephone & Internet'!AJ49 -> 90900 | AH23: 0 | AI23: =AH23/AH$34 -> 0 | AJ23: 444400 | AK23: =AJ23/AJ$34 -> 0.02728751515 | AL23: 1050400 | AM23: =AL23/AL$34 -> 0.03637696426
C24: Travel | D24: =Travel!N64+Travel!H59 -> 0 | E24: =Travel!O64+Travel!I59 -> 0 | F24: =Travel!P64+Travel!J59 -> 0 | G24: =Travel!Q64+Travel!K59 -> 0 | H24: =Travel!R64+Travel!L59 -> 75544.55128 | I24: =Travel!S64+Travel!M59 -> 75544.55128 | J24: =Travel!T64+Travel!N59 -> 75544.55128 | K24: =Travel!U64+Travel!O59 -> 75544.55128 | L24: =Travel!V64+Travel!P59 -> 75544.55128 | M24: =Travel!W64+Travel!Q59 -> 75544.55128 | N24: =Travel!X64+Travel!R59 -> 75544.55128 | O24: =Travel!Y64+Travel!S59 -> 141483.6538 | P24: =Travel!Z64+Travel!T59 -> 141483.6538 | Q24: =Travel!AA64+Travel!U59 -> 141483.6538 | R24: =Travel!AB64+Travel!V59 -> 141483.6538 | S24: =Travel!AC64+Travel!W59 -> 141483.6538 | T24: =Travel!AD64+Travel!X59 -> 141483.6538 | U24: =Travel!AE64+Travel!Y59 -> 141483.6538 | V24: =Travel!AF64+Travel!Z59 -> 141483.6538 | W24: =Travel!AG64+Travel!AA59 -> 141483.6538 | X24: =Travel!AH64+Travel!AB59 -> 141483.6538 | Y24: =Travel!AI64+Travel!AC59 -> 141483.6538 | Z24: =Travel!AJ64+Travel!AD59 -> 141483.6538 | AA24: =Travel!AK64+Travel!AE59 -> 219813.7821 | AB24: =Travel!AL64+Travel!AF59 -> 219813.7821 | AC24: =Travel!AM64+Travel!AG59 -> 219813.7821 | AD24: =Travel!AN64+Travel!AH59 -> 219813.7821 | AE24: =Travel!AO64+Travel!AI59 -> 149181.7308 | AF24: =Travel!AP64+Travel!AJ59 -> 149181.7308 | AH24: 0 | AI24: =AH24/AH$34 -> 0 | AJ24: 1236230.128 | AK24: =AJ24/AJ$34 -> 0.07590829961 | AL24: 2168004.167 | AM24: =AL24/AL$34 -> 0.07508131196
C25: Professional Services | D25: ='Professional Services'!H49 -> 81000 | E25: ='Professional Services'!I49 -> 113000 | F25: ='Professional Services'!J49 -> 0 | G25: ='Professional Services'!K49 -> 0 | H25: ='Professional Services'!L49 -> 0 | I25: ='Professional Services'!M49 -> 0 | J25: ='Professional Services'!N49 -> 0 | K25: ='Professional Services'!O49 -> 0 | L25: ='Professional Services'!P49 -> 0 | M25: ='Professional Services'!Q49 -> 0 | N25: ='Professional Services'!R49 -> 0 | O25: ='Professional Services'!S49 -> 0 | P25: ='Professional Services'!T49 -> 0 | Q25: ='Professional Services'!U49 -> 0 | R25: ='Professional Services'!V49 -> 0 | S25: ='Professional Services'!W49 -> 0 | T25: ='Professional Services'!X49 -> 0 | U25: ='Professional Services'!Y49 -> 0 | V25: ='Professional Services'!Z49 -> 0 | W25: ='Professional Services'!AA49 -> 0 | X25: ='Professional Services'!AB49 -> 0 | Y25: ='Professional Services'!AC49 -> 0 | Z25: ='Professional Services'!AD49 -> 0 | AA25: ='Professional Services'!AE49 -> 0 | AB25: ='Professional Services'!AF49 -> 0 | AC25: ='Professional Services'!AG49 -> 0 | AD25: ='Professional Services'!AH49 -> 0 | AE25: ='Professional Services'!AI49 -> 0 | AF25: ='Professional Services'!AJ49 -> 0 | AH25: 194000 | AI25: =AH25/AH$34 -> 0.3728954951 | AJ25: 0 | AK25: =AJ25/AJ$34 -> 0 | AL25: 0 | AM25: =AL25/AL$34 -> 0
C26: Other | AK26: =AJ26/AJ$34 -> 0
C27: Total Operating Expenses | D27: =SUM(D16:D26) -> 81000 | E27: =SUM(E16:E26) -> 113000 | F27: =SUM(F16:F26) -> 0 | G27: 262253 | H27: =SUM(H16:H26) -> 535354.5513 | I27: 586354.5513 | J27: 586354.5513 | K27: 586354.5513 | L27: 586354.5513 | M27: 722354.5513 | N27: 722354.5513 | O27: 1883499.654 | P27: 1427513.654 | Q27: 1427513.654 | R27: 1427513.654 | S27: 1427513.654 | T27: 1427513.654 | U27: 1427513.654 | V27: 1427513.654 | W27: 1427513.654 | X27: 1427513.654 | Y27: 1597513.654 | Z27: 1597513.654 | AA27: 3021661.282 | AB27: 2474868.782 | AC27: 2474868.782 | AD27: 2468068.782 | AE27: 2263426.731 | AF27: 2263426.731 | AH27: 456253 | AI27: =AH27/AH$34 -> 0.8769829295 | AJ27: =SUM(H27:S27) -> 11919036.13 | AK27: =AJ27/AJ$34 -> 0.731865164 | AL27: =SUM(T27:AF27) -> 25298916.67 | AM27: =AL27/AL$34 -> 0.8761403154
AK28: =AJ28/AJ$34 -> 0
C29: Non-Operating Expenses | AK29: =AJ29/AJ$34 -> 0 | AM29: =AL29/AL$34 -> 0
C30: Furniture/Equipment | D30: ='Furniture & Equipment'!H59 -> 0 | E30: ='Furniture & Equipment'!I59 -> 0 | F30: ='Furniture & Equipment'!J59 -> 0 | G30: ='Furniture & Equipment'!K59 -> 0 | H30: ='Furniture & Equipment'!L59 -> 1502600 | I30: ='Furniture & Equipment'!M59 -> 0 | J30: ='Furniture & Equipment'!N59 -> 0 | K30: ='Furniture & Equipment'!O59 -> 0 | L30: ='Furniture & Equipment'!P59 -> 0 | M30: ='Furniture & Equipment'!Q59 -> 0 | N30: ='Furniture & Equipment'!R59 -> 0 | O30: ='Furniture & Equipment'!S59 -> 2861200 | P30: ='Furniture & Equipment'!T59 -> 0 | Q30: ='Furniture & Equipment'!U59 -> 0 | R30: ='Furniture & Equipment'!V59 -> 0 | S30: ='Furniture & Equipment'!W59 -> 0 | T30: ='Furniture & Equipment'!X59 -> 0 | U30: ='Furniture & Equipment'!Y59 -> 0 | V30: ='Furniture & Equipment'!Z59 -> 0 | W30: ='Furniture & Equipment'!AA59 -> 0 | X30: ='Furniture & Equipment'!AB59 -> 0 | Y30: ='Furniture & Equipment'!AC59 -> 0 | Z30: ='Furniture & Equipment'!AD59 -> 0 | AA30: ='Furniture & Equipment'!AE59 -> 3576500 | AB30: ='Furniture & Equipment'!AF59 -> 0 | AC30: ='Furniture & Equipment'!AG59 -> 0 | AD30: ='Furniture & Equipment'!AH59 -> 0 | AE30: ='Furniture & Equipment'!AI59 -> 0 | AF30: ='Furniture & Equipment'!AJ59 -> 0 | AH30: =SUM(D30:G30) -> 0 | AJ30: =SUM(H30:S30) -> 4363800 | AK30: =AJ30/AJ$34 -> 0.2679506269 | AL30: =SUM(T30:AF30) -> 3576500 | AM30: =AL30/AL$34 -> 0.1238596846
C31: Other | D31: =Other!H49 -> 0 | E31: =Other!I49 -> 58000 | F31: =Other!J49 -> 3000 | G31: =Other!K49 -> 3000 | H31: =Other!L49 -> 3000 | I31: =Other!M49 -> 0 | J31: =Other!N49 -> 0 | K31: =Other!O49 -> 0 | L31: =Other!P49 -> 0 | M31: =Other!Q49 -> 0 | N31: =Other!R49 -> 0 | O31: =Other!S49 -> 0 | P31: =Other!T49 -> 0 | Q31: =Other!U49 -> 0 | R31: =Other!V49 -> 0 | S31: =Other!W49 -> 0 | T31: =Other!X49 -> 0 | U31: =Other!Y49 -> 0 | V31: =Other!Z49 -> 0 | W31: =Other!AA49 -> 0 | X31: =Other!AB49 -> 0 | Y31: =Other!AC49 -> 0 | Z31: =Other!AD49 -> 0 | AA31: =Other!AE49 -> 0 | AB31: =Other!AF49 -> 0 | AC31: =Other!AG49 -> 0 | AD31: =Other!AH49 -> 0 | AE31: =Other!AI49 -> 0 | AF31: =Other!AJ49 -> 0 | AH31: 64000 | AI31: =AH31/AH$34 -> 0.1230170705 | AJ31: 3000 | AK31: =AJ31/AJ$34 -> 0.0001842091481 | AL31: =SUM(T31:AF31) -> 0 | AM31: =AL31/AL$34 -> 0
C32: Total Non-Recurring Expense | D32: =SUM(D30:D31) -> 0 | E32: =SUM(E30:E31) -> 58000 | F32: 3000 | G32: 3000 | H32: 1505600 | I32: 0 | J32: 0 | K32: 0 | L32: 0 | M32: 0 | N32: 0 | O32: 2861200 | P32: 0 | Q32: 0 | R32: 0 | S32: 0 | T32: 0 | U32: 0 | V32: 0 | W32: 0 | X32: 0 | Y32: 0 | Z32: 0 | AA32: 3576500 | AB32: 0 | AC32: 0 | AD32: 0 | AE32: 0 | AF32: 0 | AH32: 64000 | AI32: 0.1230170705 | AJ32: 4366800 | AK32: =AJ32/AJ$34 -> 0.268134836 | AL32: =SUM(T32:AF32) -> 3576500 | AM32: =AL32/AL$34 -> 0.1238596846
AK33: =AJ33/AJ$34 -> 0
C34: Total Expenses (Rupees) | D34: =SUM(D32+D27) -> 81000 | E34: =SUM(E32+E27) -> 171000 | F34: =SUM(F32+F27) -> 3000 | G34: 265253 | H34: 2040954.551 | I34: 586354.5513 | J34: 586354.5513 | K34: 586354.5513 | L34: 586354.5513 | M34: 722354.5513 | N34: 722354.5513 | O34: 4744699.654 | P34: 1427513.654 | Q34: 1427513.654 | R34: 1427513.654 | S34: 1427513.654 | T34: 1427513.654 | U34: 1427513.654 | V34: 1427513.654 | W34: 1427513.654 | X34: 1427513.654 | Y34: 1597513.654 | Z34: 1597513.654 | AA34: 6598161.282 | AB34: 2474868.782 | AC34: 2474868.782 | AD34: 2468068.782 | AE34: 2263426.731 | AF34: 2263426.731 | AH34: =SUM(D34:G34) -> 520253 | AI34: =AH34/AH$34 -> 1 | AJ34: =SUM(H34:S34) -> 16285836.13 | AK34: =AJ34/AJ$34 -> 1 | AL34: =SUM(T34:AF34) -> 28875416.67 | AM34: =AL34/AL$34 -> 1
C35: Dollars | D35: =D34/$D$37 -> 1350 | E35: 2850 | F35: 50 | G35: 4420.883333 | H35: 34015.90919 | I35: 9772.575855 | J35: 9772.575855 | K35: 9772.575855 | L35: 9772.575855 | M35: 12039.24252 | N35: 12039.24252 | O35: 79078.32756 | P35: 23791.89423 | Q35: 23791.89423 | R35: 23791.89423 | S35: 23791.89423 | T35: 23791.89423 | U35: 23791.89423 | V35: 23791.89423 | W35: 23791.89423 | X35: 23791.89423 | Y35: 26625.22756 | Z35: 26625.22756 | AA35: 109969.3547 | AB35: 41247.81303 | AC35: 41247.81303 | AD35: 41134.4797 | AE35: 37723.77885 | AF35: 37723.77885
G36: =SUM(D35:G35) -> 8670.883333 | S36: =SUM(H35:S35) -> 271430.6021 | AE36: =SUM(T35:AE35) -> 443533.1656
C37: Exchange Rate | D37: 60
C39: Expense Cumulative
C40: Rupees | D40: =D34 -> 81000 | E40: =E34+D40 -> 252000 | F40: =F34+E40 -> 255000 | G40: 520253 | H40: 2561207.551 | I40: 3147562.103 | J40: 3733916.654 | K40: 4320271.205 | L40: 4906625.756 | M40: 5628980.308 | N40: 6351334.859 | O40: 11096034.51 | P40: 12523548.17 | Q40: 13951061.82 | R40: 15378575.47 | S40: 16806089.13 | T40: 18233602.78 | U40: 19661116.44 | V40: 21088630.09 | W40: 22516143.74 | X40: 23943657.4 | Y40: 25541171.05 | Z40: 27138684.71 | AA40: 33736845.99 | AB40: 36211714.77 | AC40: 38686583.55 | AD40: 41154652.33 | AE40: 43418079.06 | AF40: 45681505.79
C41: Dollars | D41: =D35 -> 1350 | E41: =E35+D41 -> 4200 | F41: =F35+E41 -> 4250 | G41: 8670.883333 | H41: 42686.79252 | I41: 52459.36838 | J41: 62231.94423 | K41: 72004.52009 | L41: 81777.09594 | M41: 93816.33846 | N41: 105855.581 | O41: 184933.9085 | P41: 208725.8028 | Q41: 232517.697 | R41: 256309.5912 | S41: 280101.4855 | T41: 303893.3797 | U41: 327685.2739 | V41: 351477.1682 | W41: 375269.0624 | X41: 399060.9566 | Y41: 425686.1842 | Z41: 452311.4118 | AA41: 562280.7665 | AB41: 603528.5795 | AC41: 644776.3925 | AD41: 685910.8722 | AE41: 723634.6511 | AF41: 761358.4299
C46: =81000/60 -> 1350

Sheet Analysis
B4: PER BLOCK
C5: Year 1 | D5: % of Total Expense | F5: Year 2 | G5: % of Total Expense
B6: Program Operating Expense | F6: Rs | H6: Dollars | K6: # of Blocks | L6: ='Operations Numbers'!AK19 -> 22
B7: Marketing | C7: ='One Tribe Summary'!AE23 -> 193356 | D7: =C7/$C$25 -> 0.1061957749 | E7: =C7/Assumptions!$B$11 -> 3222.6 | F7: ='One Tribe Summary'!AG23 -> 193356 | G7: =F7/$F$25 -> 0.1400387464 | H7: =F7/Assumptions!$B$11 -> 3222.6 | K7: # of Village Visionaries | L7: ='Operations Numbers'!AK20 -> 132
B8: Depreciation | C8: ='One Tribe Summary'!AE24 -> 0 | D8: =C8/$C$25 -> 0 | E8: =C8/Assumptions!$B$11 -> 0 | F8: ='One Tribe Summary'!AG24 -> 0 | G8: =F8/$F$25 -> 0 | H8: =F8/Assumptions!$B$11 -> 0 | K8: # of Panchayats | L8: ='Operations Numbers'!AK21 -> 132
B9: Maintenance and Repairs | C9: ='One Tribe Summary'!AE25 -> 20400 | D9: =C9/$C$25 -> 0.01120417162 | E9: =C9/Assumptions!$B$11 -> 340 | F9: ='One Tribe Summary'!AG25 -> 20400 | G9: =F9/$F$25 -> 0.01477477 | H9: =F9/Assumptions!$B$11 -> 340 | K9: Population Served | L9: ='Operations Numbers'!AK22 -> 1320000
B10: Facility Supplies | C10: ='One Tribe Summary'!AE26 -> 54480 | D10: =C10/$C$25 -> 0.02992172891 | E10: =C10/Assumptions!$B$11 -> 908 | F10: ='One Tribe Summary'!AG26 -> 54480 | G10: =F10/$F$25 -> 0.03945732693 | H10: =F10/Assumptions!$B$11 -> 908 | K10: Monthly Cashflow | L10: ='Operations Numbers'!AK23 -> 37723.77885
B11: Salaries | C11: ='One Tribe Summary'!AE27 -> 768000 | D11: =C11/$C$25 -> 0.421804108 | E11: =C11/Assumptions!$B$11 -> 12800 | F11: ='One Tribe Summary'!AG27 -> 768000 | G11: =F11/$F$25 -> 0.5562266352 | H11: =F11/Assumptions!$B$11 -> 12800 | K11: Moneys Spent | L11: ='Operations Numbers'!AK24 -> 761358.4299
B12: HR
B13: Rent | C13: ='One Tribe Summary'!AE29 -> 72000 | D13: =C13/$C$25 -> 0.03954413513 | E13: =C13/Assumptions!$B$11 -> 1200 | F13: ='One Tribe Summary'!AG29 -> 72000 | G13: =F13/$F$25 -> 0.05214624705 | H13: =F13/Assumptions!$B$11 -> 1200 | K13: Avg. Operating Efficiency | L13: ='Operations Numbers'!AL25 -> 0.04481005692 | M13: $ per Person
B14: Telephone and Internet | C14: ='One Tribe Summary'!AE30 -> 60600 | D14: =C14/$C$25 -> 0.0332829804 | E14: =C14/Assumptions!$B$11 -> 1010 | F14: ='One Tribe Summary'!AG30 -> 60600 | G14: =F14/$F$25 -> 0.04388975793 | H14: =F14/Assumptions!$B$11 -> 1010
B15: Travel | C15: ='One Tribe Summary'!AE31 -> 211896.1538 | D15: =C15/$C$25 -> 0.1163784742 | E15: =C15/Assumptions!$B$11 -> 3531.602564 | F15: ='One Tribe Summary'!AG31 -> 211896.1538 | G15: =F15/$F$25 -> 0.1534665165 | H15: =F15/Assumptions!$B$11 -> 3531.602564
B16: Professional Services | C16: ='One Tribe Summary'!AE32 -> 0 | D16: =C16/$C$25 -> 0 | E16: =C16/Assumptions!$B$11 -> 0 | F16: ='One Tribe Summary'!AG32 -> 0 | H16: =F16/Assumptions!$B$11 -> 0
B17: Other | C17: ='One Tribe Summary'!AE33 -> 0 | D17: =C17/$C$25 -> 0 | E17: =C17/Assumptions!$B$11 -> 0 | F17: ='One Tribe Summary'!AG33 -> 0 | H17: =F17/Assumptions!$B$11 -> 0
B18: Total Operating Expenses | C18: ='One Tribe Summary'!AE34 -> 1445100.404 | D18: =C18/$C$25 -> 0.7936839672 | E18: =C18/Assumptions!$B$11 -> 24085.00673 | F18: ='One Tribe Summary'!AG34 -> 1380732.154 | G18: =F18/$F$25 -> 1 | H18: =F18/Assumptions!$B$11 -> 23012.20256
B20: Non-Operating Expenses
B21: Furniture/Equipment | C21: ='One Tribe Summary'!AE37 -> 375650 | D21: =C21/$C$25 -> 0.2063160328 | E21: =C21/Assumptions!$B$11 -> 6260.833333 | F21: ='One Tribe Summary'!AG37 -> 0 | G21: =F21/$F$25 -> 0 | H21: =F21/Assumptions!$B$11 -> 0
B22: Other | C22: ='One Tribe Summary'!AE38 -> 0
B23: Total Non-Recurring Expense | C23: ='One Tribe Summary'!AE39 -> 375650 | D23: =C23/$C$25 -> 0.2063160328 | E23: =C23/Assumptions!$B$11 -> 6260.833333 | F23: ='One Tribe Summary'!AG39 -> 0 | G23: =F23/$F$25 -> 0 | H23: =F23/Assumptions!$B$11 -> 0
I24: Total
B25: Total Expenses (Rupees) | C25: ='One Tribe Summary'!AE41 -> 1820750.404 | D25: =C25/$C$25 -> 1 | E25: =C25/Assumptions!$B$11 -> 30345.84006 | F25: ='One Tribe Summary'!AG41 -> 1380732.154 | G25: =F25/$F$25 -> 1 | H25: =F25/Assumptions!$B$11 -> 23012.20256 | I25: =H25+E25 -> 53358.04263
B26: Dollars
B28: Total Projected Budget
B30: Expense | C30: 2014 | F30: 2015 | I30: 2016
B31: Operating Expense | C31: Rs | D31: % | E31: Dolalrs | F31: Rs | G31: % | H31: Dolalrs | I31: Rs | K31: Dollars
B32: Marketing | C32: ='Summary Breakout'!AH16 -> 0 | D32: ='Summary Breakout'!AI16 -> 0 | E32: =C32/Assumptions!$B$11 -> 0 | F32: ='Summary Breakout'!AJ16 -> 1504300 | G32: ='Summary Breakout'!AK16 -> 0.09236860718 | H32: =F32/Assumptions!$B$11 -> 25071.66667 | I32: ='Summary Breakout'!AL16 -> 3430600 | J32: ='Summary Breakout'!AM16 -> 0.1188069436 | K32: =I32/Assumptions!$B$11 -> 57176.66667
B33: Depreciation | C33: ='Summary Breakout'!AH17 -> 0 | D33: ='Summary Breakout'!AI17 -> 0 | E33: =C33/Assumptions!$B$11 -> 0 | F33: ='Summary Breakout'!AJ17 -> 0 | G33: ='Summary Breakout'!AK17 -> 0 | H33: =F33/Assumptions!$B$11 -> 0 | I33: ='Summary Breakout'!AL17 -> 0 | J33: ='Summary Breakout'!AM17 -> 0 | K33: =I33/Assumptions!$B$11 -> 0
B34: Maintenance and Repairs | C34: ='Summary Breakout'!AH18 -> 0 | D34: ='Summary Breakout'!AI18 -> 0 | E34: =C34/Assumptions!$B$11 -> 0 | F34: ='Summary Breakout'!AJ18 -> 149600 | G34: ='Summary Breakout'!AK18 -> 0.009185896187 | H34: =F34/Assumptions!$B$11 -> 2493.333333 | I34: ='Summary Breakout'!AL18 -> 346800 | J34: ='Summary Breakout'!AM18 -> 0.0120102163 | K34: =I34/Assumptions!$B$11 -> 5780
B35: Facility Supplies | C35: ='Summary Breakout'!AH19 -> 0 | D35: ='Summary Breakout'!AI19 -> 0 | E35: =C35/Assumptions!$B$11 -> 0 | F35: ='Summary Breakout'!AJ19 -> 399520 | G35: ='Summary Breakout'!AK19 -> 0.02453174629 | H35: =F35/Assumptions!$B$11 -> 6658.666667 | I35: ='Summary Breakout'!AL19 -> 944320 | J35: ='Summary Breakout'!AM19 -> 0.03270325104 | K35: =I35/Assumptions!$B$11 -> 15738.66667
B36: Salaries | C36: ='Summary Breakout'!AH20 -> 184000 | D36: ='Summary Breakout'!AI20 -> 0.3536740778 | E36: =C36/Assumptions!$B$11 -> 3066.666667 | F36: ='Summary Breakout'!AJ20 -> 7066000 | G36: ='Summary Breakout'!AK20 -> 0.4338739469 | H36: =F36/Assumptions!$B$11 -> 117766.6667 | I36: ='Summary Breakout'!AL20 -> 15564000 | J36: ='Summary Breakout'!AM20 -> 0.5390052092 | K36: =I36/Assumptions!$B$11 -> 259400
B37: HR | C37: ='Summary Breakout'!AH21 -> 78253 | D37: ='Summary Breakout'!AI21 -> 0.1504133566 | E37: =C37/Assumptions!$B$11 -> 1304.216667 | F37: ='Summary Breakout'!AJ21 -> 590986 | G37: ='Summary Breakout'!AK21 -> 0.03628834254 | H37: =F37/Assumptions!$B$11 -> 9849.766667 | I37: ='Summary Breakout'!AL21 -> 546792.5 | J37: ='Summary Breakout'!AM21 -> 0.01893626355 | K37: =I37/Assumptions!$B$11 -> 9113.208333
B38: Rent | C38: ='Summary Breakout'!AH22 -> 0 | D38: ='Summary Breakout'!AI22 -> 0 | E38: =C38/Assumptions!$B$11 -> 0 | F38: ='Summary Breakout'!AJ22 -> 528000 | G38: ='Summary Breakout'!AK22 -> 0.03242081007 | H38: =F38/Assumptions!$B$11 -> 8800 | I38: ='Summary Breakout'!AL22 -> 1248000 | J38: ='Summary Breakout'!AM22 -> 0.04322015555 | K38: =I38/Assumptions!$B$11 -> 20800
B39: Telephone and Internet | C39: ='Summary Breakout'!AH23 -> 0 | D39: ='Summary Breakout'!AI23 -> 0 | E39: =C39/Assumptions!$B$11 -> 0 | F39: ='Summary Breakout'!AJ23 -> 444400 | G39: ='Summary Breakout'!AK23 -> 0.02728751515 | H39: =F39/Assumptions!$B$11 -> 7406.666667 | I39: ='Summary Breakout'!AL23 -> 1050400 | J39: ='Summary Breakout'!AM23 -> 0.03637696426 | K39: =I39/Assumptions!$B$11 -> 17506.66667
B40: Travel | C40: ='Summary Breakout'!AH24 -> 0 | D40: ='Summary Breakout'!AI24 -> 0 | E40: =C40/Assumptions!$B$11 -> 0 | F40: ='Summary Breakout'!AJ24 -> 1236230.128 | G40: ='Summary Breakout'!AK24 -> 0.07590829961 | H40: =F40/Assumptions!$B$11 -> 20603.83547 | I40: ='Summary Breakout'!AL24 -> 2168004.167 | J40: ='Summary Breakout'!AM24 -> 0.07508131196 | K40: =I40/Assumptions!$B$11 -> 36133.40278
B41: Professional Services | C41: ='Summary Breakout'!AH25 -> 194000 | D41: ='Summary Breakout'!AI25 -> 0.3728954951 | E41: =C41/Assumptions!$B$11 -> 3233.333333 | F41: ='Summary Breakout'!AJ25 -> 0 | G41: ='Summary Breakout'!AK25 -> 0 | H41: =F41/Assumptions!$B$11 -> 0 | I41: ='Summary Breakout'!AL25 -> 0 | J41: ='Summary Breakout'!AM25 -> 0 | K41: =I41/Assumptions!$B$11 -> 0
B42: Other | C42: ='Summary Breakout'!AH26 -> 0 | D42: ='Summary Breakout'!AI26 -> 0 | E42: =C42/Assumptions!$B$11 -> 0 | F42: ='Summary Breakout'!AJ26 -> 0 | G42: ='Summary Breakout'!AK26 -> 0 | H42: =F42/Assumptions!$B$11 -> 0 | I42: ='Summary Breakout'!AL26 -> 0 | J42: ='Summary Breakout'!AM26 -> 0 | K42: =I42/Assumptions!$B$11 -> 0
B43: Total Operating Expenses | C43: ='Summary Breakout'!AH27 -> 456253 | D43: ='Summary Breakout'!AI27 -> 0.8769829295 | E43: =C43/Assumptions!$B$11 -> 7604.216667 | F43: ='Summary Breakout'!AJ27 -> 11919036.13 | G43: ='Summary Breakout'!AK27 -> 0.731865164 | H43: =F43/Assumptions!$B$11 -> 198650.6021 | I43: ='Summary Breakout'!AL27 -> 25298916.67 | J43: ='Summary Breakout'!AM27 -> 0.8761403154 | K43: =I43/Assumptions!$B$11 -> 421648.6111
B45: Non-Operating Expenses
B46: Furniture/Equipment | C46: ='Summary Breakout'!AH30 -> 0 | D46: ='Summary Breakout'!AI30 -> 0 | E46: =C46/Assumptions!$B$11 -> 0 | F46: ='Summary Breakout'!AJ30 -> 4363800 | G46: ='Summary Breakout'!AK30 -> 0.2679506269 | H46: =F46/Assumptions!$B$11 -> 72730 | I46: ='Summary Breakout'!AL30 -> 3576500 | J46: ='Summary Breakout'!AM30 -> 0.1238596846 | K46: =I46/Assumptions!$B$11 -> 59608.33333
B47: Other | C47: ='Summary Breakout'!AH31 -> 64000 | D47: ='Summary Breakout'!AI31 -> 0.1230170705 | E47: =C47/Assumptions!$B$11 -> 1066.666667 | F47: ='Summary Breakout'!AJ31 -> 3000 | G47: ='Summary Breakout'!AK31 -> 0.0001842091481 | H47: =F47/Assumptions!$B$11 -> 50 | I47: ='Summary Breakout'!AL31 -> 0 | J47: ='Summary Breakout'!AM31 -> 0 | K47: =I47/Assumptions!$B$11 -> 0
B48: Total Non-Recurring Expense | C48: ='Summary Breakout'!AH32 -> 64000 | D48: ='Summary Breakout'!AI32 -> 0.1230170705 | E48: =C48/Assumptions!$B$11 -> 1066.666667 | F48: ='Summary Breakout'!AJ32 -> 4366800 | G48: ='Summary Breakout'!AK32 -> 0.268134836 | H48: =F48/Assumptions!$B$11 -> 72780 | I48: ='Summary Breakout'!AL32 -> 3576500 | J48: ='Summary Breakout'!AM32 -> 0.1238596846 | K48: =I48/Assumptions!$B$11 -> 59608.33333
B50: Total Expenses (Rupees) | C50: ='Summary Breakout'!AH34 -> 520253 | D50: ='Summary Breakout'!AI34 -> 1 | E50: =C50/Assumptions!$B$11 -> 8670.883333 | F50: ='Summary Breakout'!AJ34 -> 16285836.13 | G50: ='Summary Breakout'!AK34 -> 1 | H50: =F50/Assumptions!$B$11 -> 271430.6021 | I50: ='Summary Breakout'!AL34 -> 28875416.67 | J50: ='Summary Breakout'!AM34 -> 1 | K50: =I50/Assumptions!$B$11 -> 481256.9444
B51: Dollars

Sheet Operations Numbers
E3: Facility Start Dates | F3: # of Blocks Starting | G3: Total Batches
E4: =Assumptions!B4 -> 2015-01-01 | F4: =Assumptions!C4 -> 4 | G4: =F4 -> 4 | H4: =IF(E4>0,(HLOOKUP(E4,$I$17:$AK$18,2)),0) -> 5
E5: =Assumptions!B5 -> 2015-08-01 | F5: =Assumptions!C5 -> 8 | G5: =G4+F5 -> 12 | H5: =IF(E5>0,(HLOOKUP(E5,$I$17:$AK$18,2)),0) -> 12
E6: =Assumptions!B6 -> 2016-08-01 | F6: =Assumptions!C6 -> 10 | G6: =G5+F6 -> 22 | H6: 24
F11: # of VV per Tribe | G11: =Assumptions!G3 -> 6
F12: =Assumptions!F4 -> Population per Panch | G12: =Assumptions!G4 -> 10000
I16: 1 | J16: 2 | K16: 3 | L16: 4 | M16: 5 | N16: 6 | O16: 7 | P16: 8 | Q16: 9 | R16: 10 | S16: 11 | T16: 12 | U16: 13 | V16: 14 | W16: 15 | X16: 16 | Y16: 17 | Z16: 18 | AA16: 19 | AB16: 20 | AC16: 21 | AD16: 22 | AE16: 23 | AF16: 24 | AG16: 25 | AH16: 26 | AI16: 27 | AJ16: 28 | AK16: 29
I17: 2014-09-01 | J17: 2014-10-01 | K17: 2014-11-01 | L17: 2014-12-01 | M17: 2015-01-01 | N17: 2015-02-01 | O17: 2015-03-01 | P17: 2015-04-01 | Q17: 2015-05-01 | R17: 2015-06-01 | S17: 2015-07-01 | T17: 2015-08-01 | U17: 2015-09-01 | V17: 2015-10-01 | W17: 2015-11-01 | X17: 2015-12-01 | Y17: 2016-01-01 | Z17: 2016-02-01 | AA17: 2016-03-01 | AB17: 2016-04-01 | AC17: 2016-05-01 | AD17: 2016-06-01 | AE17: 2016-07-01 | AF17: 2016-08-01 | AG17: 2016-09-01 | AH17: 2016-10-01 | AI17: 2016-11-01 | AJ17: 2016-12-01 | AK17: 2017-01-01
I18: =I16 -> 1 | J18: =J16 -> 2 | K18: 3 | L18: 4 | M18: 5 | N18: 6 | O18: 7 | P18: 8 | Q18: 9 | R18: 10 | S18: 11 | T18: 12 | U18: 13 | V18: 14 | W18: 15 | X18: 16 | Y18: 17 | Z18: 18 | AA18: 19 | AB18: 20 | AC18: 21 | AD18: 22 | AE18: 23 | AF18: 24 | AG18: 25 | AH18: 26 | AI18: 27 | AJ18: 28 | AK18: 29
H19: # of Blocks | I19: =IF(I$16>($H6-1),$G$6,IF(I$16>($H5-1),$G$5,IF(I$16>($H$4-1),$G$4,0))) -> 0 | J19: =IF(J$16>($H6-1),$G$6,IF(J$16>($H5-1),$G$5,IF(J$16>($H$4-1),$G$4,0))) -> 0 | K19: 0 | L19: 0 | M19: =IF(M$16>($H6-1),$G$6,IF(M$16>($H5-1),$G$5,IF(M$16>($H$4-1),$G$4,0))) -> 4 | N19: 4 | O19: 4 | P19: 4 | Q19: 4 | R19: 4 | S19: 4 | T19: 12 | U19: 12 | V19: 12 | W19: 12 | X19: 12 | Y19: 12 | Z19: 12 | AA19: 12 | AB19: 12 | AC19: 12 | AD19: 12 | AE19: 12 | AF19: 22 | AG19: 22 | AH19: 22 | AI19: 22 | AJ19: 22 | AK19: 22
H20: # of Village Visionaries | I20: =I19*$G11 -> 0 | J20: 0 | K20: 0 | L20: 0 | M20: 24 | N20: 24 | O20: 24 | P20: 24 | Q20: 24 | R20: 24 | S20: 24 | T20: 72 | U20: 72 | V20: 72 | W20: 72 | X20: 72 | Y20: 72 | Z20: 72 | AA20: 72 | AB20: 72 | AC20: 72 | AD20: 72 | AE20: 72 | AF20: 132 | AG20: 132 | AH20: 132 | AI20: 132 | AJ20: 132 | AK20: 132
H21: # of Panchayats | I21: =I20 -> 0 | J21: =J20 -> 0 | K21: 0 | L21: 0 | M21: 24 | N21: 24 | O21: 24 | P21: 24 | Q21: 24 | R21: 24 | S21: 24 | T21: 72 | U21: 72 | V21: 72 | W21: 72 | X21: 72 | Y21: 72 | Z21: 72 | AA21: 72 | AB21: 72 | AC21: 72 | AD21: 72 | AE21: 72 | AF21: 132 | AG21: 132 | AH21: 132 | AI21: 132 | AJ21: 132 | AK21: 132
H22: Population Served | I22: =I21*$G12 -> 0 | J22: =J21*$G12 -> 0 | K22: 0 | L22: 0 | M22: 240000 | N22: 240000 | O22: 240000 | P22: 240000 | Q22: 240000 | R22: 240000 | S22: 240000 | T22: 720000 | U22: 720000 | V22: 720000 | W22: 720000 | X22: 720000 | Y22: 720000 | Z22: 720000 | AA22: 720000 | AB22: 720000 | AC22: 720000 | AD22: 720000 | AE22: 720000 | AF22: 1320000 | AG22: 1320000 | AH22: 1320000 | AI22: 1320000 | AJ22: 1320000 | AK22: 1320000
H23: Monthly Cashflow | I23: ='Summary Breakout'!D35 -> 1350 | J23: ='Summary Breakout'!E35 -> 2850 | K23: ='Summary Breakout'!F35 -> 50 | L23: ='Summary Breakout'!G35 -> 4420.883333 | M23: ='Summary Breakout'!H35 -> 34015.90919 | N23: ='Summary Breakout'!I35 -> 9772.575855 | O23: ='Summary Breakout'!J35 -> 9772.575855 | P23: ='Summary Breakout'!K35 -> 9772.575855 | Q23: ='Summary Breakout'!L35 -> 9772.575855 | R23: ='Summary Breakout'!M35 -> 12039.24252 | S23: ='Summary Breakout'!N35 -> 12039.24252 | T23: ='Summary Breakout'!O35 -> 79078.32756 | U23: ='Summary Breakout'!P35 -> 23791.89423 | V23: ='Summary Breakout'!Q35 -> 23791.89423 | W23: ='Summary Breakout'!R35 -> 23791.89423 | X23: ='Summary Breakout'!S35 -> 23791.89423 | Y23: ='Summary Breakout'!T35 -> 23791.89423 | Z23: ='Summary Breakout'!U35 -> 23791.89423 | AA23: ='Summary Breakout'!V35 -> 23791.89423 | AB23: ='Summary Breakout'!W35 -> 23791.89423 | AC23: ='Summary Breakout'!X35 -> 23791.89423 | AD23: ='Summary Breakout'!Y35 -> 26625.22756 | AE23: ='Summary Breakout'!Z35 -> 26625.22756 | AF23: ='Summary Breakout'!AA35 -> 109969.3547 | AG23: ='Summary Breakout'!AB35 -> 41247.81303 | AH23: ='Summary Breakout'!AC35 -> 41247.81303 | AI23: ='Summary Breakout'!AD35 -> 41134.4797 | AJ23: ='Summary Breakout'!AE35 -> 37723.77885 | AK23: ='Summary Breakout'!AF35 -> 37723.77885
H24: Moneys Spent | I24: ='Summary Breakout'!D41 -> 1350 | J24: ='Summary Breakout'!E41 -> 4200 | K24: ='Summary Breakout'!F41 -> 4250 | L24: ='Summary Breakout'!G41 -> 8670.883333 | M24: ='Summary Breakout'!H41 -> 42686.79252 | N24: ='Summary Breakout'!I41 -> 52459.36838 | O24: ='Summary Breakout'!J41 -> 62231.94423 | P24: ='Summary Breakout'!K41 -> 72004.52009 | Q24: ='Summary Breakout'!L41 -> 81777.09594 | R24: ='Summary Breakout'!M41 -> 93816.33846 | S24: ='Summary Breakout'!N41 -> 105855.581 | T24: ='Summary Breakout'!O41 -> 184933.9085 | U24: ='Summary Breakout'!P41 -> 208725.8028 | V24: ='Summary Breakout'!Q41 -> 232517.697 | W24: ='Summary Breakout'!R41 -> 256309.5912 | X24: ='Summary Breakout'!S41 -> 280101.4855 | Y24: ='Summary Breakout'!T41 -> 303893.3797 | Z24: ='Summary Breakout'!U41 -> 327685.2739 | AA24: ='Summary Breakout'!V41 -> 351477.1682 | AB24: ='Summary Breakout'!W41 -> 375269.0624 | AC24: ='Summary Breakout'!X41 -> 399060.9566 | AD24: ='Summary Breakout'!Y41 -> 425686.1842 | AE24: ='Summary Breakout'!Z41 -> 452311.4118 | AF24: ='Summary Breakout'!AA41 -> 562280.7665 | AG24: ='Summary Breakout'!AB41 -> 603528.5795 | AH24: ='Summary Breakout'!AC41 -> 644776.3925 | AI24: ='Summary Breakout'!AD41 -> 685910.8722 | AJ24: ='Summary Breakout'!AE41 -> 723634.6511 | AK24: ='Summary Breakout'!AF41 -> 761358.4299
H25: Operating Efficiency | M25: =M23/M22 -> 0.141732955 | N25: =N23/N22 -> 0.04071906606 | O25: 0.04071906606 | P25: 0.04071906606 | Q25: 0.04071906606 | R25: 0.05016351051 | S25: 0.05016351051 | T25: 0.1098310105 | U25: 0.03304429754 | V25: 0.03304429754 | W25: 0.03304429754 | X25: 0.03304429754 | Y25: 0.03304429754 | Z25: 0.03304429754 | AA25: 0.03304429754 | AB25: 0.03304429754 | AC25: 0.03304429754 | AD25: 0.03697948273 | AE25: 0.03697948273 | AF25: 0.0833101172 | AG25: 0.03124834321 | AH25: 0.03124834321 | AI25: 0.03116248462 | AJ25: 0.02857862034 | AK25: 0.02857862034 | AL25: =AVERAGE(M25:AK25) -> 0.04481005692

Sheet Marketing
A2: Assumptions
A3: Item | B3: Cost | C3: Cost Per Facility per month | E3: Facility Start Dates | F3: #
A4: Block Level Mktg | B4: ='Marketing Assumptions'!E11 -> 16112.5 | C4: =B4 -> 16112.5 | E4: =Assumptions!B4 -> 2015-01-01 | F4: =Assumptions!C4 -> 4
A5: Overhead Mktg | B5: ='Marketing Assumptions'!E21 -> 7200 | C5: =B5 -> 7200 | E5: =Assumptions!B5 -> 2015-08-01 | F5: =Assumptions!C5 -> 8
E6: =Assumptions!B6 -> 2016-08-01 | F6: =Assumptions!C6 -> 10
H16: 1 | I16: 2 | J16: 3 | K16: 4 | L16: 5 | M16: 6 | N16: 7 | O16: 8 | P16: 9 | Q16: 10 | R16: 11 | S16: 12 | T16: 13 | U16: 14 | V16: 15 | W16: 16 | X16: 17 | Y16: 18 | Z16: 19 | AA16: 20 | AB16: 21 | AC16: 22 | AD16: 23 | AE16: 24 | AF16: 25 | AG16: 26 | AH16: 27 | AI16: 28 | AJ16: 29
A17: Position | B17: Cost | C17: # of Facilities | D17: Total | E17: Start Date | H17: 2014-09-01 | I17: 2014-10-01 | J17: 2014-11-01 | K17: 2014-12-01 | L17: 2015-01-01 | M17: 2015-02-01 | N17: 2015-03-01 | O17: 2015-04-01 | P17: 2015-05-01 | Q17: 2015-06-01 | R17: 2015-07-01 | S17: 2015-08-01 | T17: 2015-09-01 | U17: 2015-10-01 | V17: 2015-11-01 | W17: 2015-12-01 | X17: 2016-01-01 | Y17: 2016-02-01 | Z17: 2016-03-01 | AA17: 2016-04-01 | AB17: 2016-05-01 | AC17: 2016-06-01 | AD17: 2016-07-01 | AE17: 2016-08-01 | AF17: 2016-09-01 | AG17: 2016-10-01 | AH17: 2016-11-01 | AI17: 2016-12-01 | AJ17: 2017-01-01
A18: Batch 1 | H18: 1 | I18: 2 | J18: 3 | K18: 4 | L18: 5 | M18: 6 | N18: 7 | O18: 8 | P18: 9 | Q18: 10 | R18: 11 | S18: 12 | T18: 13 | U18: 14 | V18: 15 | W18: 16 | X18: 17 | Y18: 18 | Z18: 19 | AA18: 20 | AB18: 21 | AC18: 22 | AD18: 23 | AE18: 24 | AF18: 25 | AG18: 26 | AH18: 27 | AI18: 28 | AJ18: 29
A19: Block Level Mktg | B19: =VLOOKUP(A19,$A$4:$C$10,3,FALSE) -> 16112.5 | C19: =F4 -> 4 | D19: =B19*C19 -> 64450 | E19: =E4 -> 2015-01-01 | F19: =IF(E19>0,(HLOOKUP(E19,$H$17:$AJ$18,2)),0) -> 5 | H19: =IF(H$16>($F19+22),0,IF(H$16<$F19,0,IF(H$16=$F19,$D19,IF(H$16>$F19,G19)))) -> 0 | I19: =IF(I$16>($F19+22),0,IF(I$16<$F19,0,IF(I$16=$F19,$D19,IF(I$16>$F19,H19)))) -> 0 | J19: =IF(J$16>($F19+22),0,IF(J$16<$F19,0,IF(J$16=$F19,$D19,IF(J$16>$F19,I19)))) -> 0 | K19: 0 | L19: 64450 | M19: 64450 | N19: 64450 | O19: 64450 | P19: 64450 | Q19: 64450 | R19: 64450 | S19: 64450 | T19: 64450 | U19: 64450 | V19: 64450 | W19: 64450 | X19: 64450 | Y19: 64450 | Z19: 64450 | AA19: 64450 | AB19: 64450 | AC19: 64450 | AD19: 64450 | AE19: 64450 | AF19: 64450 | AG19: 64450 | AH19: 64450 | AI19: 0 | AJ19: 0
A20: Overhead Mktg | B20: =VLOOKUP(A20,$A$4:$C$10,3,FALSE) -> 7200 | C20: 1 | D20: 7200 | E20: =E19 -> 2015-01-01 | F20: =IF(E20>0,(HLOOKUP(E20,$H$17:$AJ$18,2)),0) -> 5 | H20: =IF(H$16>($F20+22),0,IF(H$16<$F20,0,IF(H$16=$F20,$D20,IF(H$16>$F20,G20)))) -> 0 | I20: 0 | J20: 0 | K20: 0 | L20: 7200 | M20: 7200 | N20: 7200 | O20: 7200 | P20: 7200 | Q20: 7200 | R20: 7200 | S20: 7200 | T20: 7200 | U20: 7200 | V20: 7200 | W20: 7200 | X20: 7200 | Y20: 7200 | Z20: 7200 | AA20: 7200 | AB20: 7200 | AC20: 7200 | AD20: 7200 | AE20: 7200 | AF20: 7200 | AG20: 7200 | AH20: 7200 | AI20: 0 | AJ20: 0
C21: =C20 -> 1 | F21: 0 | H21: =IF(H$16>($F21+22),0,IF(H$16<$F21,0,IF(H$16=$F21,$D21,IF(H$16>$F21,G21)))) -> 0 | I21: 0 | J21: 0 | K21: 0 | L21: 0 | M21: 0 | N21: 0 | O21: 0 | P21: 0 | Q21: 0 | R21: 0 | S21: 0 | T21: 0 | U21: 0 | V21: 0 | W21: 0 | X21: 0 | Y21: 0 | Z21: 0 | AA21: 0 | AB21: 0 | AC21: 0 | AD21: 0 | AE21: 0 | AF21: 0 | AG21: 0 | AH21: 0 | AI21: 0 | AJ21: 0
C22: 1 | F22: 0 | H22: =IF(H$16>($F22+22),0,IF(H$16<$F22,0,IF(H$16=$F22,$D22,IF(H$16>$F22,G22)))) -> 0 | I22: 0 | J22: 0 | K22: 0 | L22: 0 | M22: 0 | N22: 0 | O22: 0 | P22: 0 | Q22: 0 | R22: 0 | S22: 0 | T22: 0 | U22: 0 | V22: 0 | W22: 0 | X22: 0 | Y22: 0 | Z22: 0 | AA22: 0 | AB22: 0 | AC22: 0 | AD22: 0 | AE22: 0 | AF22: 0 | AG22: 0 | AH22: 0 | AI22: 0 | AJ22: 0
C23: 1 | F23: 0 | H23: =IF(H$16>($F23+22),0,IF(H$16<$F23,0,IF(H$16=$F23,$D23,IF(H$16>$F23,G23)))) -> 0 | I23: 0 | J23: 0 | K23: 0 | L23: 0 | M23: 0 | N23: 0 | O23: 0 | P23: 0 | Q23: 0 | R23: 0 | S23: 0 | T23: 0 | U23: 0 | V23: 0 | W23: 0 | X23: 0 | Y23: 0 | Z23: 0 | AA23: 0 | AB23: 0 | AC23: 0 | AD23: 0 | AE23: 0 | AF23: 0 | AG23: 0 | AH23: 0 | AI23: 0 | AJ23: 0
C24: 1 | D24: 0 | F24: 0 | H24: =IF(H$16>($F24+22),0,IF(H$16<$F24,0,IF(H$16=$F24,$D24,IF(H$16>$F24,G24)))) -> 0 | I24: 0 | J24: 0 | K24: 0 | L24: 0 | M24: 0 | N24: 0 | O24: 0 | P24: 0 | Q24: 0 | R24: 0 | S24: 0 | T24: 0 | U24: 0 | V24: 0 | W24: 0 | X24: 0 | Y24: 0 | Z24: 0 | AA24: 0 | AB24: 0 | AC24: 0 | AD24: 0 | AE24: 0 | AF24: 0 | AG24: 0 | AH24: 0 | AI24: 0 | AJ24: 0
B25: =VLOOKUP(A25,$A$4:$C$10,3,FALSE) ->  | C25: 1 | F25: 0 | H25: =IF(H$16>($F25+22),0,IF(H$16<$F25,0,IF(H$16=$F25,$D25,IF(H$16>$F25,G25)))) -> 0 | I25: 0 | J25: 0 | K25: 0 | L25: 0 | M25: 0 | N25: 0 | O25: 0 | P25: 0 | Q25: 0 | R25: 0 | S25: 0 | T25: 0 | U25: 0 | V25: 0 | W25: 0 | X25: 0 | Y25: 0 | Z25: 0 | AA25: 0 | AB25: 0 | AC25: 0 | AD25: 0 | AE25: 0 | AF25: 0 | AG25: 0 | AH25: 0 | AI25: 0 | AJ25: 0
C26: 1 | D26: =B26*C26 -> 0 | F26: 0 | H26: =IF(H$16>($F26+22),0,IF(H$16<$F26,0,IF(H$16=$F26,$D26,IF(H$16>$F26,G26)))) -> 0 | I26: 0 | J26: 0 | K26: 0 | L26: 0 | M26: 0 | N26: 0 | O26: 0 | P26: 0 | Q26: 0 | R26: 0 | S26: 0 | T26: 0 | U26: 0 | V26: 0 | W26: 0 | X26: 0 | Y26: 0 | Z26: 0 | AA26: 0 | AB26: 0 | AC26: 0 | AD26: 0 | AE26: 0 | AF26: 0 | AG26: 0 | AH26: 0 | AI26: 0 | AJ26: 0
F27: 0 | H27: =IF(H$16>($F27+22),0,IF(H$16<$F27,0,IF(H$16=$F27,$D27,IF(H$16>$F27,G27)))) -> 0 | I27: 0 | J27: 0 | K27: 0 | L27: 0 | M27: 0 | N27: 0 | O27: 0 | P27: 0 | Q27: 0 | R27: 0 | S27: 0 | T27: 0 | U27: 0 | V27: 0 | W27: 0 | X27: 0 | Y27: 0 | Z27: 0 | AA27: 0 | AB27: 0 | AC27: 0 | AD27: 0 | AE27: 0 | AF27: 0 | AG27: 0 | AH27: 0 | AI27: 0 | AJ27: 0
D28: =B28*C28 ->  | F28: 0 | H28: =IF(H$16>($F28+22),0,IF(H$16<$F28,0,IF(H$16=$F28,$D28,IF(H$16>$F28,G28)))) -> 0 | I28: 0 | J28: 0 | K28: 0 | L28: 0 | M28: 0 | N28: 0 | O28: 0 | P28: 0 | Q28: 0 | R28: 0 | S28: 0 | T28: 0 | U28: 0 | V28: 0 | W28: 0 | X28: 0 | Y28: 0 | Z28: 0 | AA28: 0 | AB28: 0 | AC28: 0 | AD28: 0 | AE28: 0 | AF28: 0 | AG28: 0 | AH28: 0 | AI28: 0 | AJ28: 0
D29: =B29*C29 ->  | F29: 0 | H29: =IF(H$16>($F29+22),0,IF(H$16<$F29,0,IF(H$16=$F29,$D29,IF(H$16>$F29,G29)))) -> 0 | I29: 0 | J29: 0 | K29: 0 | L29: 0 | M29: 0 | N29: 0 | O29: 0 | P29: 0 | Q29: 0 | R29: 0 | S29: 0 | T29: 0 | U29: 0 | V29: 0 | W29: 0 | X29: 0 | Y29: 0 | Z29: 0 | AA29: 0 | AB29: 0 | AC29: 0 | AD29: 0 | AE29: 0 | AF29: 0 | AG29: 0 | AH29: 0 | AI29: 0 | AJ29: 0
H30: =IF(H$16>($F30+22),0,IF(H$16<$F30,0,IF(H$16=$F30,$D30,IF(H$16>$F30,G30)))) -> 0 | I30: 0 | J30: 0 | K30: 0 | L30: 0 | M30: 0 | N30: 0 | O30: 0 | P30: 0 | Q30: 0 | R30: 0 | S30: 0 | T30: 0 | U30: 0 | V30: 0 | W30: 0 | X30: 0 | Y30: 0 | Z30: 0 | AA30: 0 | AB30: 0 | AC30: 0 | AD30: 0 | AE30: 0 | AF30: 0 | AG30: 0 | AH30: 0 | AI30: 0 | AJ30: 0
A31: Batch 2 | D31: =B31*C31 ->  | F31: 0 | H31: =IF(H$16>($F31+22),0,IF(H$16<$F31,0,IF(H$16=$F31,$D31,IF(H$16>$F31,G31)))) -> 0 | I31: 0 | J31: 0 | K31: 0 | L31: 0 | M31: 0 | N31: 0 | O31: 0 | P31: 0 | Q31: 0 | R31: 0 | S31: 0 | T31: 0 | U31: 0 | V31: 0 | W31: 0 | X31: 0 | Y31: 0 | Z31: 0 | AA31: 0 | AB31: 0 | AC31: 0 | AD31: 0 | AE31: 0 | AF31: 0 | AG31: 0 | AH31: 0 | AI31: 0 | AJ31: 0
A32: Block Level Mktg | B32: 16112.5 | C32: =F5 -> 8 | D32: 128900 | E32: =E5 -> 2015-08-01 | F32: 12 | H32: =IF(H$16>($F32+22),0,IF(H$16<$F32,0,IF(H$16=$F32,$D32,IF(H$16>$F32,G32)))) -> 0 | I32: 0 | J32: 0 | K32: 0 | L32: 0 | M32: 0 | N32: 0 | O32: 0 | P32: 0 | Q32: 0 | R32: 0 | S32: 128900 | T32: 128900 | U32: 128900 | V32: 128900 | W32: 128900 | X32: 128900 | Y32: 128900 | Z32: 128900 | AA32: 128900 | AB32: 128900 | AC32: 128900 | AD32: 128900 | AE32: 128900 | AF32: 128900 | AG32: 128900 | AH32: 128900 | AI32: 128900 | AJ32: 128900
C33: 1 | F33: 0 | H33: =IF(H$16>($F33+22),0,IF(H$16<$F33,0,IF(H$16=$F33,$D33,IF(H$16>$F33,G33)))) -> 0 | I33: 0 | J33: 0 | K33: 0 | L33: 0 | M33: 0 | N33: 0 | O33: 0 | P33: 0 | Q33: 0 | R33: 0 | S33: 0 | T33: 0 | U33: 0 | V33: 0 | W33: 0 | X33: 0 | Y33: 0 | Z33: 0 | AA33: 0 | AB33: 0 | AC33: 0 | AD33: 0 | AE33: 0 | AF33: 0 | AG33: 0 | AH33: 0 | AI33: 0 | AJ33: 0
C34: =C33 -> 1 | F34: 0 | H34: =IF(H$16>($F34+22),0,IF(H$16<$F34,0,IF(H$16=$F34,$D34,IF(H$16>$F34,G34)))) -> 0 | I34: 0 | J34: 0 | K34: 0 | L34: 0 | M34: 0 | N34: 0 | O34: 0 | P34: 0 | Q34: 0 | R34: 0 | S34: 0 | T34: 0 | U34: 0 | V34: 0 | W34: 0 | X34: 0 | Y34: 0 | Z34: 0 | AA34: 0 | AB34: 0 | AC34: 0 | AD34: 0 | AE34: 0 | AF34: 0 | AG34: 0 | AH34: 0 | AI34: 0 | AJ34: 0
C35: 1 | F35: 0 | H35: =IF(H$16>($F35+22),0,IF(H$16<$F35,0,IF(H$16=$F35,$D35,IF(H$16>$F35,G35)))) -> 0 | I35: 0 | J35: 0 | K35: 0 | L35: 0 | M35: 0 | N35: 0 | O35: 0 | P35: 0 | Q35: 0 | R35: 0 | S35: 0 | T35: 0 | U35: 0 | V35: 0 | W35: 0 | X35: 0 | Y35: 0 | Z35: 0 | AA35: 0 | AB35: 0 | AC35: 0 | AD35: 0 | AE35: 0 | AF35: 0 | AG35: 0 | AH35: 0 | AI35: 0 | AJ35: 0
C36: 1 | F36: 0 | H36: =IF(H$16>($F36+22),0,IF(H$16<$F36,0,IF(H$16=$F36,$D36,IF(H$16>$F36,G36)))) -> 0 | I36: 0 | J36: 0 | K36: 0 | L36: 0 | M36: 0 | N36: 0 | O36: 0 | P36: 0 | Q36: 0 | R36: 0 | S36: 0 | T36: 0 | U36: 0 | V36: 0 | W36: 0 | X36: 0 | Y36: 0 | Z36: 0 | AA36: 0 | AB36: 0 | AC36: 0 | AD36: 0 | AE36: 0 | AF36: 0 | AG36: 0 | AH36: 0 | AI36: 0 | AJ36: 0
C37: 1 | D37: 0 | F37: 0 | H37: =IF(H$16>($F37+22),0,IF(H$16<$F37,0,IF(H$16=$F37,$D37,IF(H$16>$F37,G37)))) -> 0 | I37: 0 | J37: 0 | K37: 0 | L37: 0 | M37: 0 | N37: 0 | O37: 0 | P37: 0 | Q37: 0 | R37: 0 | S37: 0 | T37: 0 | U37: 0 | V37: 0 | W37: 0 | X37: 0 | Y37: 0 | Z37: 0 | AA37: 0 | AB37: 0 | AC37: 0 | AD37: 0 | AE37: 0 | AF37: 0 | AG37: 0 | AH37: 0 | AI37: 0 | AJ37: 0
C38: 1 | F38: 0 | H38: =IF(H$16>($F38+22),0,IF(H$16<$F38,0,IF(H$16=$F38,$D38,IF(H$16>$F38,G38)))) -> 0 | I38: 0 | J38: 0 | K38: 0 | L38: 0 | M38: 0 | N38: 0 | O38: 0 | P38: 0 | Q38: 0 | R38: 0 | S38: 0 | T38: 0 | U38: 0 | V38: 0 | W38: 0 | X38: 0 | Y38: 0 | Z38: 0 | AA38: 0 | AB38: 0 | AC38: 0 | AD38: 0 | AE38: 0 | AF38: 0 | AG38: 0 | AH38: 0 | AI38: 0 | AJ38: 0
D39: 0 | F39: 0 | H39: =IF(H$16>($F39+22),0,IF(H$16<$F39,0,IF(H$16=$F39,$D39,IF(H$16>$F39,G39)))) -> 0 | I39: 0 | J39: 0 | K39: 0 | L39: 0 | M39: 0 | N39: 0 | O39: 0 | P39: 0 | Q39: 0 | R39: 0 | S39: 0 | T39: 0 | U39: 0 | V39: 0 | W39: 0 | X39: 0 | Y39: 0 | Z39: 0 | AA39: 0 | AB39: 0 | AC39: 0 | AD39: 0 | AE39: 0 | AF39: 0 | AG39: 0 | AH39: 0 | AI39: 0 | AJ39: 0
D40: 0 | E40: =E39 -> 00:00:00 | F40: 0 | H40: =IF(H$16>($F40+22),0,IF(H$16<$F40,0,IF(H$16=$F40,$D40,IF(H$16>$F40,G40)))) -> 0 | I40: 0 | J40: 0 | K40: 0 | L40: 0 | M40: 0 | N40: 0 | O40: 0 | P40: 0 | Q40: 0 | R40: 0 | S40: 0 | T40: 0 | U40: 0 | V40: 0 | W40: 0 | X40: 0 | Y40: 0 | Z40: 0 | AA40: 0 | AB40: 0 | AC40: 0 | AD40: 0 | AE40: 0 | AF40: 0 | AG40: 0 | AH40: 0 | AI40: 0 | AJ40: 0
D41: 0 | E41: 00:00:00 | F41: 0 | H41: =IF(H$16>($F41+22),0,IF(H$16<$F41,0,IF(H$16=$F41,$D41,IF(H$16>$F41,G41)))) -> 0 | I41: 0 | J41: 0 | K41: 0 | L41: 0 | M41: 0 | N41: 0 | O41: 0 | P41: 0 | Q41: 0 | R41: 0 | S41: 0 | T41: 0 | U41: 0 | V41: 0 | W41: 0 | X41: 0 | Y41: 0 | Z41: 0 | AA41: 0 | AB41: 0 | AC41: 0 | AD41: 0 | AE41: 0 | AF41: 0 | AG41: 0 | AH41: 0 | AI41: 0 | AJ41: 0
F42: 0 | H42: =IF(H$16>($F42+22),0,IF(H$16<$F42,0,IF(H$16=$F42,$D42,IF(H$16>$F42,G42)))) -> 0 | I42: 0 | J42: 0 | K42: 0 | L42: 0 | M42: 0 | N42: 0 | O42: 0 | P42: 0 | Q42: 0 | R42: 0 | S42: 0 | T42: 0 | U42: 0 | V42: 0 | W42: 0 | X42: 0 | Y42: 0 | Z42: 0 | AA42: 0 | AB42: 0 | AC42: 0 | AD42: 0 | AE42: 0 | AF42: 0 | AG42: 0 | AH42: 0 | AI42: 0 | AJ42: 0
F43: 0 | H43: =IF(H$16>($F43+22),0,IF(H$16<$F43,0,IF(H$16=$F43,$D43,IF(H$16>$F43,G43)))) -> 0 | I43: 0 | J43: 0 | K43: 0 | L43: 0 | M43: 0 | N43: 0 | O43: 0 | P43: 0 | Q43: 0 | R43: 0 | S43: 0 | T43: 0 | U43: 0 | V43: 0 | W43: 0 | X43: 0 | Y43: 0 | Z43: 0 | AA43: 0 | AB43: 0 | AC43: 0 | AD43: 0 | AE43: 0 | AF43: 0 | AG43: 0 | AH43: 0 | AI43: 0 | AJ43: 0
A44: Batch 3 | F44: 0 | H44: =IF(H$16>($F44+22),0,IF(H$16<$F44,0,IF(H$16=$F44,$D44,IF(H$16>$F44,G44)))) -> 0 | I44: 0 | J44: 0 | K44: 0 | L44: 0 | M44: 0 | N44: 0 | O44: 0 | P44: 0 | Q44: 0 | R44: 0 | S44: 0 | T44: 0 | U44: 0 | V44: 0 | W44: 0 | X44: 0 | Y44: 0 | Z44: 0 | AA44: 0 | AB44: 0 | AC44: 0 | AD44: 0 | AE44: 0 | AF44: 0 | AG44: 0 | AH44: 0 | AI44: 0 | AJ44: 0
A45: Block Level Mktg | B45: 16112.5 | C45: =F6 -> 10 | D45: 161125 | E45: =E6 -> 2016-08-01 | F45: 24 | H45: =IF(H$16>($F45+22),0,IF(H$16<$F45,0,IF(H$16=$F45,$D45,IF(H$16>$F45,G45)))) -> 0 | I45: 0 | J45: 0 | K45: 0 | L45: 0 | M45: 0 | N45: 0 | O45: 0 | P45: 0 | Q45: 0 | R45: 0 | S45: 0 | T45: 0 | U45: 0 | V45: 0 | W45: 0 | X45: 0 | Y45: 0 | Z45: 0 | AA45: 0 | AB45: 0 | AC45: 0 | AD45: 0 | AE45: 161125 | AF45: 161125 | AG45: 161125 | AH45: 161125 | AI45: 161125 | AJ45: 161125
C46: 1 | D46: =B46*C46 ->  | F46: 0 | H46: =IF(H$16>($F46+22),0,IF(H$16<$F46,0,IF(H$16=$F46,$D46,IF(H$16>$F46,G46)))) -> 0 | I46: 0 | J46: 0 | K46: 0 | L46: 0 | M46: 0 | N46: 0 | O46: 0 | P46: 0 | Q46: 0 | R46: 0 | S46: 0 | T46: 0 | U46: 0 | V46: 0 | W46: 0 | X46: 0 | Y46: 0 | Z46: 0 | AA46: 0 | AB46: 0 | AC46: 0 | AD46: 0 | AE46: 0 | AF46: 0 | AG46: 0 | AH46: 0 | AI46: 0 | AJ46: 0
F47: 0 | H47: =IF(H$16>($F47+22),0,IF(H$16<$F47,0,IF(H$16=$F47,$D47,IF(H$16>$F47,G47)))) -> 0 | I47: 0 | J47: 0 | K47: 0 | L47: 0 | M47: 0 | N47: 0 | O47: 0 | P47: 0 | Q47: 0 | R47: 0 | S47: 0 | T47: 0 | U47: 0 | V47: 0 | W47: 0 | X47: 0 | Y47: 0 | Z47: 0 | AA47: 0 | AB47: 0 | AC47: 0 | AD47: 0 | AE47: 0 | AF47: 0 | AG47: 0 | AH47: 0 | AI47: 0 | AJ47: 0
F48: 0 | H48: =IF(H$16>($F48+22),0,IF(H$16<$F48,0,IF(H$16=$F48,$D48,IF(H$16>$F48,G48)))) -> 0 | I48: 0 | J48: 0 | K48: 0 | L48: 0 | M48: 0 | N48: 0 | O48: 0 | P48: 0 | Q48: 0 | R48: 0 | S48: 0 | T48: 0 | U48: 0 | V48: 0 | W48: 0 | X48: 0 | Y48: 0 | Z48: 0 | AA48: 0 | AB48: 0 | AC48: 0 | AD48: 0 | AE48: 0 | AF48: 0 | AG48: 0 | AH48: 0 | AI48: 0 | AJ48: 0
F49: 0 | H49: =IF(H$16>($F49+22),0,IF(H$16<$F49,0,IF(H$16=$F49,$D49,IF(H$16>$F49,G49)))) -> 0 | I49: 0 | J49: 0 | K49: 0 | L49: 0 | M49: 0 | N49: 0 | O49: 0 | P49: 0 | Q49: 0 | R49: 0 | S49: 0 | T49: 0 | U49: 0 | V49: 0 | W49: 0 | X49: 0 | Y49: 0 | Z49: 0 | AA49: 0 | AB49: 0 | AC49: 0 | AD49: 0 | AE49: 0 | AF49: 0 | AG49: 0 | AH49: 0 | AI49: 0 | AJ49: 0
D50: 0 | F50: 0 | H50: =IF(H$16>($F50+22),0,IF(H$16<$F50,0,IF(H$16=$F50,$D50,IF(H$16>$F50,G50)))) -> 0 | I50: 0 | J50: 0 | K50: 0 | L50: 0 | M50: 0 | N50: 0 | O50: 0 | P50: 0 | Q50: 0 | R50: 0 | S50: 0 | T50: 0 | U50: 0 | V50: 0 | W50: 0 | X50: 0 | Y50: 0 | Z50: 0 | AA50: 0 | AB50: 0 | AC50: 0 | AD50: 0 | AE50: 0 | AF50: 0 | AG50: 0 | AH50: 0 | AI50: 0 | AJ50: 0
F51: 0 | H51: =IF(H$16>($F51+22),0,IF(H$16<$F51,0,IF(H$16=$F51,$D51,IF(H$16>$F51,G51)))) -> 0 | I51: 0 | J51: 0 | K51: 0 | L51: 0 | M51: 0 | N51: 0 | O51: 0 | P51: 0 | Q51: 0 | R51: 0 | S51: 0 | T51: 0 | U51: 0 | V51: 0 | W51: 0 | X51: 0 | Y51: 0 | Z51: 0 | AA51: 0 | AB51: 0 | AC51: 0 | AD51: 0 | AE51: 0 | AF51: 0 | AG51: 0 | AH51: 0 | AI51: 0 | AJ51: 0
D52: 0 | F52: 0 | H52: =IF(H$16>($F52+22),0,IF(H$16<$F52,0,IF(H$16=$F52,$D52,IF(H$16>$F52,G52)))) -> 0 | I52: 0 | J52: 0 | K52: 0 | L52: 0 | M52: 0 | N52: 0 | O52: 0 | P52: 0 | Q52: 0 | R52: 0 | S52: 0 | T52: 0 | U52: 0 | V52: 0 | W52: 0 | X52: 0 | Y52: 0 | Z52: 0 | AA52: 0 | AB52: 0 | AC52: 0 | AD52: 0 | AE52: 0 | AF52: 0 | AG52: 0 | AH52: 0 | AI52: 0 | AJ52: 0
D53: 0 | F53: 0 | H53: =IF(H$16>($F53+22),0,IF(H$16<$F53,0,IF(H$16=$F53,$D53,IF(H$16>$F53,G53)))) -> 0 | I53: 0 | J53: 0 | K53: 0 | L53: 0 | M53: 0 | N53: 0 | O53: 0 | P53: 0 | Q53: 0 | R53: 0 | S53: 0 | T53: 0 | U53: 0 | V53: 0 | W53: 0 | X53: 0 | Y53: 0 | Z53: 0 | AA53: 0 | AB53: 0 | AC53: 0 | AD53: 0 | AE53: 0 | AF53: 0 | AG53: 0 | AH53: 0 | AI53: 0 | AJ53: 0
D54: =B54*C54 -> 0 | F54: 0 | H54: =IF(H$16>($F54+22),0,IF(H$16<$F54,0,IF(H$16=$F54,$D54,IF(H$16>$F54,G54)))) -> 0 | I54: 0 | J54: 0 | K54: 0 | L54: 0 | M54: 0 | N54: 0 | O54: 0 | P54: 0 | Q54: 0 | R54: 0 | S54: 0 | T54: 0 | U54: 0 | V54: 0 | W54: 0 | X54: 0 | Y54: 0 | Z54: 0 | AA54: 0 | AB54: 0 | AC54: 0 | AD54: 0 | AE54: 0 | AF54: 0 | AG54: 0 | AH54: 0 | AI54: 0 | AJ54: 0
D55: =B55*C55 ->  | F55: 0 | H55: =IF(H$16>($F55+22),0,IF(H$16<$F55,0,IF(H$16=$F55,$D55,IF(H$16>$F55,G55)))) -> 0 | I55: 0 | J55: 0 | K55: 0 | L55: 0 | M55: 0 | N55: 0 | O55: 0 | P55: 0 | Q55: 0 | R55: 0 | S55: 0 | T55: 0 | U55: 0 | V55: 0 | W55: 0 | X55: 0 | Y55: 0 | Z55: 0 | AA55: 0 | AB55: 0 | AC55: 0 | AD55: 0 | AE55: 0 | AF55: 0 | AG55: 0 | AH55: 0 | AI55: 0 | AJ55: 0
H56: =IF(H$16>($F56+22),0,IF(H$16<$F56,0,IF(H$16=$F56,$D56,IF(H$16>$F56,G56)))) -> 0 | I56: 0 | J56: 0 | K56: 0 | L56: 0 | M56: 0 | N56: 0 | O56: 0 | P56: 0 | Q56: 0 | R56: 0 | S56: 0 | T56: 0 | U56: 0 | V56: 0 | W56: 0 | X56: 0 | Y56: 0 | Z56: 0 | AA56: 0 | AB56: 0 | AC56: 0 | AD56: 0 | AE56: 0 | AF56: 0 | AG56: 0 | AH56: 0 | AI56: 0 | AJ56: 0
H57: =IF(H$16>($F57+22),0,IF(H$16<$F57,0,IF(H$16=$F57,$D57,IF(H$16>$F57,G57)))) -> 0 | I57: 0 | J57: 0 | K57: 0 | L57: 0 | M57: 0 | N57: 0 | O57: 0 | P57: 0 | Q57: 0 | R57: 0 | S57: 0 | T57: 0 | U57: 0 | V57: 0 | W57: 0 | X57: 0 | Y57: 0 | Z57: 0 | AA57: 0 | AB57: 0 | AC57: 0 | AD57: 0 | AE57: 0 | AF57: 0 | AG57: 0 | AH57: 0 | AI57: 0 | AJ57: 0
H58: =IF(H$16>($F58+22),0,IF(H$16<$F58,0,IF(H$16=$F58,$D58,IF(H$16>$F58,G58)))) -> 0 | I58: 0 | J58: 0 | K58: 0 | L58: 0 | M58: 0 | N58: 0 | O58: 0 | P58: 0 | Q58: 0 | R58: 0 | S58: 0 | T58: 0 | U58: 0 | V58: 0 | W58: 0 | X58: 0 | Y58: 0 | Z58: 0 | AA58: 0 | AB58: 0 | AC58: 0 | AD58: 0 | AE58: 0 | AF58: 0 | AG58: 0 | AH58: 0 | AI58: 0 | AJ58: 0
G59: Total | H59: =SUM(H19:H58) -> 0 | I59: =SUM(I19:I58) -> 0 | J59: 0 | K59: 0 | L59: =SUM(L19:L58) -> 71650 | M59: 71650 | N59: 71650 | O59: 71650 | P59: 71650 | Q59: 71650 | R59: 71650 | S59: 200550 | T59: 200550 | U59: 200550 | V59: 200550 | W59: 200550 | X59: 200550 | Y59: 200550 | Z59: 200550 | AA59: 200550 | AB59: 200550 | AC59: 200550 | AD59: 200550 | AE59: 361675 | AF59: 361675 | AG59: 361675 | AH59: 361675 | AI59: 290025 | AJ59: 290025

Sheet Marketing Assumptions
A1: Marketing
B3: Per Block | H3: *Panchayat Gatherings
B4: Item | C4: Item Cost | D4: # of Items | E4: Total Cost | H4: Item | I4: Item Cost | J4: # of Items | K4: Total Cost
B5: Flyers | C5: 2 | D5: 2000 | E5: =PRODUCT(D5,C5) -> 4000 | H5: Renting Chairs | I5: 10 | J5: 75 | K5: =PRODUCT(J5,I5) -> 750
B6: District/ Block Newspaper Ad | C6: 500 | D6: 1 | E6: =PRODUCT(D6,C6) -> 500 | H6: Snacks | I6: 15 | J6: 75 | K6: =PRODUCT(J6,I6) -> 1125
B7: Banners | C7: 300 | D7: 1 | E7: =PRODUCT(D7,C7) -> 300 | H7: Speaker System | I7: 5000 | J7: 1 | K7: =PRODUCT(J7,I7) -> 5000
B8: Local Print | C8: 500 | D8: 2 | E8: =PRODUCT(D8,C8) -> 1000
B9: Panchayat gatherings* | C9: See Key | D9: See Key | E9: =(K13) -> 10312.5 | J9: Total | K9: =SUM(K7,K6,K5) -> 6875
L10: =K9*18 -> 123750
D11: Total | E11: =SUM(E9,E8,E7,E6,E5) -> 16112.5 | J11: Gatherings per Block every three months | K11: 6 | L11: =L10/12 -> 10312.5
J13: Block Cost | K13: =PRODUCT(K11,K9/4) -> 10312.5
B14: Core Team
B15: Item | C15: Item Cost | D15: # of Items | E15: Total Cost
B16: Large scale publications | C16: 1000 | D16: 3 | E16: =PRODUCT(D16,C16) -> 3000
B17: Social Media Sponsor/ Boost | C17: 300 | D17: 14 | E17: =PRODUCT(D17*C17) -> 4200
B18: Conference Fees
B19: Merchandise: Shirts
B20: Merchandise: Flags
D21: Total: | E21: =SUM(E16:E20) -> 7200

Sheet Recruitment
A2: Assumptions
A3: Item | B3: Cost | E3: Facility Start Dates | F3: #
A4: BPO Recruitment (8 BPOs) | B4: ='Recruitment Assumptions'!E11 -> 23500 | E4: =Assumptions!B4 -> 2015-01-01 | F4: =Assumptions!C4 -> 4 | K4: =8*1.25 -> 10
A5: BPO Field Assignment (8 BPOs) | B5: ='Recruitment Assumptions'!E27 -> 70086 | E5: =Assumptions!B5 -> 2015-08-01 | F5: =Assumptions!C5 -> 8
A6: BPO Training (4 BPOs) | B6: ='Recruitment Assumptions'!E44 -> 16720 | E6: =Assumptions!B6 -> 2016-08-01 | F6: =Assumptions!C6 -> 10
A7: VV Recruitment (1 block) | B7: ='Recruitment Assumptions'!E58 -> 14740
A8: VV Field Assignment (4 blocks) | B8: ='Recruitment Assumptions'!E74 -> 135000
H16: 1 | I16: 2 | J16: 3 | K16: 4 | L16: 5 | M16: 6 | N16: 7 | O16: 8 | P16: 9 | Q16: 10 | R16: 11 | S16: 12 | T16: 13 | U16: 14 | V16: 15 | W16: 16 | X16: 17 | Y16: 18 | Z16: 19 | AA16: 20 | AB16: 21 | AC16: 22 | AD16: 23 | AE16: 24 | AF16: 25 | AG16: 26 | AH16: 27 | AI16: 28 | AJ16: 29
B17: Cost | D17: Total | E17: Start Date | H17: 2014-09-01 | I17: 2014-10-01 | J17: 2014-11-01 | K17: 2014-12-01 | L17: 2015-01-01 | M17: 2015-02-01 | N17: 2015-03-01 | O17: 2015-04-01 | P17: 2015-05-01 | Q17: 2015-06-01 | R17: 2015-07-01 | S17: 2015-08-01 | T17: 2015-09-01 | U17: 2015-10-01 | V17: 2015-11-01 | W17: 2015-12-01 | X17: 2016-01-01 | Y17: 2016-02-01 | Z17: 2016-03-01 | AA17: 2016-04-01 | AB17: 2016-05-01 | AC17: 2016-06-01 | AD17: 2016-07-01 | AE17: 2016-08-01 | AF17: 2016-09-01 | AG17: 2016-10-01 | AH17: 2016-11-01 | AI17: 2016-12-01 | AJ17: 2017-01-01
A18: Batch 1 | H18: 1 | I18: 2 | J18: 3 | K18: 4 | L18: 5 | M18: 6 | N18: 7 | O18: 8 | P18: 9 | Q18: 10 | R18: 11 | S18: 12 | T18: 13 | U18: 14 | V18: 15 | W18: 16 | X18: 17 | Y18: 18 | Z18: 19 | AA18: 20 | AB18: 21 | AC18: 22 | AD18: 23 | AE18: 24 | AF18: 25 | AG18: 26 | AH18: 27 | AI18: 28 | AJ18: 29
A19: BPO Recruitment (Above/2) | B19: =B4/2 -> 11750 | C19: 1 | D19: =B19*C19 -> 11750 | E19: =E4-1 -> 2014-12-31 | F19: =IF(E19>0,(HLOOKUP(E19,$H$17:$AJ$18,2)),0) -> 4 | H19: =IF(H$16=($F19),$D19,0) -> 0 | I19: =IF(I$16=($F19),$D19,0) -> 0 | J19: 0 | K19: 11750 | L19: 0 | M19: 0 | N19: 0 | O19: 0 | P19: 0 | Q19: 0 | R19: 0 | S19: 0 | T19: 0 | U19: 0 | V19: 0 | W19: 0 | X19: 0 | Y19: =IF(Y$16=($F19),$D19,0) -> 0 | Z19: 0 | AA19: 0 | AB19: 0 | AC19: 0 | AD19: 0 | AE19: 0 | AF19: 0 | AG19: 0 | AH19: 0 | AI19: 0 | AJ19: 0
A20: BPO Field Assignment (Above/2) | B20: =B5/2 -> 35043 | C20: 1 | D20: 35043 | E20: =E19 -> 2014-12-31 | F20: =IF(E20>0,(HLOOKUP(E20,$H$17:$AJ$18,2)),0) -> 4 | H20: =IF(H$16=($F20),$D20,0) -> 0 | I20: 0 | J20: 0 | K20: 35043 | L20: 0 | M20: 0 | N20: 0 | O20: 0 | P20: 0 | Q20: 0 | R20: 0 | S20: 0 | T20: 0 | U20: 0 | V20: 0 | W20: 0 | X20: 0 | Y20: 0 | Z20: 0 | AA20: 0 | AB20: 0 | AC20: 0 | AD20: 0 | AE20: 0 | AF20: 0 | AG20: 0 | AH20: 0 | AI20: 0 | AJ20: 0
A21: BPO Training | B21: =B6 -> 16720 | C21: =C20 -> 1 | D21: 16720 | E21: =E20 -> 2014-12-31 | F21: 4 | H21: 0 | I21: 0 | J21: 0 | K21: 16720 | L21: 0 | M21: 0 | N21: 0 | O21: 0 | P21: 0 | Q21: 0 | R21: 0 | S21: 0 | T21: 0 | U21: 0 | V21: 0 | W21: 0 | X21: 0 | Y21: 0 | Z21: 0 | AA21: 0 | AB21: 0 | AC21: 0 | AD21: 0 | AE21: 0 | AF21: 0 | AG21: 0 | AH21: 0 | AI21: 0 | AJ21: 0
A22: VV Recruitment (1 block) | B22: =B7 -> 14740 | C22: 1 | D22: 14740 | E22: =E21 -> 2014-12-31 | F22: 4 | H22: 0 | I22: 0 | J22: 0 | K22: 14740 | L22: 0 | M22: 0 | N22: 0 | O22: 0 | P22: 0 | Q22: 0 | R22: 0 | S22: 0 | T22: 0 | U22: 0 | V22: 0 | W22: 0 | X22: 0 | Y22: 0 | Z22: 0 | AA22: 0 | AB22: 0 | AC22: 0 | AD22: 0 | AE22: 0 | AF22: 0 | AG22: 0 | AH22: 0 | AI22: 0 | AJ22: 0
A23: VV Field Assignment | B23: =B8 -> 135000 | C23: 1 | D23: 135000 | E23: =E4 -> 2015-01-01 | F23: 5 | H23: 0 | I23: 0 | J23: 0 | K23: 0 | L23: 135000 | M23: 0 | N23: 0 | O23: 0 | P23: 0 | Q23: 0 | R23: 0 | S23: 0 | T23: 0 | U23: 0 | V23: 0 | W23: 0 | X23: 0 | Y23: 0 | Z23: 0 | AA23: 0 | AB23: 0 | AC23: 0 | AD23: 0 | AE23: 0 | AF23: 0 | AG23: 0 | AH23: 0 | AI23: 0 | AJ23: 0
C24: 1 | D24: 0 | F24: 0 | H24: 0 | I24: 0 | J24: 0 | K24: 0 | L24: 0 | M24: 0 | N24: 0 | O24: 0 | P24: 0 | Q24: 0 | R24: 0 | S24: 0 | T24: 0 | U24: 0 | V24: 0 | W24: 0 | X24: 0 | Y24: 0 | Z24: 0 | AA24: 0 | AB24: 0 | AC24: 0 | AD24: 0 | AE24: 0 | AF24: 0 | AG24: 0 | AH24: 0 | AI24: 0 | AJ24: 0
B25: =VLOOKUP(A25,$A$4:$C$10,3,FALSE) ->  | C25: 1 | F25: 0 | H25: 0 | I25: 0 | J25: 0 | K25: 0 | L25: 0 | M25: 0 | N25: 0 | O25: 0 | P25: 0 | Q25: 0 | R25: 0 | S25: 0 | T25: 0 | U25: 0 | V25: 0 | W25: 0 | X25: 0 | Y25: 0 | Z25: 0 | AA25: 0 | AB25: 0 | AC25: 0 | AD25: 0 | AE25: 0 | AF25: 0 | AG25: 0 | AH25: 0 | AI25: 0 | AJ25: 0
C26: 1 | D26: 0 | F26: 0 | H26: 0 | I26: 0 | J26: 0 | K26: 0 | L26: 0 | M26: 0 | N26: 0 | O26: 0 | P26: 0 | Q26: 0 | R26: 0 | S26: 0 | T26: 0 | U26: 0 | V26: 0 | W26: 0 | X26: 0 | Y26: 0 | Z26: 0 | AA26: 0 | AB26: 0 | AC26: 0 | AD26: 0 | AE26: 0 | AF26: 0 | AG26: 0 | AH26: 0 | AI26: 0 | AJ26: 0
B27: =VLOOKUP(A27,$A$4:$C$10,3,FALSE) ->  | F27: 0 | H27: 0 | I27: 0 | J27: 0 | K27: 0 | L27: 0 | M27: 0 | N27: 0 | O27: 0 | P27: 0 | Q27: 0 | R27: 0 | S27: 0 | T27: 0 | U27: 0 | V27: 0 | W27: 0 | X27: 0 | Y27: 0 | Z27: 0 | AA27: 0 | AB27: 0 | AC27: 0 | AD27: 0 | AE27: 0 | AF27: 0 | AG27: 0 | AH27: 0 | AI27: 0 | AJ27: 0
D28: =B28*C28 ->  | F28: 0 | H28: 0 | I28: 0 | J28: 0 | K28: 0 | L28: 0 | M28: 0 | N28: 0 | O28: 0 | P28: 0 | Q28: 0 | R28: 0 | S28: 0 | T28: 0 | U28: 0 | V28: 0 | W28: 0 | X28: 0 | Y28: 0 | Z28: 0 | AA28: 0 | AB28: 0 | AC28: 0 | AD28: 0 | AE28: 0 | AF28: 0 | AG28: 0 | AH28: 0 | AI28: 0 | AJ28: 0
D29: =B29*C29 ->  | F29: 0 | H29: 0 | I29: 0 | J29: 0 | K29: 0 | L29: 0 | M29: 0 | N29: 0 | O29: 0 | P29: 0 | Q29: 0 | R29: 0 | S29: 0 | T29: 0 | U29: 0 | V29: 0 | W29: 0 | X29: 0 | Y29: 0 | Z29: 0 | AA29: 0 | AB29: 0 | AC29: 0 | AD29: 0 | AE29: 0 | AF29: 0 | AG29: 0 | AH29: 0 | AI29: 0 | AJ29: 0
H30: 0 | I30: 0 | J30: 0 | K30: 0 | L30: 0 | M30: 0 | N30: 0 | O30: 0 | P30: 0 | Q30: 0 | R30: 0 | S30: 0 | T30: 0 | U30: 0 | V30: 0 | W30: 0 | X30: 0 | Y30: 0 | Z30: 0 | AA30: 0 | AB30: 0 | AC30: 0 | AD30: 0 | AE30: 0 | AF30: 0 | AG30: 0 | AH30: 0 | AI30: 0 | AJ30: 0
A31: Batch 2 | D31: =B31*C31 ->  | F31: 0 | H31: 0 | I31: 0 | J31: 0 | K31: 0 | L31: 0 | M31: 0 | N31: 0 | O31: 0 | P31: 0 | Q31: 0 | R31: 0 | S31: 0 | T31: 0 | U31: 0 | V31: 0 | W31: 0 | X31: 0 | Y31: 0 | Z31: 0 | AA31: 0 | AB31: 0 | AC31: 0 | AD31: 0 | AE31: 0 | AF31: 0 | AG31: 0 | AH31: 0 | AI31: 0 | AJ31: 0
A32: BPO Recruitment | B32: =B4 -> 23500 | C32: 1 | D32: 23500 | E32: =E5 -> 2015-08-01 | F32: 12 | H32: 0 | I32: 0 | J32: 0 | K32: 0 | L32: 0 | M32: 0 | N32: 0 | O32: 0 | P32: 0 | Q32: 0 | R32: 0 | S32: 23500 | T32: 0 | U32: 0 | V32: 0 | W32: 0 | X32: 0 | Y32: 0 | Z32: 0 | AA32: 0 | AB32: 0 | AC32: 0 | AD32: 0 | AE32: 0 | AF32: 0 | AG32: 0 | AH32: 0 | AI32: 0 | AJ32: 0
A33: BPO Field Assignment | B33: =B5 -> 70086 | C33: 1 | D33: 70086 | E33: =E32 -> 2015-08-01 | F33: 12 | H33: 0 | I33: 0 | J33: 0 | K33: 0 | L33: 0 | M33: 0 | N33: 0 | O33: 0 | P33: 0 | Q33: 0 | R33: 0 | S33: 70086 | T33: 0 | U33: 0 | V33: 0 | W33: 0 | X33: 0 | Y33: 0 | Z33: 0 | AA33: 0 | AB33: 0 | AC33: 0 | AD33: 0 | AE33: 0 | AF33: 0 | AG33: 0 | AH33: 0 | AI33: 0 | AJ33: 0
A34: BPO Training (Above *2) | B34: =B6*2 -> 33440 | C34: =C33 -> 1 | D34: 33440 | E34: =E33 -> 2015-08-01 | F34: 12 | H34: 0 | I34: 0 | J34: 0 | K34: 0 | L34: 0 | M34: 0 | N34: 0 | O34: 0 | P34: 0 | Q34: 0 | R34: 0 | S34: 33440 | T34: 0 | U34: 0 | V34: 0 | W34: 0 | X34: =IF(X$16=($F34),$D34,0) -> 0 | Y34: 0 | Z34: 0 | AA34: 0 | AB34: 0 | AC34: 0 | AD34: 0 | AE34: 0 | AF34: 0 | AG34: 0 | AH34: 0 | AI34: 0 | AJ34: 0
A35: VV Recruitment x4 | B35: =B7*4 -> 58960 | C35: 1 | D35: 58960 | E35: =E34 -> 2015-08-01 | F35: 12 | H35: 0 | I35: 0 | J35: 0 | K35: 0 | L35: 0 | M35: 0 | N35: 0 | O35: 0 | P35: 0 | Q35: 0 | R35: 0 | S35: 58960 | T35: 0 | U35: 0 | V35: 0 | W35: 0 | X35: 0 | Y35: 0 | Z35: 0 | AA35: 0 | AB35: 0 | AC35: 0 | AD35: 0 | AE35: 0 | AF35: 0 | AG35: 0 | AH35: 0 | AI35: 0 | AJ35: 0
A36: VV Field Assignment x2 | B36: =B8*2 -> 270000 | C36: 1 | D36: 270000 | E36: =E35 -> 2015-08-01 | F36: 12 | H36: =IF(H$16=($F36),$D36,0) -> 0 | I36: 0 | J36: 0 | K36: 0 | L36: 0 | M36: 0 | N36: 0 | O36: 0 | P36: 0 | Q36: 0 | R36: 0 | S36: 270000 | T36: 0 | U36: 0 | V36: 0 | W36: 0 | X36: 0 | Y36: 0 | Z36: 0 | AA36: 0 | AB36: 0 | AC36: 0 | AD36: 0 | AE36: 0 | AF36: 0 | AG36: 0 | AH36: 0 | AI36: 0 | AJ36: 0
C37: 1 | D37: 0 | F37: 0 | H37: 0 | I37: 0 | J37: 0 | K37: 0 | L37: 0 | M37: 0 | N37: 0 | O37: 0 | P37: 0 | Q37: 0 | R37: 0 | S37: 0 | T37: 0 | U37: 0 | V37: 0 | W37: 0 | X37: 0 | Y37: 0 | Z37: 0 | AA37: 0 | AB37: 0 | AC37: 0 | AD37: 0 | AE37: 0 | AF37: 0 | AG37: 0 | AH37: 0 | AI37: 0 | AJ37: 0
C38: 1 | F38: 0 | H38: 0 | I38: 0 | J38: 0 | K38: 0 | L38: 0 | M38: 0 | N38: 0 | O38: 0 | P38: 0 | Q38: 0 | R38: 0 | S38: 0 | T38: 0 | U38: 0 | V38: 0 | W38: 0 | X38: 0 | Y38: 0 | Z38: 0 | AA38: 0 | AB38: 0 | AC38: 0 | AD38: 0 | AE38: 0 | AF38: 0 | AG38: 0 | AH38: 0 | AI38: 0 | AJ38: 0
D39: 0 | F39: 0 | H39: 0 | I39: 0 | J39: 0 | K39: 0 | L39: 0 | M39: 0 | N39: 0 | O39: 0 | P39: 0 | Q39: 0 | R39: 0 | S39: 0 | T39: 0 | U39: 0 | V39: 0 | W39: 0 | X39: 0 | Y39: 0 | Z39: 0 | AA39: 0 | AB39: 0 | AC39: 0 | AD39: 0 | AE39: 0 | AF39: 0 | AG39: 0 | AH39: 0 | AI39: 0 | AJ39: 0
D40: 0 | E40: =E39 -> 00:00:00 | F40: 0 | H40: 0 | I40: 0 | J40: 0 | K40: 0 | L40: 0 | M40: 0 | N40: 0 | O40: 0 | P40: 0 | Q40: 0 | R40: 0 | S40: 0 | T40: 0 | U40: 0 | V40: 0 | W40: 0 | X40: 0 | Y40: 0 | Z40: 0 | AA40: 0 | AB40: 0 | AC40: 0 | AD40: 0 | AE40: 0 | AF40: 0 | AG40: 0 | AH40: 0 | AI40: 0 | AJ40: 0
D41: 0 | E41: 00:00:00 | F41: 0 | H41: 0 | I41: 0 | J41: 0 | K41: 0 | L41: 0 | M41: 0 | N41: 0 | O41: 0 | P41: 0 | Q41: 0 | R41: 0 | S41: 0 | T41: 0 | U41: 0 | V41: 0 | W41: 0 | X41: 0 | Y41: 0 | Z41: 0 | AA41: 0 | AB41: 0 | AC41: 0 | AD41: 0 | AE41: 0 | AF41: 0 | AG41: 0 | AH41: 0 | AI41: 0 | AJ41: 0
F42: 0 | H42: 0 | I42: 0 | J42: 0 | K42: 0 | L42: 0 | M42: 0 | N42: 0 | O42: 0 | P42: 0 | Q42: 0 | R42: 0 | S42: 0 | T42: 0 | U42: 0 | V42: 0 | W42: 0 | X42: 0 | Y42: 0 | Z42: 0 | AA42: 0 | AB42: 0 | AC42: 0 | AD42: 0 | AE42: 0 | AF42: 0 | AG42: 0 | AH42: 0 | AI42: 0 | AJ42: 0
F43: 0 | H43: 0 | I43: 0 | J43: 0 | K43: 0 | L43: 0 | M43: 0 | N43: 0 | O43: 0 | P43: 0 | Q43: 0 | R43: 0 | S43: 0 | T43: 0 | U43: 0 | V43: 0 | W43: 0 | X43: 0 | Y43: 0 | Z43: 0 | AA43: 0 | AB43: 0 | AC43: 0 | AD43: 0 | AE43: 0 | AF43: 0 | AG43: 0 | AH43: 0 | AI43: 0 | AJ43: 0
A44: Batch 3 | F44: 0 | H44: 0 | I44: 0 | J44: 0 | K44: 0 | L44: 0 | M44: 0 | N44: 0 | O44: 0 | P44: 0 | Q44: 0 | R44: 0 | S44: 0 | T44: 0 | U44: 0 | V44: 0 | W44: 0 | X44: 0 | Y44: 0 | Z44: 0 | AA44: 0 | AB44: 0 | AC44: 0 | AD44: 0 | AE44: 0 | AF44: 0 | AG44: 0 | AH44: 0 | AI44: 0 | AJ44: 0
A45: BPO Recruitment (above*1.25) | B45: =B4*1.25 -> 29375 | C45: 1 | D45: 29375 | E45: =E6 -> 2016-08-01 | F45: 24 | H45: 0 | I45: 0 | J45: 0 | K45: 0 | L45: 0 | M45: 0 | N45: 0 | O45: 0 | P45: 0 | Q45: 0 | R45: 0 | S45: 0 | T45: 0 | U45: 0 | V45: 0 | W45: 0 | X45: 0 | Y45: 0 | Z45: 0 | AA45: 0 | AB45: 0 | AC45: 0 | AD45: 0 | AE45: 29375 | AF45: 0 | AG45: 0 | AH45: 0 | AI45: 0 | AJ45: 0
A46: BPO Field Assignment (Above*1.25) | B46: =B5*1.25 -> 87607.5 | C46: 1 | D46: 87607.5 | E46: =E45 -> 2016-08-01 | F46: 24 | H46: 0 | I46: 0 | J46: 0 | K46: 0 | L46: 0 | M46: 0 | N46: 0 | O46: 0 | P46: 0 | Q46: 0 | R46: 0 | S46: 0 | T46: 0 | U46: 0 | V46: 0 | W46: 0 | X46: 0 | Y46: 0 | Z46: 0 | AA46: 0 | AB46: 0 | AC46: 0 | AD46: 0 | AE46: 87607.5 | AF46: 0 | AG46: 0 | AH46: 0 | AI46: 0 | AJ46: 0
A47: BPO Training (Above *2.25) | B47: =B6*2.25 -> 37620 | C47: 1 | D47: 37620 | E47: =E46 -> 2016-08-01 | F47: 24 | H47: 0 | I47: 0 | J47: 0 | K47: 0 | L47: 0 | M47: 0 | N47: 0 | O47: 0 | P47: 0 | Q47: 0 | R47: 0 | S47: 0 | T47: 0 | U47: 0 | V47: 0 | W47: 0 | X47: 0 | Y47: 0 | Z47: 0 | AA47: 0 | AB47: 0 | AC47: 0 | AD47: 0 | AE47: 37620 | AF47: 0 | AG47: 0 | AH47: 0 | AI47: 0 | AJ47: 0
A48: VV Recruitment x6 | B48: =B7*6 -> 88440 | C48: 1 | D48: 88440 | E48: =E47 -> 2016-08-01 | F48: 24 | H48: 0 | I48: 0 | J48: 0 | K48: 0 | L48: 0 | M48: 0 | N48: 0 | O48: 0 | P48: 0 | Q48: 0 | R48: 0 | S48: 0 | T48: 0 | U48: 0 | V48: 0 | W48: 0 | X48: 0 | Y48: 0 | Z48: 0 | AA48: 0 | AB48: 0 | AC48: 0 | AD48: 0 | AE48: 88440 | AF48: 0 | AG48: 0 | AH48: 0 | AI48: 0 | AJ48: 0
A49: VV Field Assignment x2.25 | B49: =B8*2.25 -> 303750 | C49: 1 | D49: 303750 | E49: =E48 -> 2016-08-01 | F49: 24 | H49: 0 | I49: 0 | J49: 0 | K49: 0 | L49: 0 | M49: 0 | N49: 0 | O49: 0 | P49: 0 | Q49: 0 | R49: 0 | S49: 0 | T49: 0 | U49: 0 | V49: 0 | W49: 0 | X49: 0 | Y49: 0 | Z49: 0 | AA49: 0 | AB49: 0 | AC49: 0 | AD49: 0 | AE49: 303750 | AF49: 0 | AG49: 0 | AH49: 0 | AI49: 0 | AJ49: 0
C50: 1 | D50: 0 | F50: 0 | H50: 0 | I50: 0 | J50: 0 | K50: 0 | L50: 0 | M50: 0 | N50: 0 | O50: 0 | P50: 0 | Q50: 0 | R50: 0 | S50: 0 | T50: 0 | U50: 0 | V50: 0 | W50: 0 | X50: =IF(X$16=($F50),$D50,0) -> 0 | Y50: 0 | Z50: 0 | AA50: 0 | AB50: 0 | AC50: 0 | AD50: 0 | AE50: 0 | AF50: 0 | AG50: 0 | AH50: 0 | AI50: 0 | AJ50: 0
F51: 0 | H51: 0 | I51: 0 | J51: 0 | K51: 0 | L51: 0 | M51: 0 | N51: 0 | O51: 0 | P51: 0 | Q51: 0 | R51: 0 | S51: 0 | T51: 0 | U51: 0 | V51: 0 | W51: =IF(W$16=($F51),$D51,0) -> 0 | X51: 0 | Y51: 0 | Z51: 0 | AA51: 0 | AB51: 0 | AC51: 0 | AD51: 0 | AE51: 0 | AF51: 0 | AG51: 0 | AH51: 0 | AI51: 0 | AJ51: 0
D52: 0 | F52: 0 | H52: =IF(H$16=($F52),$D52,0) -> 0 | I52: 0 | J52: 0 | K52: 0 | L52: 0 | M52: 0 | N52: 0 | O52: 0 | P52: 0 | Q52: 0 | R52: 0 | S52: 0 | T52: 0 | U52: 0 | V52: 0 | W52: 0 | X52: 0 | Y52: 0 | Z52: 0 | AA52: 0 | AB52: 0 | AC52: 0 | AD52: 0 | AE52: 0 | AF52: 0 | AG52: 0 | AH52: 0 | AI52: 0 | AJ52: 0
D53: 0 | F53: 0 | H53: 0 | I53: 0 | J53: 0 | K53: 0 | L53: 0 | M53: 0 | N53: 0 | O53: 0 | P53: 0 | Q53: 0 | R53: 0 | S53: 0 | T53: 0 | U53: 0 | V53: 0 | W53: 0 | X53: 0 | Y53: 0 | Z53: 0 | AA53: 0 | AB53: 0 | AC53: 0 | AD53: 0 | AE53: 0 | AF53: 0 | AG53: 0 | AH53: 0 | AI53: 0 | AJ53: 0
D54: =B54*C54 -> 0 | F54: 0 | H54: 0 | I54: 0 | J54: 0 | K54: 0 | L54: 0 | M54: 0 | N54: 0 | O54: 0 | P54: 0 | Q54: 0 | R54: 0 | S54: 0 | T54: 0 | U54: 0 | V54: 0 | W54: 0 | X54: 0 | Y54: 0 | Z54: 0 | AA54: 0 | AB54: 0 | AC54: 0 | AD54: 0 | AE54: 0 | AF54: 0 | AG54: 0 | AH54: 0 | AI54: 0 | AJ54: 0
D55: =B55*C55 ->  | F55: 0 | H55: 0 | I55: 0 | J55: 0 | K55: 0 | L55: 0 | M55: 0 | N55: 0 | O55: 0 | P55: 0 | Q55: 0 | R55: 0 | S55: 0 | T55: 0 | U55: 0 | V55: 0 | W55: 0 | X55: 0 | Y55: 0 | Z55: 0 | AA55: 0 | AB55: 0 | AC55: 0 | AD55: 0 | AE55: 0 | AF55: 0 | AG55: 0 | AH55: 0 | AI55: 0 | AJ55: 0
H56: 0 | I56: 0 | J56: 0 | K56: 0 | L56: 0 | M56: 0 | N56: 0 | O56: 0 | P56: 0 | Q56: 0 | R56: 0 | S56: 0 | T56: 0 | U56: 0 | V56: 0 | W56: 0 | X56: 0 | Y56: 0 | Z56: 0 | AA56: 0 | AB56: 0 | AC56: 0 | AD56: 0 | AE56: 0 | AF56: 0 | AG56: 0 | AH56: 0 | AI56: 0 | AJ56: 0
H57: 0 | I57: 0 | J57: 0 | K57: 0 | L57: 0 | M57: 0 | N57: 0 | O57: 0 | P57: 0 | Q57: 0 | R57: 0 | S57: 0 | T57: 0 | U57: 0 | V57: 0 | W57: 0 | X57: 0 | Y57: 0 | Z57: 0 | AA57: 0 | AB57: 0 | AC57: 0 | AD57: 0 | AE57: 0 | AF57: 0 | AG57: 0 | AH57: 0 | AI57: 0 | AJ57: 0
H58: 0 | I58: 0 | J58: 0 | K58: 0 | L58: 0 | M58: 0 | N58: 0 | O58: 0 | P58: 0 | Q58: 0 | R58: 0 | S58: 0 | T58: 0 | U58: 0 | V58: 0 | W58: 0 | X58: 0 | Y58: 0 | Z58: 0 | AA58: 0 | AB58: 0 | AC58: 0 | AD58: 0 | AE58: 0 | AF58: 0 | AG58: 0 | AH58: 0 | AI58: 0 | AJ58: 0
G59: Total | H59: =SUM(H19:H58) -> 0 | I59: =SUM(I19:I58) -> 0 | J59: 0 | K59: 78253 | L59: =SUM(L19:L58) -> 135000 | M59: 0 | N59: 0 | O59: 0 | P59: 0 | Q59: 0 | R59: 0 | S59: 455986 | T59: 0 | U59: 0 | V59: 0 | W59: 0 | X59: 0 | Y59: 0 | Z59: 0 | AA59: 0 | AB59: 0 | AC59: 0 | AD59: 0 | AE59: 546792.5 | AF59: 0 | AG59: 0 | AH59: 0 | AI59: 0 | AJ59: 0

Sheet Recruitment Assumptions
A1: Marketing
B3: BPO Recruitment and Interviews for 8 BPOs
B4: Item | C4: Item Cost | D4: # of Items | E4: Total Cost
B5: Facebook, Linkedin Promotion | C5: 1 | D5: 2500 | E5: =PRODUCT(D5,C5) -> 2500
B6: Phone Interviews | C6: 10 | D6: 50 | E6: =PRODUCT(D6,C6) -> 500
B7: In person Interview Travel | C7: 600 | D7: 25 | E7: =PRODUCT(D7,C7) -> 15000
B8: Food | C8: 100 | D8: 25 | E8: =PRODUCT(D8,C8) -> 2500
B9: Core Team Travel | C9: 1000 | D9: 3 | E9: =PRODUCT(D9,C9) -> 3000 | H9: HR Per Block Cost Total
H10: BPO Recruitment | I10: =E11/8 -> 2937.5
D11: Total | E11: =SUM(E5:E9) -> 23500 | H11: BPO Field Assignment | I11: =E27/8 -> 8760.75
H12: BPO Training | I12: =E44/4 -> 4180
B13: BPO Field Assignment for 8 BPOs | C13: Includes 3 field assignments | H13: VV Recruitment | I13: =E58 -> 14740
B14: Item | C14: Item Cost | D14: # of Items | E14: Total Cost | H14: VV Field Assignment | I14: =E74/4 -> 33750
B15: Core Team Travel | C15: 600 | D15: 8 | E15: =PRODUCT(D15,C15) -> 4800 | I15: =SUM(I10:I14) -> 64368.25
B16: BPO Travel | C16: 600 | D16: 15 | E16: =PRODUCT(D16*C16) -> 9000
B17: Travel In Block (BPOs) | C17: 50 | D17: =7*15 -> 105 | E17: =PRODUCT(D17*C17) -> 5250
B18: Travel in Block (PP Team) | C18: 50 | D18: =8*21 -> 168 | E18: 8400
B19: Food (BPOs) | C19: 100 | D19: =15*7 -> 105 | E19: 10500
B20: Food (PP Team) | C20: 100 | D20: =8*21 -> 168 | E20: =PRODUCT(D20*C20) -> 16800
B21: Food (VV Candidates) | C21: 90 | D21: =20*6 -> 120 | E21: 10800
B22: Printed Materials (test) | C22: 2 | D22: =25*15 -> 375 | E22: =PRODUCT(D22*C22) -> 750
B23: Printed Materials (Scorecard) | C23: 2 | D23: =15*15 -> 225 | E23: 450
B24: PP Team Scoring Sheets | C24: 2 | D24: =21*8 -> 168 | E24: 336
B25: Misc Office Supplies | C25: 1000 | D25: 3 | E25: =PRODUCT(D25*C25) -> 3000
D27: Total | E27: =SUM(E15:E25) -> 70086
B32: Training of BPOs for 4 BPOs
B33: Item | C33: Item Cost | D33: # of Items | E33: Total Cost
B34: Core Team Travel | C34: 600 | D34: 4 | E34: =PRODUCT(D34,C34) -> 2400
B35: BPO Travel | C35: 600 | D35: 4 | E35: =PRODUCT(D35*C35) -> 2400
B36: Travel In Block (BPOs) | C36: 50 | D36: =4*7 -> 28 | E36: =PRODUCT(D36*C36) -> 1400
B37: Food (BPOs) | C37: 100 | D37: =4*7 -> 28 | E37: 2800
B38: Food (PP Team) | C38: 100 | D38: =4*7 -> 28 | E38: 2800
B39: Food (VV Candidates) | C39: 90 | D39: =20*2 -> 40 | E39: 3600
B40: Printed Materials (test) | C40: 2 | D40: =25*4 -> 100 | E40: 200
B41: Printed Materials (Intvw Scoreard) | C41: 2 | D41: =4*15 -> 60 | E41: 120
B42: Misc Office Supplies | C42: 1000 | D42: 1 | E42: 1000
D44: Total | E44: =SUM(E34:E42) -> 16720
B48: Recruitment of VVs 1 block
B49: Item | C49: Item Cost | D49: # of Items | E49: Total Cost
B50: Field Manager Travel | C50: 600 | D50: 2 | E50: =PRODUCT(D50,C50) -> 1200
B51: BPO Travel | C51: 600 | D51: 8 | E51: =PRODUCT(D51*C51) -> 4800
B52: Travel In Block (BPOs) | C52: 50 | D52: =10*7 -> 70 | E52: =PRODUCT(D52*C52) -> 3500
B53: Food (VV Candidates) | C53: 90 | D53: =20*2 -> 40 | E53: 3600
B54: Printed Materials (test) | C54: 2 | D54: =25*8 -> 200 | E54: 400
B55: Printed Materials (Intvw Scoreard) | C55: 2 | D55: =15*8 -> 120 | E55: 240
B56: Misc Office Supplies | C56: 1000 | D56: 1 | E56: 1000
D58: Total | E58: =SUM(E50:E56) -> 14740
B61: VV Field Assignment -To Select 24 VVs
B62: Item | C62: Item Cost | D62: # of Items | E62: Total Cost
B63: Field Manager Travel | C63: 600 | D63: 12 | E63: =PRODUCT(D63,C63) -> 7200
B64: BPO Travel | C64: 600 | D64: 8 | E64: =PRODUCT(D64*C64) -> 4800
B65: VV Travel | C65: 600 | D65: 40 | E65: =PRODUCT(D65*C65) -> 24000
B66: VV Accommodation | C66: 200 | D66: =40*7 -> 280 | E66: =PRODUCT(D66*C66) -> 56000
B67: Travel In Block (BPOs) | C67: 50 | D67: =10*7 -> 70 | E67: =PRODUCT(D67*C67) -> 3500
B68: Bed Transportation | C68: 3000 | D68: 1 | E68: 3000
B69: Food | C69: 100 | D69: =20*2 -> 40 | E69: 4000
B70: Training Facility Rent | C70: 2000 | D70: 7 | E70: 14000
B71: Travel in Block | C71: 50 | D71: =50*7 -> 350 | E71: 17500
B72: Misc Office Supplies | C72: 1000 | D72: 1 | E72: 1000
D74: Total | E74: =SUM(E63:E72) -> 135000

Sheet Maintenence & Repairs
A2: Assumptions
A3: Item | B3: Cost | C3: Cost Per Facility per month | E3: Facility Start Dates | F3: #
A4: Bike Maintenance | B4: 100 | C4: 700 | E4: =Assumptions!B4 -> 2015-01-01 | F4: =Assumptions!C4 -> 4
A5: Facility Maintence | B5: 1000 | C5: =B5 -> 1000 | E5: =Assumptions!B5 -> 2015-08-01 | F5: =Assumptions!C5 -> 8
E6: =Assumptions!B6 -> 2016-08-01 | F6: =Assumptions!C6 -> 10
H16: 1 | I16: 2 | J16: 3 | K16: 4 | L16: 5 | M16: 6 | N16: 7 | O16: 8 | P16: 9 | Q16: 10 | R16: 11 | S16: 12 | T16: 13 | U16: 14 | V16: 15 | W16: 16 | X16: 17 | Y16: 18 | Z16: 19 | AA16: 20 | AB16: 21 | AC16: 22 | AD16: 23 | AE16: 24 | AF16: 25 | AG16: 26 | AH16: 27 | AI16: 28 | AJ16: 29
A17: Position | B17: Cost | C17: # of Facilities | D17: Total | E17: Start Date | H17: 2014-09-01 | I17: 2014-10-01 | J17: 2014-11-01 | K17: 2014-12-01 | L17: 2015-01-01 | M17: 2015-02-01 | N17: 2015-03-01 | O17: 2015-04-01 | P17: 2015-05-01 | Q17: 2015-06-01 | R17: 2015-07-01 | S17: 2015-08-01 | T17: 2015-09-01 | U17: 2015-10-01 | V17: 2015-11-01 | W17: 2015-12-01 | X17: 2016-01-01 | Y17: 2016-02-01 | Z17: 2016-03-01 | AA17: 2016-04-01 | AB17: 2016-05-01 | AC17: 2016-06-01 | AD17: 2016-07-01 | AE17: 2016-08-01 | AF17: 2016-09-01 | AG17: 2016-10-01 | AH17: 2016-11-01 | AI17: 2016-12-01 | AJ17: 2017-01-01
A18: Batch 1 | H18: 1 | I18: 2 | J18: 3 | K18: 4 | L18: 5 | M18: 6 | N18: 7 | O18: 8 | P18: 9 | Q18: 10 | R18: 11 | S18: 12 | T18: 13 | U18: 14 | V18: 15 | W18: 16 | X18: 17 | Y18: 18 | Z18: 19 | AA18: 20 | AB18: 21 | AC18: 22 | AD18: 23 | AE18: 24 | AF18: 25 | AG18: 26 | AH18: 27 | AI18: 28 | AJ18: 29
A19: Bike Maintenance | B19: =VLOOKUP(A19,$A$4:$C$10,3,FALSE) -> 700 | C19: =F4 -> 4 | D19: =B19*C19 -> 2800 | E19: =E4 -> 2015-01-01 | F19: =IF(E19>0,(HLOOKUP(E19,$H$17:$AJ$18,2)),0) -> 5 | H19: =IF(I$16>($F19+22),0,IF(H$16<$F19,0,IF(H$16=$F19,$D19,IF(H$16>$F19,G19)))) -> 0 | I19: =IF(J$16>($F19+22),0,IF(I$16<$F19,0,IF(I$16=$F19,$D19,IF(I$16>$F19,H19)))) -> 0 | J19: 0 | K19: 0 | L19: 2800 | M19: 2800 | N19: 2800 | O19: 2800 | P19: 2800 | Q19: 2800 | R19: 2800 | S19: 2800 | T19: 2800 | U19: 2800 | V19: 2800 | W19: 2800 | X19: 2800 | Y19: 2800 | Z19: 2800 | AA19: 2800 | AB19: 2800 | AC19: 2800 | AD19: 2800 | AE19: 2800 | AF19: 2800 | AG19: 2800 | AH19: 0 | AI19: 0 | AJ19: 0
A20: Facility Maintence | B20: =VLOOKUP(A20,$A$4:$C$10,3,FALSE) -> 1000 | C20: =C19 -> 4 | D20: 4000 | E20: =E19 -> 2015-01-01 | F20: =IF(E20>0,(HLOOKUP(E20,$H$17:$AJ$18,2)),0) -> 5 | H20: =IF(I$16>($F20+22),0,IF(H$16<$F20,0,IF(H$16=$F20,$D20,IF(H$16>$F20,G20)))) -> 0 | I20: =IF(J$16>($F20+22),0,IF(I$16<$F20,0,IF(I$16=$F20,$D20,IF(I$16>$F20,H20)))) -> 0 | J20: 0 | K20: 0 | L20: 4000 | M20: 4000 | N20: 4000 | O20: 4000 | P20: 4000 | Q20: 4000 | R20: 4000 | S20: 4000 | T20: 4000 | U20: 4000 | V20: 4000 | W20: 4000 | X20: 4000 | Y20: 4000 | Z20: 4000 | AA20: 4000 | AB20: 4000 | AC20: 4000 | AD20: 4000 | AE20: 4000 | AF20: 4000 | AG20: 4000 | AH20: 0 | AI20: 0 | AJ20: 0
C21: =C20 -> 4 | F21: 0 | H21: =IF(I$16>($F21+22),0,IF(H$16<$F21,0,IF(H$16=$F21,$D21,IF(H$16>$F21,G21)))) -> 0 | I21: 0 | J21: 0 | K21: 0 | L21: 0 | M21: 0 | N21: 0 | O21: 0 | P21: 0 | Q21: 0 | R21: 0 | S21: 0 | T21: 0 | U21: 0 | V21: 0 | W21: 0 | X21: 0 | Y21: 0 | Z21: 0 | AA21: 0 | AB21: 0 | AC21: 0 | AD21: 0 | AE21: 0 | AF21: 0 | AG21: 0 | AH21: 0 | AI21: 0 | AJ21: 0
C22: 4 | F22: 0 | H22: =IF(I$16>($F22+22),0,IF(H$16<$F22,0,IF(H$16=$F22,$D22,IF(H$16>$F22,G22)))) -> 0 | I22: 0 | J22: 0 | K22: 0 | L22: 0 | M22: 0 | N22: 0 | O22: 0 | P22: 0 | Q22: 0 | R22: 0 | S22: 0 | T22: 0 | U22: 0 | V22: 0 | W22: 0 | X22: 0 | Y22: 0 | Z22: 0 | AA22: 0 | AB22: 0 | AC22: 0 | AD22: 0 | AE22: 0 | AF22: 0 | AG22: 0 | AH22: 0 | AI22: 0 | AJ22: 0
C23: 4 | F23: 0 | H23: =IF(I$16>($F23+22),0,IF(H$16<$F23,0,IF(H$16=$F23,$D23,IF(H$16>$F23,G23)))) -> 0 | I23: 0 | J23: 0 | K23: 0 | L23: 0 | M23: 0 | N23: 0 | O23: 0 | P23: 0 | Q23: 0 | R23: 0 | S23: 0 | T23: 0 | U23: 0 | V23: 0 | W23: 0 | X23: 0 | Y23: 0 | Z23: 0 | AA23: 0 | AB23: 0 | AC23: 0 | AD23: 0 | AE23: 0 | AF23: 0 | AG23: 0 | AH23: 0 | AI23: 0 | AJ23: 0
C24: 4 | D24: 0 | F24: 0 | H24: =IF(I$16>($F24+22),0,IF(H$16<$F24,0,IF(H$16=$F24,$D24,IF(H$16>$F24,G24)))) -> 0 | I24: 0 | J24: 0 | K24: 0 | L24: 0 | M24: 0 | N24: 0 | O24: 0 | P24: 0 | Q24: 0 | R24: 0 | S24: 0 | T24: 0 | U24: 0 | V24: 0 | W24: 0 | X24: 0 | Y24: 0 | Z24: 0 | AA24: 0 | AB24: 0 | AC24: 0 | AD24: 0 | AE24: 0 | AF24: 0 | AG24: 0 | AH24: 0 | AI24: 0 | AJ24: 0
B25: =VLOOKUP(A25,$A$4:$C$10,3,FALSE) ->  | C25: 1 | F25: 0 | H25: =IF(I$16>($F25+22),0,IF(H$16<$F25,0,IF(H$16=$F25,$D25,IF(H$16>$F25,G25)))) -> 0 | I25: 0 | J25: 0 | K25: 0 | L25: 0 | M25: 0 | N25: 0 | O25: 0 | P25: 0 | Q25: 0 | R25: 0 | S25: 0 | T25: 0 | U25: 0 | V25: 0 | W25: 0 | X25: 0 | Y25: 0 | Z25: 0 | AA25: 0 | AB25: 0 | AC25: 0 | AD25: 0 | AE25: 0 | AF25: 0 | AG25: 0 | AH25: 0 | AI25: 0 | AJ25: 0
C26: 1 | D26: =B26*C26 -> 0 | F26: 0 | H26: =IF(I$16>($F26+22),0,IF(H$16<$F26,0,IF(H$16=$F26,$D26,IF(H$16>$F26,G26)))) -> 0 | I26: 0 | J26: 0 | K26: 0 | L26: 0 | M26: 0 | N26: 0 | O26: 0 | P26: 0 | Q26: 0 | R26: 0 | S26: 0 | T26: 0 | U26: 0 | V26: 0 | W26: 0 | X26: 0 | Y26: 0 | Z26: 0 | AA26: 0 | AB26: 0 | AC26: 0 | AD26: 0 | AE26: 0 | AF26: 0 | AG26: 0 | AH26: 0 | AI26: 0 | AJ26: 0
F27: 0 | H27: =IF(I$16>($F27+22),0,IF(H$16<$F27,0,IF(H$16=$F27,$D27,IF(H$16>$F27,G27)))) -> 0 | I27: 0 | J27: 0 | K27: 0 | L27: 0 | M27: 0 | N27: 0 | O27: 0 | P27: 0 | Q27: 0 | R27: 0 | S27: 0 | T27: 0 | U27: 0 | V27: 0 | W27: 0 | X27: 0 | Y27: 0 | Z27: 0 | AA27: 0 | AB27: 0 | AC27: 0 | AD27: 0 | AE27: 0 | AF27: 0 | AG27: 0 | AH27: 0 | AI27: 0 | AJ27: 0
D28: =B28*C28 ->  | F28: 0 | H28: =IF(I$16>($F28+22),0,IF(H$16<$F28,0,IF(H$16=$F28,$D28,IF(H$16>$F28,G28)))) -> 0 | I28: 0 | J28: 0 | K28: 0 | L28: 0 | M28: 0 | N28: 0 | O28: 0 | P28: 0 | Q28: 0 | R28: 0 | S28: 0 | T28: 0 | U28: 0 | V28: 0 | W28: 0 | X28: 0 | Y28: 0 | Z28: 0 | AA28: 0 | AB28: 0 | AC28: 0 | AD28: 0 | AE28: 0 | AF28: 0 | AG28: 0 | AH28: 0 | AI28: 0 | AJ28: 0
D29: =B29*C29 ->  | F29: 0 | H29: =IF(I$16>($F29+22),0,IF(H$16<$F29,0,IF(H$16=$F29,$D29,IF(H$16>$F29,G29)))) -> 0 | I29: 0 | J29: 0 | K29: 0 | L29: 0 | M29: 0 | N29: 0 | O29: 0 | P29: 0 | Q29: 0 | R29: 0 | S29: 0 | T29: 0 | U29: 0 | V29: 0 | W29: 0 | X29: 0 | Y29: 0 | Z29: 0 | AA29: 0 | AB29: 0 | AC29: 0 | AD29: 0 | AE29: 0 | AF29: 0 | AG29: 0 | AH29: 0 | AI29: 0 | AJ29: 0
H30: =IF(I$16>($F30+22),0,IF(H$16<$F30,0,IF(H$16=$F30,$D30,IF(H$16>$F30,G30)))) -> 0 | I30: 0 | J30: 0 | K30: 0 | L30: 0 | M30: 0 | N30: 0 | O30: 0 | P30: 0 | Q30: 0 | R30: 0 | S30: 0 | T30: 0 | U30: 0 | V30: 0 | W30: 0 | X30: 0 | Y30: 0 | Z30: 0 | AA30: 0 | AB30: 0 | AC30: 0 | AD30: 0 | AE30: 0 | AF30: 0 | AG30: 0 | AH30: 0 | AI30: 0 | AJ30: 0
A31: Batch 2 | D31: =B31*C31 ->  | F31: 0 | H31: =IF(I$16>($F31+22),0,IF(H$16<$F31,0,IF(H$16=$F31,$D31,IF(H$16>$F31,G31)))) -> 0 | I31: 0 | J31: 0 | K31: 0 | L31: 0 | M31: 0 | N31: 0 | O31: 0 | P31: 0 | Q31: 0 | R31: 0 | S31: 0 | T31: 0 | U31: 0 | V31: 0 | W31: 0 | X31: 0 | Y31: 0 | Z31: 0 | AA31: 0 | AB31: 0 | AC31: 0 | AD31: 0 | AE31: 0 | AF31: 0 | AG31: 0 | AH31: 0 | AI31: 0 | AJ31: 0
A32: Bike Maintenance | B32: 700 | C32: =F5 -> 8 | D32: 5600 | E32: =E5 -> 2015-08-01 | F32: 12 | H32: =IF(I$16>($F32+22),0,IF(H$16<$F32,0,IF(H$16=$F32,$D32,IF(H$16>$F32,G32)))) -> 0 | I32: 0 | J32: 0 | K32: 0 | L32: 0 | M32: 0 | N32: 0 | O32: 0 | P32: 0 | Q32: 0 | R32: 0 | S32: 5600 | T32: 5600 | U32: 5600 | V32: 5600 | W32: 5600 | X32: 5600 | Y32: 5600 | Z32: 5600 | AA32: 5600 | AB32: 5600 | AC32: 5600 | AD32: 5600 | AE32: 5600 | AF32: 5600 | AG32: 5600 | AH32: 5600 | AI32: 5600 | AJ32: 5600
A33: Facility Maintence | B33: 1000 | C33: =C32 -> 8 | D33: 8000 | E33: =E32 -> 2015-08-01 | F33: 12 | H33: =IF(I$16>($F33+22),0,IF(H$16<$F33,0,IF(H$16=$F33,$D33,IF(H$16>$F33,G33)))) -> 0 | I33: 0 | J33: 0 | K33: 0 | L33: 0 | M33: 0 | N33: 0 | O33: 0 | P33: 0 | Q33: 0 | R33: 0 | S33: 8000 | T33: 8000 | U33: 8000 | V33: 8000 | W33: 8000 | X33: 8000 | Y33: 8000 | Z33: 8000 | AA33: 8000 | AB33: 8000 | AC33: 8000 | AD33: 8000 | AE33: 8000 | AF33: 8000 | AG33: 8000 | AH33: 8000 | AI33: 8000 | AJ33: 8000
C34: =C33 -> 8 | F34: 0 | H34: =IF(I$16>($F34+22),0,IF(H$16<$F34,0,IF(H$16=$F34,$D34,IF(H$16>$F34,G34)))) -> 0 | I34: 0 | J34: 0 | K34: 0 | L34: 0 | M34: 0 | N34: 0 | O34: 0 | P34: 0 | Q34: 0 | R34: 0 | S34: 0 | T34: 0 | U34: 0 | V34: 0 | W34: 0 | X34: 0 | Y34: 0 | Z34: 0 | AA34: 0 | AB34: 0 | AC34: 0 | AD34: 0 | AE34: 0 | AF34: 0 | AG34: 0 | AH34: 0 | AI34: 0 | AJ34: 0
C35: 8 | F35: 0 | H35: =IF(I$16>($F35+22),0,IF(H$16<$F35,0,IF(H$16=$F35,$D35,IF(H$16>$F35,G35)))) -> 0 | I35: 0 | J35: 0 | K35: 0 | L35: 0 | M35: 0 | N35: 0 | O35: 0 | P35: 0 | Q35: 0 | R35: 0 | S35: 0 | T35: 0 | U35: 0 | V35: 0 | W35: 0 | X35: 0 | Y35: 0 | Z35: 0 | AA35: 0 | AB35: 0 | AC35: 0 | AD35: 0 | AE35: 0 | AF35: 0 | AG35: 0 | AH35: 0 | AI35: 0 | AJ35: 0
C36: 1 | F36: 0 | H36: =IF(I$16>($F36+22),0,IF(H$16<$F36,0,IF(H$16=$F36,$D36,IF(H$16>$F36,G36)))) -> 0 | I36: 0 | J36: 0 | K36: 0 | L36: 0 | M36: 0 | N36: 0 | O36: 0 | P36: 0 | Q36: 0 | R36: 0 | S36: 0 | T36: 0 | U36: 0 | V36: 0 | W36: 0 | X36: 0 | Y36: 0 | Z36: 0 | AA36: 0 | AB36: 0 | AC36: 0 | AD36: 0 | AE36: 0 | AF36: 0 | AG36: 0 | AH36: 0 | AI36: 0 | AJ36: 0
C37: 1 | D37: 0 | F37: 0 | H37: =IF(I$16>($F37+22),0,IF(H$16<$F37,0,IF(H$16=$F37,$D37,IF(H$16>$F37,G37)))) -> 0 | I37: 0 | J37: 0 | K37: 0 | L37: 0 | M37: 0 | N37: 0 | O37: 0 | P37: 0 | Q37: 0 | R37: 0 | S37: 0 | T37: 0 | U37: 0 | V37: 0 | W37: 0 | X37: 0 | Y37: 0 | Z37: 0 | AA37: 0 | AB37: 0 | AC37: 0 | AD37: 0 | AE37: 0 | AF37: 0 | AG37: 0 | AH37: 0 | AI37: 0 | AJ37: 0
C38: 1 | F38: 0 | H38: =IF(I$16>($F38+22),0,IF(H$16<$F38,0,IF(H$16=$F38,$D38,IF(H$16>$F38,G38)))) -> 0 | I38: 0 | J38: 0 | K38: 0 | L38: 0 | M38: 0 | N38: 0 | O38: 0 | P38: 0 | Q38: 0 | R38: 0 | S38: 0 | T38: 0 | U38: 0 | V38: 0 | W38: 0 | X38: 0 | Y38: 0 | Z38: 0 | AA38: 0 | AB38: 0 | AC38: 0 | AD38: 0 | AE38: 0 | AF38: 0 | AG38: 0 | AH38: 0 | AI38: 0 | AJ38: 0
D39: 0 | F39: 0 | H39: =IF(I$16>($F39+22),0,IF(H$16<$F39,0,IF(H$16=$F39,$D39,IF(H$16>$F39,G39)))) -> 0 | I39: 0 | J39: 0 | K39: 0 | L39: 0 | M39: 0 | N39: 0 | O39: 0 | P39: 0 | Q39: 0 | R39: 0 | S39: 0 | T39: 0 | U39: 0 | V39: 0 | W39: 0 | X39: 0 | Y39: 0 | Z39: 0 | AA39: 0 | AB39: 0 | AC39: 0 | AD39: 0 | AE39: 0 | AF39: 0 | AG39: 0 | AH39: 0 | AI39: 0 | AJ39: 0
D40: 0 | F40: 0 | H40: =IF(I$16>($F40+22),0,IF(H$16<$F40,0,IF(H$16=$F40,$D40,IF(H$16>$F40,G40)))) -> 0 | I40: 0 | J40: 0 | K40: 0 | L40: 0 | M40: 0 | N40: 0 | O40: 0 | P40: 0 | Q40: 0 | R40: 0 | S40: 0 | T40: 0 | U40: 0 | V40: 0 | W40: 0 | X40: 0 | Y40: 0 | Z40: 0 | AA40: 0 | AB40: 0 | AC40: 0 | AD40: 0 | AE40: 0 | AF40: 0 | AG40: 0 | AH40: 0 | AI40: 0 | AJ40: 0
D41: 0 | F41: 0 | H41: =IF(I$16>($F41+22),0,IF(H$16<$F41,0,IF(H$16=$F41,$D41,IF(H$16>$F41,G41)))) -> 0 | I41: 0 | J41: 0 | K41: 0 | L41: 0 | M41: 0 | N41: 0 | O41: 0 | P41: 0 | Q41: 0 | R41: 0 | S41: 0 | T41: 0 | U41: 0 | V41: 0 | W41: 0 | X41: 0 | Y41: 0 | Z41: 0 | AA41: 0 | AB41: 0 | AC41: 0 | AD41: 0 | AE41: 0 | AF41: 0 | AG41: 0 | AH41: 0 | AI41: 0 | AJ41: 0
F42: 0 | H42: =IF(I$16>($F42+22),0,IF(H$16<$F42,0,IF(H$16=$F42,$D42,IF(H$16>$F42,G42)))) -> 0 | I42: 0 | J42: 0 | K42: 0 | L42: 0 | M42: 0 | N42: 0 | O42: 0 | P42: 0 | Q42: 0 | R42: 0 | S42: 0 | T42: 0 | U42: 0 | V42: 0 | W42: 0 | X42: 0 | Y42: 0 | Z42: 0 | AA42: 0 | AB42: 0 | AC42: 0 | AD42: 0 | AE42: 0 | AF42: 0 | AG42: 0 | AH42: 0 | AI42: 0 | AJ42: 0
F43: 0 | H43: =IF(I$16>($F43+22),0,IF(H$16<$F43,0,IF(H$16=$F43,$D43,IF(H$16>$F43,G43)))) -> 0 | I43: 0 | J43: 0 | K43: 0 | L43: 0 | M43: 0 | N43: 0 | O43: 0 | P43: 0 | Q43: 0 | R43: 0 | S43: 0 | T43: 0 | U43: 0 | V43: 0 | W43: 0 | X43: 0 | Y43: 0 | Z43: 0 | AA43: 0 | AB43: 0 | AC43: 0 | AD43: 0 | AE43: 0 | AF43: 0 | AG43: 0 | AH43: 0 | AI43: 0 | AJ43: 0
A44: Batch 3 | F44: 0 | H44: =IF(I$16>($F44+22),0,IF(H$16<$F44,0,IF(H$16=$F44,$D44,IF(H$16>$F44,G44)))) -> 0 | I44: 0 | J44: 0 | K44: 0 | L44: 0 | M44: 0 | N44: 0 | O44: 0 | P44: 0 | Q44: 0 | R44: 0 | S44: 0 | T44: 0 | U44: 0 | V44: 0 | W44: 0 | X44: 0 | Y44: 0 | Z44: 0 | AA44: 0 | AB44: 0 | AC44: 0 | AD44: 0 | AE44: 0 | AF44: 0 | AG44: 0 | AH44: 0 | AI44: 0 | AJ44: 0
A45: Bike Maintenance | B45: 700 | C45: =F6 -> 10 | D45: 7000 | E45: =E6 -> 2016-08-01 | F45: 24 | H45: =IF(I$16>($F45+22),0,IF(H$16<$F45,0,IF(H$16=$F45,$D45,IF(H$16>$F45,G45)))) -> 0 | I45: 0 | J45: 0 | K45: 0 | L45: 0 | M45: 0 | N45: 0 | O45: 0 | P45: 0 | Q45: 0 | R45: 0 | S45: 0 | T45: 0 | U45: 0 | V45: 0 | W45: 0 | X45: 0 | Y45: 0 | Z45: 0 | AA45: 0 | AB45: 0 | AC45: 0 | AD45: 0 | AE45: 7000 | AF45: 7000 | AG45: 7000 | AH45: 7000 | AI45: 7000 | AJ45: 7000
A46: Facility Maintence | B46: 1000 | C46: =C45 -> 10 | D46: =B46*C46 -> 10000 | E46: =E45 -> 2016-08-01 | F46: 24 | H46: =IF(I$16>($F46+22),0,IF(H$16<$F46,0,IF(H$16=$F46,$D46,IF(H$16>$F46,G46)))) -> 0 | I46: 0 | J46: 0 | K46: 0 | L46: 0 | M46: 0 | N46: 0 | O46: 0 | P46: 0 | Q46: 0 | R46: 0 | S46: 0 | T46: 0 | U46: 0 | V46: 0 | W46: 0 | X46: 0 | Y46: 0 | Z46: 0 | AA46: 0 | AB46: 0 | AC46: 0 | AD46: 0 | AE46: 10000 | AF46: 10000 | AG46: 10000 | AH46: 10000 | AI46: 10000 | AJ46: 10000
F47: 0 | H47: =IF(I$16>($F47+22),0,IF(H$16<$F47,0,IF(H$16=$F47,$D47,IF(H$16>$F47,G47)))) -> 0 | I47: 0 | J47: 0 | K47: 0 | L47: 0 | M47: 0 | N47: 0 | O47: 0 | P47: 0 | Q47: 0 | R47: 0 | S47: 0 | T47: 0 | U47: 0 | V47: 0 | W47: 0 | X47: 0 | Y47: 0 | Z47: 0 | AA47: 0 | AB47: 0 | AC47: 0 | AD47: 0 | AE47: 0 | AF47: 0 | AG47: 0 | AH47: 0 | AI47: 0 | AJ47: 0
F48: 0 | H48: =IF(I$16>($F48+22),0,IF(H$16<$F48,0,IF(H$16=$F48,$D48,IF(H$16>$F48,G48)))) -> 0 | I48: 0 | J48: 0 | K48: 0 | L48: 0 | M48: 0 | N48: 0 | O48: 0 | P48: 0 | Q48: 0 | R48: 0 | S48: 0 | T48: 0 | U48: 0 | V48: 0 | W48: 0 | X48: 0 | Y48: 0 | Z48: 0 | AA48: 0 | AB48: 0 | AC48: 0 | AD48: 0 | AE48: 0 | AF48: 0 | AG48: 0 | AH48: 0 | AI48: 0 | AJ48: 0
F49: 0 | H49: =IF(I$16>($F49+22),0,IF(H$16<$F49,0,IF(H$16=$F49,$D49,IF(H$16>$F49,G49)))) -> 0 | I49: 0 | J49: 0 | K49: 0 | L49: 0 | M49: 0 | N49: 0 | O49: 0 | P49: 0 | Q49: 0 | R49: 0 | S49: 0 | T49: 0 | U49: 0 | V49: 0 | W49: 0 | X49: 0 | Y49: 0 | Z49: 0 | AA49: 0 | AB49: 0 | AC49: 0 | AD49: 0 | AE49: 0 | AF49: 0 | AG49: 0 | AH49: 0 | AI49: 0 | AJ49: 0
D50: 0 | F50: 0 | H50: =IF(I$16>($F50+22),0,IF(H$16<$F50,0,IF(H$16=$F50,$D50,IF(H$16>$F50,G50)))) -> 0 | I50: 0 | J50: 0 | K50: 0 | L50: 0 | M50: 0 | N50: 0 | O50: 0 | P50: 0 | Q50: 0 | R50: 0 | S50: 0 | T50: 0 | U50: 0 | V50: 0 | W50: 0 | X50: 0 | Y50: 0 | Z50: 0 | AA50: 0 | AB50: 0 | AC50: 0 | AD50: 0 | AE50: 0 | AF50: 0 | AG50: 0 | AH50: 0 | AI50: 0 | AJ50: 0
F51: 0 | H51: =IF(I$16>($F51+22),0,IF(H$16<$F51,0,IF(H$16=$F51,$D51,IF(H$16>$F51,G51)))) -> 0 | I51: 0 | J51: 0 | K51: 0 | L51: 0 | M51: 0 | N51: 0 | O51: 0 | P51: 0 | Q51: 0 | R51: 0 | S51: 0 | T51: 0 | U51: 0 | V51: 0 | W51: 0 | X51: 0 | Y51: 0 | Z51: 0 | AA51: 0 | AB51: 0 | AC51: 0 | AD51: 0 | AE51: 0 | AF51: 0 | AG51: 0 | AH51: 0 | AI51: 0 | AJ51: 0
D52: 0 | F52: 0 | H52: =IF(I$16>($F52+22),0,IF(H$16<$F52,0,IF(H$16=$F52,$D52,IF(H$16>$F52,G52)))) -> 0 | I52: 0 | J52: 0 | K52: 0 | L52: 0 | M52: 0 | N52: 0 | O52: 0 | P52: 0 | Q52: 0 | R52: 0 | S52: 0 | T52: 0 | U52: 0 | V52: 0 | W52: 0 | X52: 0 | Y52: 0 | Z52: 0 | AA52: 0 | AB52: 0 | AC52: 0 | AD52: 0 | AE52: 0 | AF52: 0 | AG52: 0 | AH52: 0 | AI52: 0 | AJ52: 0
D53: 0 | F53: 0 | H53: =IF(I$16>($F53+22),0,IF(H$16<$F53,0,IF(H$16=$F53,$D53,IF(H$16>$F53,G53)))) -> 0 | I53: 0 | J53: 0 | K53: 0 | L53: 0 | M53: 0 | N53: 0 | O53: 0 | P53: 0 | Q53: 0 | R53: 0 | S53: 0 | T53: 0 | U53: 0 | V53: 0 | W53: 0 | X53: 0 | Y53: 0 | Z53: 0 | AA53: 0 | AB53: 0 | AC53: 0 | AD53: 0 | AE53: 0 | AF53: 0 | AG53: 0 | AH53: 0 | AI53: 0 | AJ53: 0
D54: =B54*C54 -> 0 | F54: 0 | H54: =IF(I$16>($F54+22),0,IF(H$16<$F54,0,IF(H$16=$F54,$D54,IF(H$16>$F54,G54)))) -> 0 | I54: 0 | J54: 0 | K54: 0 | L54: 0 | M54: 0 | N54: 0 | O54: 0 | P54: 0 | Q54: 0 | R54: 0 | S54: 0 | T54: 0 | U54: 0 | V54: 0 | W54: 0 | X54: 0 | Y54: 0 | Z54: 0 | AA54: 0 | AB54: 0 | AC54: 0 | AD54: 0 | AE54: 0 | AF54: 0 | AG54: 0 | AH54: 0 | AI54: 0 | AJ54: 0
D55: =B55*C55 ->  | F55: 0 | H55: =IF(I$16>($F55+22),0,IF(H$16<$F55,0,IF(H$16=$F55,$D55,IF(H$16>$F55,G55)))) -> 0 | I55: 0 | J55: 0 | K55: 0 | L55: 0 | M55: 0 | N55: 0 | O55: 0 | P55: 0 | Q55: 0 | R55: 0 | S55: 0 | T55: 0 | U55: 0 | V55: 0 | W55: 0 | X55: 0 | Y55: 0 | Z55: 0 | AA55: 0 | AB55: 0 | AC55: 0 | AD55: 0 | AE55: 0 | AF55: 0 | AG55: 0 | AH55: 0 | AI55: 0 | AJ55: 0
H56: =IF(I$16>($F56+22),0,IF(H$16<$F56,0,IF(H$16=$F56,$D56,IF(H$16>$F56,G56)))) -> 0 | I56: 0 | J56: 0 | K56: 0 | L56: 0 | M56: 0 | N56: 0 | O56: 0 | P56: 0 | Q56: 0 | R56: 0 | S56: 0 | T56: 0 | U56: 0 | V56: 0 | W56: 0 | X56: 0 | Y56: 0 | Z56: 0 | AA56: 0 | AB56: 0 | AC56: 0 | AD56: 0 | AE56: 0 | AF56: 0 | AG56: 0 | AH56: 0 | AI56: 0 | AJ56: 0
H57: =IF(I$16>($F57+22),0,IF(H$16<$F57,0,IF(H$16=$F57,$D57,IF(H$16>$F57,G57)))) -> 0 | I57: 0 | J57: 0 | K57: 0 | L57: 0 | M57: 0 | N57: 0 | O57: 0 | P57: 0 | Q57: 0 | R57: 0 | S57: 0 | T57: 0 | U57: 0 | V57: 0 | W57: 0 | X57: 0 | Y57: 0 | Z57: 0 | AA57: 0 | AB57: 0 | AC57: 0 | AD57: 0 | AE57: 0 | AF57: 0 | AG57: 0 | AH57: 0 | AI57: 0 | AJ57: 0
H58: =IF(I$16>($F58+22),0,IF(H$16<$F58,0,IF(H$16=$F58,$D58,IF(H$16>$F58,G58)))) -> 0 | I58: 0 | J58: 0 | K58: 0 | L58: 0 | M58: 0 | N58: 0 | O58: 0 | P58: 0 | Q58: 0 | R58: 0 | S58: 0 | T58: 0 | U58: 0 | V58: 0 | W58: 0 | X58: 0 | Y58: 0 | Z58: 0 | AA58: 0 | AB58: 0 | AC58: 0 | AD58: 0 | AE58: 0 | AF58: 0 | AG58: 0 | AH58: 0 | AI58: 0 | AJ58: 0
G59: Total | H59: =SUM(H19:H58) -> 0 | I59: =SUM(I19:I58) -> 0 | J59: 0 | K59: 0 | L59: =SUM(L19:L58) -> 6800 | M59: 6800 | N59: 6800 | O59: 6800 | P59: 6800 | Q59: 6800 | R59: 6800 | S59: 20400 | T59: 20400 | U59: 20400 | V59: 20400 | W59: 20400 | X59: 20400 | Y59: 20400 | Z59: 20400 | AA59: 20400 | AB59: 20400 | AC59: 20400 | AD59: 20400 | AE59: 37400 | AF59: 37400 | AG59: 37400 | AH59: 30600 | AI59: 30600 | AJ59: 30600

Sheet Office Supplies
A2: Item | B2: Item Price | C2: # of people | D2: # of Items | E2: Monthly Cost
A3: Print Materials | B3: 10 | C3: 1 | D3: 200 | E3: =B3*D3 -> 2000 | H3: Facility Start Dates | I3: #
A4: Stationaries | B4: 10 | C4: 1 | D4: 200 | E4: =B4*D4 -> 2000 | H4: =Assumptions!B4 -> 2015-01-01 | I4: =Assumptions!C4 -> 4
A5: Gas | B5: 80 | C5: 1 | D5: 4 | E5: =D5*B5 -> 320 | H5: =Assumptions!B5 -> 2015-08-01 | I5: =Assumptions!C5 -> 8
A6: Milk | B6: 40 | C6: 1 | D6: 3 | E6: =D6*B6 -> 120 | H6: =Assumptions!B6 -> 2016-08-01 | I6: =Assumptions!C6 -> 10
A7: Toiletries | B7: 10 | C7: 1 | D7: 10 | E7: =D7*B7 -> 100
H12: 1 | I12: 2 | J12: 3 | K12: 4 | L12: 5 | M12: 6 | N12: 7 | O12: 8 | P12: 9 | Q12: 10 | R12: 11 | S12: 12 | T12: 13 | U12: 14 | V12: 15 | W12: 16 | X12: 17 | Y12: 18 | Z12: 19 | AA12: 20 | AB12: 21 | AC12: 22 | AD12: 23 | AE12: 24 | AF12: 25 | AG12: 26 | AH12: 27 | AI12: 28 | AJ12: 29
A13: Position | B13: Monthly Cost | C13: # of Facilities | D13: Total | E13: Start Date | H13: 2014-09-01 | I13: 2014-10-01 | J13: 2014-11-01 | K13: 2014-12-01 | L13: 2015-01-01 | M13: 2015-02-01 | N13: 2015-03-01 | O13: 2015-04-01 | P13: 2015-05-01 | Q13: 2015-06-01 | R13: 2015-07-01 | S13: 2015-08-01 | T13: 2015-09-01 | U13: 2015-10-01 | V13: 2015-11-01 | W13: 2015-12-01 | X13: 2016-01-01 | Y13: 2016-02-01 | Z13: 2016-03-01 | AA13: 2016-04-01 | AB13: 2016-05-01 | AC13: 2016-06-01 | AD13: 2016-07-01 | AE13: 2016-08-01 | AF13: 2016-09-01 | AG13: 2016-10-01 | AH13: 2016-11-01 | AI13: 2016-12-01 | AJ13: 2017-01-01
H14: 1 | I14: 2 | J14: 3 | K14: 4 | L14: 5 | M14: 6 | N14: 7 | O14: 8 | P14: 9 | Q14: 10 | R14: 11 | S14: 12 | T14: 13 | U14: 14 | V14: 15 | W14: 16 | X14: 17 | Y14: 18 | Z14: 19 | AA14: 20 | AB14: 21 | AC14: 22 | AD14: 23 | AE14: 24 | AF14: 25 | AG14: 26 | AH14: 27 | AI14: 28 | AJ14: 29
A15: Print Materials | B15: =VLOOKUP(A15,$A$3:$E$7,5,FALSE) -> 2000 | C15: =I4 -> 4 | D15: =B15*C15 -> 8000 | E15: =H4 -> 2015-01-01 | F15: =IF(E15>0,(HLOOKUP(E15,$H$13:$AJ$14,2)),0) -> 5 | H15: =IF(H$12>($F15+22),0,IF(H$12<$F15,0,IF(H$12=$F15,$D15,IF(H$12>$F15,G15)))) -> 0 | I15: =IF(I$12>($F15+22),0,IF(I$12<$F15,0,IF(I$12=$F15,$D15,IF(I$12>$F15,H15)))) -> 0 | J15: 0 | K15: 0 | L15: 8000 | M15: 8000 | N15: 8000 | O15: 8000 | P15: 8000 | Q15: 8000 | R15: 8000 | S15: 8000 | T15: 8000 | U15: 8000 | V15: 8000 | W15: 8000 | X15: 8000 | Y15: 8000 | Z15: 8000 | AA15: 8000 | AB15: 8000 | AC15: 8000 | AD15: 8000 | AE15: 8000 | AF15: 8000 | AG15: 8000 | AH15: 8000 | AI15: 0 | AJ15: 0
A16: Stationaries | B16: =VLOOKUP(A16,$A$3:$E$7,5,FALSE) -> 2000 | C16: =C15 -> 4 | D16: =B16*C16 -> 8000 | E16: =E15 -> 2015-01-01 | F16: =IF(E16>0,(HLOOKUP(E16,$H$13:$AJ$14,2)),0) -> 5 | H16: =IF(H$12>($F16+22),0,IF(H$12<$F16,0,IF(H$12=$F16,$D16,IF(H$12>$F16,G16)))) -> 0 | I16: 0 | J16: 0 | K16: 0 | L16: 8000 | M16: 8000 | N16: 8000 | O16: 8000 | P16: 8000 | Q16: 8000 | R16: 8000 | S16: 8000 | T16: 8000 | U16: 8000 | V16: 8000 | W16: 8000 | X16: 8000 | Y16: 8000 | Z16: 8000 | AA16: 8000 | AB16: 8000 | AC16: 8000 | AD16: 8000 | AE16: 8000 | AF16: 8000 | AG16: 8000 | AH16: 8000 | AI16: 0 | AJ16: 0
A17: Gas | B17: 320 | C17: =C16 -> 4 | D17: =B17*C17 -> 1280 | E17: =E16 -> 2015-01-01 | F17: 5 | H17: =IF(H$12>($F17+22),0,IF(H$12<$F17,0,IF(H$12=$F17,$D17,IF(H$12>$F17,G17)))) -> 0 | I17: 0 | J17: 0 | K17: 0 | L17: 1280 | M17: 1280 | N17: 1280 | O17: 1280 | P17: 1280 | Q17: 1280 | R17: 1280 | S17: 1280 | T17: 1280 | U17: 1280 | V17: 1280 | W17: 1280 | X17: 1280 | Y17: 1280 | Z17: 1280 | AA17: 1280 | AB17: 1280 | AC17: 1280 | AD17: 1280 | AE17: 1280 | AF17: 1280 | AG17: 1280 | AH17: 1280 | AI17: 0 | AJ17: 0
A18: Milk | B18: 120 | C18: 4 | D18: 480 | E18: 2015-01-01 | F18: 5 | H18: =IF(H$12>($F18+22),0,IF(H$12<$F18,0,IF(H$12=$F18,$D18,IF(H$12>$F18,G18)))) -> 0 | I18: 0 | J18: 0 | K18: 0 | L18: 480 | M18: 480 | N18: 480 | O18: 480 | P18: 480 | Q18: 480 | R18: 480 | S18: 480 | T18: 480 | U18: 480 | V18: 480 | W18: 480 | X18: 480 | Y18: 480 | Z18: 480 | AA18: 480 | AB18: 480 | AC18: 480 | AD18: 480 | AE18: 480 | AF18: 480 | AG18: 480 | AH18: 480 | AI18: 0 | AJ18: 0
A19: Toiletries | B19: 100 | C19: 4 | D19: 400 | E19: 2015-01-01 | F19: 5 | H19: =IF(H$12>($F19+22),0,IF(H$12<$F19,0,IF(H$12=$F19,$D19,IF(H$12>$F19,G19)))) -> 0 | I19: 0 | J19: 0 | K19: 0 | L19: 400 | M19: 400 | N19: 400 | O19: 400 | P19: 400 | Q19: 400 | R19: 400 | S19: 400 | T19: 400 | U19: 400 | V19: 400 | W19: 400 | X19: 400 | Y19: 400 | Z19: 400 | AA19: 400 | AB19: 400 | AC19: 400 | AD19: 400 | AE19: 400 | AF19: 400 | AG19: 400 | AH19: 400 | AI19: 0 | AJ19: 0
F20: 0 | H20: =IF(H$12>($F20+22),0,IF(H$12<$F20,0,IF(H$12=$F20,$D20,IF(H$12>$F20,G20)))) -> 0 | I20: 0 | J20: 0 | K20: 0 | L20: 0 | M20: 0 | N20: 0 | O20: 0 | P20: 0 | Q20: 0 | R20: 0 | S20: 0 | T20: 0 | U20: 0 | V20: 0 | W20: 0 | X20: 0 | Y20: 0 | Z20: 0 | AA20: 0 | AB20: 0 | AC20: 0 | AD20: 0 | AE20: 0 | AF20: 0 | AG20: 0 | AH20: 0 | AI20: 0 | AJ20: 0
D21: =B21*C21 ->  | F21: 0 | H21: =IF(H$12>($F21+22),0,IF(H$12<$F21,0,IF(H$12=$F21,$D21,IF(H$12>$F21,G21)))) -> 0 | I21: 0 | J21: 0 | K21: 0 | L21: 0 | M21: 0 | N21: 0 | O21: 0 | P21: 0 | Q21: 0 | R21: 0 | S21: 0 | T21: 0 | U21: 0 | V21: 0 | W21: 0 | X21: 0 | Y21: 0 | Z21: 0 | AA21: 0 | AB21: 0 | AC21: 0 | AD21: 0 | AE21: 0 | AF21: 0 | AG21: 0 | AH21: 0 | AI21: 0 | AJ21: 0
F22: =IF(E22>0,(HLOOKUP(E22,$H$13:$AJ$14,2)),0) -> 0 | H22: =IF(H$12>($F22+22),0,IF(H$12<$F22,0,IF(H$12=$F22,$D22,IF(H$12>$F22,G22)))) -> 0 | I22: 0 | J22: 0 | K22: 0 | L22: 0 | M22: 0 | N22: 0 | O22: 0 | P22: 0 | Q22: 0 | R22: 0 | S22: 0 | T22: 0 | U22: 0 | V22: 0 | W22: 0 | X22: 0 | Y22: 0 | Z22: 0 | AA22: 0 | AB22: 0 | AC22: 0 | AD22: 0 | AE22: 0 | AF22: 0 | AG22: 0 | AH22: 0 | AI22: 0 | AJ22: 0
F23: 0 | H23: =IF(H$12>($F23+22),0,IF(H$12<$F23,0,IF(H$12=$F23,$D23,IF(H$12>$F23,G23)))) -> 0 | I23: 0 | J23: 0 | K23: 0 | L23: 0 | M23: 0 | N23: 0 | O23: 0 | P23: 0 | Q23: 0 | R23: 0 | S23: 0 | T23: 0 | U23: 0 | V23: 0 | W23: 0 | X23: 0 | Y23: 0 | Z23: 0 | AA23: 0 | AB23: 0 | AC23: 0 | AD23: 0 | AE23: 0 | AF23: 0 | AG23: 0 | AH23: 0 | AI23: 0 | AJ23: 0
F24: 0 | H24: =IF(H$12>($F24+22),0,IF(H$12<$F24,0,IF(H$12=$F24,$D24,IF(H$12>$F24,G24)))) -> 0 | I24: 0 | J24: 0 | K24: 0 | L24: 0 | M24: 0 | N24: 0 | O24: 0 | P24: 0 | Q24: 0 | R24: 0 | S24: 0 | T24: 0 | U24: 0 | V24: 0 | W24: 0 | X24: 0 | Y24: 0 | Z24: 0 | AA24: 0 | AB24: 0 | AC24: 0 | AD24: 0 | AE24: 0 | AF24: 0 | AG24: 0 | AH24: 0 | AI24: 0 | AJ24: 0
F25: 0 | H25: =IF(H$12>($F25+22),0,IF(H$12<$F25,0,IF(H$12=$F25,$D25,IF(H$12>$F25,G25)))) -> 0 | I25: 0 | J25: 0 | K25: 0 | L25: 0 | M25: 0 | N25: 0 | O25: 0 | P25: 0 | Q25: 0 | R25: 0 | S25: 0 | T25: 0 | U25: 0 | V25: 0 | W25: 0 | X25: 0 | Y25: 0 | Z25: 0 | AA25: 0 | AB25: 0 | AC25: 0 | AD25: 0 | AE25: 0 | AF25: 0 | AG25: 0 | AH25: 0 | AI25: 0 | AJ25: 0
A26: Print Materials | B26: 2000 | C26: =I5 -> 8 | D26: 16000 | E26: =H5 -> 2015-08-01 | F26: 12 | H26: =IF(H$12>($F26+22),0,IF(H$12<$F26,0,IF(H$12=$F26,$D26,IF(H$12>$F26,G26)))) -> 0 | I26: 0 | J26: 0 | K26: 0 | L26: 0 | M26: 0 | N26: 0 | O26: 0 | P26: 0 | Q26: 0 | R26: 0 | S26: 16000 | T26: 16000 | U26: 16000 | V26: 16000 | W26: 16000 | X26: 16000 | Y26: 16000 | Z26: 16000 | AA26: 16000 | AB26: 16000 | AC26: 16000 | AD26: 16000 | AE26: 16000 | AF26: 16000 | AG26: 16000 | AH26: 16000 | AI26: 16000 | AJ26: 16000
A27: Stationaries | B27: 2000 | C27: =C26 -> 8 | D27: 16000 | E27: =E26 -> 2015-08-01 | F27: 12 | H27: =IF(H$12>($F27+22),0,IF(H$12<$F27,0,IF(H$12=$F27,$D27,IF(H$12>$F27,G27)))) -> 0 | I27: 0 | J27: 0 | K27: 0 | L27: 0 | M27: 0 | N27: 0 | O27: 0 | P27: 0 | Q27: 0 | R27: 0 | S27: 16000 | T27: 16000 | U27: 16000 | V27: 16000 | W27: 16000 | X27: 16000 | Y27: 16000 | Z27: 16000 | AA27: 16000 | AB27: 16000 | AC27: 16000 | AD27: 16000 | AE27: 16000 | AF27: 16000 | AG27: 16000 | AH27: 16000 | AI27: 16000 | AJ27: 16000
A28: Gas | B28: 320 | C28: =C27 -> 8 | D28: 2560 | E28: =E27 -> 2015-08-01 | F28: 12 | H28: =IF(H$12>($F28+22),0,IF(H$12<$F28,0,IF(H$12=$F28,$D28,IF(H$12>$F28,G28)))) -> 0 | I28: 0 | J28: 0 | K28: 0 | L28: 0 | M28: 0 | N28: 0 | O28: 0 | P28: 0 | Q28: 0 | R28: 0 | S28: 2560 | T28: 2560 | U28: 2560 | V28: 2560 | W28: 2560 | X28: 2560 | Y28: 2560 | Z28: 2560 | AA28: 2560 | AB28: 2560 | AC28: 2560 | AD28: 2560 | AE28: 2560 | AF28: 2560 | AG28: 2560 | AH28: 2560 | AI28: 2560 | AJ28: 2560
A29: Milk | B29: 120 | C29: =C28 -> 8 | D29: 960 | E29: =E28 -> 2015-08-01 | F29: 12 | H29: =IF(H$12>($F29+22),0,IF(H$12<$F29,0,IF(H$12=$F29,$D29,IF(H$12>$F29,G29)))) -> 0 | I29: 0 | J29: 0 | K29: 0 | L29: 0 | M29: 0 | N29: 0 | O29: 0 | P29: 0 | Q29: 0 | R29: 0 | S29: 960 | T29: 960 | U29: 960 | V29: 960 | W29: 960 | X29: 960 | Y29: 960 | Z29: 960 | AA29: 960 | AB29: 960 | AC29: 960 | AD29: 960 | AE29: 960 | AF29: 960 | AG29: 960 | AH29: 960 | AI29: 960 | AJ29: 960
A30: Toiletries | B30: 100 | C30: =C29 -> 8 | D30: 800 | E30: =E29 -> 2015-08-01 | F30: 12 | H30: =IF(H$12>($F30+22),0,IF(H$12<$F30,0,IF(H$12=$F30,$D30,IF(H$12>$F30,G30)))) -> 0 | I30: 0 | J30: 0 | K30: 0 | L30: 0 | M30: 0 | N30: 0 | O30: 0 | P30: 0 | Q30: 0 | R30: 0 | S30: 800 | T30: 800 | U30: 800 | V30: 800 | W30: 800 | X30: 800 | Y30: 800 | Z30: 800 | AA30: 800 | AB30: 800 | AC30: 800 | AD30: 800 | AE30: 800 | AF30: 800 | AG30: 800 | AH30: 800 | AI30: 800 | AJ30: 800
F31: 0 | H31: =IF(H$12>($F31+22),0,IF(H$12<$F31,0,IF(H$12=$F31,$D31,IF(H$12>$F31,G31)))) -> 0 | I31: 0 | J31: 0 | K31: 0 | L31: 0 | M31: 0 | N31: 0 | O31: 0 | P31: 0 | Q31: 0 | R31: 0 | S31: 0 | T31: 0 | U31: 0 | V31: 0 | W31: 0 | X31: 0 | Y31: 0 | Z31: 0 | AA31: 0 | AB31: 0 | AC31: 0 | AD31: 0 | AE31: 0 | AF31: 0 | AG31: 0 | AH31: 0 | AI31: 0 | AJ31: 0
F32: 0 | H32: =IF(H$12>($F32+22),0,IF(H$12<$F32,0,IF(H$12=$F32,$D32,IF(H$12>$F32,G32)))) -> 0 | I32: 0 | J32: 0 | K32: 0 | L32: 0 | M32: 0 | N32: 0 | O32: 0 | P32: 0 | Q32: 0 | R32: 0 | S32: 0 | T32: 0 | U32: 0 | V32: 0 | W32: 0 | X32: 0 | Y32: 0 | Z32: 0 | AA32: 0 | AB32: 0 | AC32: 0 | AD32: 0 | AE32: 0 | AF32: 0 | AG32: 0 | AH32: 0 | AI32: 0 | AJ32: 0
F33: 0 | H33: =IF(H$12>($F33+22),0,IF(H$12<$F33,0,IF(H$12=$F33,$D33,IF(H$12>$F33,G33)))) -> 0 | I33: 0 | J33: 0 | K33: 0 | L33: 0 | M33: 0 | N33: 0 | O33: 0 | P33: 0 | Q33: 0 | R33: 0 | S33: 0 | T33: 0 | U33: 0 | V33: 0 | W33: 0 | X33: 0 | Y33: 0 | Z33: 0 | AA33: 0 | AB33: 0 | AC33: 0 | AD33: 0 | AE33: 0 | AF33: 0 | AG33: 0 | AH33: 0 | AI33: 0 | AJ33: 0
F34: 0 | H34: =IF(H$12>($F34+22),0,IF(H$12<$F34,0,IF(H$12=$F34,$D34,IF(H$12>$F34,G34)))) -> 0 | I34: 0 | J34: 0 | K34: 0 | L34: 0 | M34: 0 | N34: 0 | O34: 0 | P34: 0 | Q34: 0 | R34: 0 | S34: 0 | T34: 0 | U34: 0 | V34: 0 | W34: 0 | X34: 0 | Y34: 0 | Z34: 0 | AA34: 0 | AB34: 0 | AC34: 0 | AD34: 0 | AE34: 0 | AF34: 0 | AG34: 0 | AH34: 0 | AI34: 0 | AJ34: 0
F35: 0 | H35: =IF(H$12>($F35+22),0,IF(H$12<$F35,0,IF(H$12=$F35,$D35,IF(H$12>$F35,G35)))) -> 0 | I35: 0 | J35: 0 | K35: 0 | L35: 0 | M35: 0 | N35: 0 | O35: 0 | P35: 0 | Q35: 0 | R35: 0 | S35: 0 | T35: 0 | U35: 0 | V35: 0 | W35: 0 | X35: 0 | Y35: 0 | Z35: 0 | AA35: 0 | AB35: 0 | AC35: 0 | AD35: 0 | AE35: 0 | AF35: 0 | AG35: 0 | AH35: 0 | AI35: 0 | AJ35: 0
F36: 0 | H36: =IF(H$12>($F36+22),0,IF(H$12<$F36,0,IF(H$12=$F36,$D36,IF(H$12>$F36,G36)))) -> 0 | I36: 0 | J36: 0 | K36: 0 | L36: 0 | M36: 0 | N36: 0 | O36: 0 | P36: 0 | Q36: 0 | R36: 0 | S36: 0 | T36: 0 | U36: 0 | V36: 0 | W36: 0 | X36: 0 | Y36: 0 | Z36: 0 | AA36: 0 | AB36: 0 | AC36: 0 | AD36: 0 | AE36: 0 | AF36: 0 | AG36: 0 | AH36: 0 | AI36: 0 | AJ36: 0
A37: Print Materials | B37: 2000 | C37: =I6 -> 10 | D37: 20000 | E37: =H6 -> 2016-08-01 | F37: 24 | H37: =IF(H$12>($F37+22),0,IF(H$12<$F37,0,IF(H$12=$F37,$D37,IF(H$12>$F37,G37)))) -> 0 | I37: 0 | J37: 0 | K37: 0 | L37: 0 | M37: 0 | N37: 0 | O37: 0 | P37: 0 | Q37: 0 | R37: 0 | S37: 0 | T37: 0 | U37: 0 | V37: 0 | W37: 0 | X37: 0 | Y37: 0 | Z37: 0 | AA37: 0 | AB37: 0 | AC37: 0 | AD37: 0 | AE37: 20000 | AF37: 20000 | AG37: 20000 | AH37: 20000 | AI37: 20000 | AJ37: 20000
A38: Stationaries | B38: 2000 | C38: =C37 -> 10 | D38: 20000 | E38: =E37 -> 2016-08-01 | F38: 24 | H38: =IF(H$12>($F38+22),0,IF(H$12<$F38,0,IF(H$12=$F38,$D38,IF(H$12>$F38,G38)))) -> 0 | I38: 0 | J38: 0 | K38: 0 | L38: 0 | M38: 0 | N38: 0 | O38: 0 | P38: 0 | Q38: 0 | R38: 0 | S38: 0 | T38: 0 | U38: 0 | V38: 0 | W38: 0 | X38: 0 | Y38: 0 | Z38: 0 | AA38: 0 | AB38: 0 | AC38: 0 | AD38: 0 | AE38: 20000 | AF38: 20000 | AG38: 20000 | AH38: 20000 | AI38: 20000 | AJ38: 20000
A39: Gas | B39: 320 | C39: =C38 -> 10 | D39: 3200 | E39: =E38 -> 2016-08-01 | F39: 24 | H39: =IF(H$12>($F39+22),0,IF(H$12<$F39,0,IF(H$12=$F39,$D39,IF(H$12>$F39,G39)))) -> 0 | I39: 0 | J39: 0 | K39: 0 | L39: 0 | M39: 0 | N39: 0 | O39: 0 | P39: 0 | Q39: 0 | R39: 0 | S39: 0 | T39: 0 | U39: 0 | V39: 0 | W39: 0 | X39: 0 | Y39: 0 | Z39: 0 | AA39: 0 | AB39: 0 | AC39: 0 | AD39: 0 | AE39: 3200 | AF39: 3200 | AG39: 3200 | AH39: 3200 | AI39: 3200 | AJ39: 3200
A40: Milk | B40: 120 | C40: 10 | D40: 1200 | E40: =E39 -> 2016-08-01 | F40: 24 | H40: =IF(H$12>($F40+22),0,IF(H$12<$F40,0,IF(H$12=$F40,$D40,IF(H$12>$F40,G40)))) -> 0 | I40: 0 | J40: 0 | K40: 0 | L40: 0 | M40: 0 | N40: 0 | O40: 0 | P40: 0 | Q40: 0 | R40: 0 | S40: 0 | T40: 0 | U40: 0 | V40: 0 | W40: 0 | X40: 0 | Y40: 0 | Z40: 0 | AA40: 0 | AB40: 0 | AC40: 0 | AD40: 0 | AE40: 1200 | AF40: 1200 | AG40: 1200 | AH40: 1200 | AI40: 1200 | AJ40: 1200
A41: Toiletries | B41: 100 | C41: 10 | D41: 1000 | E41: 2016-08-01 | F41: 24 | H41: =IF(H$12>($F41+22),0,IF(H$12<$F41,0,IF(H$12=$F41,$D41,IF(H$12>$F41,G41)))) -> 0 | I41: 0 | J41: 0 | K41: 0 | L41: 0 | M41: 0 | N41: 0 | O41: 0 | P41: 0 | Q41: 0 | R41: 0 | S41: 0 | T41: 0 | U41: 0 | V41: 0 | W41: 0 | X41: 0 | Y41: 0 | Z41: 0 | AA41: 0 | AB41: 0 | AC41: 0 | AD41: 0 | AE41: 1000 | AF41: 1000 | AG41: 1000 | AH41: 1000 | AI41: 1000 | AJ41: 1000
F42: 0 | H42: =IF(H$12>($F42+22),0,IF(H$12<$F42,0,IF(H$12=$F42,$D42,IF(H$12>$F42,G42)))) -> 0 | I42: 0 | J42: 0 | K42: 0 | L42: 0 | M42: 0 | N42: 0 | O42: 0 | P42: 0 | Q42: 0 | R42: 0 | S42: 0 | T42: 0 | U42: 0 | V42: 0 | W42: 0 | X42: 0 | Y42: 0 | Z42: 0 | AA42: 0 | AB42: 0 | AC42: 0 | AD42: 0 | AE42: 0 | AF42: 0 | AG42: 0 | AH42: 0 | AI42: 0 | AJ42: 0
F43: 0 | H43: =IF(H$12>($F43+22),0,IF(H$12<$F43,0,IF(H$12=$F43,$D43,IF(H$12>$F43,G43)))) -> 0 | I43: 0 | J43: 0 | K43: 0 | L43: 0 | M43: 0 | N43: 0 | O43: 0 | P43: 0 | Q43: 0 | R43: 0 | S43: 0 | T43: 0 | U43: 0 | V43: 0 | W43: 0 | X43: 0 | Y43: 0 | Z43: 0 | AA43: 0 | AB43: 0 | AC43: 0 | AD43: 0 | AE43: 0 | AF43: 0 | AG43: 0 | AH43: 0 | AI43: 0 | AJ43: 0
F44: 0 | H44: =IF(H$12>($F44+22),0,IF(H$12<$F44,0,IF(H$12=$F44,$D44,IF(H$12>$F44,G44)))) -> 0 | I44: 0 | J44: 0 | K44: 0 | L44: 0 | M44: 0 | N44: 0 | O44: 0 | P44: 0 | Q44: 0 | R44: 0 | S44: 0 | T44: 0 | U44: 0 | V44: 0 | W44: 0 | X44: 0 | Y44: 0 | Z44: 0 | AA44: 0 | AB44: 0 | AC44: 0 | AD44: 0 | AE44: 0 | AF44: 0 | AG44: 0 | AH44: 0 | AI44: 0 | AJ44: 0
F45: 0 | H45: =IF(H$12>($F45+22),0,IF(H$12<$F45,0,IF(H$12=$F45,$D45,IF(H$12>$F45,G45)))) -> 0 | I45: 0 | J45: 0 | K45: 0 | L45: 0 | M45: 0 | N45: 0 | O45: 0 | P45: 0 | Q45: 0 | R45: 0 | S45: 0 | T45: 0 | U45: 0 | V45: 0 | W45: 0 | X45: 0 | Y45: 0 | Z45: 0 | AA45: 0 | AB45: 0 | AC45: 0 | AD45: 0 | AE45: 0 | AF45: 0 | AG45: 0 | AH45: 0 | AI45: 0 | AJ45: 0
H46: =IF(H$12>($F46+22),0,IF(H$12<$F46,0,IF(H$12=$F46,$D46,IF(H$12>$F46,G46)))) -> 0 | I46: 0 | J46: 0 | K46: 0 | L46: 0 | M46: 0 | N46: 0 | O46: 0 | P46: 0 | Q46: 0 | R46: 0 | S46: 0 | T46: 0 | U46: 0 | V46: 0 | W46: 0 | X46: 0 | Y46: 0 | Z46: 0 | AA46: 0 | AB46: 0 | AC46: 0 | AD46: 0 | AE46: 0 | AF46: 0 | AG46: 0 | AH46: 0 | AI46: 0 | AJ46: 0
H47: =IF(H$12>($F47+22),0,IF(H$12<$F47,0,IF(H$12=$F47,$D47,IF(H$12>$F47,G47)))) -> 0 | I47: 0 | J47: 0 | K47: 0 | L47: 0 | M47: 0 | N47: 0 | O47: 0 | P47: 0 | Q47: 0 | R47: 0 | S47: 0 | T47: 0 | U47: 0 | V47: 0 | W47: 0 | X47: 0 | Y47: 0 | Z47: 0 | AA47: 0 | AB47: 0 | AC47: 0 | AD47: 0 | AE47: 0 | AF47: 0 | AG47: 0 | AH47: 0 | AI47: 0 | AJ47: 0
H48: =IF(H$12>($F48+22),0,IF(H$12<$F48,0,IF(H$12=$F48,$D48,IF(H$12>$F48,G48)))) -> 0 | I48: 0 | J48: 0 | K48: 0 | L48: 0 | M48: 0 | N48: 0 | O48: 0 | P48: 0 | Q48: 0 | R48: 0 | S48: 0 | T48: 0 | U48: 0 | V48: 0 | W48: 0 | X48: 0 | Y48: 0 | Z48: 0 | AA48: 0 | AB48: 0 | AC48: 0 | AD48: 0 | AE48: 0 | AF48: 0 | AG48: 0 | AH48: 0 | AI48: 0 | AJ48: 0
G49: Total | H49: =SUM(H15:H48) -> 0 | I49: =SUM(I15:I48) -> 0 | J49: 0 | K49: 0 | L49: =SUM(L15:L48) -> 18160 | M49: 18160 | N49: 18160 | O49: 18160 | P49: 18160 | Q49: 18160 | R49: 18160 | S49: 54480 | T49: 54480 | U49: 54480 | V49: 54480 | W49: 54480 | X49: 54480 | Y49: 54480 | Z49: 54480 | AA49: 54480 | AB49: 54480 | AC49: 54480 | AD49: 54480 | AE49: 99880 | AF49: 99880 | AG49: 99880 | AH49: 99880 | AI49: 81720 | AJ49: 81720

Sheet Salaries
B2: Assumptions
B3: Position | C3: Salary
B4: Core Team | C4: 25000
B5: BPO | C5: 17000 | F5: =30000/24 -> 1250
B6: Media Analyst | C6: 8000
B7: Village Visionary | C7: =9000-F5 -> 7750
B8: Division Coord | C8: 25000
H12: 1 | I12: 2 | J12: 3 | K12: 4 | L12: 5 | M12: 6 | N12: 7 | O12: 8 | P12: 9 | Q12: 10 | R12: 11 | S12: 12 | T12: 13 | U12: 14 | V12: 15 | W12: 16 | X12: 17 | Y12: 18 | Z12: 19 | AA12: 20 | AB12: 21 | AC12: 22 | AD12: 23 | AE12: 24 | AF12: 25 | AG12: 26 | AH12: 27 | AI12: 28 | AJ12: 29
A13: Position | B13: Salary | C13: # in Role | D13: Total | E13: Start Date | H13: 2014-09-01 | I13: 2014-10-01 | J13: 2014-11-01 | K13: 2014-12-01 | L13: 2015-01-01 | M13: 2015-02-01 | N13: 2015-03-01 | O13: 2015-04-01 | P13: 2015-05-01 | Q13: 2015-06-01 | R13: 2015-07-01 | S13: 2015-08-01 | T13: 2015-09-01 | U13: 2015-10-01 | V13: 2015-11-01 | W13: 2015-12-01 | X13: 2016-01-01 | Y13: 2016-02-01 | Z13: 2016-03-01 | AA13: 2016-04-01 | AB13: 2016-05-01 | AC13: 2016-06-01 | AD13: 2016-07-01 | AE13: 2016-08-01 | AF13: 2016-09-01 | AG13: 2016-10-01 | AH13: 2016-11-01 | AI13: 2016-12-01 | AJ13: 2017-01-01
H14: 1 | I14: 2 | J14: 3 | K14: 4 | L14: 5 | M14: 6 | N14: 7 | O14: 8 | P14: 9 | Q14: 10 | R14: 11 | S14: 12 | T14: 13 | U14: 14 | V14: 15 | W14: 16 | X14: 17 | Y14: 18 | Z14: 19 | AA14: 20 | AB14: 21 | AC14: 22 | AD14: 23 | AE14: 24 | AF14: 25 | AG14: 26 | AH14: 27 | AI14: 28 | AJ14: 29
A15: Core Team | B15: =VLOOKUP(A15,$B$4:$C$8,2,FALSE) -> 25000 | C15: 4 | D15: =B15*C15 -> 100000 | E15: 2014-12-01 | F15: =IF(E15>0,(HLOOKUP(E15,$H$13:$AJ$14,2)),0) -> 4 | H15: =IF(H$12<$F15,0,IF(H$12=$F15,$D15,IF(H$12>$F15,G15))) -> 0 | I15: 0 | J15: 0 | K15: 100000 | L15: 100000 | M15: 100000 | N15: 100000 | O15: 100000 | P15: 100000 | Q15: 100000 | R15: 100000 | S15: 100000 | T15: 100000 | U15: 100000 | V15: 100000 | W15: 100000 | X15: 100000 | Y15: 100000 | Z15: 100000 | AA15: 100000 | AB15: 100000 | AC15: 100000 | AD15: 100000 | AE15: 100000 | AF15: 100000 | AG15: 100000 | AH15: 100000 | AI15: 100000 | AJ15: 100000
A16: BPO | B16: =VLOOKUP(A16,$B$4:$C$8,2,FALSE) -> 17000 | C16: 4 | D16: =B16*C16 -> 68000 | E16: 2014-12-01 | F16: =IF(E16>0,(HLOOKUP(E16,$H$13:$AJ$14,2)),0) -> 4 | H16: =IF(H$12<$F16,0,IF(H$12=$F16,$D16,IF(H$12>$F16,G16))) -> 0 | I16: 0 | J16: 0 | K16: 68000 | L16: 68000 | M16: 68000 | N16: 68000 | O16: 68000 | P16: 68000 | Q16: 68000 | R16: 68000 | S16: 68000 | T16: 68000 | U16: 68000 | V16: 68000 | W16: 68000 | X16: 68000 | Y16: 68000 | Z16: 68000 | AA16: 68000 | AB16: 68000 | AC16: 68000 | AD16: 68000 | AE16: 68000 | AF16: 68000 | AG16: 68000 | AH16: 68000 | AI16: 68000 | AJ16: 68000
A17: Media Analyst | B17: =VLOOKUP(A17,$B$4:$C$8,2,FALSE) -> 8000 | C17: 2 | D17: 16000 | E17: 2014-12-01 | F17: 4 | H17: =IF(H$12<$F17,0,IF(H$12=$F17,$D17,IF(H$12>$F17,G17))) -> 0 | I17: 0 | J17: 0 | K17: 16000 | L17: 16000 | M17: 16000 | N17: 16000 | O17: 16000 | P17: 16000 | Q17: 16000 | R17: 16000 | S17: 16000 | T17: 16000 | U17: 16000 | V17: 16000 | W17: 16000 | X17: 16000 | Y17: 16000 | Z17: 16000 | AA17: 16000 | AB17: 16000 | AC17: 16000 | AD17: 16000 | AE17: 16000 | AF17: 16000 | AG17: 16000 | AH17: 16000 | AI17: 16000 | AJ17: 16000
A18: Village Visionary | B18: =VLOOKUP(A18,$B$4:$C$8,2,FALSE) -> 7750 | C18: 24 | D18: 186000 | E18: 2015-02-01 | F18: 6 | H18: =IF(H$12<$F18,0,IF(H$12=$F18,$D18,IF(H$12>$F18,G18))) -> 0 | I18: 0 | J18: 0 | K18: 0 | L18: 0 | M18: 186000 | N18: 186000 | O18: 186000 | P18: 186000 | Q18: 186000 | R18: 186000 | S18: 186000 | T18: 186000 | U18: 186000 | V18: 186000 | W18: 186000 | X18: 186000 | Y18: 186000 | Z18: 186000 | AA18: 186000 | AB18: 186000 | AC18: 186000 | AD18: 186000 | AE18: 186000 | AF18: 186000 | AG18: 186000 | AH18: 186000 | AI18: 186000 | AJ18: 186000
A19: BPO | B19: =VLOOKUP(A19,$B$4:$C$8,2,FALSE) -> 17000 | C19: 8 | D19: 136000 | E19: 2015-06-01 | F19: 10 | H19: =IF(H$12<$F19,0,IF(H$12=$F19,$D19,IF(H$12>$F19,G19))) -> 0 | I19: 0 | J19: 0 | K19: 0 | L19: 0 | M19: 0 | N19: 0 | O19: 0 | P19: 0 | Q19: 136000 | R19: 136000 | S19: 136000 | T19: 136000 | U19: 136000 | V19: 136000 | W19: 136000 | X19: 136000 | Y19: 136000 | Z19: 136000 | AA19: 136000 | AB19: 136000 | AC19: 136000 | AD19: 136000 | AE19: 136000 | AF19: 136000 | AG19: 136000 | AH19: 136000 | AI19: 136000 | AJ19: 136000
A20: Village Visionary | B20: =VLOOKUP(A20,$B$4:$C$8,2,FALSE) -> 7750 | C20: 48 | D20: 372000 | E20: 2015-08-01 | F20: 12 | H20: =IF(H$12<$F20,0,IF(H$12=$F20,$D20,IF(H$12>$F20,G20))) -> 0 | I20: 0 | J20: 0 | K20: 0 | L20: 0 | M20: 0 | N20: 0 | O20: 0 | P20: 0 | Q20: 0 | R20: 0 | S20: 372000 | T20: 372000 | U20: 372000 | V20: 372000 | W20: 372000 | X20: 372000 | Y20: 372000 | Z20: 372000 | AA20: 372000 | AB20: 372000 | AC20: 372000 | AD20: 372000 | AE20: 372000 | AF20: 372000 | AG20: 372000 | AH20: 372000 | AI20: 372000 | AJ20: 372000
A21: BPO | B21: 17000 | C21: 10 | D21: 170000 | E21: 2016-06-01 | F21: 22 | H21: =IF(H$12<$F21,0,IF(H$12=$F21,$D21,IF(H$12>$F21,G21))) -> 0 | I21: 0 | J21: 0 | K21: 0 | L21: 0 | M21: 0 | N21: 0 | O21: 0 | P21: 0 | Q21: 0 | R21: 0 | S21: 0 | T21: 0 | U21: 0 | V21: 0 | W21: 0 | X21: 0 | Y21: 0 | Z21: 0 | AA21: 0 | AB21: 0 | AC21: 170000 | AD21: 170000 | AE21: 170000 | AF21: 170000 | AG21: 170000 | AH21: 170000 | AI21: 170000 | AJ21: 170000
A22: Village Visionary | B22: 7750 | C22: 60 | D22: 465000 | E22: 2016-08-01 | F22: 24 | H22: =IF(H$12<$F22,0,IF(H$12=$F22,$D22,IF(H$12>$F22,G22))) -> 0 | I22: 0 | J22: 0 | K22: 0 | L22: 0 | M22: 0 | N22: 0 | O22: 0 | P22: 0 | Q22: 0 | R22: 0 | S22: 0 | T22: 0 | U22: 0 | V22: 0 | W22: 0 | X22: 0 | Y22: 0 | Z22: 0 | AA22: 0 | AB22: 0 | AC22: 0 | AD22: 0 | AE22: 465000 | AF22: 465000 | AG22: 465000 | AH22: 465000 | AI22: 465000 | AJ22: 465000
F23: 0 | H23: =IF(H$12<$F23,0,IF(H$12=$F23,$D23,IF(H$12>$F23,G23))) -> 0 | I23: 0 | J23: 0 | K23: 0 | L23: 0 | M23: 0 | N23: 0 | O23: 0 | P23: 0 | Q23: 0 | R23: 0 | S23: 0 | T23: 0 | U23: 0 | V23: 0 | W23: 0 | X23: 0 | Y23: 0 | Z23: 0 | AA23: 0 | AB23: 0 | AC23: 0 | AD23: 0 | AE23: 0 | AF23: 0 | AG23: 0 | AH23: 0 | AI23: 0 | AJ23: 0
F24: 0 | H24: =IF(H$12<$F24,0,IF(H$12=$F24,$D24,IF(H$12>$F24,G24))) -> 0 | I24: 0 | J24: 0 | K24: 0 | L24: 0 | M24: 0 | N24: 0 | O24: 0 | P24: 0 | Q24: 0 | R24: 0 | S24: 0 | T24: 0 | U24: 0 | V24: 0 | W24: 0 | X24: 0 | Y24: 0 | Z24: 0 | AA24: 0 | AB24: 0 | AC24: 0 | AD24: 0 | AE24: 0 | AF24: 0 | AG24: 0 | AH24: 0 | AI24: 0 | AJ24: 0
F25: 0 | H25: =IF(H$12<$F25,0,IF(H$12=$F25,$D25,IF(H$12>$F25,G25))) -> 0 | I25: 0 | J25: 0 | K25: 0 | L25: 0 | M25: 0 | N25: 0 | O25: 0 | P25: 0 | Q25: 0 | R25: 0 | S25: 0 | T25: 0 | U25: 0 | V25: 0 | W25: 0 | X25: 0 | Y25: 0 | Z25: 0 | AA25: 0 | AB25: 0 | AC25: 0 | AD25: 0 | AE25: 0 | AF25: 0 | AG25: 0 | AH25: 0 | AI25: 0 | AJ25: 0
C26: 1 | F26: 0 | H26: =IF(H$12<$F26,0,IF(H$12=$F26,$D26,IF(H$12>$F26,G26))) -> 0 | I26: 0 | J26: 0 | K26: 0 | L26: 0 | M26: 0 | N26: 0 | O26: 0 | P26: 0 | Q26: 0 | R26: 0 | S26: 0 | T26: 0 | U26: 0 | V26: 0 | W26: 0 | X26: 0 | Y26: 0 | Z26: 0 | AA26: 0 | AB26: 0 | AC26: 0 | AD26: 0 | AE26: 0 | AF26: 0 | AG26: 0 | AH26: 0 | AI26: 0 | AJ26: 0
F27: 0 | H27: =IF(H$12<$F27,0,IF(H$12=$F27,$D27,IF(H$12>$F27,G27))) -> 0 | I27: 0 | J27: 0 | K27: 0 | L27: 0 | M27: 0 | N27: 0 | O27: 0 | P27: 0 | Q27: 0 | R27: 0 | S27: 0 | T27: 0 | U27: 0 | V27: 0 | W27: 0 | X27: 0 | Y27: 0 | Z27: 0 | AA27: 0 | AB27: 0 | AC27: 0 | AD27: 0 | AE27: 0 | AF27: 0 | AG27: 0 | AH27: 0 | AI27: 0 | AJ27: 0
F28: 0 | H28: =IF(H$12<$F28,0,IF(H$12=$F28,$D28,IF(H$12>$F28,G28))) -> 0 | I28: 0 | J28: 0 | K28: 0 | L28: 0 | M28: 0 | N28: 0 | O28: 0 | P28: 0 | Q28: 0 | R28: 0 | S28: 0 | T28: 0 | U28: 0 | V28: 0 | W28: 0 | X28: 0 | Y28: 0 | Z28: 0 | AA28: 0 | AB28: 0 | AC28: 0 | AD28: 0 | AE28: 0 | AF28: 0 | AG28: 0 | AH28: 0 | AI28: 0 | AJ28: 0
F29: 0 | H29: =IF(H$12<$F29,0,IF(H$12=$F29,$D29,IF(H$12>$F29,G29))) -> 0 | I29: 0 | J29: 0 | K29: 0 | L29: 0 | M29: 0 | N29: 0 | O29: 0 | P29: 0 | Q29: 0 | R29: 0 | S29: 0 | T29: 0 | U29: 0 | V29: 0 | W29: 0 | X29: 0 | Y29: 0 | Z29: 0 | AA29: 0 | AB29: 0 | AC29: 0 | AD29: 0 | AE29: 0 | AF29: 0 | AG29: 0 | AH29: 0 | AI29: 0 | AJ29: 0
F30: 0 | H30: =IF(H$12<$F30,0,IF(H$12=$F30,$D30,IF(H$12>$F30,G30))) -> 0 | I30: 0 | J30: 0 | K30: 0 | L30: 0 | M30: 0 | N30: 0 | O30: 0 | P30: 0 | Q30: 0 | R30: 0 | S30: 0 | T30: 0 | U30: 0 | V30: 0 | W30: 0 | X30: 0 | Y30: 0 | Z30: 0 | AA30: 0 | AB30: 0 | AC30: 0 | AD30: 0 | AE30: 0 | AF30: 0 | AG30: 0 | AH30: 0 | AI30: 0 | AJ30: 0
F31: 0 | H31: =IF(H$12<$F31,0,IF(H$12=$F31,$D31,IF(H$12>$F31,G31))) -> 0 | I31: 0 | J31: 0 | K31: 0 | L31: 0 | M31: 0 | N31: 0 | O31: 0 | P31: 0 | Q31: 0 | R31: 0 | S31: 0 | T31: 0 | U31: 0 | V31: 0 | W31: 0 | X31: 0 | Y31: 0 | Z31: 0 | AA31: 0 | AB31: 0 | AC31: 0 | AD31: 0 | AE31: 0 | AF31: 0 | AG31: 0 | AH31: 0 | AI31: 0 | AJ31: 0
F32: 0 | H32: =IF(H$12<$F32,0,IF(H$12=$F32,$D32,IF(H$12>$F32,G32))) -> 0 | I32: 0 | J32: 0 | K32: 0 | L32: 0 | M32: 0 | N32: 0 | O32: 0 | P32: 0 | Q32: 0 | R32: 0 | S32: 0 | T32: 0 | U32: 0 | V32: 0 | W32: 0 | X32: 0 | Y32: 0 | Z32: 0 | AA32: 0 | AB32: 0 | AC32: 0 | AD32: 0 | AE32: 0 | AF32: 0 | AG32: 0 | AH32: 0 | AI32: 0 | AJ32: 0
F33: 0 | H33: =IF(H$12<$F33,0,IF(H$12=$F33,$D33,IF(H$12>$F33,G33))) -> 0 | I33: 0 | J33: 0 | K33: 0 | L33: 0 | M33: 0 | N33: 0 | O33: 0 | P33: 0 | Q33: 0 | R33: 0 | S33: 0 | T33: 0 | U33: 0 | V33: 0 | W33: 0 | X33: 0 | Y33: 0 | Z33: 0 | AA33: 0 | AB33: 0 | AC33: 0 | AD33: 0 | AE33: 0 | AF33: 0 | AG33: 0 | AH33: 0 | AI33: 0 | AJ33: 0
F34: 0 | H34: =IF(H$12<$F34,0,IF(H$12=$F34,$D34,IF(H$12>$F34,G34))) -> 0 | I34: 0 | J34: 0 | K34: 0 | L34: 0 | M34: 0 | N34: 0 | O34: 0 | P34: 0 | Q34: 0 | R34: 0 | S34: 0 | T34: 0 | U34: 0 | V34: 0 | W34: 0 | X34: 0 | Y34: 0 | Z34: 0 | AA34: 0 | AB34: 0 | AC34: 0 | AD34: 0 | AE34: 0 | AF34: 0 | AG34: 0 | AH34: 0 | AI34: 0 | AJ34: 0
F35: 0 | H35: =IF(H$12<$F35,0,IF(H$12=$F35,$D35,IF(H$12>$F35,G35))) -> 0 | I35: 0 | J35: 0 | K35: 0 | L35: 0 | M35: 0 | N35: 0 | O35: 0 | P35: 0 | Q35: 0 | R35: 0 | S35: 0 | T35: 0 | U35: 0 | V35: 0 | W35: 0 | X35: 0 | Y35: 0 | Z35: 0 | AA35: 0 | AB35: 0 | AC35: 0 | AD35: 0 | AE35: 0 | AF35: 0 | AG35: 0 | AH35: 0 | AI35: 0 | AJ35: 0
F36: 0 | H36: =IF(H$12<$F36,0,IF(H$12=$F36,$D36,IF(H$12>$F36,G36))) -> 0 | I36: 0 | J36: 0 | K36: 0 | L36: 0 | M36: 0 | N36: 0 | O36: 0 | P36: 0 | Q36: 0 | R36: 0 | S36: 0 | T36: 0 | U36: 0 | V36: 0 | W36: 0 | X36: 0 | Y36: 0 | Z36: 0 | AA36: 0 | AB36: 0 | AC36: 0 | AD36: 0 | AE36: 0 | AF36: 0 | AG36: 0 | AH36: 0 | AI36: 0 | AJ36: 0
F37: 0 | H37: =IF(H$12<$F37,0,IF(H$12=$F37,$D37,IF(H$12>$F37,G37))) -> 0 | I37: 0 | J37: 0 | K37: 0 | L37: 0 | M37: 0 | N37: 0 | O37: 0 | P37: 0 | Q37: 0 | R37: 0 | S37: 0 | T37: 0 | U37: 0 | V37: 0 | W37: 0 | X37: 0 | Y37: 0 | Z37: 0 | AA37: 0 | AB37: 0 | AC37: 0 | AD37: 0 | AE37: 0 | AF37: 0 | AG37: 0 | AH37: 0 | AI37: 0 | AJ37: 0
H38: =IF(H$12<$F38,0,IF(H$12=$F38,$D38,IF(H$12>$F38,G38))) -> 0 | I38: 0 | J38: 0 | K38: 0 | L38: 0 | M38: 0 | N38: 0 | O38: 0 | P38: 0 | Q38: 0 | R38: 0 | S38: 0 | T38: 0 | U38: 0 | V38: 0 | W38: 0 | X38: 0 | Y38: 0 | Z38: 0 | AA38: 0 | AB38: 0 | AC38: 0 | AD38: 0 | AE38: 0 | AF38: 0 | AG38: 0 | AH38: 0 | AI38: 0 | AJ38: 0
H39: =IF(H$12<$F39,0,IF(H$12=$F39,$D39,IF(H$12>$F39,G39))) -> 0 | I39: 0 | J39: 0 | K39: 0 | L39: 0 | M39: 0 | N39: 0 | O39: 0 | P39: 0 | Q39: 0 | R39: 0 | S39: 0 | T39: 0 | U39: 0 | V39: 0 | W39: 0 | X39: 0 | Y39: 0 | Z39: 0 | AA39: 0 | AB39: 0 | AC39: 0 | AD39: 0 | AE39: 0 | AF39: 0 | AG39: 0 | AH39: 0 | AI39: 0 | AJ39: 0
H40: =IF(H$12<$F40,0,IF(H$12=$F40,$D40,IF(H$12>$F40,G40))) -> 0 | I40: 0 | J40: 0 | K40: 0 | L40: 0 | M40: 0 | N40: 0 | O40: 0 | P40: 0 | Q40: 0 | R40: 0 | S40: 0 | T40: 0 | U40: 0 | V40: 0 | W40: 0 | X40: 0 | Y40: 0 | Z40: 0 | AA40: 0 | AB40: 0 | AC40: 0 | AD40: 0 | AE40: 0 | AF40: 0 | AG40: 0 | AH40: 0 | AI40: 0 | AJ40: 0
H41: =IF(H$12<$F41,0,IF(H$12=$F41,$D41,IF(H$12>$F41,G41))) -> 0 | I41: 0 | J41: 0 | K41: 0 | L41: 0 | M41: 0 | N41: 0 | O41: 0 | P41: 0 | Q41: 0 | R41: 0 | S41: 0 | T41: 0 | U41: 0 | V41: 0 | W41: 0 | X41: 0 | Y41: 0 | Z41: 0 | AA41: 0 | AB41: 0 | AC41: 0 | AD41: 0 | AE41: 0 | AF41: 0 | AG41: 0 | AH41: 0 | AI41: 0 | AJ41: 0
H42: =IF(H$12<$F42,0,IF(H$12=$F42,$D42,IF(H$12>$F42,G42))) -> 0 | I42: 0 | J42: 0 | K42: 0 | L42: 0 | M42: 0 | N42: 0 | O42: 0 | P42: 0 | Q42: 0 | R42: 0 | S42: 0 | T42: 0 | U42: 0 | V42: 0 | W42: 0 | X42: 0 | Y42: 0 | Z42: 0 | AA42: 0 | AB42: 0 | AC42: 0 | AD42: 0 | AE42: 0 | AF42: 0 | AG42: 0 | AH42: 0 | AI42: 0 | AJ42: 0
H43: =IF(H$12<$F43,0,IF(H$12=$F43,$D43,IF(H$12>$F43,G43))) -> 0 | I43: 0 | J43: 0 | K43: 0 | L43: 0 | M43: 0 | N43: 0 | O43: 0 | P43: 0 | Q43: 0 | R43: 0 | S43: 0 | T43: 0 | U43: 0 | V43: 0 | W43: 0 | X43: 0 | Y43: 0 | Z43: 0 | AA43: 0 | AB43: 0 | AC43: 0 | AD43: 0 | AE43: 0 | AF43: 0 | AG43: 0 | AH43: 0 | AI43: 0 | AJ43: 0
H44: =IF(H$12<$F44,0,IF(H$12=$F44,$D44,IF(H$12>$F44,G44))) -> 0 | I44: 0 | J44: 0 | K44: 0 | L44: 0 | M44: 0 | N44: 0 | O44: 0 | P44: 0 | Q44: 0 | R44: 0 | S44: 0 | T44: 0 | U44: 0 | V44: 0 | W44: 0 | X44: 0 | Y44: 0 | Z44: 0 | AA44: 0 | AB44: 0 | AC44: 0 | AD44: 0 | AE44: 0 | AF44: 0 | AG44: 0 | AH44: 0 | AI44: 0 | AJ44: 0
H45: =IF(H$12<$F45,0,IF(H$12=$F45,$D45,IF(H$12>$F45,G45))) -> 0 | I45: 0 | J45: 0 | K45: 0 | L45: 0 | M45: 0 | N45: 0 | O45: 0 | P45: 0 | Q45: 0 | R45: 0 | S45: 0 | T45: 0 | U45: 0 | V45: 0 | W45: 0 | X45: 0 | Y45: 0 | Z45: 0 | AA45: 0 | AB45: 0 | AC45: 0 | AD45: 0 | AE45: 0 | AF45: 0 | AG45: 0 | AH45: 0 | AI45: 0 | AJ45: 0
H46: =IF(H$12<$F46,0,IF(H$12=$F46,$D46,IF(H$12>$F46,G46))) -> 0 | I46: 0 | J46: 0 | K46: 0 | L46: 0 | M46: 0 | N46: 0 | O46: 0 | P46: 0 | Q46: 0 | R46: 0 | S46: 0 | T46: 0 | U46: 0 | V46: 0 | W46: 0 | X46: 0 | Y46: 0 | Z46: 0 | AA46: 0 | AB46: 0 | AC46: 0 | AD46: 0 | AE46: 0 | AF46: 0 | AG46: 0 | AH46: 0 | AI46: 0 | AJ46: 0
H47: =IF(H$12<$F47,0,IF(H$12=$F47,$D47,IF(H$12>$F47,G47))) -> 0 | I47: 0 | J47: 0 | K47: 0 | L47: 0 | M47: 0 | N47: 0 | O47: 0 | P47: 0 | Q47: 0 | R47: 0 | S47: 0 | T47: 0 | U47: 0 | V47: 0 | W47: 0 | X47: 0 | Y47: 0 | Z47: 0 | AA47: 0 | AB47: 0 | AC47: 0 | AD47: 0 | AE47: 0 | AF47: 0 | AG47: 0 | AH47: 0 | AI47: 0 | AJ47: 0
H48: =IF(H$12<$F48,0,IF(H$12=$F48,$D48,IF(H$12>$F48,G48))) -> 0 | I48: 0 | J48: 0 | K48: 0 | L48: 0 | M48: 0 | N48: 0 | O48: 0 | P48: 0 | Q48: 0 | R48: 0 | S48: 0 | T48: 0 | U48: 0 | V48: 0 | W48: 0 | X48: 0 | Y48: 0 | Z48: 0 | AA48: 0 | AB48: 0 | AC48: 0 | AD48: 0 | AE48: 0 | AF48: 0 | AG48: 0 | AH48: 0 | AI48: 0 | AJ48: 0
G49: Total | H49: =SUM(H15:H48) -> 0 | I49: =SUM(I15:I48) -> 0 | J49: 0 | K49: 184000 | L49: 184000 | M49: 370000 | N49: 370000 | O49: 370000 | P49: 370000 | Q49: 506000 | R49: 506000 | S49: 878000 | T49: 878000 | U49: 878000 | V49: 878000 | W49: 878000 | X49: 878000 | Y49: 878000 | Z49: 878000 | AA49: 878000 | AB49: 878000 | AC49: 1048000 | AD49: 1048000 | AE49: 1513000 | AF49: 1513000 | AG49: 1513000 | AH49: 1513000 | AI49: 1513000 | AJ49: 1513000

Sheet Professional Services
A2: Service | B2: Cost
A3: Legal | B3: 81000 | H3: Facility Start Dates | I3: #
A4: Design | B4: 113000 | H4: =Assumptions!B4 -> 2015-01-01 | I4: =Assumptions!C4 -> 4
H5: =Assumptions!B5 -> 2015-08-01 | I5: =Assumptions!C5 -> 8
H6: =Assumptions!B6 -> 2016-08-01 | I6: =Assumptions!C6 -> 10
H12: 1 | I12: 2 | J12: 3 | K12: 4 | L12: 5 | M12: 6 | N12: 7 | O12: 8 | P12: 9 | Q12: 10 | R12: 11 | S12: 12 | T12: 13 | U12: 14 | V12: 15 | W12: 16 | X12: 17 | Y12: 18 | Z12: 19 | AA12: 20 | AB12: 21 | AC12: 22 | AD12: 23 | AE12: 24 | AF12: 25 | AG12: 26 | AH12: 27 | AI12: 28 | AJ12: 29
A13: Position | B13: Monthly Cost | C13: Frequency | D13: Total | E13: Start Date | H13: 2014-09-01 | I13: 2014-10-01 | J13: 2014-11-01 | K13: 2014-12-01 | L13: 2015-01-01 | M13: 2015-02-01 | N13: 2015-03-01 | O13: 2015-04-01 | P13: 2015-05-01 | Q13: 2015-06-01 | R13: 2015-07-01 | S13: 2015-08-01 | T13: 2015-09-01 | U13: 2015-10-01 | V13: 2015-11-01 | W13: 2015-12-01 | X13: 2016-01-01 | Y13: 2016-02-01 | Z13: 2016-03-01 | AA13: 2016-04-01 | AB13: 2016-05-01 | AC13: 2016-06-01 | AD13: 2016-07-01 | AE13: 2016-08-01 | AF13: 2016-09-01 | AG13: 2016-10-01 | AH13: 2016-11-01 | AI13: 2016-12-01 | AJ13: 2017-01-01
H14: 1 | I14: 2 | J14: 3 | K14: 4 | L14: 5 | M14: 6 | N14: 7 | O14: 8 | P14: 9 | Q14: 10 | R14: 11 | S14: 12 | T14: 13 | U14: 14 | V14: 15 | W14: 16 | X14: 17 | Y14: 18 | Z14: 19 | AA14: 20 | AB14: 21 | AC14: 22 | AD14: 23 | AE14: 24 | AF14: 25 | AG14: 26 | AH14: 27 | AI14: 28 | AJ14: 29
A15: Design | B15: =VLOOKUP(A15,$A$3:$B$4,2,FALSE) -> 113000 | C15: 1 | D15: =B15*C15 -> 113000 | E15: 2014-10-01 | F15: =IF(E15>0,(HLOOKUP(E15,$H$13:$AJ$14,2)),0) -> 2 | H15: =IF(H$12<$F15,0,IF(H$12=$F15,$D15,0)) -> 0 | I15: =IF(I$12<$F15,0,IF(I$12=$F15,$D15,0)) -> 113000 | J15: 0 | K15: 0 | L15: 0 | M15: 0 | N15: 0 | O15: 0 | P15: 0 | Q15: 0 | R15: 0 | S15: 0 | T15: 0 | U15: 0 | V15: 0 | W15: 0 | X15: 0 | Y15: =IF(Y$12<$F15,0,IF(Y$12=$F15,$D15,0)) -> 0 | Z15: 0 | AA15: 0 | AB15: 0 | AC15: 0 | AD15: 0 | AE15: 0 | AF15: 0 | AG15: 0 | AH15: 0 | AI15: 0 | AJ15: 0
A16: Legal | B16: =VLOOKUP(A16,$A$3:$B$4,2,FALSE) -> 81000 | C16: =C15 -> 1 | D16: =B16*C16 -> 81000 | E16: 2014-09-01 | F16: =IF(E16>0,(HLOOKUP(E16,$H$13:$AJ$14,2)),0) -> 1 | H16: =IF(H$12<$F16,0,IF(H$12=$F16,$D16,0)) -> 81000 | I16: 0 | J16: 0 | K16: 0 | L16: 0 | M16: 0 | N16: 0 | O16: 0 | P16: 0 | Q16: 0 | R16: 0 | S16: 0 | T16: 0 | U16: 0 | V16: 0 | W16: 0 | X16: 0 | Y16: 0 | Z16: 0 | AA16: 0 | AB16: 0 | AC16: 0 | AD16: 0 | AE16: 0 | AF16: 0 | AG16: 0 | AH16: 0 | AI16: 0 | AJ16: 0
C17: =C16 -> 1 | D17: =B17*C17 ->  | F17: 0 | H17: 0 | I17: 0 | J17: 0 | K17: 0 | L17: 0 | M17: 0 | N17: 0 | O17: 0 | P17: 0 | Q17: 0 | R17: 0 | S17: 0 | T17: 0 | U17: 0 | V17: 0 | W17: 0 | X17: 0 | Y17: 0 | Z17: 0 | AA17: 0 | AB17: 0 | AC17: 0 | AD17: 0 | AE17: 0 | AF17: 0 | AG17: 0 | AH17: 0 | AI17: 0 | AJ17: 0
C18: 1 | F18: 0 | H18: 0 | I18: 0 | J18: 0 | K18: 0 | L18: 0 | M18: 0 | N18: 0 | O18: 0 | P18: 0 | Q18: 0 | R18: 0 | S18: 0 | T18: 0 | U18: 0 | V18: 0 | W18: 0 | X18: 0 | Y18: 0 | Z18: 0 | AA18: 0 | AB18: 0 | AC18: 0 | AD18: 0 | AE18: 0 | AF18: 0 | AG18: 0 | AH18: 0 | AI18: 0 | AJ18: 0
C19: 1 | F19: 0 | H19: 0 | I19: 0 | J19: 0 | K19: 0 | L19: 0 | M19: 0 | N19: 0 | O19: 0 | P19: 0 | Q19: 0 | R19: 0 | S19: 0 | T19: 0 | U19: 0 | V19: 0 | W19: 0 | X19: 0 | Y19: 0 | Z19: 0 | AA19: 0 | AB19: 0 | AC19: 0 | AD19: 0 | AE19: 0 | AF19: 0 | AG19: 0 | AH19: 0 | AI19: 0 | AJ19: 0
F20: 0 | H20: 0 | I20: 0 | J20: 0 | K20: 0 | L20: 0 | M20: 0 | N20: 0 | O20: 0 | P20: 0 | Q20: 0 | R20: 0 | S20: 0 | T20: 0 | U20: 0 | V20: 0 | W20: 0 | X20: 0 | Y20: 0 | Z20: 0 | AA20: 0 | AB20: 0 | AC20: 0 | AD20: 0 | AE20: 0 | AF20: 0 | AG20: 0 | AH20: 0 | AI20: 0 | AJ20: 0
D21: =B21*C21 ->  | F21: 0 | H21: 0 | I21: 0 | J21: 0 | K21: 0 | L21: 0 | M21: 0 | N21: 0 | O21: 0 | P21: 0 | Q21: 0 | R21: 0 | S21: 0 | T21: 0 | U21: 0 | V21: 0 | W21: 0 | X21: 0 | Y21: 0 | Z21: 0 | AA21: 0 | AB21: 0 | AC21: 0 | AD21: 0 | AE21: 0 | AF21: 0 | AG21: 0 | AH21: 0 | AI21: 0 | AJ21: 0
F22: =IF(E22>0,(HLOOKUP(E22,$H$13:$AJ$14,2)),0) -> 0 | H22: 0 | I22: 0 | J22: 0 | K22: 0 | L22: 0 | M22: 0 | N22: 0 | O22: 0 | P22: 0 | Q22: 0 | R22: 0 | S22: 0 | T22: 0 | U22: 0 | V22: 0 | W22: 0 | X22: 0 | Y22: 0 | Z22: 0 | AA22: 0 | AB22: 0 | AC22: 0 | AD22: 0 | AE22: 0 | AF22: 0 | AG22: 0 | AH22: 0 | AI22: 0 | AJ22: 0
F23: 0 | H23: 0 | I23: 0 | J23: 0 | K23: 0 | L23: 0 | M23: 0 | N23: 0 | O23: 0 | P23: 0 | Q23: 0 | R23: 0 | S23: 0 | T23: 0 | U23: 0 | V23: 0 | W23: 0 | X23: 0 | Y23: 0 | Z23: 0 | AA23: 0 | AB23: 0 | AC23: 0 | AD23: 0 | AE23: 0 | AF23: 0 | AG23: 0 | AH23: 0 | AI23: 0 | AJ23: 0
F24: 0 | H24: 0 | I24: 0 | J24: 0 | K24: 0 | L24: 0 | M24: 0 | N24: 0 | O24: 0 | P24: 0 | Q24: 0 | R24: 0 | S24: 0 | T24: 0 | U24: 0 | V24: 0 | W24: 0 | X24: 0 | Y24: 0 | Z24: 0 | AA24: 0 | AB24: 0 | AC24: 0 | AD24: 0 | AE24: 0 | AF24: 0 | AG24: 0 | AH24: 0 | AI24: 0 | AJ24: 0
F25: 0 | H25: 0 | I25: 0 | J25: 0 | K25: 0 | L25: 0 | M25: 0 | N25: 0 | O25: 0 | P25: 0 | Q25: 0 | R25: 0 | S25: 0 | T25: 0 | U25: 0 | V25: 0 | W25: 0 | X25: 0 | Y25: 0 | Z25: 0 | AA25: 0 | AB25: 0 | AC25: 0 | AD25: 0 | AE25: 0 | AF25: 0 | AG25: 0 | AH25: 0 | AI25: 0 | AJ25: 0
C26: =I5 -> 8 | F26: 0 | H26: 0 | I26: 0 | J26: 0 | K26: 0 | L26: 0 | M26: 0 | N26: 0 | O26: 0 | P26: 0 | Q26: 0 | R26: 0 | S26: 0 | T26: 0 | U26: 0 | V26: 0 | W26: 0 | X26: 0 | Y26: 0 | Z26: 0 | AA26: 0 | AB26: 0 | AC26: 0 | AD26: 0 | AE26: 0 | AF26: 0 | AG26: 0 | AH26: 0 | AI26: 0 | AJ26: 0
C27: =C26 -> 8 | F27: 0 | H27: 0 | I27: 0 | J27: 0 | K27: 0 | L27: 0 | M27: 0 | N27: 0 | O27: 0 | P27: 0 | Q27: 0 | R27: 0 | S27: 0 | T27: 0 | U27: 0 | V27: 0 | W27: 0 | X27: 0 | Y27: 0 | Z27: 0 | AA27: 0 | AB27: 0 | AC27: 0 | AD27: 0 | AE27: 0 | AF27: 0 | AG27: 0 | AH27: 0 | AI27: 0 | AJ27: 0
C28: =C27 -> 8 | F28: 0 | H28: 0 | I28: 0 | J28: 0 | K28: 0 | L28: 0 | M28: 0 | N28: 0 | O28: 0 | P28: 0 | Q28: 0 | R28: 0 | S28: 0 | T28: 0 | U28: 0 | V28: 0 | W28: 0 | X28: 0 | Y28: 0 | Z28: 0 | AA28: 0 | AB28: 0 | AC28: 0 | AD28: 0 | AE28: 0 | AF28: 0 | AG28: 0 | AH28: 0 | AI28: 0 | AJ28: 0
C29: =C28 -> 8 | F29: 0 | H29: 0 | I29: 0 | J29: 0 | K29: 0 | L29: 0 | M29: 0 | N29: 0 | O29: 0 | P29: 0 | Q29: 0 | R29: 0 | S29: 0 | T29: 0 | U29: 0 | V29: 0 | W29: 0 | X29: 0 | Y29: 0 | Z29: 0 | AA29: 0 | AB29: 0 | AC29: 0 | AD29: 0 | AE29: 0 | AF29: 0 | AG29: 0 | AH29: 0 | AI29: 0 | AJ29: 0
C30: =C29 -> 8 | F30: 0 | H30: 0 | I30: 0 | J30: 0 | K30: 0 | L30: 0 | M30: 0 | N30: 0 | O30: 0 | P30: 0 | Q30: 0 | R30: 0 | S30: 0 | T30: 0 | U30: 0 | V30: 0 | W30: 0 | X30: =IF(X$12<$F30,0,IF(X$12=$F30,$D30,0)) -> 0 | Y30: 0 | Z30: 0 | AA30: 0 | AB30: 0 | AC30: 0 | AD30: 0 | AE30: 0 | AF30: 0 | AG30: 0 | AH30: 0 | AI30: 0 | AJ30: 0
F31: 0 | H31: 0 | I31: 0 | J31: 0 | K31: 0 | L31: 0 | M31: 0 | N31: 0 | O31: 0 | P31: 0 | Q31: 0 | R31: 0 | S31: 0 | T31: 0 | U31: 0 | V31: 0 | W31: 0 | X31: 0 | Y31: 0 | Z31: 0 | AA31: 0 | AB31: 0 | AC31: 0 | AD31: 0 | AE31: 0 | AF31: 0 | AG31: 0 | AH31: 0 | AI31: 0 | AJ31: 0
F32: 0 | H32: =IF(H$12<$F32,0,IF(H$12=$F32,$D32,0)) -> 0 | I32: 0 | J32: 0 | K32: 0 | L32: 0 | M32: 0 | N32: 0 | O32: 0 | P32: 0 | Q32: 0 | R32: 0 | S32: 0 | T32: 0 | U32: 0 | V32: 0 | W32: 0 | X32: 0 | Y32: 0 | Z32: 0 | AA32: 0 | AB32: 0 | AC32: 0 | AD32: 0 | AE32: 0 | AF32: 0 | AG32: 0 | AH32: 0 | AI32: 0 | AJ32: 0
F33: 0 | H33: 0 | I33: 0 | J33: 0 | K33: 0 | L33: 0 | M33: 0 | N33: 0 | O33: 0 | P33: 0 | Q33: 0 | R33: 0 | S33: 0 | T33: 0 | U33: 0 | V33: 0 | W33: 0 | X33: 0 | Y33: 0 | Z33: 0 | AA33: 0 | AB33: 0 | AC33: 0 | AD33: 0 | AE33: 0 | AF33: 0 | AG33: 0 | AH33: 0 | AI33: 0 | AJ33: 0
F34: 0 | H34: 0 | I34: 0 | J34: 0 | K34: 0 | L34: 0 | M34: 0 | N34: 0 | O34: 0 | P34: 0 | Q34: 0 | R34: 0 | S34: 0 | T34: 0 | U34: 0 | V34: 0 | W34: 0 | X34: 0 | Y34: 0 | Z34: 0 | AA34: 0 | AB34: 0 | AC34: 0 | AD34: 0 | AE34: 0 | AF34: 0 | AG34: 0 | AH34: 0 | AI34: 0 | AJ34: 0
F35: 0 | H35: 0 | I35: 0 | J35: 0 | K35: 0 | L35: 0 | M35: 0 | N35: 0 | O35: 0 | P35: 0 | Q35: 0 | R35: 0 | S35: 0 | T35: 0 | U35: 0 | V35: 0 | W35: 0 | X35: 0 | Y35: 0 | Z35: 0 | AA35: 0 | AB35: 0 | AC35: 0 | AD35: 0 | AE35: 0 | AF35: 0 | AG35: 0 | AH35: 0 | AI35: 0 | AJ35: 0
F36: 0 | H36: 0 | I36: 0 | J36: 0 | K36: 0 | L36: 0 | M36: 0 | N36: 0 | O36: 0 | P36: 0 | Q36: 0 | R36: 0 | S36: 0 | T36: 0 | U36: 0 | V36: 0 | W36: 0 | X36: 0 | Y36: 0 | Z36: 0 | AA36: 0 | AB36: 0 | AC36: 0 | AD36: 0 | AE36: 0 | AF36: 0 | AG36: 0 | AH36: 0 | AI36: 0 | AJ36: 0
C37: =I6 -> 10 | F37: 0 | H37: 0 | I37: 0 | J37: 0 | K37: 0 | L37: 0 | M37: 0 | N37: 0 | O37: 0 | P37: 0 | Q37: 0 | R37: 0 | S37: 0 | T37: 0 | U37: 0 | V37: 0 | W37: 0 | X37: 0 | Y37: 0 | Z37: 0 | AA37: 0 | AB37: 0 | AC37: 0 | AD37: 0 | AE37: 0 | AF37: 0 | AG37: 0 | AH37: 0 | AI37: 0 | AJ37: 0
C38: =C37 -> 10 | F38: 0 | H38: 0 | I38: 0 | J38: 0 | K38: 0 | L38: 0 | M38: 0 | N38: 0 | O38: 0 | P38: 0 | Q38: 0 | R38: 0 | S38: 0 | T38: 0 | U38: 0 | V38: 0 | W38: 0 | X38: 0 | Y38: 0 | Z38: 0 | AA38: 0 | AB38: 0 | AC38: 0 | AD38: 0 | AE38: 0 | AF38: 0 | AG38: 0 | AH38: 0 | AI38: 0 | AJ38: 0
C39: =C38 -> 10 | F39: 0 | H39: 0 | I39: 0 | J39: 0 | K39: 0 | L39: 0 | M39: 0 | N39: 0 | O39: 0 | P39: 0 | Q39: 0 | R39: 0 | S39: 0 | T39: 0 | U39: 0 | V39: 0 | W39: 0 | X39: 0 | Y39: 0 | Z39: 0 | AA39: 0 | AB39: 0 | AC39: 0 | AD39: 0 | AE39: 0 | AF39: 0 | AG39: 0 | AH39: 0 | AI39: 0 | AJ39: 0
C40: 10 | F40: 0 | H40: 0 | I40: 0 | J40: 0 | K40: 0 | L40: 0 | M40: 0 | N40: 0 | O40: 0 | P40: 0 | Q40: 0 | R40: 0 | S40: 0 | T40: 0 | U40: 0 | V40: 0 | W40: 0 | X40: 0 | Y40: 0 | Z40: 0 | AA40: 0 | AB40: 0 | AC40: 0 | AD40: 0 | AE40: 0 | AF40: 0 | AG40: 0 | AH40: 0 | AI40: 0 | AJ40: 0
C41: 10 | F41: 0 | H41: 0 | I41: 0 | J41: 0 | K41: 0 | L41: 0 | M41: 0 | N41: 0 | O41: 0 | P41: 0 | Q41: 0 | R41: 0 | S41: 0 | T41: 0 | U41: 0 | V41: 0 | W41: 0 | X41: 0 | Y41: 0 | Z41: 0 | AA41: 0 | AB41: 0 | AC41: 0 | AD41: 0 | AE41: 0 | AF41: 0 | AG41: 0 | AH41: 0 | AI41: 0 | AJ41: 0
F42: 0 | H42: 0 | I42: 0 | J42: 0 | K42: 0 | L42: 0 | M42: 0 | N42: 0 | O42: 0 | P42: 0 | Q42: 0 | R42: 0 | S42: 0 | T42: 0 | U42: 0 | V42: 0 | W42: 0 | X42: 0 | Y42: 0 | Z42: 0 | AA42: 0 | AB42: 0 | AC42: 0 | AD42: 0 | AE42: 0 | AF42: 0 | AG42: 0 | AH42: 0 | AI42: 0 | AJ42: 0
F43: 0 | H43: 0 | I43: 0 | J43: 0 | K43: 0 | L43: 0 | M43: 0 | N43: 0 | O43: 0 | P43: 0 | Q43: 0 | R43: 0 | S43: 0 | T43: 0 | U43: 0 | V43: 0 | W43: 0 | X43: 0 | Y43: 0 | Z43: 0 | AA43: 0 | AB43: 0 | AC43: 0 | AD43: 0 | AE43: 0 | AF43: 0 | AG43: 0 | AH43: 0 | AI43: 0 | AJ43: 0
F44: 0 | H44: 0 | I44: 0 | J44: 0 | K44: 0 | L44: 0 | M44: 0 | N44: 0 | O44: 0 | P44: 0 | Q44: 0 | R44: 0 | S44: 0 | T44: 0 | U44: 0 | V44: 0 | W44: 0 | X44: 0 | Y44: 0 | Z44: 0 | AA44: 0 | AB44: 0 | AC44: 0 | AD44: 0 | AE44: 0 | AF44: 0 | AG44: 0 | AH44: 0 | AI44: 0 | AJ44: 0
F45: 0 | H45: 0 | I45: 0 | J45: 0 | K45: 0 | L45: 0 | M45: 0 | N45: 0 | O45: 0 | P45: 0 | Q45: 0 | R45: 0 | S45: 0 | T45: 0 | U45: 0 | V45: 0 | W45: 0 | X45: 0 | Y45: 0 | Z45: 0 | AA45: 0 | AB45: 0 | AC45: 0 | AD45: 0 | AE45: 0 | AF45: 0 | AG45: 0 | AH45: 0 | AI45: 0 | AJ45: 0
H46: 0 | I46: 0 | J46: 0 | K46: 0 | L46: 0 | M46: 0 | N46: 0 | O46: 0 | P46: 0 | Q46: 0 | R46: 0 | S46: 0 | T46: 0 | U46: 0 | V46: 0 | W46: 0 | X46: =IF(X$12<$F46,0,IF(X$12=$F46,$D46,0)) -> 0 | Y46: 0 | Z46: 0 | AA46: 0 | AB46: 0 | AC46: 0 | AD46: 0 | AE46: 0 | AF46: 0 | AG46: 0 | AH46: 0 | AI46: 0 | AJ46: 0
H47: 0 | I47: 0 | J47: 0 | K47: 0 | L47: 0 | M47: 0 | N47: 0 | O47: 0 | P47: 0 | Q47: 0 | R47: 0 | S47: 0 | T47: 0 | U47: 0 | V47: 0 | W47: =IF(W$12<$F47,0,IF(W$12=$F47,$D47,0)) -> 0 | X47: 0 | Y47: 0 | Z47: 0 | AA47: 0 | AB47: 0 | AC47: 0 | AD47: 0 | AE47: 0 | AF47: 0 | AG47: 0 | AH47: 0 | AI47: 0 | AJ47: 0
H48: =IF(H$12<$F48,0,IF(H$12=$F48,$D48,0)) -> 0 | I48: 0 | J48: 0 | K48: 0 | L48: 0 | M48: 0 | N48: 0 | O48: 0 | P48: 0 | Q48: 0 | R48: 0 | S48: 0 | T48: 0 | U48: 0 | V48: 0 | W48: 0 | X48: 0 | Y48: 0 | Z48: 0 | AA48: 0 | AB48: 0 | AC48: 0 | AD48: 0 | AE48: 0 | AF48: 0 | AG48: 0 | AH48: 0 | AI48: 0 | AJ48: 0
G49: Total | H49: =SUM(H15:H48) -> 81000 | I49: =SUM(I15:I48) -> 113000 | J49: 0 | K49: 0 | L49: =SUM(L15:L48) -> 0 | M49: 0 | N49: 0 | O49: 0 | P49: 0 | Q49: 0 | R49: 0 | S49: 0 | T49: 0 | U49: 0 | V49: 0 | W49: 0 | X49: 0 | Y49: 0 | Z49: 0 | AA49: 0 | AB49: 0 | AC49: 0 | AD49: 0 | AE49: 0 | AF49: 0 | AG49: 0 | AH49: 0 | AI49: 0 | AJ49: 0

Sheet Rent
A2: Item | B2: Item Cost | C2: Monthly Cost Per Facility
A3: Rent | B3: 5000 | C3: =B3 -> 5000 | H3: Facility Start Dates | I3: #
A4: Electricity | B4: 1000 | C4: =B4 -> 1000 | H4: =Assumptions!B4 -> 2015-01-01 | I4: =Assumptions!C4 -> 4
H5: =Assumptions!B5 -> 2015-08-01 | I5: =Assumptions!C5 -> 8
H6: =Assumptions!B6 -> 2016-08-01 | I6: =Assumptions!C6 -> 10
H12: 1 | I12: 2 | J12: 3 | K12: 4 | L12: 5 | M12: 6 | N12: 7 | O12: 8 | P12: 9 | Q12: 10 | R12: 11 | S12: 12 | T12: 13 | U12: 14 | V12: 15 | W12: 16 | X12: 17 | Y12: 18 | Z12: 19 | AA12: 20 | AB12: 21 | AC12: 22 | AD12: 23 | AE12: 24 | AF12: 25 | AG12: 26 | AH12: 27 | AI12: 28 | AJ12: 29
A13: Position | B13: Monthly Cost | C13: # of Facilities | D13: Total | E13: Start Date | H13: 2014-09-01 | I13: 2014-10-01 | J13: 2014-11-01 | K13: 2014-12-01 | L13: 2015-01-01 | M13: 2015-02-01 | N13: 2015-03-01 | O13: 2015-04-01 | P13: 2015-05-01 | Q13: 2015-06-01 | R13: 2015-07-01 | S13: 2015-08-01 | T13: 2015-09-01 | U13: 2015-10-01 | V13: 2015-11-01 | W13: 2015-12-01 | X13: 2016-01-01 | Y13: 2016-02-01 | Z13: 2016-03-01 | AA13: 2016-04-01 | AB13: 2016-05-01 | AC13: 2016-06-01 | AD13: 2016-07-01 | AE13: 2016-08-01 | AF13: 2016-09-01 | AG13: 2016-10-01 | AH13: 2016-11-01 | AI13: 2016-12-01 | AJ13: 2017-01-01
H14: 1 | I14: 2 | J14: 3 | K14: 4 | L14: 5 | M14: 6 | N14: 7 | O14: 8 | P14: 9 | Q14: 10 | R14: 11 | S14: 12 | T14: 13 | U14: 14 | V14: 15 | W14: 16 | X14: 17 | Y14: 18 | Z14: 19 | AA14: 20 | AB14: 21 | AC14: 22 | AD14: 23 | AE14: 24 | AF14: 25 | AG14: 26 | AH14: 27 | AI14: 28 | AJ14: 29
A15: Rent | B15: =VLOOKUP(A15,$A$3:$C$4,3,FALSE) -> 5000 | C15: =I4 -> 4 | D15: =B15*C15 -> 20000 | E15: =H4 -> 2015-01-01 | F15: =IF(E15>0,(HLOOKUP(E15,$H$13:$AJ$14,2)),0) -> 5 | H15: =IF(H$12>($F15+22),0,IF(H$12<$F15,0,IF(H$12=$F15,$D15,IF(H$12>$F15,G15)))) -> 0 | I15: =IF(I$12>($F15+22),0,IF(I$12<$F15,0,IF(I$12=$F15,$D15,IF(I$12>$F15,H15)))) -> 0 | J15: 0 | K15: 0 | L15: 20000 | M15: 20000 | N15: 20000 | O15: 20000 | P15: 20000 | Q15: 20000 | R15: 20000 | S15: 20000 | T15: 20000 | U15: 20000 | V15: 20000 | W15: 20000 | X15: 20000 | Y15: 20000 | Z15: 20000 | AA15: 20000 | AB15: 20000 | AC15: 20000 | AD15: 20000 | AE15: 20000 | AF15: 20000 | AG15: 20000 | AH15: 20000 | AI15: 0 | AJ15: 0
A16: Electricity | B16: =VLOOKUP(A16,$A$3:$C$4,3,FALSE) -> 1000 | C16: =C15 -> 4 | D16: =B16*C16 -> 4000 | E16: =E15 -> 2015-01-01 | F16: =IF(E16>0,(HLOOKUP(E16,$H$13:$AJ$14,2)),0) -> 5 | H16: =IF(H$12>($F16+22),0,IF(H$12<$F16,0,IF(H$12=$F16,$D16,IF(H$12>$F16,G16)))) -> 0 | I16: 0 | J16: 0 | K16: 0 | L16: 4000 | M16: 4000 | N16: 4000 | O16: 4000 | P16: 4000 | Q16: 4000 | R16: 4000 | S16: 4000 | T16: 4000 | U16: 4000 | V16: 4000 | W16: 4000 | X16: 4000 | Y16: 4000 | Z16: 4000 | AA16: 4000 | AB16: 4000 | AC16: 4000 | AD16: 4000 | AE16: 4000 | AF16: 4000 | AG16: 4000 | AH16: 4000 | AI16: 0 | AJ16: 0
C17: =C16 -> 4 | D17: =B17*C17 ->  | H17: =IF(H$12>($F17+22),0,IF(H$12<$F17,0,IF(H$12=$F17,$D17,IF(H$12>$F17,G17)))) -> 0 | I17: 0 | J17: 0 | K17: 0 | L17: 0 | M17: 0 | N17: 0 | O17: 0 | P17: 0 | Q17: 0 | R17: 0 | S17: 0 | T17: 0 | U17: 0 | V17: 0 | W17: 0 | X17: 0 | Y17: 0 | Z17: 0 | AA17: 0 | AB17: 0 | AC17: 0 | AD17: 0 | AE17: 0 | AF17: 0 | AG17: 0 | AH17: 0 | AI17: 0 | AJ17: 0
H18: =IF(H$12>($F18+22),0,IF(H$12<$F18,0,IF(H$12=$F18,$D18,IF(H$12>$F18,G18)))) -> 0 | I18: 0 | J18: 0 | K18: 0 | L18: 0 | M18: 0 | N18: 0 | O18: 0 | P18: 0 | Q18: 0 | R18: 0 | S18: 0 | T18: 0 | U18: 0 | V18: 0 | W18: 0 | X18: 0 | Y18: 0 | Z18: 0 | AA18: 0 | AB18: 0 | AC18: 0 | AD18: 0 | AE18: 0 | AF18: 0 | AG18: 0 | AH18: 0 | AI18: 0 | AJ18: 0
C19: 0 | F19: =IF(E19>0,(HLOOKUP(E19,$H$13:$AJ$14,2)),0) -> 0 | H19: =IF(H$12>($F19+22),0,IF(H$12<$F19,0,IF(H$12=$F19,$D19,IF(H$12>$F19,G19)))) -> 0 | I19: 0 | J19: 0 | K19: 0 | L19: 0 | M19: 0 | N19: 0 | O19: 0 | P19: 0 | Q19: 0 | R19: 0 | S19: 0 | T19: 0 | U19: 0 | V19: 0 | W19: 0 | X19: 0 | Y19: 0 | Z19: 0 | AA19: 0 | AB19: 0 | AC19: 0 | AD19: 0 | AE19: 0 | AF19: 0 | AG19: 0 | AH19: 0 | AI19: 0 | AJ19: 0
F20: 0 | H20: =IF(H$12>($F20+22),0,IF(H$12<$F20,0,IF(H$12=$F20,$D20,IF(H$12>$F20,G20)))) -> 0 | I20: 0 | J20: 0 | K20: 0 | L20: 0 | M20: 0 | N20: 0 | O20: 0 | P20: 0 | Q20: 0 | R20: 0 | S20: 0 | T20: 0 | U20: 0 | V20: 0 | W20: 0 | X20: 0 | Y20: 0 | Z20: 0 | AA20: 0 | AB20: 0 | AC20: 0 | AD20: 0 | AE20: 0 | AF20: 0 | AG20: 0 | AH20: 0 | AI20: 0 | AJ20: 0
D21: =B21*C21 ->  | F21: 0 | H21: =IF(H$12>($F21+22),0,IF(H$12<$F21,0,IF(H$12=$F21,$D21,IF(H$12>$F21,G21)))) -> 0 | I21: 0 | J21: 0 | K21: 0 | L21: 0 | M21: 0 | N21: 0 | O21: 0 | P21: 0 | Q21: 0 | R21: 0 | S21: 0 | T21: 0 | U21: 0 | V21: 0 | W21: 0 | X21: 0 | Y21: 0 | Z21: 0 | AA21: 0 | AB21: 0 | AC21: 0 | AD21: 0 | AE21: 0 | AF21: 0 | AG21: 0 | AH21: 0 | AI21: 0 | AJ21: 0
F22: =IF(E22>0,(HLOOKUP(E22,$H$13:$AJ$14,2)),0) -> 0 | H22: =IF(H$12>($F22+22),0,IF(H$12<$F22,0,IF(H$12=$F22,$D22,IF(H$12>$F22,G22)))) -> 0 | I22: 0 | J22: 0 | K22: 0 | L22: 0 | M22: 0 | N22: 0 | O22: 0 | P22: 0 | Q22: 0 | R22: 0 | S22: 0 | T22: 0 | U22: 0 | V22: 0 | W22: 0 | X22: 0 | Y22: 0 | Z22: 0 | AA22: 0 | AB22: 0 | AC22: 0 | AD22: 0 | AE22: 0 | AF22: 0 | AG22: 0 | AH22: 0 | AI22: 0 | AJ22: 0
F23: 0 | H23: =IF(H$12>($F23+22),0,IF(H$12<$F23,0,IF(H$12=$F23,$D23,IF(H$12>$F23,G23)))) -> 0 | I23: 0 | J23: 0 | K23: 0 | L23: 0 | M23: 0 | N23: 0 | O23: 0 | P23: 0 | Q23: 0 | R23: 0 | S23: 0 | T23: 0 | U23: 0 | V23: 0 | W23: 0 | X23: 0 | Y23: 0 | Z23: 0 | AA23: 0 | AB23: 0 | AC23: 0 | AD23: 0 | AE23: 0 | AF23: 0 | AG23: 0 | AH23: 0 | AI23: 0 | AJ23: 0
F24: 0 | H24: =IF(H$12>($F24+22),0,IF(H$12<$F24,0,IF(H$12=$F24,$D24,IF(H$12>$F24,G24)))) -> 0 | I24: 0 | J24: 0 | K24: 0 | L24: 0 | M24: 0 | N24: 0 | O24: 0 | P24: 0 | Q24: 0 | R24: 0 | S24: 0 | T24: 0 | U24: 0 | V24: 0 | W24: 0 | X24: 0 | Y24: 0 | Z24: 0 | AA24: 0 | AB24: 0 | AC24: 0 | AD24: 0 | AE24: 0 | AF24: 0 | AG24: 0 | AH24: 0 | AI24: 0 | AJ24: 0
F25: 0 | H25: =IF(H$12>($F25+22),0,IF(H$12<$F25,0,IF(H$12=$F25,$D25,IF(H$12>$F25,G25)))) -> 0 | I25: 0 | J25: 0 | K25: 0 | L25: 0 | M25: 0 | N25: 0 | O25: 0 | P25: 0 | Q25: 0 | R25: 0 | S25: 0 | T25: 0 | U25: 0 | V25: 0 | W25: 0 | X25: 0 | Y25: 0 | Z25: 0 | AA25: 0 | AB25: 0 | AC25: 0 | AD25: 0 | AE25: 0 | AF25: 0 | AG25: 0 | AH25: 0 | AI25: 0 | AJ25: 0
A26: Rent | B26: 5000 | C26: =I5 -> 8 | D26: 40000 | E26: =H5 -> 2015-08-01 | F26: 12 | H26: =IF(H$12>($F26+22),0,IF(H$12<$F26,0,IF(H$12=$F26,$D26,IF(H$12>$F26,G26)))) -> 0 | I26: 0 | J26: 0 | K26: 0 | L26: 0 | M26: 0 | N26: 0 | O26: 0 | P26: 0 | Q26: 0 | R26: 0 | S26: 40000 | T26: 40000 | U26: 40000 | V26: 40000 | W26: 40000 | X26: 40000 | Y26: 40000 | Z26: 40000 | AA26: 40000 | AB26: 40000 | AC26: 40000 | AD26: 40000 | AE26: 40000 | AF26: 40000 | AG26: 40000 | AH26: 40000 | AI26: 40000 | AJ26: 40000
A27: Electricity | B27: 1000 | C27: =C26 -> 8 | D27: 8000 | E27: =E26 -> 2015-08-01 | F27: 12 | H27: =IF(H$12>($F27+22),0,IF(H$12<$F27,0,IF(H$12=$F27,$D27,IF(H$12>$F27,G27)))) -> 0 | I27: 0 | J27: 0 | K27: 0 | L27: 0 | M27: 0 | N27: 0 | O27: 0 | P27: 0 | Q27: 0 | R27: 0 | S27: 8000 | T27: 8000 | U27: 8000 | V27: 8000 | W27: 8000 | X27: 8000 | Y27: 8000 | Z27: 8000 | AA27: 8000 | AB27: 8000 | AC27: 8000 | AD27: 8000 | AE27: 8000 | AF27: 8000 | AG27: 8000 | AH27: 8000 | AI27: 8000 | AJ27: 8000
C28: =C27 -> 8 | H28: =IF(H$12>($F28+22),0,IF(H$12<$F28,0,IF(H$12=$F28,$D28,IF(H$12>$F28,G28)))) -> 0 | I28: 0 | J28: 0 | K28: 0 | L28: 0 | M28: 0 | N28: 0 | O28: 0 | P28: 0 | Q28: 0 | R28: 0 | S28: 0 | T28: 0 | U28: 0 | V28: 0 | W28: 0 | X28: 0 | Y28: 0 | Z28: 0 | AA28: 0 | AB28: 0 | AC28: 0 | AD28: 0 | AE28: 0 | AF28: 0 | AG28: 0 | AH28: 0 | AI28: 0 | AJ28: 0
C29: =C28 -> 8 | F29: =IF(E29>0,(HLOOKUP(E29,$H$13:$AJ$14,2)),0) -> 0 | H29: =IF(H$12>($F29+22),0,IF(H$12<$F29,0,IF(H$12=$F29,$D29,IF(H$12>$F29,G29)))) -> 0 | I29: 0 | J29: 0 | K29: 0 | L29: 0 | M29: 0 | N29: 0 | O29: 0 | P29: 0 | Q29: 0 | R29: 0 | S29: 0 | T29: 0 | U29: 0 | V29: 0 | W29: 0 | X29: 0 | Y29: 0 | Z29: 0 | AA29: 0 | AB29: 0 | AC29: 0 | AD29: 0 | AE29: 0 | AF29: 0 | AG29: 0 | AH29: 0 | AI29: 0 | AJ29: 0
C30: =C29 -> 8 | F30: =IF(E30>0,(HLOOKUP(E30,$H$13:$AJ$14,2)),0) -> 0 | H30: =IF(H$12>($F30+22),0,IF(H$12<$F30,0,IF(H$12=$F30,$D30,IF(H$12>$F30,G30)))) -> 0 | I30: 0 | J30: 0 | K30: 0 | L30: 0 | M30: 0 | N30: 0 | O30: 0 | P30: 0 | Q30: 0 | R30: 0 | S30: 0 | T30: 0 | U30: 0 | V30: 0 | W30: 0 | X30: 0 | Y30: 0 | Z30: 0 | AA30: 0 | AB30: 0 | AC30: 0 | AD30: 0 | AE30: 0 | AF30: 0 | AG30: 0 | AH30: 0 | AI30: 0 | AJ30: 0
F31: 0 | H31: =IF(H$12>($F31+22),0,IF(H$12<$F31,0,IF(H$12=$F31,$D31,IF(H$12>$F31,G31)))) -> 0 | I31: 0 | J31: 0 | K31: 0 | L31: 0 | M31: 0 | N31: 0 | O31: 0 | P31: 0 | Q31: 0 | R31: 0 | S31: 0 | T31: 0 | U31: 0 | V31: 0 | W31: 0 | X31: 0 | Y31: 0 | Z31: 0 | AA31: 0 | AB31: 0 | AC31: 0 | AD31: 0 | AE31: 0 | AF31: 0 | AG31: 0 | AH31: 0 | AI31: 0 | AJ31: 0
F32: 0 | H32: =IF(H$12>($F32+22),0,IF(H$12<$F32,0,IF(H$12=$F32,$D32,IF(H$12>$F32,G32)))) -> 0 | I32: 0 | J32: 0 | K32: 0 | L32: 0 | M32: 0 | N32: 0 | O32: 0 | P32: 0 | Q32: 0 | R32: 0 | S32: 0 | T32: 0 | U32: 0 | V32: 0 | W32: 0 | X32: 0 | Y32: 0 | Z32: 0 | AA32: 0 | AB32: 0 | AC32: 0 | AD32: 0 | AE32: 0 | AF32: 0 | AG32: 0 | AH32: 0 | AI32: 0 | AJ32: 0
F33: 0 | H33: =IF(H$12>($F33+22),0,IF(H$12<$F33,0,IF(H$12=$F33,$D33,IF(H$12>$F33,G33)))) -> 0 | I33: 0 | J33: 0 | K33: 0 | L33: 0 | M33: 0 | N33: 0 | O33: 0 | P33: 0 | Q33: 0 | R33: 0 | S33: 0 | T33: 0 | U33: 0 | V33: 0 | W33: 0 | X33: 0 | Y33: 0 | Z33: 0 | AA33: 0 | AB33: 0 | AC33: 0 | AD33: 0 | AE33: 0 | AF33: 0 | AG33: 0 | AH33: 0 | AI33: 0 | AJ33: 0
F34: 0 | H34: =IF(H$12>($F34+22),0,IF(H$12<$F34,0,IF(H$12=$F34,$D34,IF(H$12>$F34,G34)))) -> 0 | I34: 0 | J34: 0 | K34: 0 | L34: 0 | M34: 0 | N34: 0 | O34: 0 | P34: 0 | Q34: 0 | R34: 0 | S34: 0 | T34: 0 | U34: 0 | V34: 0 | W34: 0 | X34: 0 | Y34: 0 | Z34: 0 | AA34: 0 | AB34: 0 | AC34: 0 | AD34: 0 | AE34: 0 | AF34: 0 | AG34: 0 | AH34: 0 | AI34: 0 | AJ34: 0
F35: 0 | H35: =IF(H$12>($F35+22),0,IF(H$12<$F35,0,IF(H$12=$F35,$D35,IF(H$12>$F35,G35)))) -> 0 | I35: 0 | J35: 0 | K35: 0 | L35: 0 | M35: 0 | N35: 0 | O35: 0 | P35: 0 | Q35: 0 | R35: 0 | S35: 0 | T35: 0 | U35: 0 | V35: 0 | W35: 0 | X35: 0 | Y35: 0 | Z35: 0 | AA35: 0 | AB35: 0 | AC35: 0 | AD35: 0 | AE35: 0 | AF35: 0 | AG35: 0 | AH35: 0 | AI35: 0 | AJ35: 0
F36: 0 | H36: =IF(H$12>($F36+22),0,IF(H$12<$F36,0,IF(H$12=$F36,$D36,IF(H$12>$F36,G36)))) -> 0 | I36: 0 | J36: 0 | K36: 0 | L36: 0 | M36: 0 | N36: 0 | O36: 0 | P36: 0 | Q36: 0 | R36: 0 | S36: 0 | T36: 0 | U36: 0 | V36: 0 | W36: 0 | X36: 0 | Y36: 0 | Z36: 0 | AA36: 0 | AB36: 0 | AC36: 0 | AD36: 0 | AE36: 0 | AF36: 0 | AG36: 0 | AH36: 0 | AI36: 0 | AJ36: 0
A37: Rent | B37: 5000 | C37: =I6 -> 10 | D37: 50000 | E37: =H6 -> 2016-08-01 | F37: 24 | H37: =IF(H$12>($F37+22),0,IF(H$12<$F37,0,IF(H$12=$F37,$D37,IF(H$12>$F37,G37)))) -> 0 | I37: 0 | J37: 0 | K37: 0 | L37: 0 | M37: 0 | N37: 0 | O37: 0 | P37: 0 | Q37: 0 | R37: 0 | S37: 0 | T37: 0 | U37: 0 | V37: 0 | W37: 0 | X37: 0 | Y37: 0 | Z37: 0 | AA37: 0 | AB37: 0 | AC37: 0 | AD37: 0 | AE37: 50000 | AF37: 50000 | AG37: 50000 | AH37: 50000 | AI37: 50000 | AJ37: 50000
A38: Electricity | B38: 1000 | C38: =C37 -> 10 | D38: 10000 | E38: =E37 -> 2016-08-01 | F38: 24 | H38: =IF(H$12>($F38+22),0,IF(H$12<$F38,0,IF(H$12=$F38,$D38,IF(H$12>$F38,G38)))) -> 0 | I38: 0 | J38: 0 | K38: 0 | L38: 0 | M38: 0 | N38: 0 | O38: 0 | P38: 0 | Q38: 0 | R38: 0 | S38: 0 | T38: 0 | U38: 0 | V38: 0 | W38: 0 | X38: 0 | Y38: 0 | Z38: 0 | AA38: 0 | AB38: 0 | AC38: 0 | AD38: 0 | AE38: 10000 | AF38: 10000 | AG38: 10000 | AH38: 10000 | AI38: 10000 | AJ38: 10000
C39: =C38 -> 10 | H39: =IF(H$12>($F39+22),0,IF(H$12<$F39,0,IF(H$12=$F39,$D39,IF(H$12>$F39,G39)))) -> 0 | I39: 0 | J39: 0 | K39: 0 | L39: 0 | M39: 0 | N39: 0 | O39: 0 | P39: 0 | Q39: 0 | R39: 0 | S39: 0 | T39: 0 | U39: 0 | V39: 0 | W39: 0 | X39: 0 | Y39: 0 | Z39: 0 | AA39: 0 | AB39: 0 | AC39: 0 | AD39: 0 | AE39: 0 | AF39: 0 | AG39: 0 | AH39: 0 | AI39: 0 | AJ39: 0
C40: 10 | F40: 0 | H40: =IF(H$12>($F40+22),0,IF(H$12<$F40,0,IF(H$12=$F40,$D40,IF(H$12>$F40,G40)))) -> 0 | I40: 0 | J40: 0 | K40: 0 | L40: 0 | M40: 0 | N40: 0 | O40: 0 | P40: 0 | Q40: 0 | R40: 0 | S40: 0 | T40: 0 | U40: 0 | V40: 0 | W40: 0 | X40: 0 | Y40: 0 | Z40: 0 | AA40: 0 | AB40: 0 | AC40: 0 | AD40: 0 | AE40: 0 | AF40: 0 | AG40: 0 | AH40: 0 | AI40: 0 | AJ40: 0
C41: 10 | F41: 0 | H41: =IF(H$12>($F41+22),0,IF(H$12<$F41,0,IF(H$12=$F41,$D41,IF(H$12>$F41,G41)))) -> 0 | I41: 0 | J41: 0 | K41: 0 | L41: 0 | M41: 0 | N41: 0 | O41: 0 | P41: 0 | Q41: 0 | R41: 0 | S41: 0 | T41: 0 | U41: 0 | V41: 0 | W41: 0 | X41: 0 | Y41: 0 | Z41: 0 | AA41: 0 | AB41: 0 | AC41: 0 | AD41: 0 | AE41: 0 | AF41: 0 | AG41: 0 | AH41: 0 | AI41: 0 | AJ41: 0
F42: 0 | H42: =IF(H$12>($F42+22),0,IF(H$12<$F42,0,IF(H$12=$F42,$D42,IF(H$12>$F42,G42)))) -> 0 | I42: 0 | J42: 0 | K42: 0 | L42: 0 | M42: 0 | N42: 0 | O42: 0 | P42: 0 | Q42: 0 | R42: 0 | S42: 0 | T42: 0 | U42: 0 | V42: 0 | W42: 0 | X42: 0 | Y42: 0 | Z42: 0 | AA42: 0 | AB42: 0 | AC42: 0 | AD42: 0 | AE42: 0 | AF42: 0 | AG42: 0 | AH42: 0 | AI42: 0 | AJ42: 0
F43: 0 | H43: =IF(H$12>($F43+22),0,IF(H$12<$F43,0,IF(H$12=$F43,$D43,IF(H$12>$F43,G43)))) -> 0 | I43: 0 | J43: 0 | K43: 0 | L43: 0 | M43: 0 | N43: 0 | O43: 0 | P43: 0 | Q43: 0 | R43: 0 | S43: 0 | T43: 0 | U43: 0 | V43: 0 | W43: 0 | X43: 0 | Y43: 0 | Z43: 0 | AA43: 0 | AB43: 0 | AC43: 0 | AD43: 0 | AE43: 0 | AF43: 0 | AG43: 0 | AH43: 0 | AI43: 0 | AJ43: 0
F44: 0 | H44: =IF(H$12>($F44+22),0,IF(H$12<$F44,0,IF(H$12=$F44,$D44,IF(H$12>$F44,G44)))) -> 0 | I44: 0 | J44: 0 | K44: 0 | L44: 0 | M44: 0 | N44: 0 | O44: 0 | P44: 0 | Q44: 0 | R44: 0 | S44: 0 | T44: 0 | U44: 0 | V44: 0 | W44: 0 | X44: 0 | Y44: 0 | Z44: 0 | AA44: 0 | AB44: 0 | AC44: 0 | AD44: 0 | AE44: 0 | AF44: 0 | AG44: 0 | AH44: 0 | AI44: 0 | AJ44: 0
F45: 0 | H45: =IF(H$12>($F45+22),0,IF(H$12<$F45,0,IF(H$12=$F45,$D45,IF(H$12>$F45,G45)))) -> 0 | I45: 0 | J45: 0 | K45: 0 | L45: 0 | M45: 0 | N45: 0 | O45: 0 | P45: 0 | Q45: 0 | R45: 0 | S45: 0 | T45: 0 | U45: 0 | V45: 0 | W45: 0 | X45: 0 | Y45: 0 | Z45: 0 | AA45: 0 | AB45: 0 | AC45: 0 | AD45: 0 | AE45: 0 | AF45: 0 | AG45: 0 | AH45: 0 | AI45: 0 | AJ45: 0
H46: =IF(H$12>($F46+22),0,IF(H$12<$F46,0,IF(H$12=$F46,$D46,IF(H$12>$F46,G46)))) -> 0 | I46: 0 | J46: 0 | K46: 0 | L46: 0 | M46: 0 | N46: 0 | O46: 0 | P46: 0 | Q46: 0 | R46: 0 | S46: 0 | T46: 0 | U46: 0 | V46: 0 | W46: 0 | X46: 0 | Y46: 0 | Z46: 0 | AA46: 0 | AB46: 0 | AC46: 0 | AD46: 0 | AE46: 0 | AF46: 0 | AG46: 0 | AH46: 0 | AI46: 0 | AJ46: 0
H47: =IF(H$12>($F47+22),0,IF(H$12<$F47,0,IF(H$12=$F47,$D47,IF(H$12>$F47,G47)))) -> 0 | I47: 0 | J47: 0 | K47: 0 | L47: 0 | M47: 0 | N47: 0 | O47: 0 | P47: 0 | Q47: 0 | R47: 0 | S47: 0 | T47: 0 | U47: 0 | V47: 0 | W47: 0 | X47: 0 | Y47: 0 | Z47: 0 | AA47: 0 | AB47: 0 | AC47: 0 | AD47: 0 | AE47: 0 | AF47: 0 | AG47: 0 | AH47: 0 | AI47: 0 | AJ47: 0
H48: =IF(H$12>($F48+22),0,IF(H$12<$F48,0,IF(H$12=$F48,$D48,IF(H$12>$F48,G48)))) -> 0 | I48: 0 | J48: 0 | K48: 0 | L48: 0 | M48: 0 | N48: 0 | O48: 0 | P48: 0 | Q48: 0 | R48: 0 | S48: 0 | T48: 0 | U48: 0 | V48: 0 | W48: 0 | X48: 0 | Y48: 0 | Z48: 0 | AA48: 0 | AB48: 0 | AC48: 0 | AD48: 0 | AE48: 0 | AF48: 0 | AG48: 0 | AH48: 0 | AI48: 0 | AJ48: 0
G49: Total | H49: =SUM(H15:H48) -> 0 | I49: =SUM(I15:I48) -> 0 | J49: 0 | K49: 0 | L49: 24000 | M49: 24000 | N49: 24000 | O49: 24000 | P49: 24000 | Q49: 24000 | R49: 24000 | S49: 72000 | T49: 72000 | U49: 72000 | V49: 72000 | W49: 72000 | X49: 72000 | Y49: 72000 | Z49: 72000 | AA49: 72000 | AB49: 72000 | AC49: 72000 | AD49: 72000 | AE49: =SUM(AE15:AE48) -> 132000 | AF49: 132000 | AG49: 132000 | AH49: 132000 | AI49: 108000 | AJ49: 108000

Sheet Telephone & Internet
A2: Item | B2: Item Cost | C2: # of People | D2: # of Items | E2: Monthly Cost Per Facility
A3: Phone Credit | B3: 100 | C3: 7 | D3: 1 | E3: =D3*C3*B3 -> 700 | H3: Facility Start Dates | I3: #
A4: Data Credit | B4: 450 | C4: 7 | D4: 1 | E4: =D4*C4*B4 -> 3150 | H4: =Assumptions!B4 -> 2015-01-01 | I4: =Assumptions!C4 -> 4
A5: Internet | B5: 1200 | C5: 1 | E5: =B5 -> 1200 | H5: =Assumptions!B5 -> 2015-08-01 | I5: =Assumptions!C5 -> 8
H6: =Assumptions!B6 -> 2016-08-01 | I6: =Assumptions!C6 -> 10
H12: 1 | I12: 2 | J12: 3 | K12: 4 | L12: 5 | M12: 6 | N12: 7 | O12: 8 | P12: 9 | Q12: 10 | R12: 11 | S12: 12 | T12: 13 | U12: 14 | V12: 15 | W12: 16 | X12: 17 | Y12: 18 | Z12: 19 | AA12: 20 | AB12: 21 | AC12: 22 | AD12: 23 | AE12: 24 | AF12: 25 | AG12: 26 | AH12: 27 | AI12: 28 | AJ12: 29
A13: Position | B13: Monthly Cost | C13: # of Facilities | D13: Total | E13: Start Date | H13: 2014-09-01 | I13: 2014-10-01 | J13: 2014-11-01 | K13: 2014-12-01 | L13: 2015-01-01 | M13: 2015-02-01 | N13: 2015-03-01 | O13: 2015-04-01 | P13: 2015-05-01 | Q13: 2015-06-01 | R13: 2015-07-01 | S13: 2015-08-01 | T13: 2015-09-01 | U13: 2015-10-01 | V13: 2015-11-01 | W13: 2015-12-01 | X13: 2016-01-01 | Y13: 2016-02-01 | Z13: 2016-03-01 | AA13: 2016-04-01 | AB13: 2016-05-01 | AC13: 2016-06-01 | AD13: 2016-07-01 | AE13: 2016-08-01 | AF13: 2016-09-01 | AG13: 2016-10-01 | AH13: 2016-11-01 | AI13: 2016-12-01 | AJ13: 2017-01-01
H14: 1 | I14: 2 | J14: 3 | K14: 4 | L14: 5 | M14: 6 | N14: 7 | O14: 8 | P14: 9 | Q14: 10 | R14: 11 | S14: 12 | T14: 13 | U14: 14 | V14: 15 | W14: 16 | X14: 17 | Y14: 18 | Z14: 19 | AA14: 20 | AB14: 21 | AC14: 22 | AD14: 23 | AE14: 24 | AF14: 25 | AG14: 26 | AH14: 27 | AI14: 28 | AJ14: 29
A15: Phone Credit | B15: =VLOOKUP(A15,$A$3:$E$7,5,FALSE) -> 700 | C15: =I4 -> 4 | D15: =B15*C15 -> 2800 | E15: =H4 -> 2015-01-01 | F15: =IF(E15>0,(HLOOKUP(E15,$H$13:$AJ$14,2)),0) -> 5 | H15: =IF(H$12>($F15+22),0,IF(H$12<$F15,0,IF(H$12=$F15,$D15,IF(H$12>$F15,G15)))) -> 0 | I15: =IF(I$12>($F15+22),0,IF(I$12<$F15,0,IF(I$12=$F15,$D15,IF(I$12>$F15,H15)))) -> 0 | J15: 0 | K15: 0 | L15: 2800 | M15: 2800 | N15: 2800 | O15: 2800 | P15: 2800 | Q15: 2800 | R15: 2800 | S15: 2800 | T15: 2800 | U15: 2800 | V15: 2800 | W15: 2800 | X15: 2800 | Y15: 2800 | Z15: 2800 | AA15: 2800 | AB15: 2800 | AC15: 2800 | AD15: 2800 | AE15: 2800 | AF15: 2800 | AG15: 2800 | AH15: 2800 | AI15: 0 | AJ15: 0
A16: Data Credit | B16: =VLOOKUP(A16,$A$3:$E$7,5,FALSE) -> 3150 | C16: =C15 -> 4 | D16: =B16*C16 -> 12600 | E16: =E15 -> 2015-01-01 | F16: =IF(E16>0,(HLOOKUP(E16,$H$13:$AJ$14,2)),0) -> 5 | H16: =IF(H$12>($F16+22),0,IF(H$12<$F16,0,IF(H$12=$F16,$D16,IF(H$12>$F16,G16)))) -> 0 | I16: 0 | J16: 0 | K16: 0 | L16: 12600 | M16: 12600 | N16: 12600 | O16: 12600 | P16: 12600 | Q16: 12600 | R16: 12600 | S16: 12600 | T16: 12600 | U16: 12600 | V16: 12600 | W16: 12600 | X16: 12600 | Y16: 12600 | Z16: 12600 | AA16: 12600 | AB16: 12600 | AC16: 12600 | AD16: 12600 | AE16: 12600 | AF16: 12600 | AG16: 12600 | AH16: 12600 | AI16: 0 | AJ16: 0
A17: Internet | B17: 1200 | C17: =C16 -> 4 | D17: =B17*C17 -> 4800 | E17: =E16 -> 2015-01-01 | F17: 5 | H17: =IF(H$12>($F17+22),0,IF(H$12<$F17,0,IF(H$12=$F17,$D17,IF(H$12>$F17,G17)))) -> 0 | I17: 0 | J17: 0 | K17: 0 | L17: 4800 | M17: 4800 | N17: 4800 | O17: 4800 | P17: 4800 | Q17: 4800 | R17: 4800 | S17: 4800 | T17: 4800 | U17: 4800 | V17: 4800 | W17: 4800 | X17: 4800 | Y17: 4800 | Z17: 4800 | AA17: 4800 | AB17: 4800 | AC17: 4800 | AD17: 4800 | AE17: 4800 | AF17: 4800 | AG17: 4800 | AH17: 4800 | AI17: 0 | AJ17: 0
H18: =IF(H$12>($F18+22),0,IF(H$12<$F18,0,IF(H$12=$F18,$D18,IF(H$12>$F18,G18)))) -> 0 | I18: 0 | J18: 0 | K18: 0 | L18: 0 | M18: 0 | N18: 0 | O18: 0 | P18: 0 | Q18: 0 | R18: 0 | S18: 0 | T18: 0 | U18: 0 | V18: 0 | W18: 0 | X18: 0 | Y18: 0 | Z18: 0 | AA18: 0 | AB18: 0 | AC18: 0 | AD18: 0 | AE18: 0 | AF18: 0 | AG18: 0 | AH18: 0 | AI18: 0 | AJ18: 0
C19: 0 | F19: 0 | H19: =IF(H$12>($F19+22),0,IF(H$12<$F19,0,IF(H$12=$F19,$D19,IF(H$12>$F19,G19)))) -> 0 | I19: 0 | J19: 0 | K19: 0 | L19: 0 | M19: 0 | N19: 0 | O19: 0 | P19: 0 | Q19: 0 | R19: 0 | S19: 0 | T19: 0 | U19: 0 | V19: 0 | W19: 0 | X19: 0 | Y19: 0 | Z19: 0 | AA19: 0 | AB19: 0 | AC19: 0 | AD19: 0 | AE19: 0 | AF19: 0 | AG19: 0 | AH19: 0 | AI19: 0 | AJ19: 0
F20: 0 | H20: =IF(H$12>($F20+22),0,IF(H$12<$F20,0,IF(H$12=$F20,$D20,IF(H$12>$F20,G20)))) -> 0 | I20: 0 | J20: 0 | K20: 0 | L20: 0 | M20: 0 | N20: 0 | O20: 0 | P20: 0 | Q20: 0 | R20: 0 | S20: 0 | T20: 0 | U20: 0 | V20: 0 | W20: 0 | X20: 0 | Y20: 0 | Z20: 0 | AA20: 0 | AB20: 0 | AC20: 0 | AD20: 0 | AE20: 0 | AF20: 0 | AG20: 0 | AH20: 0 | AI20: 0 | AJ20: 0
D21: =B21*C21 ->  | F21: 0 | H21: =IF(H$12>($F21+22),0,IF(H$12<$F21,0,IF(H$12=$F21,$D21,IF(H$12>$F21,G21)))) -> 0 | I21: 0 | J21: 0 | K21: 0 | L21: 0 | M21: 0 | N21: 0 | O21: 0 | P21: 0 | Q21: 0 | R21: 0 | S21: 0 | T21: 0 | U21: 0 | V21: 0 | W21: 0 | X21: 0 | Y21: 0 | Z21: 0 | AA21: 0 | AB21: 0 | AC21: 0 | AD21: 0 | AE21: 0 | AF21: 0 | AG21: 0 | AH21: 0 | AI21: 0 | AJ21: 0
F22: =IF(E22>0,(HLOOKUP(E22,$H$13:$AJ$14,2)),0) -> 0 | H22: =IF(H$12>($F22+22),0,IF(H$12<$F22,0,IF(H$12=$F22,$D22,IF(H$12>$F22,G22)))) -> 0 | I22: 0 | J22: 0 | K22: 0 | L22: 0 | M22: 0 | N22: 0 | O22: 0 | P22: 0 | Q22: 0 | R22: 0 | S22: 0 | T22: 0 | U22: 0 | V22: 0 | W22: 0 | X22: 0 | Y22: 0 | Z22: 0 | AA22: 0 | AB22: 0 | AC22: 0 | AD22: 0 | AE22: 0 | AF22: 0 | AG22: 0 | AH22: 0 | AI22: 0 | AJ22: 0
F23: 0 | H23: =IF(H$12>($F23+22),0,IF(H$12<$F23,0,IF(H$12=$F23,$D23,IF(H$12>$F23,G23)))) -> 0 | I23: 0 | J23: 0 | K23: 0 | L23: 0 | M23: 0 | N23: 0 | O23: 0 | P23: 0 | Q23: 0 | R23: 0 | S23: 0 | T23: 0 | U23: 0 | V23: 0 | W23: 0 | X23: 0 | Y23: 0 | Z23: 0 | AA23: 0 | AB23: 0 | AC23: 0 | AD23: 0 | AE23: 0 | AF23: 0 | AG23: 0 | AH23: 0 | AI23: 0 | AJ23: 0
F24: 0 | H24: =IF(H$12>($F24+22),0,IF(H$12<$F24,0,IF(H$12=$F24,$D24,IF(H$12>$F24,G24)))) -> 0 | I24: 0 | J24: 0 | K24: 0 | L24: 0 | M24: 0 | N24: 0 | O24: 0 | P24: 0 | Q24: 0 | R24: 0 | S24: 0 | T24: 0 | U24: 0 | V24: 0 | W24: 0 | X24: 0 | Y24: 0 | Z24: 0 | AA24: 0 | AB24: 0 | AC24: 0 | AD24: 0 | AE24: 0 | AF24: 0 | AG24: 0 | AH24: 0 | AI24: 0 | AJ24: 0
F25: 0 | H25: =IF(H$12>($F25+22),0,IF(H$12<$F25,0,IF(H$12=$F25,$D25,IF(H$12>$F25,G25)))) -> 0 | I25: 0 | J25: 0 | K25: 0 | L25: 0 | M25: 0 | N25: 0 | O25: 0 | P25: 0 | Q25: 0 | R25: 0 | S25: 0 | T25: 0 | U25: 0 | V25: 0 | W25: 0 | X25: 0 | Y25: 0 | Z25: 0 | AA25: 0 | AB25: 0 | AC25: 0 | AD25: 0 | AE25: 0 | AF25: 0 | AG25: 0 | AH25: 0 | AI25: 0 | AJ25: 0
A26: Phone Credit | B26: 700 | C26: =I5 -> 8 | D26: 5600 | E26: =H5 -> 2015-08-01 | F26: 12 | H26: =IF(H$12>($F26+22),0,IF(H$12<$F26,0,IF(H$12=$F26,$D26,IF(H$12>$F26,G26)))) -> 0 | I26: 0 | J26: 0 | K26: 0 | L26: 0 | M26: 0 | N26: 0 | O26: 0 | P26: 0 | Q26: 0 | R26: 0 | S26: 5600 | T26: 5600 | U26: 5600 | V26: 5600 | W26: 5600 | X26: 5600 | Y26: 5600 | Z26: 5600 | AA26: 5600 | AB26: 5600 | AC26: 5600 | AD26: 5600 | AE26: 5600 | AF26: 5600 | AG26: 5600 | AH26: 5600 | AI26: 5600 | AJ26: 5600
A27: Data Credit | B27: 3150 | C27: =C26 -> 8 | D27: 25200 | E27: =E26 -> 2015-08-01 | F27: 12 | H27: =IF(H$12>($F27+22),0,IF(H$12<$F27,0,IF(H$12=$F27,$D27,IF(H$12>$F27,G27)))) -> 0 | I27: 0 | J27: 0 | K27: 0 | L27: 0 | M27: 0 | N27: 0 | O27: 0 | P27: 0 | Q27: 0 | R27: 0 | S27: 25200 | T27: 25200 | U27: 25200 | V27: 25200 | W27: 25200 | X27: 25200 | Y27: 25200 | Z27: 25200 | AA27: 25200 | AB27: 25200 | AC27: 25200 | AD27: 25200 | AE27: 25200 | AF27: 25200 | AG27: 25200 | AH27: 25200 | AI27: 25200 | AJ27: 25200
A28: Internet | B28: 1200 | C28: =C27 -> 8 | D28: 9600 | E28: =E27 -> 2015-08-01 | F28: 12 | H28: =IF(H$12>($F28+22),0,IF(H$12<$F28,0,IF(H$12=$F28,$D28,IF(H$12>$F28,G28)))) -> 0 | I28: 0 | J28: 0 | K28: 0 | L28: 0 | M28: 0 | N28: 0 | O28: 0 | P28: 0 | Q28: 0 | R28: 0 | S28: 9600 | T28: 9600 | U28: 9600 | V28: 9600 | W28: 9600 | X28: 9600 | Y28: 9600 | Z28: 9600 | AA28: 9600 | AB28: 9600 | AC28: 9600 | AD28: 9600 | AE28: 9600 | AF28: 9600 | AG28: 9600 | AH28: 9600 | AI28: 9600 | AJ28: 9600
C29: =C28 -> 8 | F29: 0 | H29: =IF(H$12>($F29+22),0,IF(H$12<$F29,0,IF(H$12=$F29,$D29,IF(H$12>$F29,G29)))) -> 0 | I29: 0 | J29: 0 | K29: 0 | L29: 0 | M29: 0 | N29: 0 | O29: 0 | P29: 0 | Q29: 0 | R29: 0 | S29: 0 | T29: 0 | U29: 0 | V29: 0 | W29: 0 | X29: 0 | Y29: 0 | Z29: 0 | AA29: 0 | AB29: 0 | AC29: 0 | AD29: 0 | AE29: 0 | AF29: 0 | AG29: 0 | AH29: 0 | AI29: 0 | AJ29: 0
C30: =C29 -> 8 | F30: 0 | H30: =IF(H$12>($F30+22),0,IF(H$12<$F30,0,IF(H$12=$F30,$D30,IF(H$12>$F30,G30)))) -> 0 | I30: 0 | J30: 0 | K30: 0 | L30: 0 | M30: 0 | N30: 0 | O30: 0 | P30: 0 | Q30: 0 | R30: 0 | S30: 0 | T30: 0 | U30: 0 | V30: 0 | W30: 0 | X30: 0 | Y30: 0 | Z30: 0 | AA30: 0 | AB30: 0 | AC30: 0 | AD30: 0 | AE30: 0 | AF30: 0 | AG30: 0 | AH30: 0 | AI30: 0 | AJ30: 0
F31: 0 | H31: =IF(H$12>($F31+22),0,IF(H$12<$F31,0,IF(H$12=$F31,$D31,IF(H$12>$F31,G31)))) -> 0 | I31: 0 | J31: 0 | K31: 0 | L31: 0 | M31: 0 | N31: 0 | O31: 0 | P31: 0 | Q31: 0 | R31: 0 | S31: 0 | T31: 0 | U31: 0 | V31: 0 | W31: 0 | X31: 0 | Y31: 0 | Z31: 0 | AA31: 0 | AB31: 0 | AC31: 0 | AD31: 0 | AE31: 0 | AF31: 0 | AG31: 0 | AH31: 0 | AI31: 0 | AJ31: 0
F32: 0 | H32: =IF(H$12>($F32+22),0,IF(H$12<$F32,0,IF(H$12=$F32,$D32,IF(H$12>$F32,G32)))) -> 0 | I32: 0 | J32: 0 | K32: 0 | L32: 0 | M32: 0 | N32: 0 | O32: 0 | P32: 0 | Q32: 0 | R32: 0 | S32: 0 | T32: 0 | U32: 0 | V32: 0 | W32: 0 | X32: 0 | Y32: 0 | Z32: 0 | AA32: 0 | AB32: 0 | AC32: 0 | AD32: 0 | AE32: 0 | AF32: 0 | AG32: 0 | AH32: 0 | AI32: 0 | AJ32: 0
F33: 0 | H33: =IF(H$12>($F33+22),0,IF(H$12<$F33,0,IF(H$12=$F33,$D33,IF(H$12>$F33,G33)))) -> 0 | I33: 0 | J33: 0 | K33: 0 | L33: 0 | M33: 0 | N33: 0 | O33: 0 | P33: 0 | Q33: 0 | R33: 0 | S33: 0 | T33: 0 | U33: 0 | V33: 0 | W33: 0 | X33: 0 | Y33: 0 | Z33: 0 | AA33: 0 | AB33: 0 | AC33: 0 | AD33: 0 | AE33: 0 | AF33: 0 | AG33: 0 | AH33: 0 | AI33: 0 | AJ33: 0
F34: 0 | H34: =IF(H$12>($F34+22),0,IF(H$12<$F34,0,IF(H$12=$F34,$D34,IF(H$12>$F34,G34)))) -> 0 | I34: 0 | J34: 0 | K34: 0 | L34: 0 | M34: 0 | N34: 0 | O34: 0 | P34: 0 | Q34: 0 | R34: 0 | S34: 0 | T34: 0 | U34: 0 | V34: 0 | W34: 0 | X34: 0 | Y34: 0 | Z34: 0 | AA34: 0 | AB34: 0 | AC34: 0 | AD34: 0 | AE34: 0 | AF34: 0 | AG34: 0 | AH34: 0 | AI34: 0 | AJ34: 0
F35: 0 | H35: =IF(H$12>($F35+22),0,IF(H$12<$F35,0,IF(H$12=$F35,$D35,IF(H$12>$F35,G35)))) -> 0 | I35: 0 | J35: 0 | K35: 0 | L35: 0 | M35: 0 | N35: 0 | O35: 0 | P35: 0 | Q35: 0 | R35: 0 | S35: 0 | T35: 0 | U35: 0 | V35: 0 | W35: 0 | X35: 0 | Y35: 0 | Z35: 0 | AA35: 0 | AB35: 0 | AC35: 0 | AD35: 0 | AE35: 0 | AF35: 0 | AG35: 0 | AH35: 0 | AI35: 0 | AJ35: 0
F36: 0 | H36: =IF(H$12>($F36+22),0,IF(H$12<$F36,0,IF(H$12=$F36,$D36,IF(H$12>$F36,G36)))) -> 0 | I36: 0 | J36: 0 | K36: 0 | L36: 0 | M36: 0 | N36: 0 | O36: 0 | P36: 0 | Q36: 0 | R36: 0 | S36: 0 | T36: 0 | U36: 0 | V36: 0 | W36: 0 | X36: 0 | Y36: 0 | Z36: 0 | AA36: 0 | AB36: 0 | AC36: 0 | AD36: 0 | AE36: 0 | AF36: 0 | AG36: 0 | AH36: 0 | AI36: 0 | AJ36: 0
A37: Phone Credit | B37: 700 | C37: =I6 -> 10 | D37: 7000 | E37: =H6 -> 2016-08-01 | F37: 24 | H37: =IF(H$12>($F37+22),0,IF(H$12<$F37,0,IF(H$12=$F37,$D37,IF(H$12>$F37,G37)))) -> 0 | I37: 0 | J37: 0 | K37: 0 | L37: 0 | M37: 0 | N37: 0 | O37: 0 | P37: 0 | Q37: 0 | R37: 0 | S37: 0 | T37: 0 | U37: 0 | V37: 0 | W37: 0 | X37: 0 | Y37: 0 | Z37: 0 | AA37: 0 | AB37: 0 | AC37: 0 | AD37: 0 | AE37: 7000 | AF37: 7000 | AG37: 7000 | AH37: 7000 | AI37: 7000 | AJ37: 7000
A38: Data Credit | B38: 3150 | C38: =C37 -> 10 | D38: 31500 | E38: =E37 -> 2016-08-01 | F38: 24 | H38: =IF(H$12>($F38+22),0,IF(H$12<$F38,0,IF(H$12=$F38,$D38,IF(H$12>$F38,G38)))) -> 0 | I38: 0 | J38: 0 | K38: 0 | L38: 0 | M38: 0 | N38: 0 | O38: 0 | P38: 0 | Q38: 0 | R38: 0 | S38: 0 | T38: 0 | U38: 0 | V38: 0 | W38: 0 | X38: 0 | Y38: 0 | Z38: 0 | AA38: 0 | AB38: 0 | AC38: 0 | AD38: 0 | AE38: 31500 | AF38: 31500 | AG38: 31500 | AH38: 31500 | AI38: 31500 | AJ38: 31500
A39: Internet | B39: 1200 | C39: =C38 -> 10 | D39: 12000 | E39: =E38 -> 2016-08-01 | F39: 24 | H39: =IF(H$12>($F39+22),0,IF(H$12<$F39,0,IF(H$12=$F39,$D39,IF(H$12>$F39,G39)))) -> 0 | I39: 0 | J39: 0 | K39: 0 | L39: 0 | M39: 0 | N39: 0 | O39: 0 | P39: 0 | Q39: 0 | R39: 0 | S39: 0 | T39: 0 | U39: 0 | V39: 0 | W39: 0 | X39: 0 | Y39: 0 | Z39: 0 | AA39: 0 | AB39: 0 | AC39: 0 | AD39: 0 | AE39: 12000 | AF39: 12000 | AG39: 12000 | AH39: 12000 | AI39: 12000 | AJ39: 12000
C40: 10 | F40: 0 | H40: =IF(H$12>($F40+22),0,IF(H$12<$F40,0,IF(H$12=$F40,$D40,IF(H$12>$F40,G40)))) -> 0 | I40: 0 | J40: 0 | K40: 0 | L40: 0 | M40: 0 | N40: 0 | O40: 0 | P40: 0 | Q40: 0 | R40: 0 | S40: 0 | T40: 0 | U40: 0 | V40: 0 | W40: 0 | X40: 0 | Y40: 0 | Z40: 0 | AA40: 0 | AB40: 0 | AC40: 0 | AD40: 0 | AE40: 0 | AF40: 0 | AG40: 0 | AH40: 0 | AI40: 0 | AJ40: 0
C41: 10 | F41: 0 | H41: =IF(H$12>($F41+22),0,IF(H$12<$F41,0,IF(H$12=$F41,$D41,IF(H$12>$F41,G41)))) -> 0 | I41: 0 | J41: 0 | K41: 0 | L41: 0 | M41: 0 | N41: 0 | O41: 0 | P41: 0 | Q41: 0 | R41: 0 | S41: 0 | T41: 0 | U41: 0 | V41: 0 | W41: 0 | X41: 0 | Y41: 0 | Z41: 0 | AA41: 0 | AB41: 0 | AC41: 0 | AD41: 0 | AE41: 0 | AF41: 0 | AG41: 0 | AH41: 0 | AI41: 0 | AJ41: 0
F42: 0 | H42: =IF(H$12>($F42+22),0,IF(H$12<$F42,0,IF(H$12=$F42,$D42,IF(H$12>$F42,G42)))) -> 0 | I42: 0 | J42: 0 | K42: 0 | L42: 0 | M42: 0 | N42: 0 | O42: 0 | P42: 0 | Q42: 0 | R42: 0 | S42: 0 | T42: 0 | U42: 0 | V42: 0 | W42: 0 | X42: 0 | Y42: 0 | Z42: 0 | AA42: 0 | AB42: 0 | AC42: 0 | AD42: 0 | AE42: 0 | AF42: 0 | AG42: 0 | AH42: 0 | AI42: 0 | AJ42: 0
F43: 0 | H43: =IF(H$12>($F43+22),0,IF(H$12<$F43,0,IF(H$12=$F43,$D43,IF(H$12>$F43,G43)))) -> 0 | I43: 0 | J43: 0 | K43: 0 | L43: 0 | M43: 0 | N43: 0 | O43: 0 | P43: 0 | Q43: 0 | R43: 0 | S43: 0 | T43: 0 | U43: 0 | V43: 0 | W43: 0 | X43: 0 | Y43: 0 | Z43: 0 | AA43: 0 | AB43: 0 | AC43: 0 | AD43: 0 | AE43: 0 | AF43: 0 | AG43: 0 | AH43: 0 | AI43: 0 | AJ43: 0
F44: 0 | H44: =IF(H$12>($F44+22),0,IF(H$12<$F44,0,IF(H$12=$F44,$D44,IF(H$12>$F44,G44)))) -> 0 | I44: 0 | J44: 0 | K44: 0 | L44: 0 | M44: 0 | N44: 0 | O44: 0 | P44: 0 | Q44: 0 | R44: 0 | S44: 0 | T44: 0 | U44: 0 | V44: 0 | W44: 0 | X44: 0 | Y44: 0 | Z44: 0 | AA44: 0 | AB44: 0 | AC44: 0 | AD44: 0 | AE44: 0 | AF44: 0 | AG44: 0 | AH44: 0 | AI44: 0 | AJ44: 0
F45: 0 | H45: =IF(H$12>($F45+22),0,IF(H$12<$F45,0,IF(H$12=$F45,$D45,IF(H$12>$F45,G45)))) -> 0 | I45: 0 | J45: 0 | K45: 0 | L45: 0 | M45: 0 | N45: 0 | O45: 0 | P45: 0 | Q45: 0 | R45: 0 | S45: 0 | T45: 0 | U45: 0 | V45: 0 | W45: 0 | X45: 0 | Y45: 0 | Z45: 0 | AA45: 0 | AB45: 0 | AC45: 0 | AD45: 0 | AE45: 0 | AF45: 0 | AG45: 0 | AH45: 0 | AI45: 0 | AJ45: 0
H46: =IF(H$12>($F46+22),0,IF(H$12<$F46,0,IF(H$12=$F46,$D46,IF(H$12>$F46,G46)))) -> 0 | I46: 0 | J46: 0 | K46: 0 | L46: 0 | M46: 0 | N46: 0 | O46: 0 | P46: 0 | Q46: 0 | R46: 0 | S46: 0 | T46: 0 | U46: 0 | V46: 0 | W46: 0 | X46: 0 | Y46: 0 | Z46: 0 | AA46: 0 | AB46: 0 | AC46: 0 | AD46: 0 | AE46: 0 | AF46: 0 | AG46: 0 | AH46: 0 | AI46: 0 | AJ46: 0
H47: =IF(H$12>($F47+22),0,IF(H$12<$F47,0,IF(H$12=$F47,$D47,IF(H$12>$F47,G47)))) -> 0 | I47: 0 | J47: 0 | K47: 0 | L47: 0 | M47: 0 | N47: 0 | O47: 0 | P47: 0 | Q47: 0 | R47: 0 | S47: 0 | T47: 0 | U47: 0 | V47: 0 | W47: 0 | X47: 0 | Y47: 0 | Z47: 0 | AA47: 0 | AB47: 0 | AC47: 0 | AD47: 0 | AE47: 0 | AF47: 0 | AG47: 0 | AH47: 0 | AI47: 0 | AJ47: 0
H48: =IF(H$12>($F48+22),0,IF(H$12<$F48,0,IF(H$12=$F48,$D48,IF(H$12>$F48,G48)))) -> 0 | I48: 0 | J48: 0 | K48: 0 | L48: 0 | M48: 0 | N48: 0 | O48: 0 | P48: 0 | Q48: 0 | R48: 0 | S48: 0 | T48: 0 | U48: 0 | V48: 0 | W48: 0 | X48: 0 | Y48: 0 | Z48: 0 | AA48: 0 | AB48: 0 | AC48: 0 | AD48: 0 | AE48: 0 | AF48: 0 | AG48: 0 | AH48: 0 | AI48: 0 | AJ48: 0
G49: Total | H49: =SUM(H15:H48) -> 0 | I49: =SUM(I15:I48) -> 0 | J49: 0 | K49: 0 | L49: 20200 | M49: 20200 | N49: 20200 | O49: 20200 | P49: 20200 | Q49: 20200 | R49: 20200 | S49: 60600 | T49: 60600 | U49: 60600 | V49: 60600 | W49: 60600 | X49: 60600 | Y49: 60600 | Z49: 60600 | AA49: 60600 | AB49: 60600 | AC49: 60600 | AD49: 60600 | AE49: =SUM(AE15:AE48) -> 111100 | AF49: 111100 | AG49: 111100 | AH49: 111100 | AI49: 90900 | AJ49: 90900

Sheet Travel
A2: Assumptions
A3: Item | B3: Cost | C3: Cost Per Facility per month | E3: Facility Start Dates | F3: #
A4: Project Leader Fuel | B4: ='Travel Assumptions'!I8 -> 398.7692308 | C4: ='Travel Assumptions'!K8 -> 398.7692308 | E4: =Assumptions!B4 -> 2015-01-01 | F4: =Assumptions!C4 -> 4
A5: Village Visonary Fuel | B5: ='Travel Assumptions'!I9 -> 265.8461538 | C5: ='Travel Assumptions'!K9 -> 1595.076923 | E5: =Assumptions!B5 -> 2015-08-01 | F5: =Assumptions!C5 -> 8
A6: Field Visits* | B6: ='Travel Assumptions'!G20 -> 1250 | C6: =B6 -> 1250 | E6: =Assumptions!B6 -> 2016-08-01 | F6: =Assumptions!C6 -> 10
A7: Training Travel* | B7: ='Travel Assumptions'!J42 -> 2951.666667 | C7: =B7 -> 2951.666667
A8: Tribe Trips | B8: ='Travel Assumptions'!F52 -> 22925 | C8: ='Travel Assumptions'!G52 -> 11462.5
A10: Conference Travel* | B10: ='Travel Assumptions'!F31 -> 9825 | C10: ='Travel Assumptions'!G31 -> 4912.5
H16: 1 | I16: 2 | J16: 3 | K16: 4 | L16: 5 | M16: 6 | N16: 7 | O16: 8 | P16: 9 | Q16: 10 | R16: 11 | S16: 12 | T16: 13 | U16: 14 | V16: 15 | W16: 16 | X16: 17 | Y16: 18 | Z16: 19 | AA16: 20 | AB16: 21 | AC16: 22 | AD16: 23 | AE16: 24 | AF16: 25 | AG16: 26 | AH16: 27 | AI16: 28 | AJ16: 29
A17: Position | B17: Cost | C17: # of Facilities | D17: Total | E17: Start Date | H17: 2014-09-01 | I17: 2014-10-01 | J17: 2014-11-01 | K17: 2014-12-01 | L17: 2015-01-01 | M17: 2015-02-01 | N17: 2015-03-01 | O17: 2015-04-01 | P17: 2015-05-01 | Q17: 2015-06-01 | R17: 2015-07-01 | S17: 2015-08-01 | T17: 2015-09-01 | U17: 2015-10-01 | V17: 2015-11-01 | W17: 2015-12-01 | X17: 2016-01-01 | Y17: 2016-02-01 | Z17: 2016-03-01 | AA17: 2016-04-01 | AB17: 2016-05-01 | AC17: 2016-06-01 | AD17: 2016-07-01 | AE17: 2016-08-01 | AF17: 2016-09-01 | AG17: 2016-10-01 | AH17: 2016-11-01 | AI17: 2016-12-01 | AJ17: 2017-01-01
A18: Batch 1 | H18: 1 | I18: 2 | J18: 3 | K18: 4 | L18: 5 | M18: 6 | N18: 7 | O18: 8 | P18: 9 | Q18: 10 | R18: 11 | S18: 12 | T18: 13 | U18: 14 | V18: 15 | W18: 16 | X18: 17 | Y18: 18 | Z18: 19 | AA18: 20 | AB18: 21 | AC18: 22 | AD18: 23 | AE18: 24 | AF18: 25 | AG18: 26 | AH18: 27 | AI18: 28 | AJ18: 29
A19: Project Leader Fuel | B19: =VLOOKUP(A19,$A$4:$C$10,3,FALSE) -> 398.7692308 | C19: =F4 -> 4 | D19: =B19*C19 -> 1595.076923 | E19: =E4 -> 2015-01-01 | F19: =IF(E19>0,(HLOOKUP(E19,$H$17:$AJ$18,2)),0) -> 5 | H19: =IF(H$16>($F19+22),0,IF(H$16<$F19,0,IF(H$16=$F19,$D19,IF(H$16>$F19,G19)))) -> 0 | I19: =IF(I$16>($F19+22),0,IF(I$16<$F19,0,IF(I$16=$F19,$D19,IF(I$16>$F19,H19)))) -> 0 | J19: 0 | K19: 0 | L19: 1595.076923 | M19: 1595.076923 | N19: 1595.076923 | O19: 1595.076923 | P19: 1595.076923 | Q19: 1595.076923 | R19: 1595.076923 | S19: 1595.076923 | T19: 1595.076923 | U19: 1595.076923 | V19: 1595.076923 | W19: 1595.076923 | X19: 1595.076923 | Y19: 1595.076923 | Z19: 1595.076923 | AA19: 1595.076923 | AB19: 1595.076923 | AC19: 1595.076923 | AD19: 1595.076923 | AE19: 1595.076923 | AF19: 1595.076923 | AG19: 1595.076923 | AH19: 1595.076923 | AI19: 0 | AJ19: 0
A20: Village Visonary Fuel | B20: =VLOOKUP(A20,$A$4:$C$10,3,FALSE) -> 1595.076923 | C20: =C19 -> 4 | D20: 6380.307692 | E20: =E19 -> 2015-01-01 | F20: =IF(E20>0,(HLOOKUP(E20,$H$17:$AJ$18,2)),0) -> 5 | H20: =IF(H$16>($F20+22),0,IF(H$16<$F20,0,IF(H$16=$F20,$D20,IF(H$16>$F20,G20)))) -> 0 | I20: 0 | J20: 0 | K20: 0 | L20: 6380.307692 | M20: 6380.307692 | N20: 6380.307692 | O20: 6380.307692 | P20: 6380.307692 | Q20: 6380.307692 | R20: 6380.307692 | S20: 6380.307692 | T20: 6380.307692 | U20: 6380.307692 | V20: 6380.307692 | W20: 6380.307692 | X20: 6380.307692 | Y20: 6380.307692 | Z20: 6380.307692 | AA20: 6380.307692 | AB20: 6380.307692 | AC20: 6380.307692 | AD20: 6380.307692 | AE20: 6380.307692 | AF20: 6380.307692 | AG20: 6380.307692 | AH20: 6380.307692 | AI20: 0 | AJ20: 0
A21: Field Visits* | B21: 1250 | C21: =C20 -> 4 | D21: 5000 | E21: =E20 -> 2015-01-01 | F21: 5 | H21: =IF(H$16>($F21+22),0,IF(H$16<$F21,0,IF(H$16=$F21,$D21,IF(H$16>$F21,G21)))) -> 0 | I21: 0 | J21: 0 | K21: 0 | L21: 5000 | M21: 5000 | N21: 5000 | O21: 5000 | P21: 5000 | Q21: 5000 | R21: 5000 | S21: 5000 | T21: 5000 | U21: 5000 | V21: 5000 | W21: 5000 | X21: 5000 | Y21: 5000 | Z21: 5000 | AA21: 5000 | AB21: 5000 | AC21: 5000 | AD21: 5000 | AE21: 5000 | AF21: 5000 | AG21: 5000 | AH21: 5000 | AI21: 0 | AJ21: 0
A22: Training Travel* | B22: 2951.666667 | C22: 4 | D22: 11806.66667 | E22: 2015-01-01 | F22: 5 | H22: =IF(H$16>($F22+22),0,IF(H$16<$F22,0,IF(H$16=$F22,$D22,IF(H$16>$F22,G22)))) -> 0 | I22: 0 | J22: 0 | K22: 0 | L22: 11806.66667 | M22: 11806.66667 | N22: 11806.66667 | O22: 11806.66667 | P22: 11806.66667 | Q22: 11806.66667 | R22: 11806.66667 | S22: 11806.66667 | T22: 11806.66667 | U22: 11806.66667 | V22: 11806.66667 | W22: 11806.66667 | X22: 11806.66667 | Y22: 11806.66667 | Z22: 11806.66667 | AA22: 11806.66667 | AB22: 11806.66667 | AC22: 11806.66667 | AD22: 11806.66667 | AE22: 11806.66667 | AF22: 11806.66667 | AG22: 11806.66667 | AH22: 11806.66667 | AI22: 0 | AJ22: 0
A23: Tribe Trips | B23: 11462.5 | C23: 4 | D23: 45850 | E23: 2015-01-01 | F23: 5 | H23: =IF(H$16>($F23+22),0,IF(H$16<$F23,0,IF(H$16=$F23,$D23,IF(H$16>$F23,G23)))) -> 0 | I23: 0 | J23: 0 | K23: 0 | L23: 45850 | M23: 45850 | N23: 45850 | O23: 45850 | P23: 45850 | Q23: 45850 | R23: 45850 | S23: 45850 | T23: 45850 | U23: 45850 | V23: 45850 | W23: 45850 | X23: 45850 | Y23: 45850 | Z23: 45850 | AA23: 45850 | AB23: 45850 | AC23: 45850 | AD23: 45850 | AE23: 45850 | AF23: 45850 | AG23: 45850 | AH23: 45850 | AI23: 0 | AJ23: 0
C24: 4 | D24: 0 | E24: 2015-01-01 | F24: 5 | H24: =IF(H$16>($F24+22),0,IF(H$16<$F24,0,IF(H$16=$F24,$D24,IF(H$16>$F24,G24)))) -> 0 | I24: 0 | J24: 0 | K24: 0 | L24: 0 | M24: 0 | N24: 0 | O24: 0 | P24: 0 | Q24: 0 | R24: 0 | S24: 0 | T24: 0 | U24: 0 | V24: 0 | W24: 0 | X24: 0 | Y24: 0 | Z24: 0 | AA24: 0 | AB24: 0 | AC24: 0 | AD24: 0 | AE24: 0 | AF24: 0 | AG24: 0 | AH24: 0 | AI24: 0 | AJ24: 0
A25: Conference Travel* | B25: =VLOOKUP(A25,$A$4:$C$10,3,FALSE) -> 4912.5 | C25: 1 | D25: 4912.5 | E25: 2015-01-01 | F25: 5 | H25: =IF(H$16<$F25,0,IF(H$16=$F25,$D25,IF(H$16>$F25,G25))) -> 0 | I25: 0 | J25: 0 | K25: 0 | L25: 4912.5 | M25: 4912.5 | N25: 4912.5 | O25: 4912.5 | P25: 4912.5 | Q25: 4912.5 | R25: 4912.5 | S25: 4912.5 | T25: 4912.5 | U25: 4912.5 | V25: 4912.5 | W25: 4912.5 | X25: 4912.5 | Y25: 4912.5 | Z25: 4912.5 | AA25: 4912.5 | AB25: 4912.5 | AC25: 4912.5 | AD25: 4912.5 | AE25: 4912.5 | AF25: 4912.5 | AG25: 4912.5 | AH25: 4912.5 | AI25: 4912.5 | AJ25: 4912.5
C26: 1 | D26: =B26*C26 -> 0 | E26: 2015-01-01 | F26: 5 | H26: =IF(H$16<$F26,0,IF(H$16=$F26,$D26,IF(H$16>$F26,G26))) -> 0 | I26: 0 | J26: 0 | K26: 0 | L26: 0 | M26: 0 | N26: 0 | O26: 0 | P26: 0 | Q26: 0 | R26: 0 | S26: 0 | T26: 0 | U26: 0 | V26: 0 | W26: 0 | X26: 0 | Y26: 0 | Z26: 0 | AA26: 0 | AB26: 0 | AC26: 0 | AD26: 0 | AE26: 0 | AF26: 0 | AG26: 0 | AH26: 0 | AI26: 0 | AJ26: 0
F27: 0 | H27: =IF(H$16<$F27,0,IF(H$16=$F27,$D27,IF(H$16>$F27,G27))) -> 0 | I27: 0 | J27: 0 | K27: 0 | L27: 0 | M27: 0 | N27: 0 | O27: 0 | P27: 0 | Q27: 0 | R27: 0 | S27: 0 | T27: 0 | U27: 0 | V27: 0 | W27: 0 | X27: 0 | Y27: 0 | Z27: 0 | AA27: 0 | AB27: 0 | AC27: 0 | AD27: 0 | AE27: 0 | AF27: 0 | AG27: 0 | AH27: 0 | AI27: 0 | AJ27: 0
D28: =B28*C28 ->  | F28: 0 | H28: =IF(H$16<$F28,0,IF(H$16=$F28,$D28,IF(H$16>$F28,G28))) -> 0 | I28: 0 | J28: 0 | K28: 0 | L28: 0 | M28: 0 | N28: 0 | O28: 0 | P28: 0 | Q28: 0 | R28: 0 | S28: 0 | T28: 0 | U28: 0 | V28: 0 | W28: 0 | X28: 0 | Y28: 0 | Z28: 0 | AA28: 0 | AB28: 0 | AC28: 0 | AD28: 0 | AE28: 0 | AF28: 0 | AG28: 0 | AH28: 0 | AI28: 0 | AJ28: 0
D29: =B29*C29 ->  | F29: 0 | H29: =IF(H$16<$F29,0,IF(H$16=$F29,$D29,IF(H$16>$F29,G29))) -> 0 | I29: 0 | J29: 0 | K29: 0 | L29: 0 | M29: 0 | N29: 0 | O29: 0 | P29: 0 | Q29: 0 | R29: 0 | S29: 0 | T29: 0 | U29: 0 | V29: 0 | W29: 0 | X29: 0 | Y29: 0 | Z29: 0 | AA29: 0 | AB29: 0 | AC29: 0 | AD29: 0 | AE29: 0 | AF29: 0 | AG29: 0 | AH29: 0 | AI29: 0 | AJ29: 0
A31: Batch 2 | D31: =B31*C31 ->  | F31: 0 | H31: =IF(H$16<$F31,0,IF(H$16=$F31,$D31,IF(H$16>$F31,G31))) -> 0 | I31: 0 | J31: 0 | K31: 0 | L31: 0 | M31: 0 | N31: 0 | O31: 0 | P31: 0 | Q31: 0 | R31: 0 | S31: 0 | T31: 0 | U31: 0 | V31: 0 | W31: 0 | X31: 0 | Y31: 0 | Z31: 0 | AA31: 0 | AB31: 0 | AC31: 0 | AD31: 0 | AE31: 0 | AF31: 0 | AG31: 0 | AH31: 0 | AI31: 0 | AJ31: 0
A32: Project Leader Fuel | B32: 398.7692308 | C32: =F5 -> 8 | D32: 3190.153846 | E32: =E5 -> 2015-08-01 | F32: 12 | H32: =IF(H$16<$F32,0,IF(H$16=$F32,$D32,IF(H$16>$F32,G32))) -> 0 | I32: 0 | J32: 0 | K32: 0 | L32: 0 | M32: 0 | N32: 0 | O32: 0 | P32: 0 | Q32: 0 | R32: 0 | S32: 3190.153846 | T32: 3190.153846 | U32: 3190.153846 | V32: 3190.153846 | W32: 3190.153846 | X32: 3190.153846 | Y32: 3190.153846 | Z32: 3190.153846 | AA32: 3190.153846 | AB32: 3190.153846 | AC32: 3190.153846 | AD32: 3190.153846 | AE32: 3190.153846 | AF32: 3190.153846 | AG32: 3190.153846 | AH32: 3190.153846 | AI32: 3190.153846 | AJ32: 3190.153846
A33: Village Visonary Fuel | B33: 1595.076923 | C33: =C32 -> 8 | D33: 12760.61538 | E33: =E32 -> 2015-08-01 | F33: 12 | H33: =IF(H$16<$F33,0,IF(H$16=$F33,$D33,IF(H$16>$F33,G33))) -> 0 | I33: 0 | J33: 0 | K33: 0 | L33: 0 | M33: 0 | N33: 0 | O33: 0 | P33: 0 | Q33: 0 | R33: 0 | S33: 12760.61538 | T33: 12760.61538 | U33: 12760.61538 | V33: 12760.61538 | W33: 12760.61538 | X33: 12760.61538 | Y33: 12760.61538 | Z33: 12760.61538 | AA33: 12760.61538 | AB33: 12760.61538 | AC33: 12760.61538 | AD33: 12760.61538 | AE33: 12760.61538 | AF33: 12760.61538 | AG33: 12760.61538 | AH33: 12760.61538 | AI33: 12760.61538 | AJ33: 12760.61538
A34: Field Visits* | B34: 1250 | C34: =C33 -> 8 | D34: 10000 | E34: =E33 -> 2015-08-01 | F34: 12 | H34: =IF(H$16<$F34,0,IF(H$16=$F34,$D34,IF(H$16>$F34,G34))) -> 0 | I34: 0 | J34: 0 | K34: 0 | L34: 0 | M34: 0 | N34: 0 | O34: 0 | P34: 0 | Q34: 0 | R34: 0 | S34: 10000 | T34: 10000 | U34: 10000 | V34: 10000 | W34: 10000 | X34: 10000 | Y34: 10000 | Z34: 10000 | AA34: 10000 | AB34: 10000 | AC34: 10000 | AD34: 10000 | AE34: 10000 | AF34: 10000 | AG34: 10000 | AH34: 10000 | AI34: 10000 | AJ34: 10000
A35: Training Travel* | B35: 2951.666667 | C35: 8 | D35: 23613.33333 | E35: 2015-08-01 | F35: 12 | H35: =IF(H$16<$F35,0,IF(H$16=$F35,$D35,IF(H$16>$F35,G35))) -> 0 | I35: 0 | J35: 0 | K35: 0 | L35: 0 | M35: 0 | N35: 0 | O35: 0 | P35: 0 | Q35: 0 | R35: 0 | S35: 23613.33333 | T35: 23613.33333 | U35: 23613.33333 | V35: 23613.33333 | W35: 23613.33333 | X35: 23613.33333 | Y35: 23613.33333 | Z35: 23613.33333 | AA35: 23613.33333 | AB35: 23613.33333 | AC35: 23613.33333 | AD35: 23613.33333 | AE35: 23613.33333 | AF35: 23613.33333 | AG35: 23613.33333 | AH35: 23613.33333 | AI35: 23613.33333 | AJ35: 23613.33333
A36: Tribe Trips | B36: 11462.5 | C36: 1 | D36: 11462.5 | E36: 2015-08-01 | F36: 12 | H36: =IF(H$16<$F36,0,IF(H$16=$F36,$D36,IF(H$16>$F36,G36))) -> 0 | I36: 0 | J36: 0 | K36: 0 | L36: 0 | M36: 0 | N36: 0 | O36: 0 | P36: 0 | Q36: 0 | R36: 0 | S36: 11462.5 | T36: 11462.5 | U36: 11462.5 | V36: 11462.5 | W36: 11462.5 | X36: 11462.5 | Y36: 11462.5 | Z36: 11462.5 | AA36: 11462.5 | AB36: 11462.5 | AC36: 11462.5 | AD36: 11462.5 | AE36: 11462.5 | AF36: 11462.5 | AG36: 11462.5 | AH36: 11462.5 | AI36: 11462.5 | AJ36: 11462.5
C37: 1 | D37: 0 | E37: 2015-08-01 | F37: 12 | H37: =IF(H$16<$F37,0,IF(H$16=$F37,$D37,IF(H$16>$F37,G37))) -> 0 | I37: 0 | J37: 0 | K37: 0 | L37: 0 | M37: 0 | N37: 0 | O37: 0 | P37: 0 | Q37: 0 | R37: 0 | S37: 0 | T37: 0 | U37: 0 | V37: 0 | W37: 0 | X37: 0 | Y37: 0 | Z37: 0 | AA37: 0 | AB37: 0 | AC37: 0 | AD37: 0 | AE37: 0 | AF37: 0 | AG37: 0 | AH37: 0 | AI37: 0 | AJ37: 0
A38: Conference Travel* | B38: 4912.5 | C38: 1 | D38: 4912.5 | E38: 2015-08-01 | F38: 12 | H38: =IF(H$16<$F38,0,IF(H$16=$F38,$D38,IF(H$16>$F38,G38))) -> 0 | I38: 0 | J38: 0 | K38: 0 | L38: 0 | M38: 0 | N38: 0 | O38: 0 | P38: 0 | Q38: 0 | R38: 0 | S38: 4912.5 | T38: 4912.5 | U38: 4912.5 | V38: 4912.5 | W38: 4912.5 | X38: 4912.5 | Y38: 4912.5 | Z38: 4912.5 | AA38: 4912.5 | AB38: 4912.5 | AC38: 4912.5 | AD38: 4912.5 | AE38: 4912.5 | AF38: 4912.5 | AG38: 4912.5 | AH38: 4912.5 | AI38: 4912.5 | AJ38: 4912.5
D39: 0 | E39: 2015-08-01 | F39: 12 | H39: =IF(H$16<$F39,0,IF(H$16=$F39,$D39,IF(H$16>$F39,G39))) -> 0 | I39: 0 | J39: 0 | K39: 0 | L39: 0 | M39: 0 | N39: 0 | O39: 0 | P39: 0 | Q39: 0 | R39: 0 | S39: 0 | T39: 0 | U39: 0 | V39: 0 | W39: 0 | X39: 0 | Y39: 0 | Z39: 0 | AA39: 0 | AB39: 0 | AC39: 0 | AD39: 0 | AE39: 0 | AF39: 0 | AG39: 0 | AH39: 0 | AI39: 0 | AJ39: 0
D40: 0 | E40: 2015-08-01 | F40: 12 | H40: =IF(H$16<$F40,0,IF(H$16=$F40,$D40,IF(H$16>$F40,G40))) -> 0 | I40: 0 | J40: 0 | K40: 0 | L40: 0 | M40: 0 | N40: 0 | O40: 0 | P40: 0 | Q40: 0 | R40: 0 | S40: 0 | T40: 0 | U40: 0 | V40: 0 | W40: 0 | X40: 0 | Y40: 0 | Z40: 0 | AA40: 0 | AB40: 0 | AC40: 0 | AD40: 0 | AE40: 0 | AF40: 0 | AG40: 0 | AH40: 0 | AI40: 0 | AJ40: 0
D41: 0 | E41: 2015-08-01 | F41: 12 | H41: =IF(H$16<$F41,0,IF(H$16=$F41,$D41,IF(H$16>$F41,G41))) -> 0 | I41: 0 | J41: 0 | K41: 0 | L41: 0 | M41: 0 | N41: 0 | O41: 0 | P41: 0 | Q41: 0 | R41: 0 | S41: 0 | T41: 0 | U41: 0 | V41: 0 | W41: 0 | X41: 0 | Y41: 0 | Z41: 0 | AA41: 0 | AB41: 0 | AC41: 0 | AD41: 0 | AE41: 0 | AF41: 0 | AG41: 0 | AH41: 0 | AI41: 0 | AJ41: 0
F42: 0 | H42: =IF(H$16<$F42,0,IF(H$16=$F42,$D42,IF(H$16>$F42,G42))) -> 0 | I42: 0 | J42: 0 | K42: 0 | L42: 0 | M42: 0 | N42: 0 | O42: 0 | P42: 0 | Q42: 0 | R42: 0 | S42: 0 | T42: 0 | U42: 0 | V42: 0 | W42: 0 | X42: 0 | Y42: 0 | Z42: 0 | AA42: 0 | AB42: 0 | AC42: 0 | AD42: 0 | AE42: 0 | AF42: 0 | AG42: 0 | AH42: 0 | AI42: 0 | AJ42: 0
F43: 0 | H43: =IF(H$16<$F43,0,IF(H$16=$F43,$D43,IF(H$16>$F43,G43))) -> 0 | I43: 0 | J43: 0 | K43: 0 | L43: 0 | M43: 0 | N43: 0 | O43: 0 | P43: 0 | Q43: 0 | R43: 0 | S43: 0 | T43: 0 | U43: 0 | V43: 0 | W43: 0 | X43: 0 | Y43: 0 | Z43: 0 | AA43: 0 | AB43: 0 | AC43: 0 | AD43: 0 | AE43: 0 | AF43: 0 | AG43: 0 | AH43: 0 | AI43: 0 | AJ43: 0
A44: Batch 3 | F44: 0 | H44: =IF(H$16<$F44,0,IF(H$16=$F44,$D44,IF(H$16>$F44,G44))) -> 0 | I44: 0 | J44: 0 | K44: 0 | L44: 0 | M44: 0 | N44: 0 | O44: 0 | P44: 0 | Q44: 0 | R44: 0 | S44: 0 | T44: 0 | U44: 0 | V44: 0 | W44: 0 | X44: 0 | Y44: 0 | Z44: 0 | AA44: 0 | AB44: 0 | AC44: 0 | AD44: 0 | AE44: 0 | AF44: 0 | AG44: 0 | AH44: 0 | AI44: 0 | AJ44: 0
A45: Project Leader Fuel | B45: 398.7692308 | C45: =F6 -> 10 | D45: 3987.692308 | E45: =E6 -> 2016-08-01 | F45: 24 | H45: =IF(H$16<$F45,0,IF(H$16=$F45,$D45,IF(H$16>$F45,G45))) -> 0 | I45: 0 | J45: 0 | K45: 0 | L45: 0 | M45: 0 | N45: 0 | O45: 0 | P45: 0 | Q45: 0 | R45: 0 | S45: 0 | T45: 0 | U45: 0 | V45: 0 | W45: 0 | X45: 0 | Y45: 0 | Z45: 0 | AA45: 0 | AB45: 0 | AC45: 0 | AD45: 0 | AE45: 3987.692308 | AF45: 3987.692308 | AG45: 3987.692308 | AH45: 3987.692308 | AI45: 3987.692308 | AJ45: 3987.692308
A46: Village Visonary Fuel | B46: 1595.076923 | C46: =C45 -> 10 | D46: =B46*C46 -> 15950.76923 | E46: =E45 -> 2016-08-01 | F46: 24 | H46: =IF(H$16<$F46,0,IF(H$16=$F46,$D46,IF(H$16>$F46,G46))) -> 0 | I46: 0 | J46: 0 | K46: 0 | L46: 0 | M46: 0 | N46: 0 | O46: 0 | P46: 0 | Q46: 0 | R46: 0 | S46: 0 | T46: 0 | U46: 0 | V46: 0 | W46: 0 | X46: 0 | Y46: 0 | Z46: 0 | AA46: 0 | AB46: 0 | AC46: 0 | AD46: 0 | AE46: 15950.76923 | AF46: 15950.76923 | AG46: 15950.76923 | AH46: 15950.76923 | AI46: 15950.76923 | AJ46: 15950.76923
A47: Field Visits* | B47: 1250 | C47: =C46 -> 10 | D47: 12500 | E47: =E46 -> 2016-08-01 | F47: 24 | H47: =IF(H$16<$F47,0,IF(H$16=$F47,$D47,IF(H$16>$F47,G47))) -> 0 | I47: 0 | J47: 0 | K47: 0 | L47: 0 | M47: 0 | N47: 0 | O47: 0 | P47: 0 | Q47: 0 | R47: 0 | S47: 0 | T47: 0 | U47: 0 | V47: 0 | W47: 0 | X47: 0 | Y47: 0 | Z47: 0 | AA47: 0 | AB47: 0 | AC47: 0 | AD47: 0 | AE47: 12500 | AF47: 12500 | AG47: 12500 | AH47: 12500 | AI47: 12500 | AJ47: 12500
A48: Training Travel* | B48: 2951.666667 | C48: 10 | D48: 29516.66667 | E48: =E47 -> 2016-08-01 | F48: 24 | H48: =IF(H$16<$F48,0,IF(H$16=$F48,$D48,IF(H$16>$F48,G48))) -> 0 | I48: 0 | J48: 0 | K48: 0 | L48: 0 | M48: 0 | N48: 0 | O48: 0 | P48: 0 | Q48: 0 | R48: 0 | S48: 0 | T48: 0 | U48: 0 | V48: 0 | W48: 0 | X48: 0 | Y48: 0 | Z48: 0 | AA48: 0 | AB48: 0 | AC48: 0 | AD48: 0 | AE48: 29516.66667 | AF48: 29516.66667 | AG48: 29516.66667 | AH48: 29516.66667 | AI48: 29516.66667 | AJ48: 29516.66667
A49: Tribe Trips | B49: 11462.5 | C49: 1 | D49: 11462.5 | E49: 2016-08-01 | F49: 24 | H49: =IF(H$16<$F49,0,IF(H$16=$F49,$D49,IF(H$16>$F49,G49))) -> 0 | I49: 0 | J49: 0 | K49: 0 | L49: 0 | M49: 0 | N49: 0 | O49: 0 | P49: 0 | Q49: 0 | R49: 0 | S49: 0 | T49: 0 | U49: 0 | V49: 0 | W49: 0 | X49: 0 | Y49: 0 | Z49: 0 | AA49: 0 | AB49: 0 | AC49: 0 | AD49: 0 | AE49: 11462.5 | AF49: 11462.5 | AG49: 11462.5 | AH49: 11462.5 | AI49: 11462.5 | AJ49: 11462.5
D50: 0 | E50: 2016-08-01 | F50: 24 | H50: =IF(H$16<$F50,0,IF(H$16=$F50,$D50,IF(H$16>$F50,G50))) -> 0 | I50: 0 | J50: 0 | K50: 0 | L50: 0 | M50: 0 | N50: 0 | O50: 0 | P50: 0 | Q50: 0 | R50: 0 | S50: 0 | T50: 0 | U50: 0 | V50: 0 | W50: 0 | X50: 0 | Y50: 0 | Z50: 0 | AA50: 0 | AB50: 0 | AC50: 0 | AD50: 0 | AE50: 0 | AF50: 0 | AG50: 0 | AH50: 0 | AI50: 0 | AJ50: 0
A51: Conference Travel* | B51: 4912.5 | C51: =C49 -> 1 | D51: 4912.5 | E51: 2016-08-01 | F51: 24 | H51: =IF(H$16<$F51,0,IF(H$16=$F51,$D51,IF(H$16>$F51,G51))) -> 0 | I51: 0 | J51: 0 | K51: 0 | L51: 0 | M51: 0 | N51: 0 | O51: 0 | P51: 0 | Q51: 0 | R51: 0 | S51: 0 | T51: 0 | U51: 0 | V51: 0 | W51: 0 | X51: 0 | Y51: 0 | Z51: 0 | AA51: 0 | AB51: 0 | AC51: 0 | AD51: 0 | AE51: 4912.5 | AF51: 4912.5 | AG51: 4912.5 | AH51: 4912.5 | AI51: 4912.5 | AJ51: 4912.5
D52: 0 | E52: 2016-08-01 | F52: 24 | H52: =IF(H$16<$F52,0,IF(H$16=$F52,$D52,IF(H$16>$F52,G52))) -> 0 | I52: 0 | J52: 0 | K52: 0 | L52: 0 | M52: 0 | N52: 0 | O52: 0 | P52: 0 | Q52: 0 | R52: 0 | S52: 0 | T52: 0 | U52: 0 | V52: 0 | W52: 0 | X52: 0 | Y52: 0 | Z52: 0 | AA52: 0 | AB52: 0 | AC52: 0 | AD52: 0 | AE52: 0 | AF52: 0 | AG52: 0 | AH52: 0 | AI52: 0 | AJ52: 0
D53: 0 | E53: 2016-08-01 | F53: 24 | H53: =IF(H$16<$F53,0,IF(H$16=$F53,$D53,IF(H$16>$F53,G53))) -> 0 | I53: 0 | J53: 0 | K53: 0 | L53: 0 | M53: 0 | N53: 0 | O53: 0 | P53: 0 | Q53: 0 | R53: 0 | S53: 0 | T53: 0 | U53: 0 | V53: 0 | W53: 0 | X53: 0 | Y53: 0 | Z53: 0 | AA53: 0 | AB53: 0 | AC53: 0 | AD53: 0 | AE53: 0 | AF53: 0 | AG53: 0 | AH53: 0 | AI53: 0 | AJ53: 0
D54: =B54*C54 -> 0 | E54: 2016-08-01 | F54: 24 | H54: =IF(H$16<$F54,0,IF(H$16=$F54,$D54,IF(H$16>$F54,G54))) -> 0 | I54: 0 | J54: 0 | K54: 0 | L54: 0 | M54: 0 | N54: 0 | O54: 0 | P54: 0 | Q54: 0 | R54: 0 | S54: 0 | T54: 0 | U54: 0 | V54: 0 | W54: 0 | X54: 0 | Y54: 0 | Z54: 0 | AA54: 0 | AB54: 0 | AC54: 0 | AD54: 0 | AE54: 0 | AF54: 0 | AG54: 0 | AH54: 0 | AI54: 0 | AJ54: 0
D55: =B55*C55 ->  | F55: 0 | H55: =IF(H$16<$F55,0,IF(H$16=$F55,$D55,IF(H$16>$F55,G55))) -> 0 | I55: 0 | J55: 0 | K55: 0 | L55: 0 | M55: 0 | N55: 0 | O55: 0 | P55: 0 | Q55: 0 | R55: 0 | S55: 0 | T55: 0 | U55: 0 | V55: 0 | W55: 0 | X55: 0 | Y55: 0 | Z55: 0 | AA55: 0 | AB55: 0 | AC55: 0 | AD55: 0 | AE55: 0 | AF55: 0 | AG55: 0 | AH55: 0 | AI55: 0 | AJ55: 0
H56: =IF(H$16<$F56,0,IF(H$16=$F56,$D56,IF(H$16>$F56,G56))) -> 0 | I56: 0 | J56: 0 | K56: 0 | L56: 0 | M56: 0 | N56: 0 | O56: 0 | P56: 0 | Q56: 0 | R56: 0 | S56: 0 | T56: 0 | U56: 0 | V56: 0 | W56: 0 | X56: 0 | Y56: 0 | Z56: 0 | AA56: 0 | AB56: 0 | AC56: 0 | AD56: 0 | AE56: 0 | AF56: 0 | AG56: 0 | AH56: 0 | AI56: 0 | AJ56: 0
H57: =IF(H$16<$F57,0,IF(H$16=$F57,$D57,IF(H$16>$F57,G57))) -> 0 | I57: 0 | J57: 0 | K57: 0 | L57: 0 | M57: 0 | N57: 0 | O57: 0 | P57: 0 | Q57: 0 | R57: 0 | S57: 0 | T57: 0 | U57: 0 | V57: 0 | W57: 0 | X57: 0 | Y57: 0 | Z57: 0 | AA57: 0 | AB57: 0 | AC57: 0 | AD57: 0 | AE57: 0 | AF57: 0 | AG57: 0 | AH57: 0 | AI57: 0 | AJ57: 0
H58: =IF(H$16<$F58,0,IF(H$16=$F58,$D58,IF(H$16>$F58,G58))) -> 0 | I58: 0 | J58: 0 | K58: 0 | L58: 0 | M58: 0 | N58: 0 | O58: 0 | P58: 0 | Q58: 0 | R58: 0 | S58: 0 | T58: 0 | U58: 0 | V58: 0 | W58: 0 | X58: 0 | Y58: 0 | Z58: 0 | AA58: 0 | AB58: 0 | AC58: 0 | AD58: 0 | AE58: 0 | AF58: 0 | AG58: 0 | AH58: 0 | AI58: 0 | AJ58: 0
G59: Total | H59: =SUM(H19:H58) -> 0 | I59: =SUM(I19:I58) -> 0 | J59: 0 | K59: 0 | L59: =SUM(L19:L58) -> 75544.55128 | M59: 75544.55128 | N59: 75544.55128 | O59: 75544.55128 | P59: 75544.55128 | Q59: 75544.55128 | R59: 75544.55128 | S59: 141483.6538 | T59: 141483.6538 | U59: 141483.6538 | V59: 141483.6538 | W59: 141483.6538 | X59: 141483.6538 | Y59: 141483.6538 | Z59: 141483.6538 | AA59: 141483.6538 | AB59: 141483.6538 | AC59: 141483.6538 | AD59: 141483.6538 | AE59: 219813.7821 | AF59: 219813.7821 | AG59: 219813.7821 | AH59: 219813.7821 | AI59: 149181.7308 | AJ59: 149181.7308

Sheet Travel Assumptions
B5: Fuel Key*
F6: Fuel Efficiency (km/L)
C7: Fuel Costs/Liter | E7: Distance Travelled Per Month | F7: 65 | G7: # of Liters used Per Month | H7: Months | I7: Per Month Fuel Cost | J7: Per Facility
B8: PL | C8: 72 | E8: 360 | F8: =1/F7 -> 0.01538461538 | G8: =E8*F8 -> 5.538461538 | H8: 12 | I8: =G8*C8 -> 398.7692308 | J8: 1 | K8: =J8*I8 -> 398.7692308
B9: Village Visionary | C9: 72 | E9: 240 | F9: =1/F7 -> 0.01538461538 | G9: =E9*F9 -> 3.692307692 | H9: 12 | I9: =G9*C9 -> 265.8461538 | J9: 6 | K9: =J9*I9 -> 1595.076923
B14: Field Visits Key*
B16: Item | C16: Item Cost | D16: # of People | E16: # of Items | F16: Monthly Cost (4 blocks) | G16: Per 1 block
B17: Inter District Travel | C17: 100 | D17: 10 | E17: 1 | F17: =E17*D17*C17 -> 1000
B18: Bus to Field (Kishanganj | C18: 250 | D18: 10 | E18: 1 | F18: =E18*D18*C18 -> 2500 | K18: 9308256312
B19: Return Travel | C19: 150 | D19: 10 | E19: 1 | F19: =E19*D19*C19 -> 1500
E20: Total | F20: =F19+F18+F17 -> 5000 | G20: =F20/4 -> 1250
B23: Conference Trip Key* | C23: 3 days 2 nights
B25: Item | C25: Item Cost | D25: # of People | E25: # of Items | F25: Per Trip | G25: .5 Trips/Month
B26: Travel: 1 way^ | C26: 1000 | D26: 3 | E26: 2 | F26: =E26*D26*C26 -> 6000 | G26: =F26/2 -> 3000
B27: Accomodation: Hotel* | C27: 300 | D27: 3 | E27: 2 | F27: =E27*D27*C27 -> 1800 | G27: =F27/2 -> 900
B28: Food: Per meal per person' | C28: 75 | D28: 3 | E28: 9 | F28: =E28*D28*C28 -> 2025 | G28: 1012.5
E31: Total | F31: =F28+F27+F26 -> 9825 | G31: 4912.5
B36: Training Travel* | C36: 4 days 3 nights
B37: Item | C37: Item Cost | D37: # of People | E37: # of Items | F37: Per TrainingCost | G37: Per Block | H37: Trips per year | I37: Per Year | J37: Per Month
B38: Travel: To and from Kishanganj to Patna | C38: 240 | D38: 14 | E38: 2 | F38: =E38*D38*C38 -> 6720 | G38: =F38/2 -> 3360 | H38: 2 | I38: =G38*H38 -> 6720 | J38: =I38/12 -> 560
B39: Travel: To and from place x to Patna | C39: 200 | D39: 14 | E39: 2 | F39: =E39*D39*C39 -> 5600 | G39: =F39/2 -> 2800 | H39: 2 | I39: =G39*H39 -> 5600 | J39: =I39/12 -> 466.6666667
B40: Food: Per meal per person | C40: 75 | D40: 28 | E40: 12 | F40: =E40*D40*C40 -> 25200 | G40: =F40/4 -> 6300 | H40: 2 | I40: 12600 | J40: 1050
B41: Accomodation | C41: 250 | D41: 28 | E41: 3 | F41: =E41*D41*C41 -> 21000 | G41: =F41/4 -> 5250 | H41: 2 | I41: 10500 | J41: 875
I42: Total | J42: =SUM(J38:J41) -> 2951.666667
B46: Item | C46: Item Cost | D46: # of People | E46: # of Items | F46: Per Trip | G46: .5 Trips/Month
B47: Travel: 1 way^ | C47: 1000 | D47: 7 | E47: 2 | F47: =E47*D47*C47 -> 14000 | G47: =F47/2 -> 7000
B48: Accomodation: Hotel* | C48: 300 | D48: 7 | E48: 2 | F48: =E48*D48*C48 -> 4200 | G48: =F48/2 -> 2100
B49: Food: Per meal per person' | C49: 75 | D49: 7 | E49: 9 | F49: =E49*D49*C49 -> 4725 | G49: 2362.5
E52: Total | F52: =F49+F48+F47 -> 22925 | G52: 11462.5

Sheet Furniture & Equipment
A2: Assumptions
A3: Item | B3: Cost | C3: # Per Facility | D3: Cost Per Facility | F3: Facility Start Dates | G3: #
A4: Inverter | B4: 12500 | C4: 1 | D4: =C4*B4 -> 12500 | F4: =Assumptions!B4 -> 2015-01-01 | G4: =Assumptions!C4 -> 4
A5: Battery | B5: 12500 | C5: 1 | D5: =C5*B5 -> 12500 | F5: =Assumptions!B5 -> 2015-08-01 | G5: =Assumptions!C5 -> 8
A6: Filter | B6: 14000 | C6: 1 | D6: 14000 | F6: =Assumptions!B6 -> 2016-08-01 | G6: =Assumptions!C6 -> 10
A7: Mats | B7: 650 | C7: 4 | D7: 2600
A8: Plastic Chairs | B8: 300 | C8: 10 | D8: 3000
A9: Office table | B9: 4000 | C9: 2 | D9: 8000
A10: Fans | B10: 2000 | C10: 3 | D10: 6000
A11: Pillows | B11: 150 | C11: 7 | D11: 1050
A12: Blanket | B12: 1000 | C12: 4 | D12: 4000
A13: Phone | B13: 6000 | C13: 7 | D13: 42000
A14: Motorcycle | B14: 30000 | C14: 7 | D14: 210000
A15: Computer | B15: 20000 | C15: 3 | D15: 60000
A16: T | H16: 1 | I16: 2 | J16: 3 | K16: 4 | L16: 5 | M16: 6 | N16: 7 | O16: 8 | P16: 9 | Q16: 10 | R16: 11 | S16: 12 | T16: 13 | U16: 14 | V16: 15 | W16: 16 | X16: 17 | Y16: 18 | Z16: 19 | AA16: 20 | AB16: 21 | AC16: 22 | AD16: 23 | AE16: 24 | AF16: 25 | AG16: 26 | AH16: 27 | AI16: 28 | AJ16: 29
A17: Position | B17: Cost | C17: # of Facilities | D17: Total | E17: Start Date | H17: 2014-09-01 | I17: 2014-10-01 | J17: 2014-11-01 | K17: 2014-12-01 | L17: 2015-01-01 | M17: 2015-02-01 | N17: 2015-03-01 | O17: 2015-04-01 | P17: 2015-05-01 | Q17: 2015-06-01 | R17: 2015-07-01 | S17: 2015-08-01 | T17: 2015-09-01 | U17: 2015-10-01 | V17: 2015-11-01 | W17: 2015-12-01 | X17: 2016-01-01 | Y17: 2016-02-01 | Z17: 2016-03-01 | AA17: 2016-04-01 | AB17: 2016-05-01 | AC17: 2016-06-01 | AD17: 2016-07-01 | AE17: 2016-08-01 | AF17: 2016-09-01 | AG17: 2016-10-01 | AH17: 2016-11-01 | AI17: 2016-12-01 | AJ17: 2017-01-01
A18: Batch 1 | H18: 1 | I18: 2 | J18: 3 | K18: 4 | L18: 5 | M18: 6 | N18: 7 | O18: 8 | P18: 9 | Q18: 10 | R18: 11 | S18: 12 | T18: 13 | U18: 14 | V18: 15 | W18: 16 | X18: 17 | Y18: 18 | Z18: 19 | AA18: 20 | AB18: 21 | AC18: 22 | AD18: 23 | AE18: 24 | AF18: 25 | AG18: 26 | AH18: 27 | AI18: 28 | AJ18: 29
A19: Inverter | B19: =VLOOKUP(A19,$A$4:$D$14,4,FALSE) -> 12500 | C19: =G4 -> 4 | D19: =B19*C19 -> 50000 | E19: =F4 -> 2015-01-01 | F19: =IF(E19>0,(HLOOKUP(E19,$H$17:$AJ$18,2)),0) -> 5 | H19: =IF(H$16<$F19,0,IF(H$16=$F19,$D19,0)) -> 0 | I19: =IF(I$16<$F19,0,IF(I$16=$F19,$D19,0)) -> 0 | J19: 0 | K19: 0 | L19: 50000 | M19: 0 | N19: 0 | O19: 0 | P19: 0 | Q19: 0 | R19: 0 | S19: 0 | T19: 0 | U19: 0 | V19: 0 | W19: 0 | X19: 0 | Y19: 0 | Z19: 0 | AA19: 0 | AB19: 0 | AC19: 0 | AD19: 0 | AE19: 0 | AF19: 0 | AG19: 0 | AH19: 0 | AI19: 0 | AJ19: 0
A20: Battery | B20: 12500 | C20: =C19 -> 4 | D20: 50000 | E20: =E19 -> 2015-01-01 | F20: =IF(E20>0,(HLOOKUP(E20,$H$17:$AJ$18,2)),0) -> 5 | H20: =IF(H$16<$F20,0,IF(H$16=$F20,$D20,0)) -> 0 | I20: 0 | J20: 0 | K20: 0 | L20: 50000 | M20: 0 | N20: 0 | O20: 0 | P20: 0 | Q20: 0 | R20: 0 | S20: 0 | T20: 0 | U20: 0 | V20: 0 | W20: 0 | X20: 0 | Y20: 0 | Z20: 0 | AA20: 0 | AB20: 0 | AC20: 0 | AD20: 0 | AE20: 0 | AF20: 0 | AG20: 0 | AH20: 0 | AI20: 0 | AJ20: 0
A21: Filter | B21: 14000 | C21: =C20 -> 4 | D21: 56000 | E21: =E20 -> 2015-01-01 | F21: 5 | H21: 0 | I21: 0 | J21: 0 | K21: 0 | L21: 56000 | M21: 0 | N21: 0 | O21: 0 | P21: 0 | Q21: 0 | R21: 0 | S21: 0 | T21: 0 | U21: 0 | V21: 0 | W21: 0 | X21: 0 | Y21: 0 | Z21: 0 | AA21: 0 | AB21: 0 | AC21: 0 | AD21: 0 | AE21: 0 | AF21: 0 | AG21: 0 | AH21: 0 | AI21: 0 | AJ21: 0
A22: Mats | B22: 2600 | C22: 4 | D22: 10400 | E22: 2015-01-01 | F22: 5 | H22: 0 | I22: 0 | J22: 0 | K22: 0 | L22: 10400 | M22: 0 | N22: 0 | O22: 0 | P22: 0 | Q22: 0 | R22: 0 | S22: 0 | T22: 0 | U22: 0 | V22: 0 | W22: 0 | X22: 0 | Y22: 0 | Z22: 0 | AA22: 0 | AB22: 0 | AC22: 0 | AD22: 0 | AE22: 0 | AF22: 0 | AG22: 0 | AH22: 0 | AI22: 0 | AJ22: 0
A23: Plastic Chairs | B23: 3000 | C23: 4 | D23: 12000 | E23: 2015-01-01 | F23: 5 | H23: 0 | I23: 0 | J23: 0 | K23: 0 | L23: 12000 | M23: 0 | N23: 0 | O23: 0 | P23: 0 | Q23: 0 | R23: 0 | S23: 0 | T23: 0 | U23: 0 | V23: 0 | W23: 0 | X23: 0 | Y23: 0 | Z23: 0 | AA23: 0 | AB23: 0 | AC23: 0 | AD23: 0 | AE23: 0 | AF23: 0 | AG23: 0 | AH23: 0 | AI23: 0 | AJ23: 0
A24: Office table | B24: 8000 | C24: 4 | D24: 32000 | E24: 2015-01-01 | F24: 5 | H24: 0 | I24: 0 | J24: 0 | K24: 0 | L24: 32000 | M24: 0 | N24: 0 | O24: 0 | P24: 0 | Q24: 0 | R24: 0 | S24: 0 | T24: 0 | U24: 0 | V24: 0 | W24: 0 | X24: 0 | Y24: 0 | Z24: 0 | AA24: 0 | AB24: 0 | AC24: 0 | AD24: 0 | AE24: 0 | AF24: 0 | AG24: 0 | AH24: 0 | AI24: 0 | AJ24: 0
A25: Fans | B25: 6000 | C25: 4 | D25: 24000 | E25: 2015-01-01 | F25: 5 | H25: 0 | I25: 0 | J25: 0 | K25: 0 | L25: 24000 | M25: 0 | N25: 0 | O25: 0 | P25: 0 | Q25: 0 | R25: 0 | S25: 0 | T25: 0 | U25: 0 | V25: 0 | W25: 0 | X25: 0 | Y25: 0 | Z25: 0 | AA25: 0 | AB25: 0 | AC25: 0 | AD25: 0 | AE25: 0 | AF25: 0 | AG25: 0 | AH25: 0 | AI25: 0 | AJ25: 0
A26: Pillows | B26: 1050 | C26: 4 | D26: 4200 | E26: 2015-01-01 | F26: 5 | H26: 0 | I26: 0 | J26: 0 | K26: 0 | L26: 4200 | M26: 0 | N26: 0 | O26: 0 | P26: 0 | Q26: 0 | R26: 0 | S26: 0 | T26: 0 | U26: 0 | V26: 0 | W26: 0 | X26: 0 | Y26: 0 | Z26: 0 | AA26: 0 | AB26: 0 | AC26: 0 | AD26: 0 | AE26: 0 | AF26: 0 | AG26: 0 | AH26: 0 | AI26: 0 | AJ26: 0
A27: Blanket | B27: 4000 | C27: 4 | D27: 16000 | E27: 2015-01-01 | F27: 5 | H27: 0 | I27: 0 | J27: 0 | K27: 0 | L27: 16000 | M27: 0 | N27: 0 | O27: 0 | P27: 0 | Q27: 0 | R27: 0 | S27: 0 | T27: 0 | U27: 0 | V27: 0 | W27: 0 | X27: 0 | Y27: 0 | Z27: 0 | AA27: 0 | AB27: 0 | AC27: 0 | AD27: 0 | AE27: 0 | AF27: 0 | AG27: 0 | AH27: 0 | AI27: 0 | AJ27: 0
A28: Phone | B28: 42000 | C28: =C27 -> 4 | D28: 168000 | E28: =E27 -> 2015-01-01 | F28: 5 | H28: 0 | I28: 0 | J28: 0 | K28: 0 | L28: =IF(L$16<$F28,0,IF(L$16=$F28,$D28,0)) -> 168000 | M28: 0 | N28: 0 | O28: 0 | P28: 0 | Q28: 0 | R28: 0 | S28: 0 | T28: 0 | U28: 0 | V28: 0 | W28: 0 | X28: 0 | Y28: 0 | Z28: 0 | AA28: 0 | AB28: =IF(AB$16<$F28,0,IF(AB$16=$F28,$D28,0)) -> 0 | AC28: 0 | AD28: 0 | AE28: 0 | AF28: 0 | AG28: 0 | AH28: 0 | AI28: 0 | AJ28: 0
A29: Motorcycle | B29: 210000 | C29: 4 | D29: 840000 | E29: 2015-01-01 | F29: 5 | H29: 0 | I29: 0 | J29: 0 | K29: 0 | L29: 840000 | M29: 0 | N29: 0 | O29: 0 | P29: 0 | Q29: 0 | R29: 0 | S29: 0 | T29: 0 | U29: 0 | V29: 0 | W29: 0 | X29: 0 | Y29: 0 | Z29: 0 | AA29: 0 | AB29: 0 | AC29: 0 | AD29: 0 | AE29: 0 | AF29: 0 | AG29: 0 | AH29: 0 | AI29: 0 | AJ29: 0
A30: =A15 -> Computer | B30: =VLOOKUP(A30,$A$4:$D$15,4,FALSE) -> 60000 | C30: 4 | D30: 240000 | E30: 2015-01-01 | F30: 5 | H30: 0 | I30: 0 | J30: 0 | K30: 0 | L30: 240000 | M30: 0 | N30: 0 | O30: 0 | P30: 0 | Q30: 0 | R30: 0 | S30: 0 | T30: 0 | U30: 0 | V30: 0 | W30: 0 | X30: 0 | Y30: 0 | Z30: 0 | AA30: 0 | AB30: 0 | AC30: 0 | AD30: 0 | AE30: 0 | AF30: 0 | AG30: 0 | AH30: 0 | AI30: 0 | AJ30: 0
A31: Batch 2 | B31: =VLOOKUP(A31,$A$4:$D$14,4,FALSE) ->  | F31: 0 | H31: 0 | I31: 0 | J31: 0 | K31: 0 | L31: 0 | M31: 0 | N31: 0 | O31: 0 | P31: 0 | Q31: 0 | R31: 0 | S31: 0 | T31: 0 | U31: 0 | V31: 0 | W31: 0 | X31: 0 | Y31: 0 | Z31: 0 | AA31: 0 | AB31: 0 | AC31: 0 | AD31: 0 | AE31: 0 | AF31: 0 | AG31: 0 | AH31: 0 | AI31: 0 | AJ31: 0
A32: Inverter | B32: 12500 | C32: =G5 -> 8 | D32: 100000 | E32: =F5 -> 2015-08-01 | F32: 12 | H32: 0 | I32: 0 | J32: 0 | K32: 0 | L32: 0 | M32: 0 | N32: 0 | O32: 0 | P32: 0 | Q32: 0 | R32: 0 | S32: 100000 | T32: 0 | U32: 0 | V32: 0 | W32: 0 | X32: 0 | Y32: 0 | Z32: 0 | AA32: 0 | AB32: 0 | AC32: 0 | AD32: 0 | AE32: 0 | AF32: 0 | AG32: 0 | AH32: 0 | AI32: 0 | AJ32: 0
A33: Battery | B33: 12500 | C33: =C32 -> 8 | D33: 100000 | E33: =E32 -> 2015-08-01 | F33: 12 | H33: 0 | I33: 0 | J33: 0 | K33: 0 | L33: 0 | M33: 0 | N33: 0 | O33: 0 | P33: 0 | Q33: 0 | R33: 0 | S33: 100000 | T33: 0 | U33: 0 | V33: 0 | W33: 0 | X33: 0 | Y33: 0 | Z33: 0 | AA33: 0 | AB33: 0 | AC33: 0 | AD33: 0 | AE33: 0 | AF33: 0 | AG33: 0 | AH33: 0 | AI33: 0 | AJ33: 0
A34: Filter | B34: 14000 | C34: =C33 -> 8 | D34: 112000 | E34: =E33 -> 2015-08-01 | F34: 12 | H34: 0 | I34: 0 | J34: 0 | K34: 0 | L34: 0 | M34: 0 | N34: 0 | O34: 0 | P34: 0 | Q34: 0 | R34: 0 | S34: 112000 | T34: 0 | U34: 0 | V34: 0 | W34: 0 | X34: 0 | Y34: 0 | Z34: 0 | AA34: 0 | AB34: 0 | AC34: 0 | AD34: 0 | AE34: 0 | AF34: 0 | AG34: 0 | AH34: 0 | AI34: 0 | AJ34: 0
A35: Mats | B35: 2600 | C35: 8 | D35: 20800 | E35: 2015-08-01 | F35: 12 | H35: 0 | I35: 0 | J35: 0 | K35: 0 | L35: 0 | M35: 0 | N35: 0 | O35: 0 | P35: 0 | Q35: 0 | R35: 0 | S35: 20800 | T35: 0 | U35: 0 | V35: 0 | W35: 0 | X35: 0 | Y35: 0 | Z35: 0 | AA35: 0 | AB35: 0 | AC35: 0 | AD35: 0 | AE35: 0 | AF35: 0 | AG35: 0 | AH35: 0 | AI35: 0 | AJ35: 0
A36: Plastic Chairs | B36: 3000 | C36: 8 | D36: 24000 | E36: 2015-08-01 | F36: 12 | H36: 0 | I36: 0 | J36: 0 | K36: 0 | L36: 0 | M36: 0 | N36: 0 | O36: 0 | P36: 0 | Q36: 0 | R36: 0 | S36: 24000 | T36: 0 | U36: 0 | V36: 0 | W36: 0 | X36: 0 | Y36: 0 | Z36: 0 | AA36: 0 | AB36: 0 | AC36: 0 | AD36: 0 | AE36: 0 | AF36: 0 | AG36: 0 | AH36: 0 | AI36: 0 | AJ36: 0
A37: Office table | B37: 8000 | C37: 8 | D37: 64000 | E37: 2015-08-01 | F37: 12 | H37: 0 | I37: 0 | J37: 0 | K37: 0 | L37: 0 | M37: 0 | N37: 0 | O37: 0 | P37: 0 | Q37: 0 | R37: 0 | S37: 64000 | T37: 0 | U37: 0 | V37: 0 | W37: 0 | X37: 0 | Y37: 0 | Z37: 0 | AA37: 0 | AB37: 0 | AC37: 0 | AD37: 0 | AE37: 0 | AF37: 0 | AG37: 0 | AH37: 0 | AI37: 0 | AJ37: 0
A38: Fans | B38: 6000 | C38: 8 | D38: 48000 | E38: 2015-08-01 | F38: 12 | H38: 0 | I38: 0 | J38: 0 | K38: 0 | L38: 0 | M38: 0 | N38: 0 | O38: 0 | P38: 0 | Q38: 0 | R38: 0 | S38: 48000 | T38: 0 | U38: 0 | V38: 0 | W38: 0 | X38: 0 | Y38: 0 | Z38: 0 | AA38: 0 | AB38: 0 | AC38: 0 | AD38: 0 | AE38: 0 | AF38: 0 | AG38: 0 | AH38: 0 | AI38: 0 | AJ38: 0
A39: Pillows | B39: 1050 | C39: 8 | D39: 8400 | E39: 2015-08-01 | F39: 12 | H39: 0 | I39: 0 | J39: 0 | K39: 0 | L39: 0 | M39: 0 | N39: 0 | O39: 0 | P39: 0 | Q39: 0 | R39: 0 | S39: 8400 | T39: 0 | U39: 0 | V39: 0 | W39: 0 | X39: 0 | Y39: 0 | Z39: 0 | AA39: 0 | AB39: 0 | AC39: 0 | AD39: 0 | AE39: 0 | AF39: 0 | AG39: 0 | AH39: 0 | AI39: 0 | AJ39: 0
A40: Blanket | B40: 4000 | C40: 8 | D40: 32000 | E40: 2015-08-01 | F40: 12 | H40: 0 | I40: 0 | J40: 0 | K40: 0 | L40: 0 | M40: 0 | N40: 0 | O40: 0 | P40: 0 | Q40: 0 | R40: 0 | S40: 32000 | T40: 0 | U40: 0 | V40: 0 | W40: 0 | X40: 0 | Y40: 0 | Z40: 0 | AA40: 0 | AB40: 0 | AC40: 0 | AD40: 0 | AE40: 0 | AF40: 0 | AG40: 0 | AH40: 0 | AI40: 0 | AJ40: 0
A41: Phone | B41: 42000 | C41: 8 | D41: 336000 | E41: 2015-08-01 | F41: 12 | H41: 0 | I41: 0 | J41: 0 | K41: 0 | L41: 0 | M41: 0 | N41: 0 | O41: 0 | P41: 0 | Q41: 0 | R41: 0 | S41: 336000 | T41: 0 | U41: 0 | V41: 0 | W41: 0 | X41: 0 | Y41: 0 | Z41: 0 | AA41: 0 | AB41: 0 | AC41: 0 | AD41: 0 | AE41: 0 | AF41: 0 | AG41: 0 | AH41: 0 | AI41: 0 | AJ41: 0
A42: Motorcycle | B42: 210000 | C42: 8 | D42: 1680000 | E42: 2015-08-01 | F42: 12 | H42: 0 | I42: 0 | J42: 0 | K42: 0 | L42: 0 | M42: 0 | N42: 0 | O42: 0 | P42: 0 | Q42: 0 | R42: 0 | S42: 1680000 | T42: 0 | U42: 0 | V42: 0 | W42: 0 | X42: 0 | Y42: 0 | Z42: 0 | AA42: 0 | AB42: 0 | AC42: 0 | AD42: 0 | AE42: 0 | AF42: 0 | AG42: 0 | AH42: 0 | AI42: 0 | AJ42: 0
A43: =A28 -> Phone | B43: =VLOOKUP(A43,$A$4:$D$15,4,FALSE) -> 42000 | C43: 8 | D43: 336000 | E43: 2015-08-01 | F43: 12 | H43: 0 | I43: 0 | J43: 0 | K43: 0 | L43: 0 | M43: 0 | N43: 0 | O43: 0 | P43: 0 | Q43: 0 | R43: 0 | S43: 336000 | T43: 0 | U43: 0 | V43: 0 | W43: 0 | X43: 0 | Y43: 0 | Z43: 0 | AA43: 0 | AB43: 0 | AC43: 0 | AD43: 0 | AE43: 0 | AF43: 0 | AG43: 0 | AH43: 0 | AI43: 0 | AJ43: 0
A44: Batch 3 | B44: =VLOOKUP(A44,$A$4:$D$14,4,FALSE) ->  | F44: 0 | H44: 0 | I44: 0 | J44: 0 | K44: 0 | L44: 0 | M44: 0 | N44: =IF(N$16<$F44,0,IF(N$16=$F44,$D44,0)) -> 0 | O44: 0 | P44: 0 | Q44: 0 | R44: 0 | S44: 0 | T44: 0 | U44: 0 | V44: 0 | W44: 0 | X44: 0 | Y44: 0 | Z44: 0 | AA44: 0 | AB44: 0 | AC44: 0 | AD44: 0 | AE44: 0 | AF44: 0 | AG44: 0 | AH44: 0 | AI44: 0 | AJ44: 0
A45: Inverter | B45: 12500 | C45: =G6 -> 10 | D45: 125000 | E45: =F6 -> 2016-08-01 | F45: 24 | H45: =IF(H$16<$F45,0,IF(H$16=$F45,$D45,0)) -> 0 | I45: 0 | J45: 0 | K45: 0 | L45: 0 | M45: 0 | N45: 0 | O45: 0 | P45: 0 | Q45: 0 | R45: 0 | S45: 0 | T45: 0 | U45: 0 | V45: 0 | W45: 0 | X45: 0 | Y45: 0 | Z45: 0 | AA45: 0 | AB45: 0 | AC45: 0 | AD45: 0 | AE45: 125000 | AF45: 0 | AG45: 0 | AH45: 0 | AI45: 0 | AJ45: 0
A46: Battery | B46: 12500 | C46: =C45 -> 10 | D46: =B46*C46 -> 125000 | E46: =E45 -> 2016-08-01 | F46: 24 | H46: 0 | I46: 0 | J46: 0 | K46: 0 | L46: 0 | M46: 0 | N46: 0 | O46: 0 | P46: 0 | Q46: 0 | R46: 0 | S46: 0 | T46: 0 | U46: 0 | V46: 0 | W46: 0 | X46: 0 | Y46: 0 | Z46: 0 | AA46: 0 | AB46: 0 | AC46: 0 | AD46: 0 | AE46: 125000 | AF46: 0 | AG46: 0 | AH46: 0 | AI46: 0 | AJ46: 0
A47: Filter | B47: 14000 | C47: =C46 -> 10 | D47: 140000 | E47: =E46 -> 2016-08-01 | F47: 24 | H47: 0 | I47: 0 | J47: 0 | K47: 0 | L47: 0 | M47: 0 | N47: 0 | O47: 0 | P47: 0 | Q47: 0 | R47: 0 | S47: 0 | T47: 0 | U47: 0 | V47: 0 | W47: 0 | X47: 0 | Y47: 0 | Z47: 0 | AA47: 0 | AB47: 0 | AC47: 0 | AD47: 0 | AE47: 140000 | AF47: 0 | AG47: 0 | AH47: 0 | AI47: 0 | AJ47: 0
A48: Mats | B48: 2600 | C48: 10 | D48: 26000 | E48: =E47 -> 2016-08-01 | F48: 24 | H48: 0 | I48: 0 | J48: 0 | K48: 0 | L48: 0 | M48: 0 | N48: 0 | O48: 0 | P48: 0 | Q48: 0 | R48: 0 | S48: 0 | T48: 0 | U48: 0 | V48: 0 | W48: 0 | X48: 0 | Y48: 0 | Z48: 0 | AA48: 0 | AB48: 0 | AC48: 0 | AD48: 0 | AE48: 26000 | AF48: 0 | AG48: 0 | AH48: 0 | AI48: 0 | AJ48: 0
A49: Plastic Chairs | B49: 3000 | C49: 10 | D49: 30000 | E49: 2016-08-01 | F49: 24 | H49: 0 | I49: 0 | J49: 0 | K49: 0 | L49: 0 | M49: 0 | N49: 0 | O49: 0 | P49: 0 | Q49: 0 | R49: 0 | S49: 0 | T49: 0 | U49: 0 | V49: 0 | W49: 0 | X49: 0 | Y49: 0 | Z49: 0 | AA49: 0 | AB49: 0 | AC49: 0 | AD49: 0 | AE49: 30000 | AF49: 0 | AG49: 0 | AH49: 0 | AI49: 0 | AJ49: 0
A50: Office table | B50: 8000 | C50: 10 | D50: 80000 | E50: 2016-08-01 | F50: 24 | H50: 0 | I50: 0 | J50: 0 | K50: 0 | L50: 0 | M50: 0 | N50: 0 | O50: 0 | P50: 0 | Q50: 0 | R50: 0 | S50: 0 | T50: 0 | U50: 0 | V50: 0 | W50: 0 | X50: 0 | Y50: 0 | Z50: 0 | AA50: 0 | AB50: 0 | AC50: 0 | AD50: 0 | AE50: 80000 | AF50: 0 | AG50: 0 | AH50: 0 | AI50: 0 | AJ50: 0
A51: Fans | B51: 6000 | C51: 10 | D51: 60000 | E51: 2016-08-01 | F51: 24 | H51: 0 | I51: 0 | J51: 0 | K51: 0 | L51: 0 | M51: 0 | N51: 0 | O51: 0 | P51: 0 | Q51: 0 | R51: 0 | S51: 0 | T51: 0 | U51: 0 | V51: 0 | W51: 0 | X51: 0 | Y51: 0 | Z51: 0 | AA51: 0 | AB51: 0 | AC51: 0 | AD51: 0 | AE51: 60000 | AF51: 0 | AG51: 0 | AH51: 0 | AI51: 0 | AJ51: 0
A52: Pillows | B52: 1050 | C52: 10 | D52: 10500 | E52: 2016-08-01 | F52: 24 | H52: 0 | I52: 0 | J52: 0 | K52: 0 | L52: 0 | M52: 0 | N52: 0 | O52: 0 | P52: 0 | Q52: 0 | R52: 0 | S52: 0 | T52: 0 | U52: 0 | V52: 0 | W52: 0 | X52: 0 | Y52: 0 | Z52: 0 | AA52: 0 | AB52: 0 | AC52: 0 | AD52: 0 | AE52: 10500 | AF52: 0 | AG52: 0 | AH52: 0 | AI52: 0 | AJ52: 0
A53: Blanket | B53: 4000 | C53: 10 | D53: 40000 | E53: 2016-08-01 | F53: 24 | H53: 0 | I53: 0 | J53: 0 | K53: 0 | L53: 0 | M53: 0 | N53: 0 | O53: 0 | P53: 0 | Q53: 0 | R53: 0 | S53: 0 | T53: 0 | U53: 0 | V53: 0 | W53: 0 | X53: 0 | Y53: 0 | Z53: 0 | AA53: 0 | AB53: 0 | AC53: 0 | AD53: 0 | AE53: 40000 | AF53: 0 | AG53: 0 | AH53: 0 | AI53: 0 | AJ53: 0
A54: Phone | B54: 42000 | C54: 10 | D54: =B54*C54 -> 420000 | E54: 2016-08-01 | F54: 24 | H54: 0 | I54: 0 | J54: 0 | K54: 0 | L54: 0 | M54: 0 | N54: 0 | O54: 0 | P54: 0 | Q54: 0 | R54: 0 | S54: 0 | T54: 0 | U54: 0 | V54: 0 | W54: 0 | X54: 0 | Y54: 0 | Z54: 0 | AA54: 0 | AB54: 0 | AC54: 0 | AD54: 0 | AE54: 420000 | AF54: 0 | AG54: 0 | AH54: 0 | AI54: 0 | AJ54: 0
A55: Motorcycle | B55: 210000 | C55: 10 | D55: =B55*C55 -> 2100000 | E55: 2016-08-01 | F55: 24 | H55: 0 | I55: 0 | J55: 0 | K55: 0 | L55: 0 | M55: 0 | N55: 0 | O55: 0 | P55: 0 | Q55: 0 | R55: 0 | S55: 0 | T55: 0 | U55: 0 | V55: 0 | W55: 0 | X55: 0 | Y55: 0 | Z55: 0 | AA55: 0 | AB55: 0 | AC55: 0 | AD55: 0 | AE55: 2100000 | AF55: 0 | AG55: 0 | AH55: 0 | AI55: 0 | AJ55: 0
A56: =A41 -> Phone | B56: =VLOOKUP(A56,$A$4:$D$15,4,FALSE) -> 42000 | C56: 10 | D56: =B56*C56 -> 420000 | E56: 2016-08-01 | F56: 24 | H56: 0 | I56: 0 | J56: 0 | K56: 0 | L56: 0 | M56: 0 | N56: 0 | O56: 0 | P56: 0 | Q56: 0 | R56: 0 | S56: 0 | T56: 0 | U56: 0 | V56: 0 | W56: 0 | X56: 0 | Y56: 0 | Z56: 0 | AA56: 0 | AB56: 0 | AC56: 0 | AD56: 0 | AE56: 420000 | AF56: 0 | AG56: 0 | AH56: 0 | AI56: 0 | AJ56: 0
B57: =VLOOKUP(A57,$A$4:$D$14,4,FALSE) ->  | H57: 0 | I57: 0 | J57: 0 | K57: 0 | L57: 0 | M57: 0 | N57: 0 | O57: 0 | P57: 0 | Q57: 0 | R57: 0 | S57: 0 | T57: 0 | U57: 0 | V57: 0 | W57: 0 | X57: 0 | Y57: 0 | Z57: 0 | AA57: 0 | AB57: 0 | AC57: 0 | AD57: 0 | AE57: 0 | AF57: 0 | AG57: 0 | AH57: 0 | AI57: 0 | AJ57: 0
B58: =VLOOKUP(A58,$A$4:$D$14,4,FALSE) ->  | H58: 0 | I58: 0 | J58: 0 | K58: 0 | L58: 0 | M58: 0 | N58: 0 | O58: 0 | P58: 0 | Q58: 0 | R58: 0 | S58: 0 | T58: 0 | U58: 0 | V58: 0 | W58: 0 | X58: 0 | Y58: 0 | Z58: 0 | AA58: 0 | AB58: 0 | AC58: 0 | AD58: 0 | AE58: 0 | AF58: 0 | AG58: 0 | AH58: 0 | AI58: 0 | AJ58: 0
G59: Total | H59: =SUM(H19:H58) -> 0 | I59: =SUM(I19:I58) -> 0 | J59: 0 | K59: 0 | L59: =SUM(L19:L58) -> 1502600 | M59: 0 | N59: 0 | O59: 0 | P59: 0 | Q59: 0 | R59: 0 | S59: 2861200 | T59: 0 | U59: 0 | V59: 0 | W59: 0 | X59: 0 | Y59: 0 | Z59: 0 | AA59: 0 | AB59: 0 | AC59: 0 | AD59: 0 | AE59: 3576500 | AF59: 0 | AG59: 0 | AH59: 0 | AI59: 0 | AJ59: 0

Sheet Other
B2: Assumptions
B3: Position | C3: Salary
B4: Hindi | C4: 3000
B5: Vipassana | C5: 25000
B6: Team Building | C6: 30000
H12: 1 | I12: 2 | J12: 3 | K12: 4 | L12: 5 | M12: 6 | N12: 7 | O12: 8 | P12: 9 | Q12: 10 | R12: 11 | S12: 12 | T12: 13 | U12: 14 | V12: 15 | W12: 16 | X12: 17 | Y12: 18 | Z12: 19 | AA12: 20 | AB12: 21 | AC12: 22 | AD12: 23 | AE12: 24 | AF12: 25 | AG12: 26 | AH12: 27 | AI12: 28 | AJ12: 29
A13: Position | B13: Salary | C13: Total | D13: Start Date | H13: 2014-09-01 | I13: 2014-10-01 | J13: 2014-11-01 | K13: 2014-12-01 | L13: 2015-01-01 | M13: 2015-02-01 | N13: 2015-03-01 | O13: 2015-04-01 | P13: 2015-05-01 | Q13: 2015-06-01 | R13: 2015-07-01 | S13: 2015-08-01 | T13: 2015-09-01 | U13: 2015-10-01 | V13: 2015-11-01 | W13: 2015-12-01 | X13: 2016-01-01 | Y13: 2016-02-01 | Z13: 2016-03-01 | AA13: 2016-04-01 | AB13: 2016-05-01 | AC13: 2016-06-01 | AD13: 2016-07-01 | AE13: 2016-08-01 | AF13: 2016-09-01 | AG13: 2016-10-01 | AH13: 2016-11-01 | AI13: 2016-12-01 | AJ13: 2017-01-01
H14: 1 | I14: 2 | J14: 3 | K14: 4 | L14: 5 | M14: 6 | N14: 7 | O14: 8 | P14: 9 | Q14: 10 | R14: 11 | S14: 12 | T14: 13 | U14: 14 | V14: 15 | W14: 16 | X14: 17 | Y14: 18 | Z14: 19 | AA14: 20 | AB14: 21 | AC14: 22 | AD14: 23 | AE14: 24 | AF14: 25 | AG14: 26 | AH14: 27 | AI14: 28 | AJ14: 29
A15: Hindi | B15: =VLOOKUP(A15,$B$4:$C$8,2,FALSE) -> 3000 | C15: =B15 -> 3000 | D15: 2014-10-01 | E15: =IF(D15>0,(HLOOKUP(D15,$H$13:$AJ$14,2)),0) -> 2 | H15: =IF(H$12<$E15,0,IF(H$12=$E15,$C15,IF(H$12>$E15,0))) -> 0 | I15: 3000 | J15: 0 | K15: 0 | L15: 0 | M15: 0 | N15: 0 | O15: 0 | P15: 0 | Q15: 0 | R15: =IF(R$12<$E15,0,IF(R$12=$E15,$C15,IF(R$12>$E15,0))) -> 0 | S15: 0 | T15: 0 | U15: 0 | V15: 0 | W15: 0 | X15: 0 | Y15: 0 | Z15: 0 | AA15: 0 | AB15: =IF(AB$12<$E15,0,IF(AB$12=$E15,$C15,IF(AB$12>$E15,0))) -> 0 | AC15: 0 | AD15: 0 | AE15: 0 | AF15: 0 | AG15: 0 | AH15: 0 | AI15: 0 | AJ15: 0
A16: Hindi | B16: 3000 | C16: =B16 -> 3000 | D16: 2014-11-01 | E16: =IF(D16>0,(HLOOKUP(D16,$H$13:$AJ$14,2)),0) -> 3 | H16: 0 | I16: 0 | J16: 3000 | K16: 0 | L16: 0 | M16: 0 | N16: 0 | O16: 0 | P16: 0 | Q16: 0 | R16: 0 | S16: 0 | T16: 0 | U16: 0 | V16: 0 | W16: 0 | X16: 0 | Y16: 0 | Z16: 0 | AA16: 0 | AB16: 0 | AC16: 0 | AD16: 0 | AE16: 0 | AF16: 0 | AG16: 0 | AH16: 0 | AI16: 0 | AJ16: 0
A17: Hindi | B17: 3000 | C17: 3000 | D17: 2014-12-01 | E17: 4 | H17: 0 | I17: 0 | J17: 0 | K17: 3000 | L17: 0 | M17: 0 | N17: 0 | O17: 0 | P17: 0 | Q17: 0 | R17: 0 | S17: 0 | T17: 0 | U17: 0 | V17: 0 | W17: 0 | X17: 0 | Y17: 0 | Z17: 0 | AA17: 0 | AB17: 0 | AC17: 0 | AD17: 0 | AE17: 0 | AF17: 0 | AG17: 0 | AH17: 0 | AI17: 0 | AJ17: 0
A18: Hindi | B18: 3000 | C18: 3000 | D18: 2015-01-01 | E18: 5 | H18: 0 | I18: 0 | J18: 0 | K18: 0 | L18: 3000 | M18: 0 | N18: 0 | O18: 0 | P18: 0 | Q18: 0 | R18: 0 | S18: 0 | T18: 0 | U18: 0 | V18: 0 | W18: 0 | X18: 0 | Y18: 0 | Z18: 0 | AA18: 0 | AB18: 0 | AC18: 0 | AD18: 0 | AE18: 0 | AF18: 0 | AG18: 0 | AH18: 0 | AI18: 0 | AJ18: 0
A19: =B5 -> Vipassana | B19: 25000 | C19: =B19 -> 25000 | D19: 2014-10-01 | E19: 2 | H19: =IF(H$12<$E19,0,IF(H$12=$E19,#REF!,IF(H$12>$E19,0))) -> 0 | I19: =IF(I$12<$E19,0,IF(I$12=$E19,C19,IF(I$12>$E19,0))) -> 25000 | J19: =IF(J$12<$E19,0,IF(J$12=$E19,#REF!,IF(J$12>$E19,0))) -> 0 | K19: =IF(K$12<$E19,0,IF(K$12=$E19,#REF!,IF(K$12>$E19,0))) -> 0 | L19: =IF(L$12<$E19,0,IF(L$12=$E19,#REF!,IF(L$12>$E19,0))) -> 0 | M19: =IF(M$12<$E19,0,IF(M$12=$E19,#REF!,IF(M$12>$E19,0))) -> 0 | N19: =IF(N$12<$E19,0,IF(N$12=$E19,#REF!,IF(N$12>$E19,0))) -> 0 | O19: =IF(O$12<$E19,0,IF(O$12=$E19,#REF!,IF(O$12>$E19,0))) -> 0 | P19: =IF(P$12<$E19,0,IF(P$12=$E19,#REF!,IF(P$12>$E19,0))) -> 0 | Q19: =IF(Q$12<$E19,0,IF(Q$12=$E19,#REF!,IF(Q$12>$E19,0))) -> 0 | R19: =IF(R$12<$E19,0,IF(R$12=$E19,#REF!,IF(R$12>$E19,0))) -> 0 | S19: =IF(S$12<$E19,0,IF(S$12=$E19,#REF!,IF(S$12>$E19,0))) -> 0 | T19: =IF(T$12<$E19,0,IF(T$12=$E19,#REF!,IF(T$12>$E19,0))) -> 0 | U19: =IF(U$12<$E19,0,IF(U$12=$E19,#REF!,IF(U$12>$E19,0))) -> 0 | V19: =IF(V$12<$E19,0,IF(V$12=$E19,#REF!,IF(V$12>$E19,0))) -> 0 | W19: =IF(W$12<$E19,0,IF(W$12=$E19,#REF!,IF(W$12>$E19,0))) -> 0 | X19: =IF(X$12<$E19,0,IF(X$12=$E19,#REF!,IF(X$12>$E19,0))) -> 0 | Y19: =IF(Y$12<$E19,0,IF(Y$12=$E19,#REF!,IF(Y$12>$E19,0))) -> 0 | Z19: =IF(Z$12<$E19,0,IF(Z$12=$E19,#REF!,IF(Z$12>$E19,0))) -> 0 | AA19: =IF(AA$12<$E19,0,IF(AA$12=$E19,#REF!,IF(AA$12>$E19,0))) -> 0 | AB19: =IF(AB$12<$E19,0,IF(AB$12=$E19,#REF!,IF(AB$12>$E19,0))) -> 0 | AC19: =IF(AC$12<$E19,0,IF(AC$12=$E19,#REF!,IF(AC$12>$E19,0))) -> 0 | AD19: =IF(AD$12<$E19,0,IF(AD$12=$E19,#REF!,IF(AD$12>$E19,0))) -> 0 | AE19: =IF(AE$12<$E19,0,IF(AE$12=$E19,#REF!,IF(AE$12>$E19,0))) -> 0 | AF19: =IF(AF$12<$E19,0,IF(AF$12=$E19,#REF!,IF(AF$12>$E19,0))) -> 0 | AG19: =IF(AG$12<$E19,0,IF(AG$12=$E19,#REF!,IF(AG$12>$E19,0))) -> 0 | AH19: =IF(AH$12<$E19,0,IF(AH$12=$E19,#REF!,IF(AH$12>$E19,0))) -> 0 | AI19: =IF(AI$12<$E19,0,IF(AI$12=$E19,#REF!,IF(AI$12>$E19,0))) -> 0 | AJ19: =IF(AJ$12<$E19,0,IF(AJ$12=$E19,#REF!,IF(AJ$12>$E19,0))) -> 0
A20: =B6 -> Team Building | B20: 30000 | C20: =B20 -> 30000 | D20: 2014-10-01 | E20: 2 | H20: =IF(H$12<$E20,0,IF(H$12=$E20,$C19,IF(H$12>$E20,0))) -> 0 | I20: =IF(I$12<$E20,0,IF(I$12=$E20,$C20,IF(I$12>$E20,0))) -> 30000 | J20: =IF(J$12<$E20,0,IF(J$12=$E20,$C19,IF(J$12>$E20,0))) -> 0 | K20: 0 | L20: 0 | M20: 0 | N20: 0 | O20: 0 | P20: 0 | Q20: 0 | R20: 0 | S20: 0 | T20: =IF(T$12<$E20,0,IF(T$12=$E20,$C19,IF(T$12>$E20,0))) -> 0 | U20: 0 | V20: 0 | W20: 0 | X20: 0 | Y20: 0 | Z20: 0 | AA20: 0 | AB20: 0 | AC20: 0 | AD20: =IF(AD$12<$E20,0,IF(AD$12=$E20,$C19,IF(AD$12>$E20,0))) -> 0 | AE20: 0 | AF20: 0 | AG20: 0 | AH20: 0 | AI20: 0 | AJ20: 0
E21: 0 | H21: =IF(H$12<$E21,0,IF(H$12=$E21,$C20,IF(H$12>$E21,0))) -> 0 | I21: =IF(I$12<$E21,0,IF(I$12=$E21,$C20,IF(I$12>$E21,0))) -> 0 | J21: 0 | K21: 0 | L21: 0 | M21: 0 | N21: 0 | O21: 0 | P21: 0 | Q21: 0 | R21: 0 | S21: 0 | T21: 0 | U21: 0 | V21: 0 | W21: 0 | X21: 0 | Y21: 0 | Z21: 0 | AA21: 0 | AB21: 0 | AC21: 0 | AD21: 0 | AE21: 0 | AF21: 0 | AG21: 0 | AH21: 0 | AI21: 0 | AJ21: 0
B22: =VLOOKUP(A22,$B$4:$C$8,2,FALSE) ->  | E22: 0 | H22: =IF(H$12<$E22,0,IF(H$12=$E22,$C22,IF(H$12>$E22,0))) -> 0 | I22: 0 | J22: 0 | K22: 0 | L22: 0 | M22: 0 | N22: 0 | O22: 0 | P22: 0 | Q22: 0 | R22: =IF(R$12<$E22,0,IF(R$12=$E22,$C22,IF(R$12>$E22,0))) -> 0 | S22: 0 | T22: 0 | U22: 0 | V22: 0 | W22: 0 | X22: 0 | Y22: 0 | Z22: 0 | AA22: 0 | AB22: =IF(AB$12<$E22,0,IF(AB$12=$E22,$C22,IF(AB$12>$E22,0))) -> 0 | AC22: 0 | AD22: 0 | AE22: 0 | AF22: 0 | AG22: 0 | AH22: 0 | AI22: 0 | AJ22: 0
C23: =B23*#REF! ->  | E23: 0 | H23: 0 | I23: 0 | J23: 0 | K23: 0 | L23: 0 | M23: 0 | N23: 0 | O23: 0 | P23: 0 | Q23: 0 | R23: 0 | S23: 0 | T23: 0 | U23: 0 | V23: 0 | W23: 0 | X23: 0 | Y23: 0 | Z23: 0 | AA23: 0 | AB23: 0 | AC23: 0 | AD23: 0 | AE23: 0 | AF23: 0 | AG23: 0 | AH23: 0 | AI23: 0 | AJ23: 0
C24: =B24*#REF! ->  | E24: 0 | H24: 0 | I24: 0 | J24: 0 | K24: 0 | L24: 0 | M24: 0 | N24: 0 | O24: 0 | P24: 0 | Q24: 0 | R24: 0 | S24: 0 | T24: 0 | U24: 0 | V24: 0 | W24: 0 | X24: 0 | Y24: 0 | Z24: 0 | AA24: 0 | AB24: 0 | AC24: 0 | AD24: 0 | AE24: 0 | AF24: 0 | AG24: 0 | AH24: 0 | AI24: 0 | AJ24: 0
C25: =B25*#REF! ->  | E25: 0 | H25: 0 | I25: 0 | J25: 0 | K25: 0 | L25: 0 | M25: 0 | N25: 0 | O25: 0 | P25: 0 | Q25: 0 | R25: 0 | S25: 0 | T25: 0 | U25: 0 | V25: 0 | W25: 0 | X25: 0 | Y25: 0 | Z25: 0 | AA25: 0 | AB25: 0 | AC25: 0 | AD25: 0 | AE25: 0 | AF25: 0 | AG25: 0 | AH25: 0 | AI25: 0 | AJ25: 0
C26: =B26*#REF! ->  | E26: 0 | H26: 0 | I26: 0 | J26: 0 | K26: 0 | L26: 0 | M26: 0 | N26: 0 | O26: 0 | P26: 0 | Q26: 0 | R26: 0 | S26: 0 | T26: 0 | U26: 0 | V26: 0 | W26: 0 | X26: 0 | Y26: 0 | Z26: 0 | AA26: 0 | AB26: 0 | AC26: 0 | AD26: 0 | AE26: 0 | AF26: 0 | AG26: 0 | AH26: 0 | AI26: 0 | AJ26: 0
C27: =B27*#REF! ->  | E27: 0 | H27: 0 | I27: 0 | J27: 0 | K27: 0 | L27: 0 | M27: 0 | N27: 0 | O27: 0 | P27: 0 | Q27: 0 | R27: 0 | S27: 0 | T27: 0 | U27: 0 | V27: 0 | W27: 0 | X27: 0 | Y27: 0 | Z27: 0 | AA27: 0 | AB27: 0 | AC27: 0 | AD27: 0 | AE27: 0 | AF27: 0 | AG27: 0 | AH27: 0 | AI27: 0 | AJ27: 0
C28: =B28*#REF! ->  | E28: 0 | H28: 0 | I28: 0 | J28: 0 | K28: 0 | L28: 0 | M28: 0 | N28: 0 | O28: 0 | P28: 0 | Q28: 0 | R28: 0 | S28: 0 | T28: 0 | U28: 0 | V28: 0 | W28: 0 | X28: 0 | Y28: 0 | Z28: 0 | AA28: 0 | AB28: 0 | AC28: 0 | AD28: 0 | AE28: 0 | AF28: 0 | AG28: 0 | AH28: 0 | AI28: 0 | AJ28: 0
C29: =B29*#REF! ->  | E29: 0 | H29: 0 | I29: 0 | J29: 0 | K29: 0 | L29: 0 | M29: 0 | N29: 0 | O29: 0 | P29: 0 | Q29: 0 | R29: 0 | S29: 0 | T29: 0 | U29: 0 | V29: 0 | W29: 0 | X29: 0 | Y29: 0 | Z29: 0 | AA29: 0 | AB29: 0 | AC29: 0 | AD29: 0 | AE29: 0 | AF29: 0 | AG29: 0 | AH29: 0 | AI29: 0 | AJ29: 0
C30: =B30*#REF! ->  | E30: 0 | H30: 0 | I30: 0 | J30: 0 | K30: 0 | L30: 0 | M30: 0 | N30: 0 | O30: 0 | P30: 0 | Q30: 0 | R30: 0 | S30: 0 | T30: 0 | U30: 0 | V30: 0 | W30: 0 | X30: 0 | Y30: 0 | Z30: 0 | AA30: 0 | AB30: 0 | AC30: 0 | AD30: 0 | AE30: 0 | AF30: 0 | AG30: 0 | AH30: 0 | AI30: 0 | AJ30: 0
C31: =B31*#REF! ->  | E31: 0 | H31: 0 | I31: 0 | J31: 0 | K31: 0 | L31: 0 | M31: 0 | N31: 0 | O31: 0 | P31: 0 | Q31: 0 | R31: 0 | S31: 0 | T31: 0 | U31: 0 | V31: 0 | W31: 0 | X31: 0 | Y31: 0 | Z31: 0 | AA31: 0 | AB31: 0 | AC31: 0 | AD31: 0 | AE31: 0 | AF31: 0 | AG31: 0 | AH31: 0 | AI31: 0 | AJ31: 0
C32: =B32*#REF! ->  | E32: 0 | H32: =IF(H$12<$E32,0,IF(H$12=$E32,$C32,IF(H$12>$E32,0))) -> 0 | I32: 0 | J32: 0 | K32: 0 | L32: 0 | M32: 0 | N32: 0 | O32: 0 | P32: 0 | Q32: 0 | R32: =IF(R$12<$E32,0,IF(R$12=$E32,$C32,IF(R$12>$E32,0))) -> 0 | S32: 0 | T32: 0 | U32: 0 | V32: 0 | W32: 0 | X32: 0 | Y32: 0 | Z32: 0 | AA32: 0 | AB32: =IF(AB$12<$E32,0,IF(AB$12=$E32,$C32,IF(AB$12>$E32,0))) -> 0 | AC32: 0 | AD32: 0 | AE32: 0 | AF32: 0 | AG32: 0 | AH32: 0 | AI32: 0 | AJ32: 0
C33: =B33*#REF! ->  | E33: 0 | H33: 0 | I33: 0 | J33: 0 | K33: 0 | L33: 0 | M33: 0 | N33: 0 | O33: 0 | P33: 0 | Q33: 0 | R33: 0 | S33: 0 | T33: 0 | U33: 0 | V33: 0 | W33: 0 | X33: 0 | Y33: 0 | Z33: 0 | AA33: 0 | AB33: 0 | AC33: 0 | AD33: 0 | AE33: 0 | AF33: 0 | AG33: 0 | AH33: 0 | AI33: 0 | AJ33: 0
C34: =B34*#REF! ->  | E34: 0 | H34: 0 | I34: 0 | J34: 0 | K34: 0 | L34: 0 | M34: 0 | N34: 0 | O34: 0 | P34: 0 | Q34: 0 | R34: 0 | S34: 0 | T34: 0 | U34: 0 | V34: 0 | W34: 0 | X34: 0 | Y34: 0 | Z34: 0 | AA34: 0 | AB34: 0 | AC34: 0 | AD34: 0 | AE34: 0 | AF34: 0 | AG34: 0 | AH34: 0 | AI34: 0 | AJ34: 0
C35: =B35*#REF! ->  | E35: 0 | H35: 0 | I35: 0 | J35: 0 | K35: 0 | L35: 0 | M35: 0 | N35: 0 | O35: 0 | P35: 0 | Q35: 0 | R35: 0 | S35: 0 | T35: 0 | U35: 0 | V35: 0 | W35: 0 | X35: 0 | Y35: 0 | Z35: 0 | AA35: 0 | AB35: 0 | AC35: 0 | AD35: 0 | AE35: 0 | AF35: 0 | AG35: 0 | AH35: 0 | AI35: 0 | AJ35: 0
C36: =B36*#REF! ->  | E36: 0 | H36: 0 | I36: 0 | J36: 0 | K36: 0 | L36: 0 | M36: 0 | N36: 0 | O36: 0 | P36: 0 | Q36: 0 | R36: 0 | S36: 0 | T36: 0 | U36: 0 | V36: 0 | W36: 0 | X36: 0 | Y36: 0 | Z36: 0 | AA36: 0 | AB36: 0 | AC36: 0 | AD36: 0 | AE36: 0 | AF36: 0 | AG36: 0 | AH36: 0 | AI36: 0 | AJ36: 0
C37: =B37*#REF! ->  | E37: 0 | H37: 0 | I37: 0 | J37: 0 | K37: 0 | L37: 0 | M37: 0 | N37: 0 | O37: 0 | P37: 0 | Q37: 0 | R37: 0 | S37: 0 | T37: 0 | U37: 0 | V37: 0 | W37: 0 | X37: 0 | Y37: 0 | Z37: 0 | AA37: 0 | AB37: 0 | AC37: 0 | AD37: 0 | AE37: 0 | AF37: 0 | AG37: 0 | AH37: 0 | AI37: 0 | AJ37: 0
H38: =IF(H$12<$F38,0,IF(H$12=$F38,$D38,IF(H$12>$F38,0))) -> 0 | I38: 0 | J38: 0 | K38: 0 | L38: 0 | M38: 0 | N38: 0 | O38: 0 | P38: 0 | Q38: 0 | R38: 0 | S38: 0 | T38: 0 | U38: 0 | V38: 0 | W38: 0 | X38: =IF(X$12<$F38,0,IF(X$12=$F38,$D38,IF(X$12>$F38,0))) -> 0 | Y38: 0 | Z38: 0 | AA38: 0 | AB38: 0 | AC38: 0 | AD38: 0 | AE38: 0 | AF38: 0 | AG38: 0 | AH38: 0 | AI38: 0 | AJ38: 0
H39: 0 | I39: 0 | J39: 0 | K39: 0 | L39: 0 | M39: 0 | N39: 0 | O39: 0 | P39: 0 | Q39: 0 | R39: 0 | S39: 0 | T39: 0 | U39: 0 | V39: 0 | W39: 0 | X39: 0 | Y39: 0 | Z39: 0 | AA39: 0 | AB39: 0 | AC39: 0 | AD39: 0 | AE39: 0 | AF39: 0 | AG39: 0 | AH39: 0 | AI39: 0 | AJ39: 0
H40: 0 | I40: 0 | J40: 0 | K40: 0 | L40: 0 | M40: 0 | N40: 0 | O40: 0 | P40: 0 | Q40: 0 | R40: 0 | S40: 0 | T40: 0 | U40: 0 | V40: 0 | W40: 0 | X40: 0 | Y40: 0 | Z40: 0 | AA40: 0 | AB40: 0 | AC40: 0 | AD40: 0 | AE40: 0 | AF40: 0 | AG40: 0 | AH40: 0 | AI40: 0 | AJ40: 0
H41: 0 | I41: 0 | J41: 0 | K41: 0 | L41: 0 | M41: 0 | N41: 0 | O41: 0 | P41: 0 | Q41: 0 | R41: 0 | S41: 0 | T41: 0 | U41: 0 | V41: 0 | W41: 0 | X41: 0 | Y41: 0 | Z41: 0 | AA41: 0 | AB41: 0 | AC41: 0 | AD41: 0 | AE41: 0 | AF41: 0 | AG41: 0 | AH41: 0 | AI41: 0 | AJ41: 0
H42: 0 | I42: 0 | J42: 0 | K42: 0 | L42: 0 | M42: 0 | N42: 0 | O42: 0 | P42: 0 | Q42: 0 | R42: 0 | S42: 0 | T42: 0 | U42: 0 | V42: 0 | W42: 0 | X42: 0 | Y42: 0 | Z42: 0 | AA42: 0 | AB42: 0 | AC42: 0 | AD42: 0 | AE42: 0 | AF42: 0 | AG42: 0 | AH42: 0 | AI42: 0 | AJ42: 0
H43: 0 | I43: 0 | J43: 0 | K43: 0 | L43: 0 | M43: 0 | N43: 0 | O43: 0 | P43: 0 | Q43: 0 | R43: 0 | S43: 0 | T43: 0 | U43: 0 | V43: 0 | W43: 0 | X43: 0 | Y43: 0 | Z43: 0 | AA43: 0 | AB43: 0 | AC43: 0 | AD43: 0 | AE43: 0 | AF43: 0 | AG43: 0 | AH43: 0 | AI43: 0 | AJ43: 0
H44: 0 | I44: 0 | J44: 0 | K44: 0 | L44: 0 | M44: 0 | N44: 0 | O44: 0 | P44: 0 | Q44: 0 | R44: 0 | S44: 0 | T44: 0 | U44: 0 | V44: 0 | W44: 0 | X44: 0 | Y44: 0 | Z44: 0 | AA44: 0 | AB44: 0 | AC44: 0 | AD44: 0 | AE44: 0 | AF44: 0 | AG44: 0 | AH44: 0 | AI44: 0 | AJ44: 0
H45: 0 | I45: 0 | J45: 0 | K45: 0 | L45: 0 | M45: 0 | N45: 0 | O45: 0 | P45: 0 | Q45: 0 | R45: 0 | S45: 0 | T45: 0 | U45: 0 | V45: 0 | W45: 0 | X45: 0 | Y45: 0 | Z45: 0 | AA45: 0 | AB45: 0 | AC45: 0 | AD45: 0 | AE45: 0 | AF45: 0 | AG45: 0 | AH45: 0 | AI45: 0 | AJ45: 0
H46: 0 | I46: 0 | J46: 0 | K46: 0 | L46: 0 | M46: 0 | N46: 0 | O46: 0 | P46: 0 | Q46: 0 | R46: 0 | S46: 0 | T46: 0 | U46: 0 | V46: 0 | W46: 0 | X46: =IF(X$12<$F46,0,IF(X$12=$F46,$D46,IF(X$12>$F46,0))) -> 0 | Y46: 0 | Z46: 0 | AA46: 0 | AB46: 0 | AC46: 0 | AD46: 0 | AE46: 0 | AF46: 0 | AG46: 0 | AH46: 0 | AI46: 0 | AJ46: 0
H47: 0 | I47: 0 | J47: 0 | K47: 0 | L47: 0 | M47: 0 | N47: 0 | O47: 0 | P47: 0 | Q47: 0 | R47: 0 | S47: 0 | T47: 0 | U47: 0 | V47: 0 | W47: =IF(W$12<$F47,0,IF(W$12=$F47,$D47,IF(W$12>$F47,0))) -> 0 | X47: 0 | Y47: 0 | Z47: 0 | AA47: 0 | AB47: 0 | AC47: 0 | AD47: 0 | AE47: 0 | AF47: 0 | AG47: 0 | AH47: 0 | AI47: 0 | AJ47: 0
H48: =IF(H$12<$F48,0,IF(H$12=$F48,$D48,IF(H$12>$F48,0))) -> 0 | I48: 0 | J48: 0 | K48: 0 | L48: 0 | M48: 0 | N48: 0 | O48: 0 | P48: 0 | Q48: 0 | R48: 0 | S48: 0 | T48: 0 | U48: 0 | V48: 0 | W48: 0 | X48: 0 | Y48: 0 | Z48: 0 | AA48: 0 | AB48: 0 | AC48: 0 | AD48: 0 | AE48: 0 | AF48: 0 | AG48: 0 | AH48: 0 | AI48: 0 | AJ48: 0
G49: Total | H49: =SUM(H15:H48) -> 0 | I49: =SUM(I15:I48) -> 58000 | J49: 3000 | K49: 3000 | L49: 3000 | M49: 0 | N49: 0 | O49: 0 | P49: 0 | Q49: 0 | R49: 0 | S49: 0 | T49: 0 | U49: 0 | V49: 0 | W49: 0 | X49: 0 | Y49: 0 | Z49: 0 | AA49: 0 | AB49: 0 | AC49: 0 | AD49: 0 | AE49: 0 | AF49: 0 | AG49: 0 | AH49: 0 | AI49: 0 | AJ49: 0
